Workbook

Sheet Introduction
A3: . . . . . . . . . . . . . . . . . . . . . . . . . . . . . . . . . . . . . . . . . . . . . . . . .
A5: Guidelines For Estimating
A6: ="Hay Production Costs - "&J12 -> Hay Production Costs - 2024
A7: Round Bale Hay and Silage
I12: Date: January, | J12: 2024
J14: **revised 2024 MASC data**
B16: This guide is designed to provide planning information and a format for calculating the costs of producing a forage crop of 100% alfalfa or alfalfa grass mixture for the purpose of feeding livestock or export in Manitoba. General Manitoba Agriculture recommendations are assumed in using fertilizers and chemical inputs. These figures provide an economic evaluation of the crops and estimated yields required to cover all costs. Costs include labour, investment and depreciation, but do not include managmement costs, nor do they necessarily represent the average cost of production in Manitoba.
B26: The assumptions on which the costs were calculated are clearly defined in the supporting pages. They were developed using a combination of recommended practices and methods followed by many producers.
B31: These budgets may be adjusted by putting in your own figures. As a producer, you are encouraged to calculate your own costs of production for your alfalfa hay crops. On each farm, costs and yields differ due to soil type, climate and agronomic practices.
B36: This tool is available as an Excel worksheet at:
B44: is also available to help
B45: determine machinery costs.
B53: Note: This budget is only a guide and is not intended as an in depth study of the cost of production of this industry. Interpretation and use of this information is the responsibility of the user. If you need help with a budget, contact a Farm Management Specialist.

Sheet Summary
A1: ="Dry Hay Production Costs - "&Introduction!J12&"" -> Dry Hay Production Costs - 2024 | Q1: ="Baled Silage Production Costs - "&Introduction!J12&"" -> Baled Silage Production Costs - 2024
C3: Alfalfa Hay | G3: Alfalfa-Grass Hay | K3: Greenfeed Hay | S3: Alfalfa Baled Silage | W3: Alfalfa-Grass Baled Silage | AA3: Greenfeed Baled Silage
C4: ="Annual (Years 2 to "&Production!D24+1&")" -> Annual (Years 2 to 5) | H4: ="Annual (Years 2 to "&Production!E24+1&")" -> Annual (Years 2 to 8) | S4: ="Annual (Years 2 to "&Production!D24+1&")" -> Annual (Years 2 to 5) | X4: ="Annual (Years 2 to "&Production!E24+1&")" -> Annual (Years 2 to 8)
C5: Production Costs | G5: Production Costs | K5: Production Costs | S5: Production Costs | W5: Production Costs | AA5: Production Costs
D6: (as fed) | E6: (Dry Matter-DM) | H6: (as fed) | I6: (DM) | L6: (as fed) | M6: (DM) | T6: (as fed) | U6: (DM) | X6: (as fed) | Y6: (DM) | AB6: (as fed) | AC6: (DM)
C7: $/acre | D7: $/ton | E7: $/ton | G7: $/acre | H7: $/ton | I7: $/ton | K7: $/acre | L7: $/ton | M7: $/ton | O7: Your Farm | S7: $/acre | T7: $/ton | U7: $/ton | W7: $/acre | X7: $/ton | Y7: $/ton | AA7: $/acre | AB7: $/ton | AC7: $/ton | AE7: Your Farm
A8: A. Operating Costs | Q8: A. Operating Costs
B9: Forage Seed & Treatment | C9: - | G9: - | K9: - | R9: Forage Seed & Treatment | S9: - | W9: - | AA9: -
B10: Nurse Crop Seed | C10: - | G10: - | K10: ='Seed, Fertilizer & Chemical'!J10 -> 30 | R10: Nurse Crop Seed | S10: - | W10: - | AA10: ='Seed, Fertilizer & Chemical'!J10 -> 30
B11: Establishment (amortized) | C11: =SUM(-'Establishment Summary'!C47/Production!D24) -> 39.39791336 | D11: 1 | G11: =SUM(-'Establishment Summary'!E47/Production!E24) -> 36.31816735 | H11: 2 | K11: - | R11: Establishment (amortized) | S11: =SUM(-'Establishment Summary'!G47/Production!H24) -> 70.29211629 | T11: 1 | W11: =SUM(-'Establishment Summary'!I47/Production!I24) -> 46.83366027 | X11: 2 | AA11: -
B12: Fertilizer | C12: ='Seed, Fertilizer & Chemical'!O28 -> 106.2536491 | G12: ='Seed, Fertilizer & Chemical'!O30 -> 83.77733504 | K12: ='Seed, Fertilizer & Chemical'!O33 -> 88.05035048 | R12: Fertilizer | S12: ='Seed, Fertilizer & Chemical'!O28 -> 106.2536491 | W12: ='Seed, Fertilizer & Chemical'!O30 -> 83.77733504 | AA12: ='Seed, Fertilizer & Chemical'!O33 -> 88.05035048
B13: Herbicide/Insecticide | C13: ='Seed, Fertilizer & Chemical'!J46 -> 0 | G13: ='Seed, Fertilizer & Chemical'!J49 -> 0 | K13: ='Seed, Fertilizer & Chemical'!J52 -> 16 | R13: Herbicide/Insecticide | S13: ='Seed, Fertilizer & Chemical'!J46 -> 0 | W13: ='Seed, Fertilizer & Chemical'!J49 -> 0 | AA13: ='Seed, Fertilizer & Chemical'!J52 -> 16
B14: Fuel | C14: ='Op. Cost Input'!E15 -> 14.14 | G14: ='Op. Cost Input'!G15 -> 9.856 | K14: ='Op. Cost Input'!H15 -> 16.688 | R14: Fuel | S14: ='Op. Cost Input'!E15+(Production!H23*0.1*'Op. Cost Input'!E8) -> 15.106 | W14: ='Op. Cost Input'!M15 -> 11.858 | AA14: ='Op. Cost Input'!N15 -> 18.69
B15: Machinery Operating | C15: ='Fixed Cost Input'!J3*'Op. Cost Input'!$E$4 -> 13.2825 | G15: ='Fixed Cost Input'!J3*'Op. Cost Input'!$E$4 -> 13.2825 | K15: ='Fixed Cost Input'!J3*'Op. Cost Input'!$E$4 -> 13.2825 | R15: Machinery Operating | S15: =('Fixed Cost Input'!J3+'Fixed Cost Input'!J17)*'Op. Cost Input'!$E$4 -> 17.94916667 | W15: =('Fixed Cost Input'!J3+'Fixed Cost Input'!J17)*'Op. Cost Input'!$E$4 -> 17.94916667 | AA15: =('Fixed Cost Input'!J3+'Fixed Cost Input'!J17)*'Op. Cost Input'!$E$4 -> 17.94916667
B16: Machinery Lease | C16: ='Fixed Cost Input'!D16 -> 2.4 | G16: ='Fixed Cost Input'!D16 -> 2.4 | K16: ='Fixed Cost Input'!D16 -> 2.4 | R16: Machinery Lease | S16: ='Fixed Cost Input'!D16 -> 2.4 | W16: ='Fixed Cost Input'!D16 -> 2.4 | AA16: ='Fixed Cost Input'!D16 -> 2.4
B17: Rental and Custom | C17: ='Op. Cost Input'!E30 -> 14 | G17: ='Op. Cost Input'!G30 -> 11.16 | K17: ='Op. Cost Input'!H30 -> 11.32 | R17: Rental and Custom | S17: ='Op. Cost Input'!K30 -> 20.67 | W17: ='Op. Cost Input'!M30 -> 16.35 | AA17: ='Op. Cost Input'!N30 -> 16.56
B18: Crop Insurance | C18: ='Op. Cost Input'!E19 -> 32.17 | G18: ='Op. Cost Input'!G19 -> 9.22 | K18: ='Op. Cost Input'!H19 -> 17.15 | R18: Crop Insurance | S18: ='Op. Cost Input'!K19 -> 32.17 | W18: ='Op. Cost Input'!M19 -> 9.22 | AA18: ='Op. Cost Input'!N19 -> 17.15
B19: Twine/Net Wrap | C19: =SUM('Op. Cost Input'!L3/'Op. Cost Input'!L4)*Production!D23 -> 5.64 | G19: =SUM('Op. Cost Input'!L3/'Op. Cost Input'!L4)*Production!E23 -> 4.44 | K19: =SUM('Op. Cost Input'!L3/'Op. Cost Input'!L4)*Production!F23 -> 4.56 | R19: Twine/Net Wrap | S19: =SUM(('Op. Cost Input'!L3/'Op. Cost Input'!L4))*Production!H23 -> 8.28 | W19: =SUM(('Op. Cost Input'!L3/'Op. Cost Input'!L4))*Production!I23 -> 6.6 | AA19: =SUM(('Op. Cost Input'!L3/'Op. Cost Input'!L4))*Production!J23 -> 6.6
B20: Plastic Silage Wrap | C20: - | G20: - | K20: - | R20: Plastic Silage Wrap | S20: =SUM(('Op. Cost Input'!L6/('Op. Cost Input'!L8)))*Production!H23 -> 29.15492958 | W20: =SUM(('Op. Cost Input'!L6/('Op. Cost Input'!L8)))*Production!I23 -> 23.23943662 | AA20: =SUM(('Op. Cost Input'!L6/('Op. Cost Input'!L8)))*Production!J23 -> 23.23943662
B21: Other Costs | C21: ='Op. Cost Input'!E21 -> 2 | G21: ='Op. Cost Input'!G21 -> 2 | K21: ='Op. Cost Input'!H21 -> 2 | R21: Other Costs | S21: ='Op. Cost Input'!K21 -> 2 | W21: ='Op. Cost Input'!M21 -> 2 | AA21: ='Op. Cost Input'!N21 -> 2
B22: Land Taxes | C22: ='Op. Cost Input'!$E$6 -> 10 | G22: ='Op. Cost Input'!$E$6 -> 10 | K22: ='Op. Cost Input'!$E$6 -> 10 | R22: Land Taxes | S22: ='Op. Cost Input'!$E$6 -> 10 | W22: ='Op. Cost Input'!$E$6 -> 10 | AA22: ='Op. Cost Input'!$E$6 -> 10
B23: Interest on Operating | C23: =ROUND(SUM(C9:C22)/2*('Op. Cost Input'!$E$3),2) -> 10.77 | G23: =ROUND(SUM(G9:G22)/2*('Op. Cost Input'!$E$3),2) -> 8.21 | K23: =ROUND(SUM(K9:K22)/2*('Op. Cost Input'!$E$3),2) -> 9.52 | R23: Interest on Operating | S23: =ROUND(SUM(S9:S22)/2*('Op. Cost Input'!$E$3),2) -> 14.14 | W23: =ROUND(SUM(W9:W22)/2*('Op. Cost Input'!$E$3),2) -> 10.36 | AA23: =ROUND(SUM(AA9:AA22)/2*('Op. Cost Input'!$E$3),2) -> 11.19
B24: Total Operating | C24: =SUM(C9:C23) -> 250.0540625 | G24: =SUM(G9:G23) -> 190.6640024 | K24: =SUM(K9:K23) -> 220.9708505 | O24: =IF(SUM(O9:O23)=0,"",SUM(O9:O23)) ->  | R24: Total Operating | S24: =SUM(S9:S23) -> 328.4158617 | W24: =SUM(W9:W23) -> 240.5875986 | AA24: =SUM(AA9:AA23) -> 259.8289538 | AE24: =IF(SUM(AE9:AE23)=0,"",SUM(AE9:AE23)) -> 
A26: B. Fixed Costs | Q26: B. Fixed Costs
B27: Land Cost | C27: ='Fixed Cost Input'!D13 -> 80.40545057 | G27: ='Fixed Cost Input'!D13 -> 80.40545057 | K27: ='Fixed Cost Input'!D13 -> 80.40545057 | R27: Land Cost | S27: ='Fixed Cost Input'!D13 -> 80.40545057 | W27: ='Fixed Cost Input'!D13 -> 80.40545057 | AA27: ='Fixed Cost Input'!D13 -> 80.40545057
B28: Machinery Costs | C28: ='Fixed Cost Input'!J14 -> 55.47005374 | G28: ='Fixed Cost Input'!J14 -> 55.47005374 | K28: ='Fixed Cost Input'!J14 -> 55.47005374 | R28: Machinery Costs | S28: ='Fixed Cost Input'!J14+'Fixed Cost Input'!J28 -> 75.40331813 | W28: ='Fixed Cost Input'!J14+'Fixed Cost Input'!J28 -> 75.40331813 | AA28: ='Fixed Cost Input'!J14+'Fixed Cost Input'!J28 -> 75.40331813
B29: Storage Costs | C29: ='Fixed Cost Input'!D15 -> 0 | G29: ='Fixed Cost Input'!D15 -> 0 | K29: ='Fixed Cost Input'!D15 -> 0 | R29: Storage Costs | S29: 0 | W29: 0 | AA29: 0
B30: Total Fixed | C30: =SUM(C27:C29) -> 135.8755043 | G30: =SUM(G27:G29) -> 135.8755043 | K30: =SUM(K27:K29) -> 135.8755043 | O30: =IF(SUM(O27:O29)=0,"",SUM(O27:O29)) ->  | R30: Total Fixed | S30: =SUM(S27:S29) -> 155.8087687 | W30: =SUM(W27:W29) -> 155.8087687 | AA30: =SUM(AA27:AA29) -> 155.8087687 | AE30: =IF(SUM(AE27:AE29)=0,"",SUM(AE27:AE29)) -> 
B31: Total Operating & Fixed | C31: =+C24+C30 -> 385.9295668 | G31: =+G24+G30 -> 326.5395067 | K31: =+K24+K30 -> 356.8463548 | O31: =IF(OR(O24="",O30=""),"",+O24+O30) ->  | R31: Total Operating & Fixed | S31: =+S24+S30 -> 484.2246304 | W31: =+W24+W30 -> 396.3963673 | AA31: =+AA24+AA30 -> 415.6377225 | AE31: =IF(OR(AE24="",AE30=""),"",+AE24+AE30) -> 
A33: C. Labour | C33: ='Op. Cost Input'!E34 -> 32.4 | G33: ='Op. Cost Input'!G34 -> 32.4 | K33: ='Op. Cost Input'!H34 -> 40.5 | Q33: C. Labour | S33: ='Op. Cost Input'!K34 -> 37.8 | W33: ='Op. Cost Input'!M34 -> 37.8 | AA33: ='Op. Cost Input'!N34 -> 45.9
A35: Total Costs | C35: =+C31+C33 -> 418.3295668 | D35: =SUM(C35/Production!$D$21) -> 119.5227334 | E35: =SUM(C35/Production!$D$22) -> 135.8212879 | G35: =+G31+G33 -> 358.9395067 | H35: =SUM(G35/Production!$E$21) -> 128.6521529 | I35: =SUM(G35/Production!$E$22) -> 147.1063552 | K35: =+K31+K33 -> 397.3463548 | L35: =SUM(K35/Production!$F$21) -> 140.4050724 | M35: =SUM(K35/Production!$F$22) -> 163.5170184 | O35: =IF(O24="","",SUM(O33+O27+O28+#REF!+O29+O9+O10+O11+O12+O13+O14+O17+O15+O18+O21+O22+O23)) ->  | Q35: Total Costs | S35: =+S31+S33 -> 522.0246304 | T35: =SUM(S35/Production!$H$21) -> 75.76554867 | U35: =SUM(S35/Production!$H$22) -> 151.3114871 | W35: =+W31+W33 -> 434.1963673 | X35: =SUM(W35/Production!$I$21) -> 79.66905822 | Y35: =SUM(W35/Production!$I$22) -> 159.0462884 | AA35: =+AA31+AA33 -> 461.5377225 | AB35: =SUM(AA35/Production!$J$21) -> 83.61190624 | AC35: =SUM(AA35/Production!$J$22) -> 167.2238125 | AE35: =IF(AE24="","",SUM(AE33+AE27+AE28+#REF!+AE29+AE9+AE10+AE11+AE12+AE13+AE14+AE17+AE15+AE18+AE21+AE22+AE23)) -> 
A36: Total Costs ($/lb.) | D36: =SUM(D35/2000) -> 0.05976136669 | E36: =SUM(E35/2000) -> 0.06791064396 | H36: =SUM(H35/2000) -> 0.06432607647 | I36: =SUM(I35/2000) -> 0.0735531776 | L36: =SUM(L35/2000) -> 0.07020253618 | M36: =SUM(M35/2000) -> 0.08175850922 | Q36: Total Costs ($/lb.) | T36: =SUM(T35/2000) -> 0.03788277434 | U36: =SUM(U35/2000) -> 0.07565574353 | X36: =SUM(X35/2000) -> 0.03983452911 | Y36: =SUM(Y35/2000) -> 0.07952314419 | AB36: =SUM(AB35/2000) -> 0.04180595312 | AC36: =SUM(AC35/2000) -> 0.08361190624
A37: ="Total Costs ($/"&Production!D29&" lb. bale)" -> Total Costs ($/1500 lb. bale) | C37: =C35/Production!$D$23 -> 89.00629081 | G37: =G35/Production!$E$23 -> 97.01067749 | K37: =K35/Production!$F$23 -> 104.5648302 | Q37: ="Total Costs ($/"&Production!H29&" lb. bale)" -> Total Costs ($/2000 lb. bale) | S37: =S35/Production!$H$23 -> 75.65574353 | W37: =W35/Production!$I$23 -> 78.94479405 | AA37: =AA35/Production!$J$23 -> 83.91594954
A39: Profitability & Breakeven Analysis | Q39: Profitability & Breakeven Analysis
A41: Estimated Farmgate | D41: As Fed | E41: DM | H41: As Fed | I41: DM | L41: As Fed | M41: DM | Q41: Estimated Farmgate | T41: As Fed | U41: DM | X41: As Fed | Y41: DM | AB41: As Fed | AC41: DM
B42: Price $ per ton | D42: 160 | E42: =SUM(D45/E43) -> 181.8181818 | H42: 120 | I42: =SUM(H45/I43) -> 137.2131148 | L42: 120 | M42: =SUM(L45/M43) -> 139.7530864 | R42: Price $ per ton | T42: 60 | U42: =SUM(T45/U43) -> 119.826087 | X42: 55 | Y42: =SUM(X45/Y43) -> 109.7985348 | AB42: 55 | AC42: =SUM(AB45/AC43) -> 110
B43: Yield per acre (ton) | D43: =Production!D21 -> 3.5 | E43: =Production!D22 -> 3.08 | H43: =Production!E21 -> 2.79 | I43: =Production!E22 -> 2.44 | L43: =Production!F21 -> 2.83 | M43: =Production!F22 -> 2.43 | R43: Yield per acre (ton) | T43: =Production!H21 -> 6.89 | U43: =Production!H22 -> 3.45 | X43: =Production!I21 -> 5.45 | Y43: =Production!I22 -> 2.73 | AB43: =Production!J21 -> 5.52 | AC43: =Production!J22 -> 2.76
B44: ="Total Yield (tons/"&'Fixed Cost Input'!D4&" acres)" -> Total Yield (tons/300 acres) | D44: =SUM(D43*'Fixed Cost Input'!$D$4) -> 1050 | E44: =SUM(E43*'Fixed Cost Input'!$D$4) -> 924 | H44: =SUM(H43*'Fixed Cost Input'!$D$4) -> 837 | I44: =SUM(I43*'Fixed Cost Input'!$D$4) -> 732 | L44: =SUM(L43*'Fixed Cost Input'!$D$4) -> 849 | M44: =SUM(M43*'Fixed Cost Input'!$D$4) -> 729 | R44: ="Total Yield (tons/"&'Fixed Cost Input'!D5&" acres)" -> Total Yield (tons/300 acres) | T44: =SUM(T43*'Fixed Cost Input'!$D$5) -> 2067 | U44: =SUM(U43*'Fixed Cost Input'!$D$5) -> 1035 | X44: =SUM(X43*'Fixed Cost Input'!$D$5) -> 1635 | Y44: =SUM(Y43*'Fixed Cost Input'!$D$5) -> 819 | AB44: =SUM(AB43*'Fixed Cost Input'!$D$5) -> 1656 | AC44: =SUM(AC43*'Fixed Cost Input'!$D$5) -> 828
B45: Gross Revenue | D45: =ROUND((D42*D43),2) -> 560 | H45: =ROUND((H42*H43),2) -> 334.8 | L45: =ROUND((L42*L43),2) -> 339.6 | O45: =IF(OR(O42="",O43=""),"",ROUND((O42*O43),2)) ->  | R45: Gross Revenue | T45: =ROUND((T42*T43),2) -> 413.4 | X45: =ROUND((X42*X43),2) -> 299.75 | AB45: =ROUND((AB42*AB43),2) -> 303.6 | AE45: =IF(OR(AE42="",AE43=""),"",ROUND((AE42*AE43),2)) -> 
D47: (as fed) | E47: (DM) | H47: (as fed) | I47: (DM) | L47: (as fed) | M47: (DM) | T47: (as fed) | U47: (DM) | X47: (as fed) | Y47: (DM) | AB47: (as fed) | AC47: (DM)
A48: Marginal Returns | C48: $/acre | D48: $/ton | E48: $/ton | G48: $/acre | H48: $/ton | I48: $/ton | K48: $/acre | L48: $/ton | M48: $/ton | Q48: Marginal Returns | S48: $/acre | T48: $/ton | U48: $/ton | W48: $/acre | X48: $/ton | Y48: $/ton | AA48: $/acre | AB48: $/ton | AC48: $/ton
B49: Over Operating Costs | C49: =SUM(D45-C24) -> 309.9459375 | D49: =SUM(C49/Production!$D$21) -> 88.55598215 | E49: =SUM(C49/Production!$D$22) -> 100.6317979 | G49: =SUM(H45-G24) -> 144.1359976 | H49: =SUM(G49/Production!$E$21) -> 51.66164789 | I49: =SUM(G49/Production!$E$22) -> 59.07213017 | K49: =SUM(L45-K24) -> 118.6291495 | L49: =SUM(K49/Production!$F$21) -> 41.91842739 | M49: =SUM(K49/Production!$F$22) -> 48.81858005 | O49: =IF(OR(O24="",O45=""),"",O45-O24) ->  | R49: Over Operating Costs | S49: =SUM(T45-S24) -> 84.98413834 | T49: =SUM(S49/Production!$H$21) -> 12.33441776 | U49: =SUM(S49/Production!$H$22) -> 24.63308358 | W49: =SUM(X45-W24) -> 59.1624014 | X49: =SUM(W49/Production!$I$21) -> 10.8554865 | Y49: =SUM(W49/Production!$I$22) -> 21.67120931 | AA49: =SUM(AB45-AA24) -> 43.77104623 | AB49: =SUM(AA49/Production!$J$21) -> 7.929537361 | AC49: =SUM(AA49/Production!$J$22) -> 15.85907472 | AE49: =IF(OR(AE24="",AE45=""),"",AE45-AE24) -> 
B50: Over Total Costs (Net Profit) | C50: =SUM(D45-C35) -> 141.6704332 | D50: =SUM(C50/Production!$D$21) -> 40.47726663 | E50: =SUM(C50/Production!$D$22) -> 45.99689389 | G50: =SUM(H45-G35) -> -24.1395067 | H50: =SUM(G50/Production!$E$21) -> -8.65215294 | I50: =SUM(G50/Production!$E$22) -> -9.893240452 | K50: =SUM(L45-K35) -> -57.7463548 | L50: =SUM(K50/Production!$F$21) -> -20.40507237 | M50: =SUM(K50/Production!$F$22) -> -23.76393202 | O50: =IF(OR(O35="",O45=""),"",O45-O35) ->  | R50: Over Total Costs (Net Profit) | S50: =SUM(T45-S35) -> -108.6246304 | T50: =SUM(S50/Production!$H$21) -> -15.76554867 | U50: =SUM(S50/Production!$H$22) -> -31.4854001 | W50: =SUM(X45-W35) -> -134.4463673 | X50: =SUM(W50/Production!$I$21) -> -24.66905822 | Y50: =SUM(W50/Production!$I$22) -> -49.24775359 | AA50: =SUM(AB45-AA35) -> -157.9377225 | AB50: =SUM(AA50/Production!$J$21) -> -28.61190624 | AC50: =SUM(AA50/Production!$J$22) -> -57.22381249 | AE50: =IF(OR(AE35="",AE45=""),"",AE45-AE35) -> 
B51: Operating Expense Ratio | C51: =SUM(C24/D45) -> 0.4465251116 | G51: =SUM(G24/H45) -> 0.5694862676 | K51: =SUM(K24/L45) -> 0.6506797717 | O51: =IF(OR(O24="",O45=""),"",O24/O45) ->  | R51: Operating Expense Ratio | S51: =SUM(S24/T45) -> 0.7944263707 | W51: =SUM(W24/X45) -> 0.8026275183 | AA51: =SUM(AA24/AB45) -> 0.8558265934 | AE51: =IF(OR(AE24="",AE45=""),"",AE24/AE45) -> 
A53: Breakeven Price ($/ton) | Q53: Breakeven Price ($/ton)
B54: Operating Costs | D54: =SUM(C24/Production!$D$21) -> 71.44401785 | E54: =SUM(C24/Production!$D$22) -> 81.18638393 | H54: =SUM(G24/Production!$E$21) -> 68.33835211 | I54: =SUM(G24/Production!$E$22) -> 78.14098458 | L54: =SUM(K24/Production!$F$21) -> 78.08157261 | M54: =SUM(K24/Production!$F$22) -> 90.93450637 | R54: Operating Costs | T54: =SUM(S24/Production!$H$21) -> 47.66558224 | U54: =SUM(S24/Production!$H$22) -> 95.19300338 | X54: =SUM(W24/Production!$I$21) -> 44.1445135 | Y54: =SUM(W24/Production!$I$22) -> 88.12732549 | AB54: =SUM(AA24/Production!$J$21) -> 47.07046264 | AC54: =SUM(AA24/Production!$J$22) -> 94.14092528
B55: Total Costs | D55: =SUM(C35/Production!$D$21) -> 119.5227334 | E55: =SUM(C35/Production!$D$22) -> 135.8212879 | H55: =SUM(G35/Production!$E$21) -> 128.6521529 | I55: =SUM(G35/Production!$E$22) -> 147.1063552 | L55: =SUM(K35/Production!$F$21) -> 140.4050724 | M55: =SUM(K35/Production!$F$22) -> 163.5170184 | R55: Total Costs | T55: =SUM(S35/Production!$H$21) -> 75.76554867 | U55: =SUM(S35/Production!$H$22) -> 151.3114871 | X55: =SUM(W35/Production!$I$21) -> 79.66905822 | Y55: =SUM(W35/Production!$I$22) -> 159.0462884 | AB55: =SUM(AA35/Production!$J$21) -> 83.61190624 | AC55: =SUM(AA35/Production!$J$22) -> 167.2238125
A57: Breakeven Yield (tons/acre) | Q57: Breakeven Yield (tons/acre)
B58: Operating Costs | D58: =C24/D42 -> 1.562837891 | E58: =C24/E42 -> 1.375297344 | H58: =G24/H42 -> 1.588866687 | I58: =G24/I42 -> 1.389546493 | L58: =K24/L42 -> 1.841423754 | M58: =K24/M42 -> 1.581151845 | R58: Operating Costs | T58: =S24/T42 -> 5.473597694 | U58: =S24/U42 -> 2.740770979 | X58: =W24/X42 -> 4.374319974 | Y58: =W24/Y42 -> 2.191173125 | AB58: =AA24/AB42 -> 4.724162796 | AC58: =AA24/AC42 -> 2.362081398
B59: Total Costs | D59: =C35/D42 -> 2.614559793 | E59: =C35/E42 -> 2.300812617 | H59: =G35/H42 -> 2.991162556 | I59: =G35/I42 -> 2.61592711 | L59: =K35/L42 -> 3.311219623 | M59: =K35/M42 -> 2.843202715 | R59: Total Costs | T59: =S35/T42 -> 8.700410506 | U59: =S35/U42 -> 4.356519049 | X59: =W35/X42 -> 7.894479405 | Y59: =W35/Y42 -> 3.954482344 | AB59: =AA35/AB42 -> 8.391594954 | AC59: =AA35/AC42 -> 4.195797477
A61: Cost of Standing Hay ($/lb.) | D61: =(((SUM(C11+C12+C13+C18+(C21/2)+C22+C27)+(C14*0.05)+(C33*0.05)+ROUND(SUM(C11+C12+C13+C18+(C21/2)+C22+(C14*0.05))/2*('Op. Cost Input'!$E$3),4))*1)/Production!$D$21)/2000 -> 0.04001183044 | E61: 3 | H61: =(((SUM(G11+G12+G13+G18+(G21/2)+G22+G27)+(G14*0.05)+(G33*0.05)+ROUND(SUM(G11+G12+G13+G18+(G21/2)+G22+(G14*0.05))/2*('Op. Cost Input'!$E$3),4))*1)/Production!$E$21)/2000 -> 0.04106991988 | I61: 3 | L61: =(((SUM(K10+K12+K13+K17+(K15*0.2)+(K16*0.2)+(K21/2)+K22+K27)+(K14*0.4)+(K33*0.2)+ROUND(SUM(K10+K12+K13+K17+(K15*0.2)+(K16*0.2)+(K21/2)+K22+(K14*0.4))/2*('Op. Cost Input'!$E$3),4))*1)/Production!$F$21)/2000 -> 0.04631902846 | M61: 4 | Q61: Cost of Standing Hay ($/lb.) | T61: =(((SUM(S11+S12+S13+S18+(S21/2)+S22+S27)+(S14*0.05)+(S33*0.05)+ROUND(SUM(S11+S12+S13+S18+(S21/2)+S22+(S14*0.05))/2*('Op. Cost Input'!$E$3),4))*1)/Production!$H$21)/2000 -> 0.02269141625 | U61: 3 | X61: =(((SUM(W11+W12+W13+W18+(W21/2)+W22+W27)+(W14*0.05)+(W33*0.05)+ROUND(SUM(W11+W12+W13+W18+(W21/2)+W22+(W14*0.05))/2*('Op. Cost Input'!$E$3),4))*1)/Production!$I$21)/2000 -> 0.02206728861 | Y61: 3 | AB61: =(((SUM(AA10+AA12+AA13+AA18+(AA15*0.2)+(AA16*0.2)+(AA21/2)+AA22+AA27)+(AA14*0.4)+(AA33*0.2)+ROUND(SUM(AA10+AA12+AA13+AA18+(AA15*0.2)+(AA16*0.2)+(AA21/2)+AA22+(AA14*0.4))/2*('Op. Cost Input'!$E$3),4))*1)/Production!$J$21)/2000 -> 0.02456070964 | AC61: 4
A62: Cost of Standing Hay ($/ton) | D62: =(((SUM(C11+C12+C13+C18+(C21/2)+C22+C27)+(C14*0.05)+(C33*0.05)+ROUND(SUM(C11+C12+C13+C18+(C21/2)+C22+(C14*0.05))/2*('Op. Cost Input'!$E$3),4))*1)/Production!$D$21) -> 80.02366088 | H62: =(((SUM(G11+G12+G13+G18+(G21/2)+G22+G27)+(G14*0.05)+(G33*0.05)+ROUND(SUM(G11+G12+G13+G18+(G21/2)+G22+(G14*0.05))/2*('Op. Cost Input'!$E$3),4))*1)/Production!$E$21) -> 82.13983977 | L62: =(((SUM(K10+K12+K13+K17+(K15*0.2)+(K16*0.2)+(K21/2)+K22+K27)+(K14*0.4)+(K33*0.2)+ROUND(SUM(K10+K12+K13+K17+(K15*0.2)+(K16*0.2)+(K21/2)+K22+(K14*0.4))/2*('Op. Cost Input'!$E$3),4))*1)/Production!$F$21) -> 92.63805691 | Q62: Cost of Standing Hay ($/ton) | T62: =(((SUM(S11+S12+S13+S18+(S21/2)+S22+S27)+(S14*0.05)+(S33*0.05)+ROUND(SUM(S11+S12+S13+S18+(S21/2)+S22+(S14*0.05))/2*('Op. Cost Input'!$E$3),4))*1)/Production!$H$21) -> 45.38283251 | X62: =(((SUM(W11+W12+W13+W18+(W21/2)+W22+W27)+(W14*0.05)+(W33*0.05)+ROUND(SUM(W11+W12+W13+W18+(W21/2)+W22+(W14*0.05))/2*('Op. Cost Input'!$E$3),4))*1)/Production!$I$21) -> 44.13457723 | AB62: =(((SUM(AA10+AA12+AA13+AA18+(AA15*0.2)+(AA16*0.2)+(AA21/2)+AA22+AA27)+(AA14*0.4)+(AA33*0.2)+ROUND(SUM(AA10+AA12+AA13+AA18+(AA15*0.2)+(AA16*0.2)+(AA21/2)+AA22+(AA14*0.4))/2*('Op. Cost Input'!$E$3),4))*1)/Production!$J$21) -> 49.12141927
A63: On-Farm Harvest Cost ($/ton) | D63: =SUM(D35-D62) -> 39.4990725 | H63: =SUM(H35-H62) -> 46.51231317 | L63: =SUM(L35-L62) -> 47.76701546 | Q63: On-Farm Harvest Cost ($/ton) | T63: =SUM(T35-T62) -> 30.38271616 | X63: =SUM(X35-X62) -> 35.53448099 | AB63: =SUM(AB35-AB62) -> 34.49048697
A64: TDN & Crude Protein Cost Analysis | Q64: TDN & Crude Protein Cost Analysis
C66: =C3 -> Alfalfa Hay | G66: =G3 -> Alfalfa-Grass Hay | K66: =K3 -> Greenfeed Hay | S66: =S3 -> Alfalfa Baled Silage | W66: =W3 -> Alfalfa-Grass Baled Silage | AA66: =AA3 -> Greenfeed Baled Silage
C67: Nutrient Cost ($/pound DM) | G67: Nutrient Cost ($/pound DM) | K67: Nutrient Cost ($/pound DM) | S67: Nutrient Cost ($/pound DM) | W67: Nutrient Cost ($/pound DM) | AA67: Nutrient Cost ($/pound DM)
C68: ="TDN ("&Production!D37&"%)" -> TDN (61.5%) | E68: ="Crude Protein ("&Production!D36&"%)" -> Crude Protein (18.2%) | G68: ="TDN ("&Production!E37&"%)" -> TDN (60%) | I68: ="Crude Protein ("&Production!E36&"%)" -> Crude Protein (14%) | K68: ="TDN ("&Production!F37&"%)" -> TDN (58.4%) | M68: ="Crude Protein ("&Production!F36&"%)" -> Crude Protein (9.9%) | S68: ="TDN ("&Production!H37&"%)" -> TDN (62.5%) | U68: ="Crude Protein ("&Production!H36&"%)" -> Crude Protein (18.2%) | W68: ="TDN ("&Production!I37&"%)" -> TDN (60.4%) | Y68: ="Crude Protein ("&Production!I36&"%)" -> Crude Protein (14.6%) | AA68: ="TDN ("&Production!J37&"%)" -> TDN (60.43%) | AC68: ="Crude Protein ("&Production!J36&"%)" -> Crude Protein (10.6%)
A69: Without Storage Loss | C69: =(($E$35)/((2000*(Production!D37/100)))) -> 0.1104238113 | E69: =(($E$35)/((2000*(Production!D36/100)))) -> 0.3731354064 | G69: =(($I$35)/((2000*(Production!E37/100)))) -> 0.1225886293 | I69: =(($I$35)/((2000*(Production!E36/100)))) -> 0.52537984 | K69: =(($M$35)/((2000*(Production!F37/100)))) -> 0.1399974473 | M69: =(($M$35)/((2000*(Production!F36/100)))) -> 0.8258435275 | Q69: Without Storage Loss | S69: =(($U$35)/((2000*(Production!H37/100)))) -> 0.1210491896 | U69: =(($U$35)/((2000*(Production!H36/100)))) -> 0.4156908985 | W69: =(($Y$35)/((2000*(Production!I37/100)))) -> 0.1316608348 | Y69: =(($Y$35)/((2000*(Production!I36/100)))) -> 0.5446790698 | AA69: =(($AC$35)/((2000*(Production!J37/100)))) -> 0.1383615857 | AC69: =(($AC$35)/((2000*(Production!J36/100)))) -> 0.7887915683
A70: ="With "&Production!D30*100&"% Storage Loss (as fed)" -> With 20% Storage Loss (as fed) | C70: =(($E$35)/((2000*(1-Production!D30)*(Production!D37/100)))) -> 0.1380297642 | E70: =(($E$35)/((2000*(1-Production!D30)*(Production!D36/100)))) -> 0.466419258 | G70: =(($I$35)/((2000*(1-Production!D30)*(Production!E37/100)))) -> 0.1532357867 | I70: =(($I$35)/((2000*(1-Production!D30)*(Production!E36/100)))) -> 0.6567248 | K70: =(($M$35)/((2000*(1-Production!D30)*(Production!F37/100)))) -> 0.1749968091 | M70: =(($M$35)/((2000*(1-Production!D30)*(Production!F36/100)))) -> 1.032304409 | Q70: ="With "&Production!D30*100&"% Storage Loss (as fed)" -> With 20% Storage Loss (as fed) | S70: =(($U$35)/((2000*(1-Production!H30)*(Production!H37/100)))) -> 0.1274201996 | U70: =(($U$35)/((2000*(1-Production!H30)*(Production!H36/100)))) -> 0.4375693669 | W70: =(($Y$35)/((2000*(1-Production!H30)*(Production!I37/100)))) -> 0.1385903524 | Y70: =(($Y$35)/((2000*(1-Production!H30)*(Production!I36/100)))) -> 0.5733463893 | AA70: =(($AC$35)/((2000*(1-Production!H30)*(Production!H37/100)))) -> 0.1408200526 | AC70: =(($M$35)/((2000*(1-Production!H30)*(Production!J36/100)))) -> 0.8119017797
A72: ="1. Alfalfa establishment (without nurse crop) net cost of $"&TEXT(-'Establishment Summary'!C47,"0.00")&" (total cost minus estimated gross revenue) were amortized over "&Production!D24&" hay production years." -> 1. Alfalfa establishment (without nurse crop) net cost of $157.59 (total cost minus estimated gross revenue) were amortized over 4 hay production years. | Q72: ="1. Alfalfa establishment (without nurse crop) net cost of $"&TEXT(-'Establishment Summary'!G47,"0.00")&" (total cost minus estimated gross revenue) were amortized over "&Production!H24&" hay production years." -> 1. Alfalfa establishment (without nurse crop) net cost of $281.17 (total cost minus estimated gross revenue) were amortized over 4 hay production years.
A73: ="2. Alfalfa-grass establishment (with oat greenfeed nurse crop) net cost of $"&TEXT(-'Establishment Summary'!E47,"0.00")&" (total cost minus estimated gross revenue) were amortized over "&Production!E24&" hay production years." -> 2. Alfalfa-grass establishment (with oat greenfeed nurse crop) net cost of $254.23 (total cost minus estimated gross revenue) were amortized over 7 hay production years. | Q73: ="2. Alfalfa-grass establishment (with oat greenfeed nurse crop) net cost of $"&TEXT(-'Establishment Summary'!I47,"0.00")&" (total cost minus estimated gross revenue) were amortized over "&Production!I24&" hay production years." -> 2. Alfalfa-grass establishment (with oat greenfeed nurse crop) net cost of $327.84 (total cost minus estimated gross revenue) were amortized over 7 hay production years.
A75: ="3. Cost of alfalfa and alfalfa-grass standing hay (includes: establishment, fertilizer, pesticide, land taxes, crop insurance, 5% of fuel and labour, 50% of other costs, and land costs.)" -> 3. Cost of alfalfa and alfalfa-grass standing hay (includes: establishment, fertilizer, pesticide, land taxes, crop insurance, 5% of fuel and labour, 50% of other costs, and land costs.) | Q75: ="3. Cost of alfalfa and alfalfa-grass standing silage (includes: establishment, fertilizer, pesticide, land taxes, 5% of fuel and labour, 50% of other costs, and land costs.)" -> 3. Cost of alfalfa and alfalfa-grass standing silage (includes: establishment, fertilizer, pesticide, land taxes, 5% of fuel and labour, 50% of other costs, and land costs.)
A77: ="4. Cost of greenfeed standing hay (includes: seed; fertilizer; pesticide; land taxes; crop insurance; 40% of fuel; 20% of labour,machinery lease, and machinery operating; 50% of other costs, and land costs.)" -> 4. Cost of greenfeed standing hay (includes: seed; fertilizer; pesticide; land taxes; crop insurance; 40% of fuel; 20% of labour,machinery lease, and machinery operating; 50% of other costs, and land costs.) | Q77: ="4. Cost of greenfeed standing silage (includes: seed; fertilizer; pesticide; land taxes; crop insurance; 40% of fuel; 20% of labour,machinery lease, and machinery operating; 50% of other costs, and land costs.)" -> 4. Cost of greenfeed standing silage (includes: seed; fertilizer; pesticide; land taxes; crop insurance; 40% of fuel; 20% of labour,machinery lease, and machinery operating; 50% of other costs, and land costs.)
A80: Note: This budget is only a guide and is not intended as an in depth study of the cost of production of this industry. Interpretation and utilization of this information is the responsibility of the user. | Q80: Note: This budget is only a guide and is not intended as an in depth study of the cost of production of this industry. Interpretation and utilization of this information is the responsibility of the user.

Sheet Establishment Summary
A1: ="Forage Establishment Cost Summary - "&Introduction!J12&"" -> Forage Establishment Cost Summary - 2024
C3: Alfalfa Hay | E3: Alfalfa-Grass Hay | G3: Alfalfa Baled Silage | I3: Alfalfa-Grass Baled Silage
C4: Establ. 1 | E4: Establ. 2 | G4: Establ. 3 | I4: Establ. 4
C5: $/acre | E5: $/acre | G5: $/acre | I5: $/acre | K5: Your Farm
A7: A. Operating Costs
B8: Forage Seed & Treatment | C8: ='Seed, Fertilizer & Chemical'!J5 -> 42.5 | E8: ='Seed, Fertilizer & Chemical'!J7 -> 36 | G8: ='Seed, Fertilizer & Chemical'!J5 -> 42.5 | I8: ='Seed, Fertilizer & Chemical'!J7 -> 36
B9: Nurse Crop Seed | C9: - | E9: ='Seed, Fertilizer & Chemical'!J8 -> 15 | G9: - | I9: ='Seed, Fertilizer & Chemical'!J8 -> 15
B10: Establishment (amortized) | C10: - | E10: - | G10: - | I10: -
B11: Fertilizer | C11: ='Seed, Fertilizer & Chemical'!O28 -> 106.2536491 | E11: ='Seed, Fertilizer & Chemical'!O31 -> 99.71916712 | G11: ='Seed, Fertilizer & Chemical'!O28 -> 106.2536491 | I11: ='Seed, Fertilizer & Chemical'!O31 -> 99.71916712
B12: Herbicide/Insecticide | C12: ='Seed, Fertilizer & Chemical'!J47 -> 35 | E12: ='Seed, Fertilizer & Chemical'!J50 -> 35 | G12: ='Seed, Fertilizer & Chemical'!J47 -> 35 | I12: ='Seed, Fertilizer & Chemical'!J50 -> 35
B13: Fuel | C13: ='Op. Cost Input'!D15 -> 22.33 | E13: ='Op. Cost Input'!F15 -> 18.27 | G13: ='Op. Cost Input'!D15+(Production!H23*0.1*'Op. Cost Input'!E8) -> 23.296 | I13: ='Op. Cost Input'!L15 -> 19.55128
B14: Machinery Operating | C14: ='Fixed Cost Input'!J3*'Op. Cost Input'!$E$4 -> 13.2825 | E14: ='Fixed Cost Input'!J3*'Op. Cost Input'!$E$4 -> 13.2825 | G14: ='Op. Cost Input'!J15 -> 23.76416 | I14: =('Fixed Cost Input'!J3+'Fixed Cost Input'!J17)*'Op. Cost Input'!$E$4 -> 17.94916667
B15: Machinery Lease | C15: ='Fixed Cost Input'!D16 -> 2.4 | E15: ='Fixed Cost Input'!D16 -> 2.4 | G15: ='Fixed Cost Input'!D16 -> 2.4 | I15: ='Fixed Cost Input'!D16 -> 2.4
B16: Rental and Custom | C16: ='Op. Cost Input'!D30 -> 8 | E16: ='Op. Cost Input'!F30 -> 7.2 | G16: ='Op. Cost Input'!J30 -> 11.82 | I16: ='Op. Cost Input'!L30 -> 10.56
B17: Crop Insurance | C17: ='Op. Cost Input'!D19 -> 5 | E17: ='Op. Cost Input'!F19 -> 5 | G17: ='Op. Cost Input'!D19 -> 5 | I17: ='Op. Cost Input'!F19 -> 5
B18: Twine/Net Wrap | C18: =SUM('Op. Cost Input'!L3/'Op. Cost Input'!L4)*((Production!D8*2000)/Production!D29) -> 3.2 | E18: =SUM('Op. Cost Input'!L3/'Op. Cost Input'!L4)*((Production!E8*2000)/Production!D29) -> 2.88 | G18: =SUM(('Op. Cost Input'!L3/'Op. Cost Input'!L4))*((Production!H8*2000)/Production!H29) -> 4.728 | I18: =SUM(('Op. Cost Input'!L3/'Op. Cost Input'!L4))*((Production!I8*2000)/Production!H29) -> 4.224
B19: Plastic Silage Wrap | C19: - | E19: - | G19: =SUM(('Op. Cost Input'!L6/('Op. Cost Input'!L8)))*((Production!H8*2000)/Production!H29) -> 16.64788732 | I19: =SUM(('Op. Cost Input'!L6/('Op. Cost Input'!L8)))*((Production!I8*2000)/Production!H29) -> 14.87323944
B20: Other Costs | C20: ='Op. Cost Input'!D21 -> 2 | E20: ='Op. Cost Input'!F21 -> 2 | G20: ='Op. Cost Input'!D21 -> 2 | I20: ='Op. Cost Input'!F21 -> 2
B21: Land Taxes | C21: ='Op. Cost Input'!$E$6 -> 10 | E21: ='Op. Cost Input'!$E$6 -> 10 | G21: ='Op. Cost Input'!$E$6 -> 10 | I21: ='Op. Cost Input'!$E$6 -> 10
B22: Interest on Operating | C22: =ROUND(SUM(C8:C21)/2*('Op. Cost Input'!$E$3),2) -> 11.25 | E22: =ROUND(SUM(E8:E21)/2*('Op. Cost Input'!$E$3),2) -> 11.1 | G22: =ROUND(SUM(G8:G21)/2*('Op. Cost Input'!$E$3),2) -> 12.75 | I22: =ROUND(SUM(I8:I21)/2*('Op. Cost Input'!$E$3),2) -> 12.25
B23: Total Operating | C23: =SUM(C8:C22) -> 261.2161491 | E23: =SUM(E8:E22) -> 257.8516671 | G23: =SUM(G8:G22) -> 296.1596965 | I23: =SUM(I8:I22) -> 284.5268532 | K23: =IF(SUM(K8:K22)=0,"",SUM(K8:K22)) -> 
A25: B. Fixed Costs
B26: Land Cost | C26: ='Fixed Cost Input'!D13 -> 80.40545057 | E26: ='Fixed Cost Input'!D13 -> 80.40545057 | G26: ='Fixed Cost Input'!D13 -> 80.40545057 | I26: ='Fixed Cost Input'!D13 -> 80.40545057
B27: Machinery Costs | C27: ='Fixed Cost Input'!J14 -> 55.47005374 | E27: ='Fixed Cost Input'!J14 -> 55.47005374 | G27: ='Fixed Cost Input'!J14+'Fixed Cost Input'!J28 -> 75.40331813 | I27: ='Fixed Cost Input'!J14+'Fixed Cost Input'!J28 -> 75.40331813
B28: Storage Costs | C28: ='Fixed Cost Input'!D15 -> 0 | E28: ='Fixed Cost Input'!D15 -> 0 | G28: 0 | I28: 0
B29: Total Fixed | C29: =SUM(C26:C28) -> 135.8755043 | E29: =SUM(E26:E28) -> 135.8755043 | G29: =SUM(G26:G28) -> 155.8087687 | I29: =SUM(I26:I28) -> 155.8087687 | K29: =IF(SUM(K26:K28)=0,"",SUM(K26:K28)) -> 
B30: Total Operating & Fixed | C30: =+C23+C29 -> 397.0916534 | E30: =+E23+E29 -> 393.7271714 | G30: =+G23+G29 -> 451.9684652 | I30: =+I23+I29 -> 440.3356219 | K30: =IF(OR(K23="",K29=""),"",+K23+K29) -> 
A32: C. Labour | C32: ='Op. Cost Input'!D34 -> 40.5 | E32: ='Op. Cost Input'!F34 -> 40.5 | G32: ='Op. Cost Input'!J34 -> 45.9 | I32: ='Op. Cost Input'!L34 -> 45.9
A34: Total Costs | C34: =+C30+C32 -> 437.5916534 | E34: =+E30+E32 -> 434.2271714 | G34: =+G30+G32 -> 497.8684652 | I34: =+I30+I32 -> 486.2356219 | K34: =IF(K23="","",SUM(K32+K26+K27+#REF!+K28+K8+K9+K10+K11+K12+K13+K16+K14+K17+K20+K21+K22)) -> 
A36: Total Costs ($/lb.)
A38: Profitability & Breakeven Analysis
A40: Estimated Farmgate
B41: Price $ per ton | C41: 140 | E41: 100 | G41: 55 | I41: 45
B42: Yield per acre (ton) | C42: =Production!D8 -> 2 | E42: =Production!E8 -> 1.8 | G42: =Production!H8 -> 3.94 | I42: =Production!I8 -> 3.52
B43: Gross Revenue | C43: =ROUND((C41*C42),2) -> 280 | E43: =ROUND((E41*E42),2) -> 180 | G43: =ROUND((G41*G42),2) -> 216.7 | I43: =ROUND((I41*I42),2) -> 158.4 | K43: =IF(OR(K41="",K42=""),"",ROUND((K41*K42),2)) -> 
A45: Marginal Returns | C45: $/acre | E45: $/acre | G45: $/acre | I45: $/acre
B46: Over Operating Costs | C46: =SUM(C43-C23) -> 18.78385087 | E46: =SUM(E43-E23) -> -77.85166712 | G46: =SUM(G43-G23) -> -79.45969645 | I46: =SUM(I43-I23) -> -126.1268532 | K46: =IF(OR(K23="",K43=""),"",K43-K23) -> 
B47: Over Total Costs (Net Profit) | C47: =SUM(C43-C34) -> -157.5916534 | E47: =SUM(E43-E34) -> -254.2271714 | G47: =SUM(G43-G34) -> -281.1684652 | I47: =SUM(I43-I34) -> -327.8356219 | K47: =IF(OR(K34="",K43=""),"",K43-K34) -> 
B49: Operating Expense Ratio | C49: =SUM(C23/C43) -> 0.9329148183 | E49: =SUM(E23/E43) -> 1.432509262 | G49: =SUM(G23/G43) -> 1.366680648 | I49: =SUM(I23/I43) -> 1.796255387 | K49: =IF(OR(K23="",K43=""),"",K23/K43) -> 
A51: Establishment Cost (amortized) | C51: =Summary!C11 -> 39.39791336 | E51: =Summary!G11 -> 36.31816735 | G51: =Summary!S11 -> 70.29211629 | I51: =Summary!W11 -> 46.83366027
B52: Years of Production | C52: =Production!D24 -> 4 | E52: =Production!E24 -> 7 | G52: =Production!H24 -> 4 | I52: =Production!I24 -> 7
A55: ="1. Alfalfa hay establishment (without nurse crop) net cost of $"&TEXT(-C47,"0.00")&" (total cost minus estimated gross revenue) were amortized over "&Production!D24&" hay production years." -> 1. Alfalfa hay establishment (without nurse crop) net cost of $157.59 (total cost minus estimated gross revenue) were amortized over 4 hay production years.
A57: ="2. Alfalfa-grass hay establishment (with oat greenfeed nurse crop) net cost of $"&TEXT(-E47,"0.00")&" (total cost minus estimated gross revenue) were amortized over "&Production!E24&" hay production years." -> 2. Alfalfa-grass hay establishment (with oat greenfeed nurse crop) net cost of $254.23 (total cost minus estimated gross revenue) were amortized over 7 hay production years.
A59: ="3. Alfalfa silage establishment (without nurse crop) net cost of $"&TEXT(-G47,"0.00")&" (total cost minus estimated gross revenue) were amortized over "&Production!H24&" hay production years." -> 3. Alfalfa silage establishment (without nurse crop) net cost of $281.17 (total cost minus estimated gross revenue) were amortized over 4 hay production years.
A61: ="4. Alfalfa-grass silage establishment (with oat greenfeed nurse crop) net cost of $"&TEXT(-I47,"0.00")&" (total cost minus estimated gross revenue) were amortized over "&Production!I24&" hay production years." -> 4. Alfalfa-grass silage establishment (with oat greenfeed nurse crop) net cost of $327.84 (total cost minus estimated gross revenue) were amortized over 7 hay production years.
A64: Note: This budget is only a guide and is not intended as an in depth study of the cost of production of this industry. Interpretation and utilization of this information is the responsibility of the user.

Sheet Risk Analysis
A1: Baled Silage Wrapper Cost Summary ($ per Bale)
D4: Increase/Decrease # Bales Wrapped per Year | E4: 0.25
D7: ='Chart data (HIDE)'!B46 -> Alfalfa Baled Silage | H7: ='Chart data (HIDE)'!C46 -> Alfalfa-Grass Baled Silage
A8: Based on # Bales Wrapped Per Year | D8: =TEXT((Production!H23/(1+E4))*'Fixed Cost Input'!D5,"#,###") -> 1,656 | E8: =TEXT(Production!H23*'Fixed Cost Input'!D5,"#,###") -> 2,070 | F8: =TEXT((Production!H23*(1+E4))*'Fixed Cost Input'!D5,"#,###") -> 2,588 | H8: =TEXT((Production!I23/(1+E4))*'Fixed Cost Input'!D5,"#,###") -> 1,320 | I8: =TEXT(Production!I23*'Fixed Cost Input'!D5,"#,###") -> 1,650 | J8: =TEXT((Production!I23*(1+E4))*'Fixed Cost Input'!D5,"#,###") -> 2,063
A10: Cost per Wrapped Silage Bale
B11: ='Op. Cost Input'!I6 -> Plastic Silage Wrap Cost | D11: =E11 -> 4.225352113 | E11: =SUM(('Op. Cost Input'!L6/('Op. Cost Input'!L8))) -> 4.225352113 | F11: =E11 -> 4.225352113 | H11: =I11 -> 4.225352113 | I11: =SUM(('Op. Cost Input'!L6/('Op. Cost Input'!L8))) -> 4.225352113 | J11: =I11 -> 4.225352113
B12: ='Op. Cost Input'!I10 -> Silage Wrapper - Fuel Usage | D12: =E12 -> 0.364 | E12: ='Op. Cost Input'!L10*'Op. Cost Input'!E8 -> 0.364 | F12: =E12 -> 0.364 | H12: =I12 -> 0.364 | I12: ='Op. Cost Input'!L10*'Op. Cost Input'!E8 -> 0.364 | J12: =I12 -> 0.364
B13: =Summary!B28 -> Machinery Costs | D13: ='Fixed Cost Input'!J28/(Production!H23/(1+E4)) -> 3.61109862 | E13: ='Fixed Cost Input'!J28/Production!H23 -> 2.888878896 | F13: ='Fixed Cost Input'!J28/(Production!H23*(1+E4)) -> 2.311103117 | H13: ='Fixed Cost Input'!J28/(Production!I23/(1+E4)) -> 4.530287359 | I13: ='Fixed Cost Input'!J28/Production!I23 -> 3.624229887 | J13: ='Fixed Cost Input'!J28/(Production!I23*(1+E4)) -> 2.89938391
B14: Labour (Additional for wrapper only) | D14: =E14 -> 0.7826086957 | E14: =(('Op. Cost Input'!K33-'Op. Cost Input'!E33)/Production!H23)*'Op. Cost Input'!E10 -> 0.7826086957 | F14: =E14 -> 0.7826086957 | H14: =I14 -> 0.9818181818 | I14: =(('Op. Cost Input'!L33-'Op. Cost Input'!F33)/Production!I23)*'Op. Cost Input'!E10 -> 0.9818181818 | J14: =I14 -> 0.9818181818
B15: Total ($ per bale) | D15: =SUM(D11:D14) -> 8.983059428 | E15: =SUM(E11:E14) -> 8.260839704 | F15: =SUM(F11:F14) -> 7.683063925 | H15: =SUM(H11:H14) -> 10.10145765 | I15: =SUM(I11:I14) -> 9.195400182 | J15: =SUM(J11:J14) -> 8.470554204
A17: Risk & Sensitivity Analysis (Stress Test)
A19: Baseline Values: | F19: Alfalfa | H19: Alfalfa Grass | J19: Greenfeed
B20: Production (Bales per acre) | F20: =Production!D23 -> 4.7 | H20: =Production!E23 -> 3.7 | J20: =Production!F23 -> 3.8
B21: Production Cost ($ per bale) | F21: =Summary!$C$37 -> 89.00629081 | H21: =Summary!$G$37 -> 97.01067749 | J21: =Summary!$K$37 -> 104.5648302
B22: Production Cost ($ per lb.) | F22: =Summary!D36 -> 0.05976136669 | H22: =Summary!H36 -> 0.06432607647 | J22: =Summary!L36 -> 0.07020253618
E24: Amount Added | F24: Changed Cost ($ per bale)
A25: Change in Forage Yield (bales per acre) | E25: -0.75 | F25: =((Summary!$C$35/(((((Production!$D$21*2000)/Production!$D$29)+$E$25)*Production!$D$29)/2000))-(Summary!$C$35/Production!$D$21))/2000*Production!$D$29 -> 17.16549894 | H25: =((Summary!$G$35/(((((Production!$E$21*2000)/Production!$D$29)+$E$25)*Production!$D$29)/2000))-(Summary!$G$35/Production!$E$21))/2000*Production!$D$29 -> 24.36593806 | J25: =((Summary!$K$35/(((((Production!$F$21*2000)/Production!$D$29)+$E$25)*Production!$D$29)/2000))-(Summary!$K$35/Production!$F$21))/2000*Production!$D$29 -> 26.12277394
A26: Change in Land Value | D26: ="(from "&TEXT('Fixed Cost Input'!D3,"$#,###")&")" -> (from $3,000) | E26: 500 | F26: =(-(Summary!$C$27-ROUND((-PMT('Fixed Cost Input'!$C$10,'Fixed Cost Input'!$D$10,('Fixed Cost Input'!$D$3+$E$26)*'Fixed Cost Input'!$D$7,0)+(('Fixed Cost Input'!$D$3+$E$26)*'Fixed Cost Input'!$D$6*'Fixed Cost Input'!$D$8)),2))/Production!$D$21)/2000*Production!$D$29 -> 2.872403449 | H26: =(-(Summary!$G$27-ROUND((-PMT('Fixed Cost Input'!$C$10,'Fixed Cost Input'!$D$10,('Fixed Cost Input'!$D$3+$E$26)*'Fixed Cost Input'!$D$7,0)+(('Fixed Cost Input'!$D$3+$E$26)*'Fixed Cost Input'!$D$6*'Fixed Cost Input'!$D$8)),2))/Production!$E$21)/2000*Production!$D$29 -> 3.603373502 | J26: =(-(Summary!$K$27-ROUND((-PMT('Fixed Cost Input'!$C$10,'Fixed Cost Input'!$D$10,('Fixed Cost Input'!$D$3+$E$26)*'Fixed Cost Input'!$D$7,0)+(('Fixed Cost Input'!$D$3+$E$26)*'Fixed Cost Input'!$D$6*'Fixed Cost Input'!$D$8)),2))/Production!$F$21)/2000*Production!$D$29 -> 3.552442428
A27: Percent Change in Owned Land Equity | D27: ="(from "&'Fixed Cost Input'!D6*100&"%)" -> (from 85%) | E27: -0.05 | F27: =(-(Summary!$C$27-ROUND((-PMT('Fixed Cost Input'!$C$10,'Fixed Cost Input'!$D$10,('Fixed Cost Input'!$D$3)*('Fixed Cost Input'!$D$7-$E$27),0)+(('Fixed Cost Input'!$D$3)*('Fixed Cost Input'!$D$6+$E$27)*'Fixed Cost Input'!$D$8)),2))/Production!$D$21)/2000*Production!$D$29 -> 2.529546306 | H27: =(-(Summary!$G$27-ROUND((-PMT('Fixed Cost Input'!$C$10,'Fixed Cost Input'!$D$10,('Fixed Cost Input'!$D$3)*('Fixed Cost Input'!$D$7-$E$27),0)+(('Fixed Cost Input'!$D$3)*('Fixed Cost Input'!$D$6+$E$27)*'Fixed Cost Input'!$D$8)),2))/Production!$E$21)/2000*Production!$D$29 -> 3.173265975 | J27: =(-(Summary!$K$27-ROUND((-PMT('Fixed Cost Input'!$C$10,'Fixed Cost Input'!$D$10,('Fixed Cost Input'!$D$3)*('Fixed Cost Input'!$D$7-$E$27),0)+(('Fixed Cost Input'!$D$3)*('Fixed Cost Input'!$D$6+$E$27)*'Fixed Cost Input'!$D$8)),2))/Production!$F$21)/2000*Production!$D$29 -> 3.128414159
A28: Change in Land Interest Rate | D28: ="(from "&ROUND('Fixed Cost Input'!C10*100,3)&"%)" -> (from 8%) | E28: 0.015 | F28: =(-(Summary!$C$27-ROUND((-PMT('Fixed Cost Input'!$C$10+$E$28,'Fixed Cost Input'!$D$10,('Fixed Cost Input'!$D$3)*('Fixed Cost Input'!$D$7),0)+(('Fixed Cost Input'!$D$3)*('Fixed Cost Input'!$D$6)*'Fixed Cost Input'!$D$8)),2))/Production!$D$21)/2000*Production!$D$29 -> 1.18383202 | H28: =(-(Summary!$G$27-ROUND((-PMT('Fixed Cost Input'!$C$10+$E$28,'Fixed Cost Input'!$D$10,('Fixed Cost Input'!$D$3)*('Fixed Cost Input'!$D$7),0)+(('Fixed Cost Input'!$D$3)*('Fixed Cost Input'!$D$6)*'Fixed Cost Input'!$D$8)),2))/Production!$E$21)/2000*Production!$D$29 -> 1.485093932 | J28: =(-(Summary!$K$27-ROUND((-PMT('Fixed Cost Input'!$C$10+$E$28,'Fixed Cost Input'!$D$10,('Fixed Cost Input'!$D$3)*('Fixed Cost Input'!$D$7),0)+(('Fixed Cost Input'!$D$3)*('Fixed Cost Input'!$D$6)*'Fixed Cost Input'!$D$8)),2))/Production!$F$21)/2000*Production!$D$29 -> 1.464103205
A29: Change in Machinery Interest Rate | D29: ="(from "&ROUND('Fixed Cost Input'!H10*100,3)&"%)" -> (from 8.5%) | E29: 0.015 | F29: =(-(Summary!$C$28-'Fixed Cost Input'!$J$12-ROUND((-PMT('Fixed Cost Input'!$H$10+$E$29,'Fixed Cost Input'!$I$10,('Fixed Cost Input'!$J$3)*('Fixed Cost Input'!$J$7),0)+(('Fixed Cost Input'!$J$3)*('Fixed Cost Input'!$J$6)*'Fixed Cost Input'!$J$8)),2))/Production!$D$21)/2000*Production!$D$29 -> 0.3674884832 | H29: =(-(Summary!$G$28-'Fixed Cost Input'!$J$12-ROUND((-PMT('Fixed Cost Input'!$H$10+$E$29,'Fixed Cost Input'!$I$10,('Fixed Cost Input'!$J$3)*('Fixed Cost Input'!$J$7),0)+(('Fixed Cost Input'!$J$3)*('Fixed Cost Input'!$J$6)*'Fixed Cost Input'!$J$8)),2))/Production!$E$21)/2000*Production!$D$29 -> 0.4610070578 | J29: =(-(Summary!$K$28-'Fixed Cost Input'!$J$12-ROUND((-PMT('Fixed Cost Input'!$H$10+$E$29,'Fixed Cost Input'!$I$10,('Fixed Cost Input'!$J$3)*('Fixed Cost Input'!$J$7),0)+(('Fixed Cost Input'!$J$3)*('Fixed Cost Input'!$J$6)*'Fixed Cost Input'!$J$8)),2))/Production!$F$21)/2000*Production!$D$29 -> 0.454491057
A30: Change in Fertilizer Cost ($ per tonne) | E30: 150 | F30: =(((-Summary!$C$11-(('Establishment Summary'!$C$47+'Establishment Summary'!$C$11-'Seed, Fertilizer & Chemical'!$O$71)/Production!$D$24))+('Seed, Fertilizer & Chemical'!$O$71-'Seed, Fertilizer & Chemical'!$O$28))/Production!$D$21)/2000*Production!$D$29 -> 5.3681619 | H30: =(((-Summary!$G$11-(('Establishment Summary'!$E$47+'Establishment Summary'!$E$11-'Seed, Fertilizer & Chemical'!$O$74)/Production!$E$24))+('Seed, Fertilizer & Chemical'!$O$73-'Seed, Fertilizer & Chemical'!$O$30))/Production!$E$21)/2000*Production!$D$29 -> 5.007436336 | J30: =(('Seed, Fertilizer & Chemical'!$O$76-'Seed, Fertilizer & Chemical'!$O$33)/Production!$F$21)/2000*Production!$D$29 -> 3.927469597
E31: ="Total Change in Cost ($ per bale)" -> Total Change in Cost ($ per bale) | F31: =SUM(F25:F30) -> 29.4869311 | H31: =SUM(H25:H30) -> 38.09611486 | J31: =SUM(J25:J30) -> 38.64969438
E33: ="'Stress Test' Production Cost ($ per Bale)" -> 'Stress Test' Production Cost ($ per Bale) | F33: =F31+(Summary!C37) -> 118.4932219 | H33: =H31+(Summary!G37) -> 135.1067923 | J33: =J31+(Summary!K37) -> 143.2145246
E34: ="($ per lb.)" -> ($ per lb.) | F34: =SUM(F33/Production!$D$29) -> 0.07899548127 | H34: =SUM(H33/Production!$D$29) -> 0.0900711949 | J34: =SUM(J33/Production!$D$29) -> 0.09547634973
A93: A. Operating Costs/acre | C93: =Summary!C24 -> 250.0540625 | E93: =Summary!G24 -> 190.6640024 | G93: =Summary!K24 -> 220.9708505
A94: B. Fixed Costs/acre | C94: =Summary!C30 -> 135.8755043 | E94: =Summary!G30 -> 135.8755043 | G94: =Summary!K30 -> 135.8755043
A95: Total Costs/acre | C95: =Summary!C35 -> 418.3295668 | E95: =Summary!G35 -> 358.9395067 | G95: =Summary!K35 -> 397.3463548
A97: Estimated Farmgate
B98: Price $ per unit | C98: =Summary!D42 -> 160 | E98: =Summary!H42 -> 120 | G98: =Summary!L42 -> 120
B99: Yield per acre (bu or lb.) | C99: =Summary!D43 -> 3.5 | E99: =Summary!H43 -> 2.79 | G99: =Summary!L43 -> 2.83
F102: Percent Market Price Change | G102: -0.25
F103: Percent Crop Yield Change | G103: -0.25
C106: =Summary!C3 -> Alfalfa Hay | E106: =Summary!G3 -> Alfalfa-Grass Hay | G106: =Summary!K3 -> Greenfeed Hay | J106: Your Farm
B108: Market Price ($ per unit) | C108: =SUM(C98*(1+$G$102)) -> 120 | E108: =SUM(E98*(1+$G$102)) -> 90 | G108: =SUM(G98*(1+$G$102)) -> 90
B109: Yield (per acre) | C109: =ROUND(C99*(1+$G$103),2) -> 2.63 | E109: =ROUND(E99*(1+$G$103),2) -> 2.09 | G109: =ROUND(G99*(1+$G$103),2) -> 2.12
A111: ="Stress Test Scenario = Market Price "&IF(G102<0,"Down","Up")&" "&ABS(G102*100)&"%, and Crop Yield "&IF(G103<0,"Down","Up")&" "&ABS(G103*100)&"%" -> Stress Test Scenario = Market Price Down 25%, and Crop Yield Down 25%
B112: Gross Revenue / acre | C112: =C108*C109 -> 315.6 | E112: =E108*E109 -> 188.1 | G112: =G108*G109 -> 190.8
B113: Marginal Returns
B114: Over Operating Costs | C114: =SUM(C112-C93) -> 65.54593751 | E114: =SUM(E112-E93) -> -2.564002385 | G114: =SUM(G112-G93) -> -30.17085048
B115: Over Operating & Fixed | C115: =SUM(C112-(C93+C94)) -> -70.32956681 | E115: =SUM(E112-(E93+E94)) -> -138.4395067 | G115: =SUM(G112-(G93+G94)) -> -166.0463548
B116: Net Profit (Loss) | C116: =SUM(C112-C95) -> -102.7295668 | E116: =SUM(E112-E95) -> -170.8395067 | G116: =SUM(G112-G95) -> -206.5463548
B118: Operating Expense Ratio | C118: =SUM(C93/C112) -> 0.7923132525 | E118: =SUM(E93/E112) -> 1.01363106 | G118: =SUM(G93/G112) -> 1.158128147
A120: Note: This budget is only a guide and is not intended as an in depth study of the cost of production of this industry. Interpretation and utilization of this information is the responsibility of the user.

Sheet Forage Insurance
A1: AgriInsurance Analysis
B4: Forage Region 6 | C4: Basic Hay | E4: Alfalfa Grass - Select Hay | I4: Alfalfa - Select Hay | M4: Greenfeed
B5: Risk Area 15 | C5: =B84 -> 80% Coverage | E5: More Than 4 Year Stand | G5: 4 Years or Less Stand | I5: More Than 4 Year Stand | K5: 4 Years or Less Stand
B6: *Based on 2024 MASC data* | C6: Low - $67/tonne | D6: High - $111/tonne | E6: 70% Coverage | F6: 80% Coverage | G6: 70% Coverage | H6: 80% Coverage | I6: 70% Coverage | J6: 80% Coverage | K6: 70% Coverage | L6: 80% Coverage | M6: 80% Coverage
A8: A. | B8: Hay Acres | C8: 160 | D8: 160 | E8: 160 | F8: 160 | G8: 160 | H8: 160 | I8: 160 | J8: 160 | K8: 160 | L8: 160 | M8: 160
A10: Coverage
A11: B. | B11: Probable Yield - IC (tons/acre) | C11: =HLOOKUP($B$4,'DATA (HIDE)'!$A$141:$G$153,2,FALSE) -> 1.551 | D11: =HLOOKUP($B$4,'DATA (HIDE)'!$I$141:$O$153,2,FALSE) -> 1.551 | E11: =HLOOKUP($B$4,'DATA (HIDE)'!$I$90:$O$102,2,FALSE) -> 1.378 | F11: =HLOOKUP($B$4,'DATA (HIDE)'!$A$90:$G$102,2,FALSE) -> 1.378 | G11: =HLOOKUP($B$4,'DATA (HIDE)'!$I$74:$O$86,2,FALSE) -> 2.148 | H11: =HLOOKUP($B$4,'DATA (HIDE)'!$A$74:$G$86,2,FALSE) -> 2.148 | I11: =HLOOKUP($B$4,'DATA (HIDE)'!$I$58:$O$70,2,FALSE) -> 1.798 | J11: =HLOOKUP($B$4,'DATA (HIDE)'!$A$58:$G$70,2,FALSE) -> 1.798 | K11: =HLOOKUP($B$4,'DATA (HIDE)'!$I$42:$O$54,2,FALSE) -> 2.432 | L11: =HLOOKUP($B$4,'DATA (HIDE)'!$A$42:$G$54,2,FALSE) -> 2.432 | M11: =HLOOKUP($B$5,'DATA (HIDE)'!$A$174:$P$186,2,FALSE) -> 1.996
A12: C. | B12: ="Probable Yield ("&TEXT(Production!D29,"#,###")&" lb. bales/ac)" -> Probable Yield (1,500 lb. bales/ac) | C12: =ROUND((C11*2000)/Production!$D$29,2) -> 2.07 | D12: =ROUND((D11*2000)/Production!$D$29,2) -> 2.07 | E12: =ROUND((E11*2000)/Production!$D$29,2) -> 1.84 | F12: =ROUND((F11*2000)/Production!$D$29,2) -> 1.84 | G12: =ROUND((G11*2000)/Production!$D$29,2) -> 2.86 | H12: =ROUND((H11*2000)/Production!$D$29,2) -> 2.86 | I12: =ROUND((I11*2000)/Production!$D$29,2) -> 2.4 | J12: =ROUND((J11*2000)/Production!$D$29,2) -> 2.4 | K12: =ROUND((K11*2000)/Production!$D$29,2) -> 3.24 | L12: =ROUND((L11*2000)/Production!$D$29,2) -> 3.24 | M12: =ROUND((M11*2000)/Production!$D$29,2) -> 2.66
A13: D. | B13: ="Prob. Total No. of "&TEXT(Production!D29,"#,###")&" lb. Bales" -> Prob. Total No. of 1,500 lb. Bales | C13: =ROUND(C12*C8,0) -> 331 | D13: 331 | E13: 294 | F13: 294 | G13: 458 | H13: 458 | I13: 384 | J13: 384 | K13: 518 | L13: 518 | M13: 426
A14: E. | B14: Premium ($/Acre) | C14: =HLOOKUP($B$4,'DATA (HIDE)'!$A$141:$G$153,5,FALSE) -> 5.68 | D14: =HLOOKUP($B$4,'DATA (HIDE)'!$I$141:$O$153,5,FALSE) -> 9.22 | E14: =HLOOKUP($B$4,'DATA (HIDE)'!$I$90:$O$102,5,FALSE) -> 13.56 | F14: =HLOOKUP($B$4,'DATA (HIDE)'!$A$90:$G$102,5,FALSE) -> 19.74 | G14: =HLOOKUP($B$4,'DATA (HIDE)'!$I$74:$O$86,5,FALSE) -> 13.56 | H14: =HLOOKUP($B$4,'DATA (HIDE)'!$A$74:$G$86,5,FALSE) -> 19.74 | I14: =HLOOKUP($B$4,'DATA (HIDE)'!$I$58:$O$70,5,FALSE) -> 22.23 | J14: =HLOOKUP($B$4,'DATA (HIDE)'!$A$58:$G$70,5,FALSE) -> 32.17 | K14: =HLOOKUP($B$4,'DATA (HIDE)'!$I$42:$O$54,5,FALSE) -> 22.23 | L14: =HLOOKUP($B$4,'DATA (HIDE)'!$A$42:$G$54,5,FALSE) -> 32.17 | M14: =HLOOKUP($B$5,'DATA (HIDE)'!$A$174:$P$186,5,FALSE) -> 16.63
A15: F. | B15: Premium (Total $) = A x C | C15: =C14*C8 -> 908.8 | D15: 1475.2 | E15: 2169.6 | F15: 3158.4 | G15: 2169.6 | H15: 3158.4 | I15: 3556.8 | J15: 5147.2 | K15: 3556.8 | L15: 5147.2 | M15: 2660.8
A16: G. | B16: Premium Cost (% of Insured) = E/M | C16: =C14/C24 -> 0.07105946817 | D16: 0.06940342124 | E16: 0.07943310004 | F16: 0.1012592461 | G16: 0.05096605155 | H16: 0.06495208919 | I16: 0.08247180066 | J16: 0.1044922111 | K16: 0.0610058737 | L16: 0.0772146966 | M16: 0.07491564669
A18: Coverage Calculation
A19: H. | B19: Coverage (tons/acre) = B x % | C19: =HLOOKUP($B$4,'DATA (HIDE)'!$A$141:$G$153,3,FALSE) -> 1.241 | D19: =HLOOKUP($B$4,'DATA (HIDE)'!$I$141:$O$153,3,FALSE) -> 1.241 | E19: =HLOOKUP($B$4,'DATA (HIDE)'!$I$90:$O$102,3,FALSE) -> 0.965 | F19: =HLOOKUP($B$4,'DATA (HIDE)'!$A$90:$G$102,3,FALSE) -> 1.102 | G19: =HLOOKUP($B$4,'DATA (HIDE)'!$I$74:$O$86,3,FALSE) -> 1.504 | H19: =HLOOKUP($B$4,'DATA (HIDE)'!$A$74:$G$86,3,FALSE) -> 1.718 | I19: =HLOOKUP($B$4,'DATA (HIDE)'!$I$58:$O$70,3,FALSE) -> 1.259 | J19: =HLOOKUP($B$4,'DATA (HIDE)'!$A$58:$G$70,3,FALSE) -> 1.438 | K19: =HLOOKUP($B$4,'DATA (HIDE)'!$I$42:$O$54,3,FALSE) -> 1.702 | L19: =HLOOKUP($B$4,'DATA (HIDE)'!$A$42:$G$54,3,FALSE) -> 1.946 | M19: =HLOOKUP($B$5,'DATA (HIDE)'!$A$174:$P$186,3,FALSE) -> 1.597
A20: I. | B20: Coverage ($/ton) | C20: ='DATA (HIDE)'!C9 -> 64.41019314 | D20: ='DATA (HIDE)'!C10 -> 107.0479266 | E20: ='DATA (HIDE)'!$C$3 -> 176.9012347 | F20: ='DATA (HIDE)'!$C$3 -> 176.9012347 | G20: ='DATA (HIDE)'!$C$3 -> 176.9012347 | H20: ='DATA (HIDE)'!$C$3 -> 176.9012347 | I20: ='DATA (HIDE)'!$C$2 -> 214.0958533 | J20: ='DATA (HIDE)'!$C$2 -> 214.0958533 | K20: ='DATA (HIDE)'!$C$2 -> 214.0958533 | L20: ='DATA (HIDE)'!$C$2 -> 214.0958533 | M20: ='DATA (HIDE)'!C4 -> 139
A21: J. | B21: ="Coverage ("&TEXT(Production!D29,"#,###")&" lb. bales/acre)" -> Coverage (1,500 lb. bales/acre) | C21: =(2000*C19)/Production!$D$29 -> 1.654666667 | D21: =(2000*D19)/Production!$D$29 -> 1.654666667 | E21: =(2000*E19)/Production!$D$29 -> 1.286666667 | F21: =(2000*F19)/Production!$D$29 -> 1.469333333 | G21: =(2000*G19)/Production!$D$29 -> 2.005333333 | H21: =(2000*H19)/Production!$D$29 -> 2.290666667 | I21: =(2000*I19)/Production!$D$29 -> 1.678666667 | J21: =(2000*J19)/Production!$D$29 -> 1.917333333 | K21: =(2000*K19)/Production!$D$29 -> 2.269333333 | L21: =(2000*L19)/Production!$D$29 -> 2.594666667 | M21: =(2000*M19)/Production!$D$29 -> 2.129333333
A22: K. | B22: ="Coverage No. of "&TEXT(Production!D29,"#,###")&" lb. Bales" -> Coverage No. of 1,500 lb. Bales | C22: =ROUND(C21*C8,0) -> 265 | D22: 265 | E22: 206 | F22: 235 | G22: 321 | H22: 367 | I22: 269 | J22: 307 | K22: 363 | L22: 415 | M22: 341
A23: L. | B23: Coverage ($/bale) | C23: ='DATA (HIDE)'!D9 -> 48.30764485 | D23: ='DATA (HIDE)'!D10 -> 80.28594497 | E23: ='DATA (HIDE)'!$D$3 -> 132.675926 | F23: ='DATA (HIDE)'!$D$3 -> 132.675926 | G23: ='DATA (HIDE)'!$D$3 -> 132.675926 | H23: ='DATA (HIDE)'!$D$3 -> 132.675926 | I23: ='DATA (HIDE)'!$D$2 -> 160.5718899 | J23: ='DATA (HIDE)'!$D$2 -> 160.5718899 | K23: ='DATA (HIDE)'!$D$2 -> 160.5718899 | L23: ='DATA (HIDE)'!$D$2 -> 160.5718899 | M23: ='DATA (HIDE)'!D4 -> 104.25
A24: M. | B24: Coverage ($/acre) = H x I | C24: =HLOOKUP($B$4,'DATA (HIDE)'!$A$141:$G$153,4,FALSE) -> 79.93304969 | D24: =HLOOKUP($B$4,'DATA (HIDE)'!$I$141:$O$153,4,FALSE) -> 132.8464769 | E24: =HLOOKUP($B$4,'DATA (HIDE)'!$I$90:$O$102,4,FALSE) -> 170.7096915 | F24: =HLOOKUP($B$4,'DATA (HIDE)'!$A$90:$G$102,4,FALSE) -> 194.9451606 | G24: =HLOOKUP($B$4,'DATA (HIDE)'!$I$74:$O$86,4,FALSE) -> 266.059457 | H24: =HLOOKUP($B$4,'DATA (HIDE)'!$A$74:$G$86,4,FALSE) -> 303.9163212 | I24: =HLOOKUP($B$4,'DATA (HIDE)'!$I$58:$O$70,4,FALSE) -> 269.5466792 | J24: =HLOOKUP($B$4,'DATA (HIDE)'!$A$58:$G$70,4,FALSE) -> 307.869837 | K24: =HLOOKUP($B$4,'DATA (HIDE)'!$I$42:$O$54,4,FALSE) -> 364.3911422 | L24: =HLOOKUP($B$4,'DATA (HIDE)'!$A$42:$G$54,4,FALSE) -> 416.6305304 | M24: =HLOOKUP($B$5,'DATA (HIDE)'!$A$174:$P$186,4,FALSE) -> 221.983
A25: N. | B25: Coverage (Total $) = A x M | C25: =C24*C8 -> 12789.28795 | D25: 21255.43631 | E25: 27313.55063 | F25: 31191.2257 | G25: 42569.51311 | H25: 48626.61139 | I25: 43127.46868 | J25: 49259.17392 | K25: 58302.58276 | L25: 66660.88487 | M25: 35517.28
A27: Indmenity Calculation
A28: O. | B28: Avg. Forage Yield (bales/acre) | C28: 1 | E28: ="("&(C28*Production!D29)/2000&" tons/acre)" -> (0.75 tons/acre)
A29: P. | B29: ="Avg. Total No. of "&TEXT(Production!D29,"#,###")&" lb. Bales" -> Avg. Total No. of 1,500 lb. Bales | C29: =$C$28*C8 -> 160 | D29: 160 | E29: 160 | F29: 160 | G29: 160 | H29: 160 | I29: 160 | J29: 160 | K29: 160 | L29: 160 | M29: 160
A30: Q. | B30: Percent of Probable Yield | C30: =(($C$28*Production!$D$29)/2000)/C11 -> 0.4835589942 | D30: =(($C$28*Production!$D$29)/2000)/D11 -> 0.4835589942 | E30: =(($C$28*Production!$D$29)/2000)/E11 -> 0.5442670537 | F30: =(($C$28*Production!$D$29)/2000)/F11 -> 0.5442670537 | G30: =(($C$28*Production!$D$29)/2000)/G11 -> 0.3491620112 | H30: =(($C$28*Production!$D$29)/2000)/H11 -> 0.3491620112 | I30: =(($C$28*Production!$D$29)/2000)/I11 -> 0.4171301446 | J30: =(($C$28*Production!$D$29)/2000)/J11 -> 0.4171301446 | K30: =(($C$28*Production!$D$29)/2000)/K11 -> 0.3083881579 | L30: =(($C$28*Production!$D$29)/2000)/L11 -> 0.3083881579 | M30: =(($C$28*Production!$D$29)/2000)/M11 -> 0.375751503
A31: R. | B31: Forage Indemnity (bales/acre) = J - O | C31: =IF(C21-$C$28<0,0,C21-$C$28) -> 0.6546666667 | D31: 0.6546666667 | E31: 0.2866666667 | F31: 0.4693333333 | G31: 1.005333333 | H31: 1.290666667 | I31: 0.6786666667 | J31: 0.9173333333 | K31: 1.269333333 | L31: 1.594666667 | M31: =M21-$C$28 -> 1.129333333
A32: S. | B32: Forage Indemnity (tons/acre) = H - O | C32: =IF(C19-($C$28*Production!$D$29)/2000<0,0,C19-($C$28*Production!$D$29)/2000) -> 0.491 | D32: =IF(D19-($C$28*Production!$D$29)/2000<0,0,D19-($C$28*Production!$D$29)/2000) -> 0.491 | E32: =IF(E19-($C$28*Production!$D$29)/2000<0,0,E19-($C$28*Production!$D$29)/2000) -> 0.215 | F32: =IF(F19-($C$28*Production!$D$29)/2000<0,0,F19-($C$28*Production!$D$29)/2000) -> 0.352 | G32: =IF(G19-($C$28*Production!$D$29)/2000<0,0,G19-($C$28*Production!$D$29)/2000) -> 0.754 | H32: =IF(H19-($C$28*Production!$D$29)/2000<0,0,H19-($C$28*Production!$D$29)/2000) -> 0.968 | I32: =IF(I19-($C$28*Production!$D$29)/2000<0,0,I19-($C$28*Production!$D$29)/2000) -> 0.509 | J32: =IF(J19-($C$28*Production!$D$29)/2000<0,0,J19-($C$28*Production!$D$29)/2000) -> 0.688 | K32: =IF(K19-($C$28*Production!$D$29)/2000<0,0,K19-($C$28*Production!$D$29)/2000) -> 0.952 | L32: =IF(L19-($C$28*Production!$D$29)/2000<0,0,L19-($C$28*Production!$D$29)/2000) -> 1.196 | M32: =M19-($C$28*Production!$D$29)/2000 -> 0.847
A33: T. | B33: Forage Indemnity (% of coverage) | C33: =C32/C19 -> 0.3956486704 | D33: 0.3956486704 | E33: 0.2227979275 | F33: 0.3194192377 | G33: 0.5013297872 | H33: 0.5634458673 | I33: 0.4042891183 | J33: 0.4784422809 | K33: 0.5593419506 | L33: 0.6145940391 | M33: 0.5303694427
A34: U. | B34: Est. Forage Indemnity ($/acre) = I x S | C34: =C32*C20 -> 31.62540483 | D34: 52.56053197 | E34: 38.03376546 | F34: 62.26923461 | G34: 133.3835309 | H34: 171.2403952 | I34: 108.9747893 | J34: 147.297947 | K34: 203.8192523 | L34: 256.0586405 | M34: 117.733
A35: V. | B35: Estimated Forage Indemnity = A x U | C35: =SUM(C32*C20*C8) -> 5060.064773 | D35: 8409.685116 | E35: 6085.402473 | F35: 9963.077537 | G35: 21341.36495 | H35: 27398.46323 | I35: 17435.96629 | J35: 23567.67153 | K35: 32611.08037 | L35: 40969.38248 | M35: 18837.28
A37: Hay Disaster Benefit Calculation
A38: X. | B38: Significant MB hay yield loss | C38: Yes | E38: (more than 20% of the producers insured by AgriInsurance have less than 50% of their long-term probable yield)
A39: Y. | B39: ="Est. HDB ($/acre) = S x $"&ROUND('DATA (HIDE)'!$C$11,2)&"/ton" -> Est. HDB ($/acre) = S x $39.92/ton | C39: =IF($C$38="Yes",C32*'DATA (HIDE)'!$C$11,0) -> 19.59884243 | D39: =IF($C$38="Yes",D32*'DATA (HIDE)'!$C$11,0) -> 19.59884243 | E39: =IF($C$38="Yes",E32*'DATA (HIDE)'!$C$11,0) -> 8.581977847 | F39: =IF($C$38="Yes",F32*'DATA (HIDE)'!$C$11,0) -> 14.05049396 | G39: =IF($C$38="Yes",G32*'DATA (HIDE)'!$C$11,0) -> 30.09679673 | H39: =IF($C$38="Yes",H32*'DATA (HIDE)'!$C$11,0) -> 38.6388584 | I39: =IF($C$38="Yes",I32*'DATA (HIDE)'!$C$11,0) -> 20.3173336 | J39: =IF($C$38="Yes",J32*'DATA (HIDE)'!$C$11,0) -> 27.46232911 | K39: =IF($C$38="Yes",K32*'DATA (HIDE)'!$C$11,0) -> 38.00019958 | L39: =IF($C$38="Yes",L32*'DATA (HIDE)'!$C$11,0) -> 47.73974653 | M39: n/a
A40: Z. | B40: Est. Hay Disaster Benefit = A x Y | C40: =IF($C$38="Yes",C32*'DATA (HIDE)'!$C$11*C8,0) -> 3135.814789 | D40: =IF($C$38="Yes",D32*'DATA (HIDE)'!$C$11*D8,0) -> 3135.814789 | E40: =IF($C$38="Yes",E32*'DATA (HIDE)'!$C$11*E8,0) -> 1373.116455 | F40: =IF($C$38="Yes",F32*'DATA (HIDE)'!$C$11*F8,0) -> 2248.079034 | G40: =IF($C$38="Yes",G32*'DATA (HIDE)'!$C$11*G8,0) -> 4815.487476 | H40: =IF($C$38="Yes",H32*'DATA (HIDE)'!$C$11*H8,0) -> 6182.217344 | I40: =IF($C$38="Yes",I32*'DATA (HIDE)'!$C$11*I8,0) -> 3250.773376 | J40: =IF($C$38="Yes",J32*'DATA (HIDE)'!$C$11*J8,0) -> 4393.972657 | K40: =IF($C$38="Yes",K32*'DATA (HIDE)'!$C$11*K8,0) -> 6080.031933 | L40: =IF($C$38="Yes",L32*'DATA (HIDE)'!$C$11*L8,0) -> 7638.359445 | M40: n/a
A42: Total Indemnity + HDB
A43: AA. | B43: Est. Indemnity + HDB ($/acre) = U + Y | C43: =C39+C34 -> 51.22424726 | D43: 72.1593744 | E43: 46.6157433 | F43: 76.31972857 | G43: 163.4803277 | H43: 209.8792536 | I43: 129.2921229 | J43: 174.7602761 | K43: 241.8194519 | L43: 303.798387 | M43: =M34 -> 117.733
A44: AB. | B44: Est.Indemnity + HDB = V + Z | C44: =C40+C35 -> 8195.879562 | D44: 11545.4999 | E44: 7458.518928 | F44: 12211.15657 | G44: 26156.85243 | H44: 33580.68057 | I44: 20686.73966 | J44: 27961.64418 | K44: 38691.1123 | L44: 48607.74192 | M44: =M35 -> 18837.28
A46: Breakeven Calculation
B47: Est. Breakeven yield (tons/acre) | C47: =C19-(C14/C20) -> 1.1528152 | D47: 1.154870354 | E47: 0.8883470585 | F47: 0.9904123108 | G47: 1.427347058 | H47: 1.606412311 | I47: 1.155168003 | J47: 1.2877402 | K47: 1.598168003 | L47: 1.7957402 | M47: 1.477359712
B48: Est. Breakeven yield (bales/acre) | C48: =C21-(C14/C23) -> 1.537086933 | D48: 1.539827139 | E48: 1.184462745 | F48: 1.320549748 | G48: 1.903129411 | H48: 2.141883081 | I48: 1.540224004 | J48: 1.716986934 | K48: 2.130890671 | L48: 2.394320267 | M48: 1.96981295
A50: Costs Not Covered By AgriInsurance
B51: Operating Costs | C51: =HLOOKUP($B$4,'DATA (HIDE)'!$A$141:$G$153,8,FALSE) -> 110.7309527 | D51: =HLOOKUP($B$4,'DATA (HIDE)'!$I$141:$O$153,8,FALSE) -> 57.81752544 | E51: =HLOOKUP($B$4,'DATA (HIDE)'!$I$90:$O$102,8,FALSE) -> 19.95431092 | F51: =HLOOKUP($B$4,'DATA (HIDE)'!$A$90:$G$102,8,FALSE) -> 0 | G51: =HLOOKUP($B$4,'DATA (HIDE)'!$I$74:$O$86,8,FALSE) -> 0 | H51: =HLOOKUP($B$4,'DATA (HIDE)'!$A$74:$G$86,8,FALSE) -> 0 | I51: =HLOOKUP($B$4,'DATA (HIDE)'!$I$58:$O$70,8,FALSE) -> 0 | J51: =HLOOKUP($B$4,'DATA (HIDE)'!$A$58:$G$70,8,FALSE) -> 0 | K51: =HLOOKUP($B$4,'DATA (HIDE)'!$I$42:$O$54,8,FALSE) -> 0 | L51: =HLOOKUP($B$4,'DATA (HIDE)'!$A$42:$G$54,8,FALSE) -> 0 | M51: =HLOOKUP($B$5,'DATA (HIDE)'!$A$174:$P$186,8,FALSE) -> 0
B52: Operating & Fixed Costs | C52: =HLOOKUP($B$4,'DATA (HIDE)'!$A$141:$G$153,9,FALSE) -> 246.606457 | D52: =HLOOKUP($B$4,'DATA (HIDE)'!$I$141:$O$153,9,FALSE) -> 193.6930298 | E52: =HLOOKUP($B$4,'DATA (HIDE)'!$I$90:$O$102,9,FALSE) -> 155.8298152 | F52: =HLOOKUP($B$4,'DATA (HIDE)'!$A$90:$G$102,9,FALSE) -> 131.5943461 | G52: =HLOOKUP($B$4,'DATA (HIDE)'!$I$74:$O$86,9,FALSE) -> 60.48004974 | H52: =HLOOKUP($B$4,'DATA (HIDE)'!$A$74:$G$86,9,FALSE) -> 22.62318552 | I52: =HLOOKUP($B$4,'DATA (HIDE)'!$I$58:$O$70,9,FALSE) -> 116.3828876 | J52: =HLOOKUP($B$4,'DATA (HIDE)'!$A$58:$G$70,9,FALSE) -> 78.05972983 | K52: =HLOOKUP($B$4,'DATA (HIDE)'!$I$42:$O$54,9,FALSE) -> 21.53842457 | L52: =HLOOKUP($B$4,'DATA (HIDE)'!$A$42:$G$54,9,FALSE) -> 0 | M52: =HLOOKUP($B$5,'DATA (HIDE)'!$A$174:$P$186,9,FALSE) -> 134.8633548
B53: Total Costs | C53: =HLOOKUP($B$4,'DATA (HIDE)'!$A$141:$G$153,10,FALSE) -> 279.006457 | D53: =HLOOKUP($B$4,'DATA (HIDE)'!$I$141:$O$153,10,FALSE) -> 226.0930298 | E53: =HLOOKUP($B$4,'DATA (HIDE)'!$I$90:$O$102,10,FALSE) -> 188.2298152 | F53: =HLOOKUP($B$4,'DATA (HIDE)'!$A$90:$G$102,10,FALSE) -> 163.9943461 | G53: =HLOOKUP($B$4,'DATA (HIDE)'!$I$74:$O$86,10,FALSE) -> 92.88004974 | H53: =HLOOKUP($B$4,'DATA (HIDE)'!$A$74:$G$86,10,FALSE) -> 55.02318552 | I53: =HLOOKUP($B$4,'DATA (HIDE)'!$I$58:$O$70,10,FALSE) -> 148.7828876 | J53: =HLOOKUP($B$4,'DATA (HIDE)'!$A$58:$G$70,10,FALSE) -> 110.4597298 | K53: =HLOOKUP($B$4,'DATA (HIDE)'!$I$42:$O$54,10,FALSE) -> 53.93842457 | L53: =HLOOKUP($B$4,'DATA (HIDE)'!$A$42:$G$54,10,FALSE) -> 1.699036379 | M53: =HLOOKUP($B$5,'DATA (HIDE)'!$A$174:$P$186,10,FALSE) -> 175.3633548
A55: AgriInsurance Risk Ratio | C55: (AgriInsurance Coverage / Cost)
B56: Operating Costs | C56: =HLOOKUP($B$4,'DATA (HIDE)'!$A$141:$G$153,12,FALSE) -> 0.4192351398 | D56: =HLOOKUP($B$4,'DATA (HIDE)'!$I$141:$O$153,12,FALSE) -> 0.6967569928 | E56: =HLOOKUP($B$4,'DATA (HIDE)'!$I$90:$O$102,12,FALSE) -> 0.8953430607 | F56: =HLOOKUP($B$4,'DATA (HIDE)'!$A$90:$G$102,12,FALSE) -> 1.022453941 | G56: =HLOOKUP($B$4,'DATA (HIDE)'!$I$74:$O$86,12,FALSE) -> 1.395436231 | H56: =HLOOKUP($B$4,'DATA (HIDE)'!$A$74:$G$86,12,FALSE) -> 1.593988993 | I56: =HLOOKUP($B$4,'DATA (HIDE)'!$I$58:$O$70,12,FALSE) -> 1.07795361 | J56: =HLOOKUP($B$4,'DATA (HIDE)'!$A$58:$G$70,12,FALSE) -> 1.231213098 | K56: =HLOOKUP($B$4,'DATA (HIDE)'!$I$42:$O$54,12,FALSE) -> 1.457249439 | L56: =HLOOKUP($B$4,'DATA (HIDE)'!$A$42:$G$54,12,FALSE) -> 1.666161814 | M56: =HLOOKUP($B$5,'DATA (HIDE)'!$A$174:$P$186,12,FALSE) -> 1.004580466
B57: Total Costs | C57: =HLOOKUP($B$4,'DATA (HIDE)'!$A$141:$G$153,13,FALSE) -> 0.2226922593 | D57: =HLOOKUP($B$4,'DATA (HIDE)'!$I$141:$O$153,13,FALSE) -> 0.3701082619 | E57: =HLOOKUP($B$4,'DATA (HIDE)'!$I$90:$O$102,13,FALSE) -> 0.475594601 | F57: =HLOOKUP($B$4,'DATA (HIDE)'!$A$90:$G$102,13,FALSE) -> 0.543114249 | G57: =HLOOKUP($B$4,'DATA (HIDE)'!$I$74:$O$86,13,FALSE) -> 0.7412375957 | H57: =HLOOKUP($B$4,'DATA (HIDE)'!$A$74:$G$86,13,FALSE) -> 0.846706243 | I57: =HLOOKUP($B$4,'DATA (HIDE)'!$I$58:$O$70,13,FALSE) -> 0.6443404928 | J57: =HLOOKUP($B$4,'DATA (HIDE)'!$A$58:$G$70,13,FALSE) -> 0.7359504596 | K57: =HLOOKUP($B$4,'DATA (HIDE)'!$I$42:$O$54,13,FALSE) -> 0.871062366 | L57: =HLOOKUP($B$4,'DATA (HIDE)'!$A$42:$G$54,13,FALSE) -> 0.9959385219 | M57: =HLOOKUP($B$5,'DATA (HIDE)'!$A$174:$P$186,13,FALSE) -> 0.5586637384
K75: Forage Insurance Indemnity
B77: 4 Years or Less Stand | C77: Forage Region 1 | G77: Risk Area 1
B78: More Than 4 Year Stand | C78: Forage Region 2 | G78: Risk Area 2
C79: Forage Region 3 | G79: Risk Area 3
B80: ='DATA (HIDE)'!F9 -> Low - $71/tonne | C80: Forage Region 4 | G80: Risk Area 4
B81: ='DATA (HIDE)'!F10 -> High - $118/tonne | C81: Forage Region 5 | G81: Risk Area 5
C82: Forage Region 6 | G82: Risk Area 6
B83: 70% Coverage | G83: Risk Area 7
B84: 80% Coverage | G84: Risk Area 8
G85: Risk Area 9
B86: Yes | G86: Risk Area 10
B87: No | G87: Risk Area 11
G88: Risk Area 12
G89: Risk Area 14
G90: Risk Area 15
G91: Risk Area 16

Sheet DATA (HIDE) (hidden)
A1: Select Hay - 80% | B1: Dollar Value ($/tonne) | C1: Dollar Value ($/ton) | D1: Dollar Value ($/bale) | E1: ***2024 MASC DATA***
A2: Alfalfa | B2: 236 | C2: =SUM(B2/2204.62)*2000 -> 214.0958533 | D2: =SUM((C2/2000)*Production!$D$29) -> 160.5718899
A3: Alfalfa-Grass | B3: 195 | C3: =SUM(B3/2204.62)*2000 -> 176.9012347 | D3: =SUM((C3/2000)*Production!$D$29) -> 132.675926
A4: Greenfeed | C4: 139 | D4: =SUM((C4/2000)*Production!$D$29) -> 104.25
A5: Corn Silage | C5: 82 | D5: =SUM((C5/2000)*Production!$D$29) -> 61.5
A8: Basic Hay | B8: Dollar Value ($/tonne) | C8: Dollar Value ($/ton) | H8: Forage Region | I8: Pasture Insurance $/animal
A9: Low Dollar Value | B9: 71 | C9: =SUM(B9/2204.62)*2000 -> 64.41019314 | D9: =SUM((C9/2000)*Production!$D$29) -> 48.30764485 | F9: ="Low - $"&B9&"/tonne" -> Low - $71/tonne | H9: Forage Region 1 | I9: 2.1
A10: High Dollar Value | B10: 118 | C10: =SUM(B10/2204.62)*2000 -> 107.0479266 | D10: =SUM((C10/2000)*Production!$D$29) -> 80.28594497 | F10: ="High - $"&B10&"/tonne" -> High - $118/tonne | H10: Forage Region 2 | I10: 2
A11: Hay Disaster Benefit Value (HDB) | B11: 44 | C11: =SUM(B11/2204.62)*2000 -> 39.91617603 | D11: =SUM((C11/2000)*Production!$D$29) -> 29.93713202 | H11: Forage Region 3 | I11: 2.02
H12: Forage Region 4 | I12: 1.95
A13: Alfalfa IPI | B13: =Production!D26 -> 1 | C13: (Linked to production tab) | F13: 0.7 | H13: Forage Region 5 | I13: 1.95
A14: Alfalfa Grass IPI | B14: =Production!E26 -> 1 | F14: 0.8 | H14: Forage Region 6 | I14: 2.1
A15: Greenfeed IPI | B15: =Production!F26 -> 1
B18: Select Hay-80% | J18: ="Basic Hay Low - $"&$B$9&"/tonne" -> Basic Hay Low - $71/tonne | R18: Greenfeed | U18: Silage Corn
B19: Alfalfa | D19: Alfalfa | F19: Alfalfa-Grass | H19: Alfalfa-Grass | J19: Alfalfa | L19: Alfalfa | N19: Alfalfa-Grass | P19: Alfalfa-Grass | R19: D soil zone | U19: D soil zone
B20: <=4 years | D20: >4 years | F20: <=4 years | H20: >4 years | J20: <=4 years | L20: >4 years | N20: <=4 years | P20: >4 years | T20: 0.8 | W20: 0.8
A21: Forage Region | B21: Probable Yield (tonnes) | C21: Premium ($/Acre) | D21: Probable Yield (tonnes) | E21: Premium ($/Acre) | F21: Probable Yield (tonnes) | G21: Premium ($/Acre) | H21: Probable Yield (tonnes) | I21: Premium ($/Acre) | J21: Probable Yield (tonnes) | K21: Premium ($/Acre) | L21: Probable Yield (tonnes) | M21: Premium ($/Acre) | N21: Probable Yield (tonnes) | O21: Premium ($/Acre) | P21: Probable Yield (tonnes) | Q21: Premium ($/Acre) | R21: Risk Area | S21: Probable Yield (tons) | T21: Premium ($/Acre) | U21: Risk Area | V21: Probable Yield (tons) | W21: Premium ($/Acre)
A22: 1 | B22: 2.167 | C22: 15.2 | D22: 1.542 | E22: =C22 -> 15.2 | F22: 1.947 | G22: 10.82 | H22: 1.305 | I22: =G22 -> 10.82 | J22: 1.392 | K22: 4.3 | L22: =J22 -> 1.392 | M22: =K22 -> 4.3 | N22: =J22 -> 1.392 | O22: =K22 -> 4.3 | P22: =J22 -> 1.392 | Q22: =O22 -> 4.3 | R22: 1 | S22: 1.996 | T22: 18.5 | U22: 1 | V22: 13.158 | W22: 27.7
A23: 2 | B23: 1.918 | C23: 21.69 | D23: 1.384 | E23: 21.69 | F23: 1.801 | G23: 16.18 | H23: 1.228 | I23: 16.18 | J23: 1.266 | K23: 3.71 | L23: =J23 -> 1.266 | M23: 3.71 | N23: =J23 -> 1.266 | O23: =K23 -> 3.71 | P23: =J23 -> 1.266 | Q23: 3.71 | R23: 2 | S23: 1.996 | T23: 20.7 | U23: 2 | V23: 13.158 | W23: 28.02
A24: 3 | B24: 1.846 | C24: 21 | D24: 1.659 | E24: 21 | F24: 1.798 | G24: 14.56 | H24: 1.357 | I24: 14.56 | J24: 1.332 | K24: 5.51 | L24: 1.332 | M24: 5.51 | N24: 1.332 | O24: 5.51 | P24: 1.332 | Q24: 5.51 | R24: 3 | S24: 1.996 | T24: 20.22 | U24: 3 | V24: 13.158 | W24: 28.02
A25: 4 | B25: 2.22 | C25: 18.58 | D25: 1.67 | E25: 18.58 | F25: 1.871 | G25: 14.27 | H25: 1.326 | I25: 14.27 | J25: 1.417 | K25: 4.92 | L25: 1.417 | M25: 4.92 | N25: 1.417 | O25: 4.92 | P25: 1.417 | Q25: 4.92 | R25: 4 | S25: 1.996 | T25: 21.92 | U25: 4 | V25: 13.158 | W25: 28.65
A26: 5 | B26: 2.73 | C26: 17.62 | D26: 2.056 | E26: 17.62 | F26: 2.167 | G26: 24.46 | H26: 1.507 | I26: 24.46 | J26: 1.692 | K26: 6.71 | L26: 1.692 | M26: 6.71 | N26: 1.692 | O26: 6.71 | P26: 1.692 | Q26: 6.71 | R26: 5 | S26: 1.996 | T26: 20.21 | U26: 5 | V26: 13.158 | W26: 27.7
A27: 6 | B27: 2.206 | C27: 32.17 | D27: 1.631 | E27: 32.17 | F27: 1.949 | G27: 19.74 | H27: 1.25 | I27: 19.74 | J27: 1.407 | K27: 5.68 | L27: 1.407 | M27: 5.68 | N27: 1.407 | O27: 5.68 | P27: 1.407 | Q27: 5.68 | R27: 6 | S27: 1.996 | T27: 20.13 | U27: 6 | V27: 13.158 | W27: 28.65
R28: 7 | S28: 1.996 | T28: 19.8 | U28: 7 | V28: 13.158 | W28: 28.96
B29: Select Hay-70% | J29: ="Basic Hay High - $"&$B$10&"/tonne" -> Basic Hay High - $118/tonne | R29: 8 | S29: 1.996 | T29: 22.98 | U29: 8 | V29: 13.158 | W29: 27.38
B30: Alfalfa | D30: Alfalfa | F30: Alfalfa-Grass | H30: Alfalfa-Grass | J30: Alfalfa | L30: Alfalfa | N30: Alfalfa-Grass | P30: Alfalfa-Grass | R30: 9 | S30: 1.996 | T30: 19.48 | U30: 9 | V30: 13.158 | W30: 27.38
B31: <=4 years | D31: >4 years | F31: <=4 years | H31: >4 years | J31: <=4 years | L31: >4 years | N31: <=4 years | P31: >4 years | R31: 10 | S31: 1.996 | T31: 19.23 | U31: 10 | V31: 13.158 | W31: 27.38
A32: Forage Region | B32: Probable Yield (tonnes) | C32: Premium ($/Acre) | D32: Probable Yield (tonnes) | E32: Premium ($/Acre) | F32: Probable Yield (tonnes) | G32: Premium ($/Acre) | H32: Probable Yield (tonnes) | I32: Premium ($/Acre) | J32: Probable Yield (tonnes) | K32: Premium ($/Acre) | L32: Probable Yield (tonnes) | M32: Premium ($/Acre) | N32: Probable Yield (tonnes) | O32: Premium ($/Acre) | P32: Probable Yield (tonnes) | Q32: Premium ($/Acre) | R32: 11 | S32: 1.996 | T32: 19.48 | U32: 11 | V32: 13.158 | W32: 26.11
A33: 1 | B33: =B22 -> 2.167 | C33: 10.55 | D33: =D22 -> 1.542 | E33: =C33 -> 10.55 | F33: =F22 -> 1.947 | G33: 7.42 | H33: =H22 -> 1.305 | I33: =G33 -> 7.42 | J33: =J22 -> 1.392 | K33: 6.99 | L33: =L22 -> 1.392 | M33: =K33 -> 6.99 | N33: =N22 -> 1.392 | O33: =K33 -> 6.99 | P33: =P22 -> 1.392 | Q33: =O33 -> 6.99 | R33: 12 | S33: 1.996 | T33: 18.17 | U33: 12 | V33: 13.158 | W33: 27.38
A34: 2 | B34: 1.918 | C34: 14.87 | D34: 1.384 | E34: 14.87 | F34: 1.801 | G34: 11.1 | H34: 1.228 | I34: 11.1 | J34: =J23 -> 1.266 | K34: 6.02 | L34: =L23 -> 1.266 | M34: 6.02 | N34: 1.266 | O34: =K34 -> 6.02 | P34: 1.266 | Q34: 6.02 | R34: 14 | S34: 1.996 | T34: 17.6 | U34: 14 | V34: 13.158 | W34: 28.02
A35: 3 | B35: 1.846 | C35: 14.53 | D35: 1.659 | E35: 14.53 | F35: 1.798 | G35: 10.02 | H35: 1.357 | I35: 10.02 | J35: =J24 -> 1.332 | K35: 8.95 | L35: =L24 -> 1.332 | M35: 8.95 | N35: 1.332 | O35: 8.95 | P35: 1.332 | Q35: 8.95 | R35: 15 | S35: 1.996 | T35: 16.63 | U35: 15 | V35: 13.158 | W35: 25.79
A36: 4 | B36: 2.22 | C36: 12.44 | D36: 1.67 | E36: 12.44 | F36: 1.871 | G36: 9.84 | H36: 1.326 | I36: 9.84 | J36: =J25 -> 1.417 | K36: 7.97 | L36: 1.417 | M36: 7.97 | N36: 1.417 | O36: 7.97 | P36: 1.417 | Q36: 7.97 | R36: 16 | S36: 1.996 | T36: 15.72 | U36: 16 | V36: 13.158 | W36: 24.82
A37: 5 | B37: 2.73 | C37: 12.24 | D37: 2.056 | E37: 12.24 | F37: 2.167 | G37: 16.86 | H37: 1.507 | I37: 16.86 | J37: 1.692 | K37: 10.89 | L37: 1.692 | M37: 10.89 | N37: 1.692 | O37: 10.89 | P37: 1.692 | Q37: 10.89
A38: 6 | B38: 2.206 | C38: 22.23 | D38: 1.631 | E38: 22.23 | F38: 1.949 | G38: 13.56 | H38: 1.25 | I38: 13.56 | J38: 1.407 | K38: 9.22 | L38: 1.407 | M38: 9.22 | N38: 1.407 | O38: 9.22 | P38: 1.407 | Q38: 9.22
A40: Alfalfa | B40: 0.8 | I40: Alfalfa | J40: 0.7
A41: <=4 years | B41: Forage Region | I41: <=4 years | J41: Forage Region
B42: Forage Region 1 | C42: Forage Region 2 | D42: Forage Region 3 | E42: Forage Region 4 | F42: Forage Region 5 | G42: Forage Region 6 | J42: Forage Region 1 | K42: Forage Region 2 | L42: Forage Region 3 | M42: Forage Region 4 | N42: Forage Region 5 | O42: Forage Region 6
A43: Probable Yield x IPI (tons/acre) | B43: =ROUND((($B$22*2204.62)/2000*$B$13),3) -> 2.389 | C43: =ROUND((($B$23*2204.62)/2000*$B$13),3) -> 2.114 | D43: =ROUND((($B$24*2204.62)/2000*$B$13),3) -> 2.035 | E43: =ROUND((($B$25*2204.62)/2000*$B$13),3) -> 2.447 | F43: =ROUND((($B$26*2204.62)/2000*$B$13),3) -> 3.009 | G43: =ROUND((($B$27*2204.62)/2000*$B$13),3) -> 2.432 | I43: Probable Yield x IPI (tons/acre) | J43: =ROUND((($B$33*2204.62)/2000*$B$13),3) -> 2.389 | K43: =ROUND((($B$34*2204.62)/2000*$B$13),3) -> 2.114 | L43: =ROUND((($B$35*2204.62)/2000*$B$13),3) -> 2.035 | M43: =ROUND((($B$36*2204.62)/2000*$B$13),3) -> 2.447 | N43: =ROUND((($B$37*2204.62)/2000*$B$13),3) -> 3.009 | O43: =ROUND((($B$38*2204.62)/2000*$B$13),3) -> 2.432
A44: Coverage per acre (tons) | B44: =ROUND(B43*0.8,3) -> 1.911 | C44: =ROUND(C43*0.8,3) -> 1.691 | D44: 1.628 | E44: 1.958 | F44: 2.407 | G44: 1.946 | I44: Coverage per acre (tons) | J44: =ROUND(J43*0.7,3) -> 1.672 | K44: =ROUND(K43*0.7,3) -> 1.48 | L44: 1.425 | M44: 1.713 | N44: 2.106 | O44: 1.702
A45: Dollar Coverage per acre | B45: =B44*$C$2 -> 409.1371756 | C45: 362.0360879 | D45: 348.5480491 | E45: 419.1996807 | F45: 515.3287188 | G45: 416.6305304 | I45: Dollar Coverage per acre | J45: =J44*$C$2 -> 357.9682666 | K45: 316.8618628 | L45: 305.0865909 | M45: 366.7461966 | N45: 450.885867 | O45: 364.3911422
A46: Premium ($/Acre) | B46: =C$22 -> 15.2 | C46: =C$23 -> 21.69 | D46: =C$24 -> 21 | E46: =C$25 -> 18.58 | F46: =C$26 -> 17.62 | G46: =C$27 -> 32.17 | I46: Premium ($/Acre) | J46: =C$33 -> 10.55 | K46: =C$34 -> 14.87 | L46: =C$35 -> 14.53 | M46: =C$36 -> 12.44 | N46: =C$37 -> 12.24 | O46: =C$38 -> 22.23
A47: Premium Cost (% of Insured) | B47: =SUM(B46/B45) -> 0.03715135389 | C47: 0.05991115452 | D47: 0.06024994274 | E47: 0.04432255285 | F47: 0.03419176801 | G47: 0.0772146966 | I47: Premium Cost (% of Insured) | J47: =SUM(J46/J45) -> 0.02947188615 | K47: 0.0469289673 | L47: 0.04762582307 | M47: 0.0339199155 | N47: 0.02714655947 | O47: 0.0610058737
A48: Costs Not Covered by AgriInsurance | I48: Costs Not Covered by AgriInsurance
A49: Operating Costs | B49: =IF(Summary!$C$24-B45<0,0,SUM(Summary!$C$24-B45)) -> 0 | C49: =IF(Summary!$C$24-C45<0,0,SUM(Summary!$C$24-C45)) -> 0 | D49: =IF(Summary!$C$24-D45<0,0,SUM(Summary!$C$24-D45)) -> 0 | E49: =IF(Summary!$C$24-E45<0,0,SUM(Summary!$C$24-E45)) -> 0 | F49: =IF(Summary!$C$24-F45<0,0,SUM(Summary!$C$24-F45)) -> 0 | G49: =IF(Summary!$C$24-G45<0,0,SUM(Summary!$C$24-G45)) -> 0 | I49: Operating Costs | J49: =IF(Summary!$C$24-J45<0,0,SUM(Summary!$C$24-J45)) -> 0 | K49: =IF(Summary!$C$24-K45<0,0,SUM(Summary!$C$24-K45)) -> 0 | L49: =IF(Summary!$C$24-L45<0,0,SUM(Summary!$C$24-L45)) -> 0 | M49: =IF(Summary!$C$24-M45<0,0,SUM(Summary!$C$24-M45)) -> 0 | N49: =IF(Summary!$C$24-N45<0,0,SUM(Summary!$C$24-N45)) -> 0 | O49: =IF(Summary!$C$24-O45<0,0,SUM(Summary!$C$24-O45)) -> 0
A50: Operating & Fixed Costs | B50: =IF(Summary!$C$31-B45<0,0,SUM(Summary!$C$31-B45)) -> 0 | C50: =IF(Summary!$C$31-C45<0,0,SUM(Summary!$C$31-C45)) -> 23.89347896 | D50: =IF(Summary!$C$31-D45<0,0,SUM(Summary!$C$31-D45)) -> 37.38151771 | E50: =IF(Summary!$C$31-E45<0,0,SUM(Summary!$C$31-E45)) -> 0 | F50: =IF(Summary!$C$31-F45<0,0,SUM(Summary!$C$31-F45)) -> 0 | G50: =IF(Summary!$C$31-G45<0,0,SUM(Summary!$C$31-G45)) -> 0 | I50: Operating & Fixed Costs | J50: =IF(Summary!$C$31-J45<0,0,SUM(Summary!$C$31-J45)) -> 27.96130017 | K50: =IF(Summary!$C$31-K45<0,0,SUM(Summary!$C$31-K45)) -> 69.06770399 | L50: =IF(Summary!$C$31-L45<0,0,SUM(Summary!$C$31-L45)) -> 80.84297592 | M50: =IF(Summary!$C$31-M45<0,0,SUM(Summary!$C$31-M45)) -> 19.18337019 | N50: =IF(Summary!$C$31-N45<0,0,SUM(Summary!$C$31-N45)) -> 0 | O50: =IF(Summary!$C$31-O45<0,0,SUM(Summary!$C$31-O45)) -> 21.53842457
A51: Total Costs | B51: =IF(Summary!$C$35-B45<0,0,SUM(Summary!$C$35-B45)) -> 9.192391243 | C51: =IF(Summary!$C$35-C45<0,0,SUM(Summary!$C$35-C45)) -> 56.29347896 | D51: =IF(Summary!$C$35-D45<0,0,SUM(Summary!$C$35-D45)) -> 69.78151771 | E51: =IF(Summary!$C$35-E45<0,0,SUM(Summary!$C$35-E45)) -> 0 | F51: =IF(Summary!$C$35-F45<0,0,SUM(Summary!$C$35-F45)) -> 0 | G51: =IF(Summary!$C$35-G45<0,0,SUM(Summary!$C$35-G45)) -> 1.699036379 | I51: Total Costs | J51: =IF(Summary!$C$35-J45<0,0,SUM(Summary!$C$35-J45)) -> 60.36130017 | K51: =IF(Summary!$C$35-K45<0,0,SUM(Summary!$C$35-K45)) -> 101.467704 | L51: =IF(Summary!$C$35-L45<0,0,SUM(Summary!$C$35-L45)) -> 113.2429759 | M51: =IF(Summary!$C$35-M45<0,0,SUM(Summary!$C$35-M45)) -> 51.58337019 | N51: =IF(Summary!$C$35-N45<0,0,SUM(Summary!$C$35-N45)) -> 0 | O51: =IF(Summary!$C$35-O45<0,0,SUM(Summary!$C$35-O45)) -> 53.93842457
A52: AgriInsurance Risk Ratio | I52: AgriInsurance Risk Ratio
A53: Operating Costs | B53: =B45/Summary!$C$24 -> 1.636194875 | C53: =C45/Summary!$C$24 -> 1.447831258 | D53: =D45/Summary!$C$24 -> 1.393890768 | E53: =E45/Summary!$C$24 -> 1.676436193 | F53: =F45/Summary!$C$24 -> 2.060869212 | G53: =G45/Summary!$C$24 -> 1.666161814 | I53: Operating Costs | J53: =J45/Summary!$C$24 -> 1.431563491 | K53: =K45/Summary!$C$24 -> 1.267173425 | L53: =L45/Summary!$C$24 -> 1.220082521 | M53: =M45/Summary!$C$24 -> 1.46666762 | N53: =N45/Summary!$C$24 -> 1.803153536 | O53: =O45/Summary!$C$24 -> 1.457249439
A54: Total Costs | B54: =B45/Summary!$C$35 -> 0.9780259585 | C54: =C45/Summary!$C$35 -> 0.8654327032 | D54: =D45/Summary!$C$35 -> 0.8331900892 | E54: =E45/Summary!$C$35 -> 1.002079972 | F54: =F45/Summary!$C$35 -> 1.23187257 | G54: =G45/Summary!$C$35 -> 0.9959385219 | I54: Total Costs | J54: =J45/Summary!$C$35 -> 0.8557087403 | K54: =K45/Summary!$C$35 -> 0.7574455357 | L54: =L45/Summary!$C$35 -> 0.7292972218 | M54: =M45/Summary!$C$35 -> 0.8766920288 | N54: =N45/Summary!$C$35 -> 1.077824526 | O54: =O45/Summary!$C$35 -> 0.871062366
A56: Alfalfa | B56: 0.8 | I56: Alfalfa | J56: 0.7
A57: >4 years | B57: Forage Region | I57: >4 years | J57: Forage Region
B58: Forage Region 1 | C58: Forage Region 2 | D58: Forage Region 3 | E58: Forage Region 4 | F58: Forage Region 5 | G58: Forage Region 6 | J58: Forage Region 1 | K58: Forage Region 2 | L58: Forage Region 3 | M58: Forage Region 4 | N58: Forage Region 5 | O58: Forage Region 6
A59: Probable Yield x IPI (tons/acre) | B59: =ROUND((($D$22*2204.62)/2000*$B$13),3) -> 1.7 | C59: =ROUND((($D$23*2204.62)/2000*$B$13),3) -> 1.526 | D59: =ROUND((($D$24*2204.62)/2000*$B$13),3) -> 1.829 | E59: =ROUND((($D$25*2204.62)/2000*$B$13),3) -> 1.841 | F59: =ROUND((($D$26*2204.62)/2000*$B$13),3) -> 2.266 | G59: =ROUND((($D$27*2204.62)/2000*$B$13),3) -> 1.798 | I59: Probable Yield x IPI (tons/acre) | J59: =ROUND((($D$33*2204.62)/2000*$B$13),3) -> 1.7 | K59: =ROUND((($D$34*2204.62)/2000*$B$13),3) -> 1.526 | L59: =ROUND((($D$35*2204.62)/2000*$B$13),3) -> 1.829 | M59: =ROUND((($D$36*2204.62)/2000*$B$13),3) -> 1.841 | N59: =ROUND((($D$37*2204.62)/2000*$B$13),3) -> 2.266 | O59: =ROUND((($D$38*2204.62)/2000*$B$13),3) -> 1.798
A60: Coverage per acre (tons) | B60: =ROUND(B59*0.8,3) -> 1.36 | C60: 1.221 | D60: 1.463 | E60: 1.473 | F60: 1.813 | G60: 1.438 | I60: Coverage per acre (tons) | J60: =ROUND(J59*0.7,3) -> 1.19 | K60: =ROUND(K59*0.7,3) -> 1.068 | L60: 1.28 | M60: 1.289 | N60: 1.586 | O60: 1.259
A61: Dollar Coverage per acre | B61: =B60*$C$2 -> 291.1703604 | C61: 261.4110368 | D61: 313.2222333 | E61: 315.3631918 | F61: 388.1557819 | G61: 307.869837 | I61: Dollar Coverage per acre | J61: =J60*$C$2 -> 254.7740654 | K61: 228.6543713 | L61: 274.0426922 | M61: 275.9695548 | N61: 339.5560233 | O61: 269.5466792
A62: Premium ($/Acre) | B62: =E$22 -> 15.2 | C62: =E$23 -> 21.69 | D62: =E$24 -> 21 | E62: =E$25 -> 18.58 | F62: =E$26 -> 17.62 | G62: =E$27 -> 32.17 | I62: Premium ($/Acre) | J62: =E$33 -> 10.55 | K62: =E$34 -> 14.87 | L62: =E$35 -> 14.53 | M62: =E$36 -> 12.44 | N62: =E$37 -> 12.24 | O62: =E$38 -> 22.23
A63: Premium Cost (% of Insured) | B63: =SUM(B62/B61) -> 0.05220311565 | C63: 0.08297277829 | D63: 0.06704504906 | E63: 0.0589161972 | F63: 0.04539414539 | G63: 0.1044922111 | I63: Premium Cost (% of Insured) | J63: =SUM(J62/J61) -> 0.04140923836 | K63: 0.06503265132 | L63: 0.05302093584 | M63: 0.04507743619 | N63: 0.03604707077 | O63: 0.08247180066
A64: Costs Not Covered by AgriInsurance | I64: Costs Not Covered by AgriInsurance
A65: Operating Costs | B65: =IF(Summary!$C$24-B61<0,0,SUM(Summary!$C$24-B61)) -> 0 | C65: =IF(Summary!$C$24-C61<0,0,SUM(Summary!$C$24-C61)) -> 0 | D65: =IF(Summary!$C$24-D61<0,0,SUM(Summary!$C$24-D61)) -> 0 | E65: =IF(Summary!$C$24-E61<0,0,SUM(Summary!$C$24-E61)) -> 0 | F65: =IF(Summary!$C$24-F61<0,0,SUM(Summary!$C$24-F61)) -> 0 | G65: =IF(Summary!$C$24-G61<0,0,SUM(Summary!$C$24-G61)) -> 0 | I65: Operating Costs | J65: =IF(Summary!$C$24-J61<0,0,SUM(Summary!$C$24-J61)) -> 0 | K65: =IF(Summary!$C$24-K61<0,0,SUM(Summary!$C$24-K61)) -> 21.39969122 | L65: =IF(Summary!$C$24-L61<0,0,SUM(Summary!$C$24-L61)) -> 0 | M65: =IF(Summary!$C$24-M61<0,0,SUM(Summary!$C$24-M61)) -> 0 | N65: =IF(Summary!$C$24-N61<0,0,SUM(Summary!$C$24-N61)) -> 0 | O65: =IF(Summary!$C$24-O61<0,0,SUM(Summary!$C$24-O61)) -> 0
A66: Operating & Fixed Costs | B66: =IF(Summary!$C$31-B61<0,0,SUM(Summary!$C$31-B61)) -> 94.75920639 | C66: =IF(Summary!$C$31-C61<0,0,SUM(Summary!$C$31-C61)) -> 124.51853 | D66: =IF(Summary!$C$31-D61<0,0,SUM(Summary!$C$31-D61)) -> 72.7073335 | E66: =IF(Summary!$C$31-E61<0,0,SUM(Summary!$C$31-E61)) -> 70.56637497 | F66: =IF(Summary!$C$31-F61<0,0,SUM(Summary!$C$31-F61)) -> 0 | G66: =IF(Summary!$C$31-G61<0,0,SUM(Summary!$C$31-G61)) -> 78.05972983 | I66: Operating & Fixed Costs | J66: =IF(Summary!$C$31-J61<0,0,SUM(Summary!$C$31-J61)) -> 131.1555014 | K66: =IF(Summary!$C$31-K61<0,0,SUM(Summary!$C$31-K61)) -> 157.2751955 | L66: =IF(Summary!$C$31-L61<0,0,SUM(Summary!$C$31-L61)) -> 111.8868746 | M66: =IF(Summary!$C$31-M61<0,0,SUM(Summary!$C$31-M61)) -> 109.960012 | N66: =IF(Summary!$C$31-N61<0,0,SUM(Summary!$C$31-N61)) -> 46.37354355 | O66: =IF(Summary!$C$31-O61<0,0,SUM(Summary!$C$31-O61)) -> 116.3828876
A67: Total Costs | B67: =IF(Summary!$C$35-B61<0,0,SUM(Summary!$C$35-B61)) -> 127.1592064 | C67: =IF(Summary!$C$35-C61<0,0,SUM(Summary!$C$35-C61)) -> 156.91853 | D67: =IF(Summary!$C$35-D61<0,0,SUM(Summary!$C$35-D61)) -> 105.1073335 | E67: =IF(Summary!$C$35-E61<0,0,SUM(Summary!$C$35-E61)) -> 102.966375 | F67: =IF(Summary!$C$35-F61<0,0,SUM(Summary!$C$35-F61)) -> 30.17378486 | G67: =IF(Summary!$C$35-G61<0,0,SUM(Summary!$C$35-G61)) -> 110.4597298 | I67: Total Costs | J67: =IF(Summary!$C$35-J61<0,0,SUM(Summary!$C$35-J61)) -> 163.5555014 | K67: =IF(Summary!$C$35-K61<0,0,SUM(Summary!$C$35-K61)) -> 189.6751955 | L67: =IF(Summary!$C$35-L61<0,0,SUM(Summary!$C$35-L61)) -> 144.2868746 | M67: =IF(Summary!$C$35-M61<0,0,SUM(Summary!$C$35-M61)) -> 142.360012 | N67: =IF(Summary!$C$35-N61<0,0,SUM(Summary!$C$35-N61)) -> 78.77354355 | O67: =IF(Summary!$C$35-O61<0,0,SUM(Summary!$C$35-O61)) -> 148.7828876
A68: AgriInsurance Risk Ratio | I68: AgriInsurance Risk Ratio
A69: Operating Costs | B69: =B61/Summary!$C$24 -> 1.164429634 | C69: =C61/Summary!$C$24 -> 1.045418076 | D69: =D61/Summary!$C$24 -> 1.252618055 | E69: =E61/Summary!$C$24 -> 1.261180037 | F69: =F61/Summary!$C$24 -> 1.552287446 | G69: =G61/Summary!$C$24 -> 1.231213098 | I69: Operating Costs | J69: =J61/Summary!$C$24 -> 1.01887593 | K69: =K61/Summary!$C$24 -> 0.9144197419 | L69: =L61/Summary!$C$24 -> 1.095933773 | M69: =M61/Summary!$C$24 -> 1.103639557 | N69: =N61/Summary!$C$24 -> 1.357930441 | O69: =O61/Summary!$C$24 -> 1.07795361
A70: Total Costs | B70: =B61/Summary!$C$35 -> 0.6960310328 | C70: =C61/Summary!$C$35 -> 0.6248925669 | D70: =D61/Summary!$C$35 -> 0.7487451478 | E70: =E61/Summary!$C$35 -> 0.753863023 | F70: =F61/Summary!$C$35 -> 0.9278707812 | G70: =G61/Summary!$C$35 -> 0.7359504596 | I70: Total Costs | J70: =J61/Summary!$C$35 -> 0.6090271537 | K70: =K61/Summary!$C$35 -> 0.5465890757 | L70: =L61/Summary!$C$35 -> 0.6550880308 | M70: =M61/Summary!$C$35 -> 0.6596941186 | N70: =N61/Summary!$C$35 -> 0.8116950132 | O70: =O61/Summary!$C$35 -> 0.6443404928
A72: Alfalfa-Grass | B72: 0.8 | I72: Alfalfa-Grass | J72: 0.7
A73: <=4 years | B73: Forage Region | I73: <=4 years | J73: Forage Region
B74: Forage Region 1 | C74: Forage Region 2 | D74: Forage Region 3 | E74: Forage Region 4 | F74: Forage Region 5 | G74: Forage Region 6 | J74: Forage Region 1 | K74: Forage Region 2 | L74: Forage Region 3 | M74: Forage Region 4 | N74: Forage Region 5 | O74: Forage Region 6
A75: Probable Yield x IPI (tons/acre) | B75: =ROUND((($F$22*2204.62)/2000*$B$13),3) -> 2.146 | C75: =ROUND((($F$23*2204.62)/2000*$B$13),3) -> 1.985 | D75: =ROUND((($F$24*2204.62)/2000*$B$13),3) -> 1.982 | E75: =ROUND((($F$25*2204.62)/2000*$B$13),3) -> 2.062 | F75: =ROUND((($F$26*2204.62)/2000*$B$13),3) -> 2.389 | G75: =ROUND((($F$27*2204.62)/2000*$B$13),3) -> 2.148 | I75: Probable Yield x IPI (tons/acre) | J75: =ROUND((($F$33*2204.62)/2000*$B$13),3) -> 2.146 | K75: =ROUND((($F$34*2204.62)/2000*$B$13),3) -> 1.985 | L75: =ROUND((($F$35*2204.62)/2000*$B$13),3) -> 1.982 | M75: =ROUND((($F$36*2204.62)/2000*$B$13),3) -> 2.062 | N75: =ROUND((($F$37*2204.62)/2000*$B$13),3) -> 2.389 | O75: =ROUND((($F$38*2204.62)/2000*$B$13),3) -> 2.148
A76: Coverage per acre (tons) | B76: =ROUND(B75*0.8,3) -> 1.717 | C76: 1.588 | D76: 1.586 | E76: 1.65 | F76: 1.911 | G76: 1.718 | I76: Coverage per acre (tons) | J76: =ROUND(J75*0.7,3) -> 1.502 | K76: =ROUND(K75*0.7,3) -> 1.39 | L76: 1.387 | M76: 1.443 | N76: 1.672 | O76: 1.504
A77: Dollar Coverage per acre | B77: =B76*$C$3 -> 303.7394199 | C77: 280.9191607 | D77: 280.5653582 | E77: 291.8870372 | F77: 338.0582595 | G77: 303.9163212 | I77: Dollar Coverage per acre | J77: =J76*$C$3 -> 265.7056545 | K77: 245.8927162 | L77: 245.3620125 | M77: 255.2684816 | N77: 295.7788644 | O77: 266.059457
A78: Premium ($/Acre) | B78: =G$22 -> 10.82 | C78: =G$23 -> 16.18 | D78: =G$24 -> 14.56 | E78: =G$25 -> 14.27 | F78: =G$26 -> 24.46 | G78: =G$27 -> 19.74 | I78: Premium ($/Acre) | J78: =G$33 -> 7.42 | K78: =G$34 -> 11.1 | L78: =G$35 -> 10.02 | M78: =G$36 -> 9.84 | N78: =G$37 -> 16.86 | O78: =G$38 -> 13.56
A79: Premium Cost (% of Insured) | B79: =SUM(B78/B77) -> 0.03562263997 | C79: 0.05759664083 | D79: 0.05189521648 | E79: 0.04888877607 | F79: 0.07235439252 | G79: 0.06495208919 | I79: Premium Cost (% of Insured) | J79: =SUM(J78/J77) -> 0.02792563829 | K79: 0.04514163807 | L79: 0.04083761744 | M79: 0.03854764966 | N79: 0.05700204453 | O79: 0.05096605155
A80: Costs Not Covered by AgriInsurance | I80: Costs Not Covered by AgriInsurance
A81: Operating Costs | B81: =IF(Summary!$G$24-B77<0,0,SUM(Summary!$G$24-B77)) -> 0 | C81: =IF(Summary!$G$24-C77<0,0,SUM(Summary!$G$24-C77)) -> 0 | D81: =IF(Summary!$G$24-D77<0,0,SUM(Summary!$G$24-D77)) -> 0 | E81: =IF(Summary!$G$24-E77<0,0,SUM(Summary!$G$24-E77)) -> 0 | F81: =IF(Summary!$G$24-F77<0,0,SUM(Summary!$G$24-F77)) -> 0 | G81: =IF(Summary!$G$24-G77<0,0,SUM(Summary!$G$24-G77)) -> 0 | I81: Operating Costs | J81: =IF(Summary!$G$24-J77<0,0,SUM(Summary!$G$24-J77)) -> 0 | K81: =IF(Summary!$G$24-K77<0,0,SUM(Summary!$G$24-K77)) -> 0 | L81: =IF(Summary!$G$24-L77<0,0,SUM(Summary!$G$24-L77)) -> 0 | M81: =IF(Summary!$G$24-M77<0,0,SUM(Summary!$G$24-M77)) -> 0 | N81: =IF(Summary!$G$24-N77<0,0,SUM(Summary!$G$24-N77)) -> 0 | O81: =IF(Summary!$G$24-O77<0,0,SUM(Summary!$G$24-O77)) -> 0
A82: Operating & Fixed Costs | B82: =IF(Summary!$G$31-B77<0,0,SUM(Summary!$G$31-B77)) -> 22.80008676 | C82: =IF(Summary!$G$31-C77<0,0,SUM(Summary!$G$31-C77)) -> 45.62034603 | D82: =IF(Summary!$G$31-D77<0,0,SUM(Summary!$G$31-D77)) -> 45.9741485 | E82: =IF(Summary!$G$31-E77<0,0,SUM(Summary!$G$31-E77)) -> 34.65246948 | F82: =IF(Summary!$G$31-F77<0,0,SUM(Summary!$G$31-F77)) -> 0 | G82: =IF(Summary!$G$31-G77<0,0,SUM(Summary!$G$31-G77)) -> 22.62318552 | I82: Operating & Fixed Costs | J82: =IF(Summary!$G$31-J77<0,0,SUM(Summary!$G$31-J77)) -> 60.83385221 | K82: =IF(Summary!$G$31-K77<0,0,SUM(Summary!$G$31-K77)) -> 80.6467905 | L82: =IF(Summary!$G$31-L77<0,0,SUM(Summary!$G$31-L77)) -> 81.1774942 | M82: =IF(Summary!$G$31-M77<0,0,SUM(Summary!$G$31-M77)) -> 71.27102506 | N82: =IF(Summary!$G$31-N77<0,0,SUM(Summary!$G$31-N77)) -> 30.76064232 | O82: =IF(Summary!$G$31-O77<0,0,SUM(Summary!$G$31-O77)) -> 60.48004974
A83: Total Costs | B83: =IF(Summary!$G$35-B77<0,0,SUM(Summary!$G$35-B77)) -> 55.20008676 | C83: =IF(Summary!$G$35-C77<0,0,SUM(Summary!$G$35-C77)) -> 78.02034603 | D83: =IF(Summary!$G$35-D77<0,0,SUM(Summary!$G$35-D77)) -> 78.3741485 | E83: =IF(Summary!$G$35-E77<0,0,SUM(Summary!$G$35-E77)) -> 67.05246948 | F83: =IF(Summary!$G$35-F77<0,0,SUM(Summary!$G$35-F77)) -> 20.88124723 | G83: =IF(Summary!$G$35-G77<0,0,SUM(Summary!$G$35-G77)) -> 55.02318552 | I83: Total Costs | J83: =IF(Summary!$G$35-J77<0,0,SUM(Summary!$G$35-J77)) -> 93.23385221 | K83: =IF(Summary!$G$35-K77<0,0,SUM(Summary!$G$35-K77)) -> 113.0467905 | L83: =IF(Summary!$G$35-L77<0,0,SUM(Summary!$G$35-L77)) -> 113.5774942 | M83: =IF(Summary!$G$35-M77<0,0,SUM(Summary!$G$35-M77)) -> 103.6710251 | N83: =IF(Summary!$G$35-N77<0,0,SUM(Summary!$G$35-N77)) -> 63.16064232 | O83: =IF(Summary!$G$35-O77<0,0,SUM(Summary!$G$35-O77)) -> 92.88004974
A84: AgriInsurance Risk Ratio | I84: AgriInsurance Risk Ratio
A85: Operating Costs | B85: =B77/Summary!$G$24 -> 1.593061176 | C85: =C77/Summary!$G$24 -> 1.473372829 | D85: =D77/Summary!$G$24 -> 1.471517196 | E85: =E77/Summary!$G$24 -> 1.530897461 | F85: =F77/Summary!$G$24 -> 1.773057605 | G85: =G77/Summary!$G$24 -> 1.593988993 | I85: Operating Costs | J85: =J77/Summary!$G$24 -> 1.393580598 | K85: =K77/Summary!$G$24 -> 1.289665134 | L85: =L77/Summary!$G$24 -> 1.286881684 | M85: =M77/Summary!$G$24 -> 1.338839416 | N85: =N77/Summary!$G$24 -> 1.551309428 | O85: =O77/Summary!$G$24 -> 1.395436231
A86: Total Costs | B86: =B77/Summary!$G$35 -> 0.8462133988 | C86: =C77/Summary!$G$35 -> 0.782636504 | D86: =D77/Summary!$G$35 -> 0.7816508157 | E86: =E77/Summary!$G$35 -> 0.8131928411 | F86: =F77/Summary!$G$35 -> 0.9418251632 | G86: =G77/Summary!$G$35 -> 0.846706243 | I86: Total Costs | J86: =J77/Summary!$G$35 -> 0.7402519074 | K86: =K77/Summary!$G$35 -> 0.6850533631 | L86: =L77/Summary!$G$35 -> 0.6835748306 | M86: =M77/Summary!$G$35 -> 0.7111741028 | N86: =N77/Summary!$G$35 -> 0.8240354123 | O86: =O77/Summary!$G$35 -> 0.7412375957
A88: Alfalfa-Grass | B88: 0.8 | I88: Alfalfa-Grass | J88: 0.7
A89: >4 years | B89: Forage Region | I89: >4 years | J89: Forage Region
B90: Forage Region 1 | C90: Forage Region 2 | D90: Forage Region 3 | E90: Forage Region 4 | F90: Forage Region 5 | G90: Forage Region 6 | J90: Forage Region 1 | K90: Forage Region 2 | L90: Forage Region 3 | M90: Forage Region 4 | N90: Forage Region 5 | O90: Forage Region 6
A91: Probable Yield x IPI (tons/acre) | B91: =ROUND((($H$22*2204.62)/2000*$B$13),3) -> 1.439 | C91: =ROUND((($H$23*2204.62)/2000*$B$13),3) -> 1.354 | D91: =ROUND((($H$24*2204.62)/2000*$B$13),3) -> 1.496 | E91: =ROUND((($H$25*2204.62)/2000*$B$13),3) -> 1.462 | F91: =ROUND((($H$26*2204.62)/2000*$B$13),3) -> 1.661 | G91: =ROUND((($H$27*2204.62)/2000*$B$13),3) -> 1.378 | I91: Probable Yield x IPI (tons/acre) | J91: =ROUND((($H$33*2204.62)/2000*$B$13),3) -> 1.439 | K91: =ROUND((($H$34*2204.62)/2000*$B$13),3) -> 1.354 | L91: =ROUND((($H$35*2204.62)/2000*$B$13),3) -> 1.496 | M91: =ROUND((($H$36*2204.62)/2000*$B$13),3) -> 1.462 | N91: =ROUND((($H$37*2204.62)/2000*$B$13),3) -> 1.661 | O91: =ROUND((($H$38*2204.62)/2000*$B$13),3) -> 1.378
A92: Coverage per acre (tons) | B92: =ROUND(B91*0.8,3) -> 1.151 | C92: 1.083 | D92: 1.197 | E92: 1.17 | F92: 1.329 | G92: 1.102 | I92: Coverage per acre (tons) | J92: =ROUND(J91*0.7,3) -> 1.007 | K92: =ROUND(K91*0.7,3) -> 0.948 | L92: 1.047 | M92: 1.023 | N92: 1.163 | O92: 0.965
A93: Dollar Coverage per acre | B93: =B92*$C$3 -> 203.6133211 | C93: 191.5840372 | D93: 211.7507779 | E93: 206.9744446 | F93: 235.1017409 | G93: 194.9451606 | I93: Dollar Coverage per acre | J93: =J92*$C$3 -> 178.1395433 | K93: 167.7023705 | L93: 185.2155927 | M93: 180.9699631 | N93: 205.7361359 | O93: 170.7096915
A94: Premium ($/Acre) | B94: =I$22 -> 10.82 | C94: =I$23 -> 16.18 | D94: =I$24 -> 14.56 | E94: =I$25 -> 14.27 | F94: =I$26 -> 24.46 | G94: =I$27 -> 19.74 | I94: Premium ($/Acre) | J94: =I$33 -> 7.42 | K94: =I$34 -> 11.1 | L94: =I$35 -> 10.02 | M94: =I$36 -> 9.84 | N94: =I$37 -> 16.86 | O94: =I$38 -> 13.56
A95: Premium Cost (% of Insured) | B95: =SUM(B94/B93) -> 0.05313994163 | C95: 0.08445380022 | D95: 0.06876007797 | E95: 0.06894570984 | F95: 0.1040400633 | G95: 0.1012592461 | I95: Premium Cost (% of Insured) | J95: =SUM(J94/J93) -> 0.04165273954 | K95: 0.06618868874 | L95: 0.05409911689 | M95: 0.05437366419 | N95: 0.08194962894 | O95: 0.07943310004
A96: Costs Not Covered by AgriInsurance | I96: Costs Not Covered by AgriInsurance
A97: Operating Costs | B97: =IF(Summary!$G$24-B93<0,0,SUM(Summary!$G$24-B93)) -> 0 | C97: =IF(Summary!$G$24-C93<0,0,SUM(Summary!$G$24-C93)) -> 0 | D97: =IF(Summary!$G$24-D93<0,0,SUM(Summary!$G$24-D93)) -> 0 | E97: =IF(Summary!$G$24-E93<0,0,SUM(Summary!$G$24-E93)) -> 0 | F97: =IF(Summary!$G$24-F93<0,0,SUM(Summary!$G$24-F93)) -> 0 | G97: =IF(Summary!$G$24-G93<0,0,SUM(Summary!$G$24-G93)) -> 0 | I97: Operating Costs | J97: =IF(Summary!$G$24-J93<0,0,SUM(Summary!$G$24-J93)) -> 12.52445906 | K97: =IF(Summary!$G$24-K93<0,0,SUM(Summary!$G$24-K93)) -> 22.96163191 | L97: =IF(Summary!$G$24-L93<0,0,SUM(Summary!$G$24-L93)) -> 5.448409675 | M97: =IF(Summary!$G$24-M93<0,0,SUM(Summary!$G$24-M93)) -> 9.694039307 | N97: =IF(Summary!$G$24-N93<0,0,SUM(Summary!$G$24-N93)) -> 0 | O97: =IF(Summary!$G$24-O93<0,0,SUM(Summary!$G$24-O93)) -> 19.95431092
A98: Operating & Fixed Costs | B98: =IF(Summary!$G$31-B93<0,0,SUM(Summary!$G$31-B93)) -> 122.9261856 | C98: =IF(Summary!$G$31-C93<0,0,SUM(Summary!$G$31-C93)) -> 134.9554695 | D98: =IF(Summary!$G$31-D93<0,0,SUM(Summary!$G$31-D93)) -> 114.7887288 | E98: =IF(Summary!$G$31-E93<0,0,SUM(Summary!$G$31-E93)) -> 119.5650621 | F98: =IF(Summary!$G$31-F93<0,0,SUM(Summary!$G$31-F93)) -> 91.43776581 | G98: =IF(Summary!$G$31-G93<0,0,SUM(Summary!$G$31-G93)) -> 131.5943461 | I98: Operating & Fixed Costs | J98: =IF(Summary!$G$31-J93<0,0,SUM(Summary!$G$31-J93)) -> 148.3999634 | K98: =IF(Summary!$G$31-K93<0,0,SUM(Summary!$G$31-K93)) -> 158.8371362 | L98: =IF(Summary!$G$31-L93<0,0,SUM(Summary!$G$31-L93)) -> 141.323914 | M98: =IF(Summary!$G$31-M93<0,0,SUM(Summary!$G$31-M93)) -> 145.5695436 | N98: =IF(Summary!$G$31-N93<0,0,SUM(Summary!$G$31-N93)) -> 120.8033708 | O98: =IF(Summary!$G$31-O93<0,0,SUM(Summary!$G$31-O93)) -> 155.8298152
A99: Total Costs | B99: =IF(Summary!$G$35-B93<0,0,SUM(Summary!$G$35-B93)) -> 155.3261856 | C99: =IF(Summary!$G$35-C93<0,0,SUM(Summary!$G$35-C93)) -> 167.3554695 | D99: =IF(Summary!$G$35-D93<0,0,SUM(Summary!$G$35-D93)) -> 147.1887288 | E99: =IF(Summary!$G$35-E93<0,0,SUM(Summary!$G$35-E93)) -> 151.9650621 | F99: =IF(Summary!$G$35-F93<0,0,SUM(Summary!$G$35-F93)) -> 123.8377658 | G99: =IF(Summary!$G$35-G93<0,0,SUM(Summary!$G$35-G93)) -> 163.9943461 | I99: Total Costs | J99: =IF(Summary!$G$35-J93<0,0,SUM(Summary!$G$35-J93)) -> 180.7999634 | K99: =IF(Summary!$G$35-K93<0,0,SUM(Summary!$G$35-K93)) -> 191.2371362 | L99: =IF(Summary!$G$35-L93<0,0,SUM(Summary!$G$35-L93)) -> 173.723914 | M99: =IF(Summary!$G$35-M93<0,0,SUM(Summary!$G$35-M93)) -> 177.9695436 | N99: =IF(Summary!$G$35-N93<0,0,SUM(Summary!$G$35-N93)) -> 153.2033708 | O99: =IF(Summary!$G$35-O93<0,0,SUM(Summary!$G$35-O93)) -> 188.2298152
A100: AgriInsurance Risk Ratio | I100: AgriInsurance Risk Ratio
A101: Operating Costs | B101: =B93/Summary!$G$24 -> 1.067916956 | C101: =C93/Summary!$G$24 -> 1.004825425 | D101: =D93/Summary!$G$24 -> 1.110596522 | E101: =E93/Summary!$G$24 -> 1.085545473 | F101: =F93/Summary!$G$24 -> 1.233068319 | G101: =G93/Summary!$G$24 -> 1.022453941 | I101: Operating Costs | J101: =J93/Summary!$G$24 -> 0.9343113597 | K101: =K93/Summary!$G$24 -> 0.8795701778 | L101: =L93/Summary!$G$24 -> 0.9714240255 | M101: =M93/Summary!$G$24 -> 0.949156426 | N101: =N93/Summary!$G$24 -> 1.079050756 | O101: =O93/Summary!$G$24 -> 0.8953430607
A102: Total Costs | B102: =B93/Summary!$G$35 -> 0.5672636122 | C102: =C93/Summary!$G$35 -> 0.5337502102 | D102: =D93/Summary!$G$35 -> 0.5899344429 | E102: =E93/Summary!$G$35 -> 0.5766276509 | F102: =F93/Summary!$G$35 -> 0.6549898702 | G102: =G93/Summary!$G$35 -> 0.543114249 | I102: Total Costs | J102: =J93/Summary!$G$35 -> 0.4962940551 | K102: =K93/Summary!$G$35 -> 0.4672162505 | L102: =L93/Summary!$G$35 -> 0.516007821 | M102: =M93/Summary!$G$35 -> 0.5041795615 | N102: =N93/Summary!$G$35 -> 0.5731777419 | O102: =O93/Summary!$G$35 -> 0.475594601
A104: Basic Hay - Alfalfa | I104: Basic Hay - Alfalfa
A105: <=4 years | I105: <=4 years
A106: ="Low - $"&B9&"/tonne" -> Low - $71/tonne | B106: Forage Region | I106: ="High - $"&B10&"/tonne" -> High - $118/tonne | J106: Forage Region
B107: Forage Region 1 | C107: Forage Region 2 | D107: Forage Region 3 | E107: Forage Region 4 | F107: Forage Region 5 | G107: Forage Region 6 | J107: Forage Region 1 | K107: Forage Region 2 | L107: Forage Region 3 | M107: Forage Region 4 | N107: Forage Region 5 | O107: Forage Region 6
A108: Probable Yield x IPI (tons/acre) | B108: =ROUND((($J$22*2204.62)/2000*$B$13),3) -> 1.534 | C108: =ROUND((($J$23*2204.62)/2000*$B$13),3) -> 1.396 | D108: =ROUND((($J$24*2204.62)/2000*$B$13),3) -> 1.468 | E108: =ROUND((($J$25*2204.62)/2000*$B$13),3) -> 1.562 | F108: =ROUND((($J$26*2204.62)/2000*$B$13),3) -> 1.865 | G108: =ROUND((($J$27*2204.62)/2000*$B$13),3) -> 1.551 | I108: Probable Yield x IPI (tons/acre) | J108: =ROUND((($J$33*2204.62)/2000*$B$13),3) -> 1.534 | K108: =ROUND((($J$34*2204.62)/2000*$B$13),3) -> 1.396 | L108: =ROUND((($J$35*2204.62)/2000*$B$13),3) -> 1.468 | M108: =ROUND((($J$36*2204.62)/2000*$B$13),3) -> 1.562 | N108: =ROUND((($J$37*2204.62)/2000*$B$13),3) -> 1.865 | O108: =ROUND((($J$38*2204.62)/2000*$B$13),3) -> 1.551
A109: Coverage per acre (tons) | B109: =ROUND(B108*0.8,3) -> 1.227 | C109: 1.117 | D109: 1.174 | E109: 1.25 | F109: 1.492 | G109: 1.241 | I109: Coverage per acre (tons) | J109: =ROUND(J108*0.8,3) -> 1.227 | K109: 1.117 | L109: 1.174 | M109: 1.25 | N109: 1.492 | O109: 1.241
A110: Dollar Coverage per acre | B110: =B109*$C$9 -> 79.03130698 | C110: 71.94618574 | D110: 75.61756675 | E110: 80.51274142 | F110: 96.10000816 | G110: 79.93304969 | I110: Dollar Coverage per acre | J110: =J109*$C$10 -> 131.347806 | K110: 119.572534 | L110: 125.6742659 | M110: 133.8099083 | N110: 159.7155065 | O110: 132.8464769
A111: Premium ($/Acre) | B111: =K$22 -> 4.3 | C111: =K$23 -> 3.71 | D111: =K$24 -> 5.51 | E111: =K$25 -> 4.92 | F111: =K$26 -> 6.71 | G111: =K$27 -> 5.68 | I111: Premium ($/Acre) | J111: =K$33 -> 6.99 | K111: =K$34 -> 6.02 | L111: =K$35 -> 8.95 | M111: =K$36 -> 7.97 | N111: =K$37 -> 10.89 | O111: =K$38 -> 9.22
A112: Premium Cost (% of Insured) | B112: =SUM(B111/B110) -> 0.05440881803 | C112: 0.05156631949 | D112: 0.07286666627 | E112: 0.06110834028 | F112: 0.069823095 | G112: 0.07105946817 | I112: Premium Cost (% of Insured) | J112: =SUM(J111/J110) -> 0.05321748581 | K112: 0.05034601005 | L112: 0.07121585265 | M112: 0.05956210644 | N112: 0.06818373642 | O112: 0.06940342124
A113: Costs Not Covered by AgriInsurance | I113: Costs Not Covered by AgriInsurance
A114: Operating Costs | B114: =IF(Summary!$C$24-B110<0,0,SUM(Summary!$C$24-B110)) -> 171.0227555 | C114: =IF(Summary!$C$24-C110<0,0,SUM(Summary!$C$24-C110)) -> 178.1078768 | D114: =IF(Summary!$C$24-D110<0,0,SUM(Summary!$C$24-D110)) -> 174.4364957 | E114: =IF(Summary!$C$24-E110<0,0,SUM(Summary!$C$24-E110)) -> 169.5413211 | F114: =IF(Summary!$C$24-F110<0,0,SUM(Summary!$C$24-F110)) -> 153.9540543 | G114: =IF(Summary!$C$24-G110<0,0,SUM(Summary!$C$24-G110)) -> 170.1210128 | I114: Operating Costs | J114: =IF(Summary!$C$24-J110<0,0,SUM(Summary!$C$24-J110)) -> 118.7062565 | K114: =IF(Summary!$C$24-K110<0,0,SUM(Summary!$C$24-K110)) -> 130.4815284 | L114: =IF(Summary!$C$24-L110<0,0,SUM(Summary!$C$24-L110)) -> 124.3797966 | M114: =IF(Summary!$C$24-M110<0,0,SUM(Summary!$C$24-M110)) -> 116.2441542 | N114: =IF(Summary!$C$24-N110<0,0,SUM(Summary!$C$24-N110)) -> 90.33855596 | O114: =IF(Summary!$C$24-O110<0,0,SUM(Summary!$C$24-O110)) -> 117.2075855
A115: Operating & Fixed Costs | B115: =IF(Summary!$C$31-B110<0,0,SUM(Summary!$C$31-B110)) -> 306.8982598 | C115: =IF(Summary!$C$31-C110<0,0,SUM(Summary!$C$31-C110)) -> 313.9833811 | D115: =IF(Summary!$C$31-D110<0,0,SUM(Summary!$C$31-D110)) -> 310.3120001 | E115: =IF(Summary!$C$31-E110<0,0,SUM(Summary!$C$31-E110)) -> 305.4168254 | F115: =IF(Summary!$C$31-F110<0,0,SUM(Summary!$C$31-F110)) -> 289.8295586 | G115: =IF(Summary!$C$31-G110<0,0,SUM(Summary!$C$31-G110)) -> 305.9965171 | I115: Operating & Fixed Costs | J115: =IF(Summary!$C$31-J110<0,0,SUM(Summary!$C$31-J110)) -> 254.5817608 | K115: =IF(Summary!$C$31-K110<0,0,SUM(Summary!$C$31-K110)) -> 266.3570328 | L115: =IF(Summary!$C$31-L110<0,0,SUM(Summary!$C$31-L110)) -> 260.255301 | M115: =IF(Summary!$C$31-M110<0,0,SUM(Summary!$C$31-M110)) -> 252.1196585 | N115: =IF(Summary!$C$31-N110<0,0,SUM(Summary!$C$31-N110)) -> 226.2140603 | O115: =IF(Summary!$C$31-O110<0,0,SUM(Summary!$C$31-O110)) -> 253.0830899
A116: Total Costs | B116: =IF(Summary!$C$35-B110<0,0,SUM(Summary!$C$35-B110)) -> 339.2982598 | C116: =IF(Summary!$C$35-C110<0,0,SUM(Summary!$C$35-C110)) -> 346.3833811 | D116: =IF(Summary!$C$35-D110<0,0,SUM(Summary!$C$35-D110)) -> 342.7120001 | E116: =IF(Summary!$C$35-E110<0,0,SUM(Summary!$C$35-E110)) -> 337.8168254 | F116: =IF(Summary!$C$35-F110<0,0,SUM(Summary!$C$35-F110)) -> 322.2295586 | G116: =IF(Summary!$C$35-G110<0,0,SUM(Summary!$C$35-G110)) -> 338.3965171 | I116: Total Costs | J116: =IF(Summary!$C$35-J110<0,0,SUM(Summary!$C$35-J110)) -> 286.9817608 | K116: =IF(Summary!$C$35-K110<0,0,SUM(Summary!$C$35-K110)) -> 298.7570328 | L116: =IF(Summary!$C$35-L110<0,0,SUM(Summary!$C$35-L110)) -> 292.655301 | M116: =IF(Summary!$C$35-M110<0,0,SUM(Summary!$C$35-M110)) -> 284.5196585 | N116: =IF(Summary!$C$35-N110<0,0,SUM(Summary!$C$35-N110)) -> 258.6140603 | O116: =IF(Summary!$C$35-O110<0,0,SUM(Summary!$C$35-O110)) -> 285.4830899
A117: AgriInsurance Risk Ratio | I117: AgriInsurance Risk Ratio
A118: Operating Costs | B118: =B110/Summary!$C$24 -> 0.3160568806 | C118: =C110/Summary!$C$24 -> 0.287722523 | D118: =D110/Summary!$C$24 -> 0.3024048719 | E118: =E110/Summary!$C$24 -> 0.3219813372 | F118: =F110/Summary!$C$24 -> 0.3843169241 | G118: =G110/Summary!$C$24 -> 0.3196630716 | I118: Operating Costs | J118: =J110/Summary!$C$24 -> 0.5252776326 | K118: =K110/Summary!$C$24 -> 0.4781867283 | L118: =L110/Summary!$C$24 -> 0.5025883787 | M118: =M110/Summary!$C$24 -> 0.5351239126 | N118: =N110/Summary!$C$24 -> 0.6387239021 | O118: =O110/Summary!$C$24 -> 0.5312710204
A119: Total Costs | B119: =B110/Summary!$C$35 -> 0.1889211599 | C119: =C110/Summary!$C$35 -> 0.1719844626 | D119: =D110/Summary!$C$35 -> 0.1807607512 | E119: =E110/Summary!$C$35 -> 0.1924624693 | F119: =F110/Summary!$C$35 -> 0.2297232034 | G119: =G110/Summary!$C$35 -> 0.1910767396 | I119: Total Costs | J119: =J110/Summary!$C$35 -> 0.313981646 | K119: =K110/Summary!$C$35 -> 0.2858333322 | L119: =L110/Summary!$C$35 -> 0.3004192766 | M119: =M110/Summary!$C$35 -> 0.3198672026 | N119: =N110/Summary!$C$35 -> 0.381793493 | O119: =O110/Summary!$C$35 -> 0.3175641587
A121: Basic Hay - Alfalfa | I121: Basic Hay - Alfalfa
A122: >4 years | I122: >4 years
A123: ="Low - $"&B9&"/tonne" -> Low - $71/tonne | B123: Forage Region | I123: ="High - $"&B10&"/tonne" -> High - $118/tonne | J123: Forage Region
B124: Forage Region 1 | C124: Forage Region 2 | D124: Forage Region 3 | E124: Forage Region 4 | F124: Forage Region 5 | G124: Forage Region 6 | J124: Forage Region 1 | K124: Forage Region 2 | L124: Forage Region 3 | M124: Forage Region 4 | N124: Forage Region 5 | O124: Forage Region 6
A125: Probable Yield x IPI (tons/acre) | B125: =ROUND((($L$22*2204.62)/2000*$B$13),3) -> 1.534 | C125: =ROUND((($L$23*2204.62)/2000*$B$13),3) -> 1.396 | D125: =ROUND((($L$24*2204.62)/2000*$B$13),3) -> 1.468 | E125: =ROUND((($L$25*2204.62)/2000*$B$13),3) -> 1.562 | F125: =ROUND((($L$26*2204.62)/2000*$B$13),3) -> 1.865 | G125: =ROUND((($L$27*2204.62)/2000*$B$13),3) -> 1.551 | I125: Probable Yield x IPI (tons/acre) | J125: =ROUND((($L$33*2204.62)/2000*$B$13),3) -> 1.534 | K125: =ROUND((($L$34*2204.62)/2000*$B$13),3) -> 1.396 | L125: =ROUND((($L$35*2204.62)/2000*$B$13),3) -> 1.468 | M125: =ROUND((($L$36*2204.62)/2000*$B$13),3) -> 1.562 | N125: =ROUND((($L$37*2204.62)/2000*$B$13),3) -> 1.865 | O125: =ROUND((($L$38*2204.62)/2000*$B$13),3) -> 1.551
A126: Coverage per acre (tons) | B126: =ROUND(B125*0.8,3) -> 1.227 | C126: 1.117 | D126: 1.174 | E126: 1.25 | F126: 1.492 | G126: 1.241 | I126: Coverage per acre (tons) | J126: =ROUND(J125*0.8,3) -> 1.227 | K126: 1.117 | L126: 1.174 | M126: 1.25 | N126: 1.492 | O126: 1.241
A127: Dollar Coverage per acre | B127: =B126*$C$9 -> 79.03130698 | C127: 71.94618574 | D127: 75.61756675 | E127: 80.51274142 | F127: 96.10000816 | G127: 79.93304969 | I127: Dollar Coverage per acre | J127: =J126*$C$10 -> 131.347806 | K127: 119.572534 | L127: 125.6742659 | M127: 133.8099083 | N127: 159.7155065 | O127: 132.8464769
A128: Premium ($/Acre) | B128: =K$22 -> 4.3 | C128: =K$23 -> 3.71 | D128: =K$24 -> 5.51 | E128: =K$25 -> 4.92 | F128: =K$26 -> 6.71 | G128: =K$27 -> 5.68 | I128: Premium ($/Acre) | J128: =K$33 -> 6.99 | K128: =K$34 -> 6.02 | L128: =K$35 -> 8.95 | M128: =K$36 -> 7.97 | N128: =K$37 -> 10.89 | O128: =K$38 -> 9.22
A129: Premium Cost (% of Insured) | B129: =SUM(B128/B127) -> 0.05440881803 | C129: 0.05156631949 | D129: 0.07286666627 | E129: 0.06110834028 | F129: 0.069823095 | G129: 0.07105946817 | I129: Premium Cost (% of Insured) | J129: =SUM(J128/J127) -> 0.05321748581 | K129: 0.05034601005 | L129: 0.07121585265 | M129: 0.05956210644 | N129: 0.06818373642 | O129: 0.06940342124
A130: Costs Not Covered by AgriInsurance | I130: Costs Not Covered by AgriInsurance
A131: Operating Costs | B131: =IF(Summary!$C$24-B127<0,0,SUM(Summary!$C$24-B127)) -> 171.0227555 | C131: =IF(Summary!$C$24-C127<0,0,SUM(Summary!$C$24-C127)) -> 178.1078768 | D131: =IF(Summary!$C$24-D127<0,0,SUM(Summary!$C$24-D127)) -> 174.4364957 | E131: =IF(Summary!$C$24-E127<0,0,SUM(Summary!$C$24-E127)) -> 169.5413211 | F131: =IF(Summary!$C$24-F127<0,0,SUM(Summary!$C$24-F127)) -> 153.9540543 | G131: =IF(Summary!$C$24-G127<0,0,SUM(Summary!$C$24-G127)) -> 170.1210128 | I131: Operating Costs | J131: =IF(Summary!$C$24-J127<0,0,SUM(Summary!$C$24-J127)) -> 118.7062565 | K131: =IF(Summary!$C$24-K127<0,0,SUM(Summary!$C$24-K127)) -> 130.4815284 | L131: =IF(Summary!$C$24-L127<0,0,SUM(Summary!$C$24-L127)) -> 124.3797966 | M131: =IF(Summary!$C$24-M127<0,0,SUM(Summary!$C$24-M127)) -> 116.2441542 | N131: =IF(Summary!$C$24-N127<0,0,SUM(Summary!$C$24-N127)) -> 90.33855596 | O131: =IF(Summary!$C$24-O127<0,0,SUM(Summary!$C$24-O127)) -> 117.2075855
A132: Operating & Fixed Costs | B132: =IF(Summary!$C$31-B127<0,0,SUM(Summary!$C$31-B127)) -> 306.8982598 | C132: =IF(Summary!$C$31-C127<0,0,SUM(Summary!$C$31-C127)) -> 313.9833811 | D132: =IF(Summary!$C$31-D127<0,0,SUM(Summary!$C$31-D127)) -> 310.3120001 | E132: =IF(Summary!$C$31-E127<0,0,SUM(Summary!$C$31-E127)) -> 305.4168254 | F132: =IF(Summary!$C$31-F127<0,0,SUM(Summary!$C$31-F127)) -> 289.8295586 | G132: =IF(Summary!$C$31-G127<0,0,SUM(Summary!$C$31-G127)) -> 305.9965171 | I132: Operating & Fixed Costs | J132: =IF(Summary!$C$31-J127<0,0,SUM(Summary!$C$31-J127)) -> 254.5817608 | K132: =IF(Summary!$C$31-K127<0,0,SUM(Summary!$C$31-K127)) -> 266.3570328 | L132: =IF(Summary!$C$31-L127<0,0,SUM(Summary!$C$31-L127)) -> 260.255301 | M132: =IF(Summary!$C$31-M127<0,0,SUM(Summary!$C$31-M127)) -> 252.1196585 | N132: =IF(Summary!$C$31-N127<0,0,SUM(Summary!$C$31-N127)) -> 226.2140603 | O132: =IF(Summary!$C$31-O127<0,0,SUM(Summary!$C$31-O127)) -> 253.0830899
A133: Total Costs | B133: =IF(Summary!$C$35-B127<0,0,SUM(Summary!$C$35-B127)) -> 339.2982598 | C133: =IF(Summary!$C$35-C127<0,0,SUM(Summary!$C$35-C127)) -> 346.3833811 | D133: =IF(Summary!$C$35-D127<0,0,SUM(Summary!$C$35-D127)) -> 342.7120001 | E133: =IF(Summary!$C$35-E127<0,0,SUM(Summary!$C$35-E127)) -> 337.8168254 | F133: =IF(Summary!$C$35-F127<0,0,SUM(Summary!$C$35-F127)) -> 322.2295586 | G133: =IF(Summary!$C$35-G127<0,0,SUM(Summary!$C$35-G127)) -> 338.3965171 | I133: Total Costs | J133: =IF(Summary!$C$35-J127<0,0,SUM(Summary!$C$35-J127)) -> 286.9817608 | K133: =IF(Summary!$C$35-K127<0,0,SUM(Summary!$C$35-K127)) -> 298.7570328 | L133: =IF(Summary!$C$35-L127<0,0,SUM(Summary!$C$35-L127)) -> 292.655301 | M133: =IF(Summary!$C$35-M127<0,0,SUM(Summary!$C$35-M127)) -> 284.5196585 | N133: =IF(Summary!$C$35-N127<0,0,SUM(Summary!$C$35-N127)) -> 258.6140603 | O133: =IF(Summary!$C$35-O127<0,0,SUM(Summary!$C$35-O127)) -> 285.4830899
A134: AgriInsurance Risk Ratio | I134: AgriInsurance Risk Ratio
A135: Operating Costs | B135: =B127/Summary!$C$24 -> 0.3160568806 | C135: =C127/Summary!$C$24 -> 0.287722523 | D135: =D127/Summary!$C$24 -> 0.3024048719 | E135: =E127/Summary!$C$24 -> 0.3219813372 | F135: =F127/Summary!$C$24 -> 0.3843169241 | G135: =G127/Summary!$C$24 -> 0.3196630716 | I135: Operating Costs | J135: =J127/Summary!$C$24 -> 0.5252776326 | K135: =K127/Summary!$C$24 -> 0.4781867283 | L135: =L127/Summary!$C$24 -> 0.5025883787 | M135: =M127/Summary!$C$24 -> 0.5351239126 | N135: =N127/Summary!$C$24 -> 0.6387239021 | O135: =O127/Summary!$C$24 -> 0.5312710204
A136: Total Costs | B136: =B127/Summary!$C$35 -> 0.1889211599 | C136: =C127/Summary!$C$35 -> 0.1719844626 | D136: =D127/Summary!$C$35 -> 0.1807607512 | E136: =E127/Summary!$C$35 -> 0.1924624693 | F136: =F127/Summary!$C$35 -> 0.2297232034 | G136: =G127/Summary!$C$35 -> 0.1910767396 | I136: Total Costs | J136: =J127/Summary!$C$35 -> 0.313981646 | K136: =K127/Summary!$C$35 -> 0.2858333322 | L136: =L127/Summary!$C$35 -> 0.3004192766 | M136: =M127/Summary!$C$35 -> 0.3198672026 | N136: =N127/Summary!$C$35 -> 0.381793493 | O136: =O127/Summary!$C$35 -> 0.3175641587
A138: Basic Hay - Alfalfa Grass | I138: Basic Hay - Alfalfa Grass
A139: <=4 years | I139: <=4 years
A140: ="Low - $"&B9&"/tonne" -> Low - $71/tonne | B140: Forage Region | I140: ="High - $"&B10&"/tonne" -> High - $118/tonne | J140: Forage Region
B141: Forage Region 1 | C141: Forage Region 2 | D141: Forage Region 3 | E141: Forage Region 4 | F141: Forage Region 5 | G141: Forage Region 6 | J141: Forage Region 1 | K141: Forage Region 2 | L141: Forage Region 3 | M141: Forage Region 4 | N141: Forage Region 5 | O141: Forage Region 6
A142: Probable Yield x IPI (tons/acre) | B142: =ROUND((($N$22*2204.62)/2000*$B$14),3) -> 1.534 | C142: =ROUND((($N$23*2204.62)/2000*$B$14),3) -> 1.396 | D142: =ROUND((($N$24*2204.62)/2000*$B$14),3) -> 1.468 | E142: =ROUND((($N$25*2204.62)/2000*$B$14),3) -> 1.562 | F142: =ROUND((($N$26*2204.62)/2000*$B$14),3) -> 1.865 | G142: =ROUND((($N$27*2204.62)/2000*$B$14),3) -> 1.551 | I142: Probable Yield x IPI (tons/acre) | J142: =ROUND((($N$33*2204.62)/2000*$B$14),3) -> 1.534 | K142: =ROUND((($N$34*2204.62)/2000*$B$14),3) -> 1.396 | L142: =ROUND((($N$35*2204.62)/2000*$B$14),3) -> 1.468 | M142: =ROUND((($N$36*2204.62)/2000*$B$14),3) -> 1.562 | N142: =ROUND((($N$37*2204.62)/2000*$B$14),3) -> 1.865 | O142: =ROUND((($N$38*2204.62)/2000*$B$14),3) -> 1.551
A143: Coverage per acre (tons) | B143: =ROUND(B142*0.8,3) -> 1.227 | C143: 1.117 | D143: 1.174 | E143: 1.25 | F143: 1.492 | G143: 1.241 | I143: Coverage per acre (tons) | J143: =ROUND(J142*0.8,3) -> 1.227 | K143: 1.117 | L143: 1.174 | M143: 1.25 | N143: 1.492 | O143: 1.241
A144: Dollar Coverage per acre | B144: =B143*$C$9 -> 79.03130698 | C144: 71.94618574 | D144: 75.61756675 | E144: 80.51274142 | F144: 96.10000816 | G144: 79.93304969 | I144: Dollar Coverage per acre | J144: =J143*$C$10 -> 131.347806 | K144: 119.572534 | L144: 125.6742659 | M144: 133.8099083 | N144: 159.7155065 | O144: 132.8464769
A145: Premium ($/Acre) | B145: =O$22 -> 4.3 | C145: =O$23 -> 3.71 | D145: =O$24 -> 5.51 | E145: =O$25 -> 4.92 | F145: =O$26 -> 6.71 | G145: =O$27 -> 5.68 | I145: Premium ($/Acre) | J145: =O$33 -> 6.99 | K145: =O$34 -> 6.02 | L145: =O$35 -> 8.95 | M145: =O$36 -> 7.97 | N145: =O$37 -> 10.89 | O145: =O$38 -> 9.22
A146: Premium Cost (% of Insured) | B146: =SUM(B145/B144) -> 0.05440881803 | C146: 0.05156631949 | D146: 0.07286666627 | E146: 0.06110834028 | F146: 0.069823095 | G146: 0.07105946817 | I146: Premium Cost (% of Insured) | J146: =SUM(J145/J144) -> 0.05321748581 | K146: 0.05034601005 | L146: 0.07121585265 | M146: 0.05956210644 | N146: 0.06818373642 | O146: 0.06940342124
A147: Costs Not Covered by AgriInsurance | I147: Costs Not Covered by AgriInsurance
A148: Operating Costs | B148: =IF(Summary!$G$24-B144<0,0,SUM(Summary!$G$24-B144)) -> 111.6326954 | C148: =IF(Summary!$G$24-C144<0,0,SUM(Summary!$G$24-C144)) -> 118.7178166 | D148: =IF(Summary!$G$24-D144<0,0,SUM(Summary!$G$24-D144)) -> 115.0464356 | E148: =IF(Summary!$G$24-E144<0,0,SUM(Summary!$G$24-E144)) -> 110.151261 | F148: =IF(Summary!$G$24-F144<0,0,SUM(Summary!$G$24-F144)) -> 94.56399422 | G148: =IF(Summary!$G$24-G144<0,0,SUM(Summary!$G$24-G144)) -> 110.7309527 | I148: Operating Costs | J148: =IF(Summary!$G$24-J144<0,0,SUM(Summary!$G$24-J144)) -> 59.31619641 | K148: =IF(Summary!$G$24-K144<0,0,SUM(Summary!$G$24-K144)) -> 71.09146834 | L148: =IF(Summary!$G$24-L144<0,0,SUM(Summary!$G$24-L144)) -> 64.98973652 | M148: =IF(Summary!$G$24-M144<0,0,SUM(Summary!$G$24-M144)) -> 56.8540941 | N148: =IF(Summary!$G$24-N144<0,0,SUM(Summary!$G$24-N144)) -> 30.94849586 | O148: =IF(Summary!$G$24-O144<0,0,SUM(Summary!$G$24-O144)) -> 57.81752544
A149: Operating & Fixed Costs | B149: =IF(Summary!$G$31-B144<0,0,SUM(Summary!$G$31-B144)) -> 247.5081997 | C149: =IF(Summary!$G$31-C144<0,0,SUM(Summary!$G$31-C144)) -> 254.593321 | D149: =IF(Summary!$G$31-D144<0,0,SUM(Summary!$G$31-D144)) -> 250.92194 | E149: =IF(Summary!$G$31-E144<0,0,SUM(Summary!$G$31-E144)) -> 246.0267653 | F149: =IF(Summary!$G$31-F144<0,0,SUM(Summary!$G$31-F144)) -> 230.4394985 | G149: =IF(Summary!$G$31-G144<0,0,SUM(Summary!$G$31-G144)) -> 246.606457 | I149: Operating & Fixed Costs | J149: =IF(Summary!$G$31-J144<0,0,SUM(Summary!$G$31-J144)) -> 195.1917007 | K149: =IF(Summary!$G$31-K144<0,0,SUM(Summary!$G$31-K144)) -> 206.9669727 | L149: =IF(Summary!$G$31-L144<0,0,SUM(Summary!$G$31-L144)) -> 200.8652408 | M149: =IF(Summary!$G$31-M144<0,0,SUM(Summary!$G$31-M144)) -> 192.7295984 | N149: =IF(Summary!$G$31-N144<0,0,SUM(Summary!$G$31-N144)) -> 166.8240002 | O149: =IF(Summary!$G$31-O144<0,0,SUM(Summary!$G$31-O144)) -> 193.6930298
A150: Total Costs | B150: =IF(Summary!$G$35-B144<0,0,SUM(Summary!$G$35-B144)) -> 279.9081997 | C150: =IF(Summary!$G$35-C144<0,0,SUM(Summary!$G$35-C144)) -> 286.993321 | D150: =IF(Summary!$G$35-D144<0,0,SUM(Summary!$G$35-D144)) -> 283.32194 | E150: =IF(Summary!$G$35-E144<0,0,SUM(Summary!$G$35-E144)) -> 278.4267653 | F150: =IF(Summary!$G$35-F144<0,0,SUM(Summary!$G$35-F144)) -> 262.8394985 | G150: =IF(Summary!$G$35-G144<0,0,SUM(Summary!$G$35-G144)) -> 279.006457 | I150: Total Costs | J150: =IF(Summary!$G$35-J144<0,0,SUM(Summary!$G$35-J144)) -> 227.5917007 | K150: =IF(Summary!$G$35-K144<0,0,SUM(Summary!$G$35-K144)) -> 239.3669727 | L150: =IF(Summary!$G$35-L144<0,0,SUM(Summary!$G$35-L144)) -> 233.2652408 | M150: =IF(Summary!$G$35-M144<0,0,SUM(Summary!$G$35-M144)) -> 225.1295984 | N150: =IF(Summary!$G$35-N144<0,0,SUM(Summary!$G$35-N144)) -> 199.2240002 | O150: =IF(Summary!$G$35-O144<0,0,SUM(Summary!$G$35-O144)) -> 226.0930298
A151: AgriInsurance Risk Ratio | I151: AgriInsurance Risk Ratio
A152: Operating Costs | B152: =B144/Summary!$G$24 -> 0.4145056539 | C152: =C144/Summary!$G$24 -> 0.3773454078 | D152: =D144/Summary!$G$24 -> 0.3966011717 | E152: =E144/Summary!$G$24 -> 0.4222755235 | F152: =F144/Summary!$G$24 -> 0.5040280649 | G152: =G144/Summary!$G$24 -> 0.4192351398 | I152: Operating Costs | J152: =J144/Summary!$G$24 -> 0.6888967206 | K152: =K144/Summary!$G$24 -> 0.6271374384 | L152: =L144/Summary!$G$24 -> 0.6591399755 | M152: =M144/Summary!$G$24 -> 0.701810025 | N152: =N144/Summary!$G$24 -> 0.8376804459 | O152: =O144/Summary!$G$24 -> 0.6967569928
A153: Total Costs | B153: =B144/Summary!$G$35 -> 0.2201800178 | C153: =C144/Summary!$G$35 -> 0.2004409779 | D153: =D144/Summary!$G$35 -> 0.2106693895 | E153: =E144/Summary!$G$35 -> 0.2243072716 | F153: =F144/Summary!$G$35 -> 0.2677331594 | G153: =G144/Summary!$G$35 -> 0.2226922593 | I153: Total Costs | J153: =J144/Summary!$G$35 -> 0.3659329874 | K153: =K144/Summary!$G$35 -> 0.3331272591 | L153: =L144/Summary!$G$35 -> 0.350126591 | M153: =M144/Summary!$G$35 -> 0.3727923669 | N153: =N144/Summary!$G$35 -> 0.4449649692 | O153: =O144/Summary!$G$35 -> 0.3701082619
A155: Basic Hay - Alfalfa Grass | I155: Basic Hay - Alfalfa Grass
A156: >4 years | I156: >4 years
A157: ="Low - $"&B9&"/tonne" -> Low - $71/tonne | B157: Forage Region | I157: ="High - $"&B10&"/tonne" -> High - $118/tonne | J157: Forage Region
B158: Forage Region 1 | C158: Forage Region 2 | D158: Forage Region 3 | E158: Forage Region 4 | F158: Forage Region 5 | G158: Forage Region 6 | J158: Forage Region 1 | K158: Forage Region 2 | L158: Forage Region 3 | M158: Forage Region 4 | N158: Forage Region 5 | O158: Forage Region 6
A159: Probable Yield x IPI (tons/acre) | B159: =ROUND((($P$22*2204.62)/2000*$B$14),3) -> 1.534 | C159: =ROUND((($P$23*2204.62)/2000*$B$14),3) -> 1.396 | D159: =ROUND((($P$24*2204.62)/2000*$B$14),3) -> 1.468 | E159: =ROUND((($P$25*2204.62)/2000*$B$14),3) -> 1.562 | F159: =ROUND((($P$26*2204.62)/2000*$B$14),3) -> 1.865 | G159: =ROUND((($P$27*2204.62)/2000*$B$14),3) -> 1.551 | I159: Probable Yield x IPI (tons/acre) | J159: =ROUND((($P$33*2204.62)/2000*$B$14),3) -> 1.534 | K159: =ROUND((($P$34*2204.62)/2000*$B$14),3) -> 1.396 | L159: =ROUND((($P$35*2204.62)/2000*$B$14),3) -> 1.468 | M159: =ROUND((($P$36*2204.62)/2000*$B$14),3) -> 1.562 | N159: =ROUND((($P$37*2204.62)/2000*$B$14),3) -> 1.865 | O159: =ROUND((($P$38*2204.62)/2000*$B$14),3) -> 1.551
A160: Coverage per acre (tons) | B160: =ROUND(B159*0.8,3) -> 1.227 | C160: 1.117 | D160: 1.174 | E160: 1.25 | F160: 1.492 | G160: 1.241 | I160: Coverage per acre (tons) | J160: =ROUND(J159*0.8,3) -> 1.227 | K160: 1.117 | L160: 1.174 | M160: 1.25 | N160: 1.492 | O160: 1.241
A161: Dollar Coverage per acre | B161: =B160*$C$9 -> 79.03130698 | C161: 71.94618574 | D161: 75.61756675 | E161: 80.51274142 | F161: 96.10000816 | G161: 79.93304969 | I161: Dollar Coverage per acre | J161: =J160*$C$10 -> 131.347806 | K161: 119.572534 | L161: 125.6742659 | M161: 133.8099083 | N161: 159.7155065 | O161: 132.8464769
A162: Premium ($/Acre) | B162: =Q$22 -> 4.3 | C162: =Q$23 -> 3.71 | D162: =Q$24 -> 5.51 | E162: =Q$25 -> 4.92 | F162: =Q$26 -> 6.71 | G162: =Q$27 -> 5.68 | I162: Premium ($/Acre) | J162: =Q$33 -> 6.99 | K162: =Q$34 -> 6.02 | L162: =Q$35 -> 8.95 | M162: =Q$36 -> 7.97 | N162: =Q$37 -> 10.89 | O162: =Q$38 -> 9.22
A163: Premium Cost (% of Insured) | B163: =SUM(B162/B161) -> 0.05440881803 | C163: 0.05156631949 | D163: 0.07286666627 | E163: 0.06110834028 | F163: 0.069823095 | G163: 0.07105946817 | I163: Premium Cost (% of Insured) | J163: =SUM(J162/J161) -> 0.05321748581 | K163: 0.05034601005 | L163: 0.07121585265 | M163: 0.05956210644 | N163: 0.06818373642 | O163: 0.06940342124
A164: Costs Not Covered by AgriInsurance | I164: Costs Not Covered by AgriInsurance
A165: Operating Costs | B165: =IF(Summary!$G$24-B161<0,0,SUM(Summary!$G$24-B161)) -> 111.6326954 | C165: =IF(Summary!$G$24-C161<0,0,SUM(Summary!$G$24-C161)) -> 118.7178166 | D165: =IF(Summary!$G$24-D161<0,0,SUM(Summary!$G$24-D161)) -> 115.0464356 | E165: =IF(Summary!$G$24-E161<0,0,SUM(Summary!$G$24-E161)) -> 110.151261 | F165: =IF(Summary!$G$24-F161<0,0,SUM(Summary!$G$24-F161)) -> 94.56399422 | G165: =IF(Summary!$G$24-G161<0,0,SUM(Summary!$G$24-G161)) -> 110.7309527 | I165: Operating Costs | J165: =IF(Summary!$G$24-J161<0,0,SUM(Summary!$G$24-J161)) -> 59.31619641 | K165: =IF(Summary!$G$24-K161<0,0,SUM(Summary!$G$24-K161)) -> 71.09146834 | L165: =IF(Summary!$G$24-L161<0,0,SUM(Summary!$G$24-L161)) -> 64.98973652 | M165: =IF(Summary!$G$24-M161<0,0,SUM(Summary!$G$24-M161)) -> 56.8540941 | N165: =IF(Summary!$G$24-N161<0,0,SUM(Summary!$G$24-N161)) -> 30.94849586 | O165: =IF(Summary!$G$24-O161<0,0,SUM(Summary!$G$24-O161)) -> 57.81752544
A166: Operating & Fixed Costs | B166: =IF(Summary!$G$31-B161<0,0,SUM(Summary!$G$31-B161)) -> 247.5081997 | C166: =IF(Summary!$G$31-C161<0,0,SUM(Summary!$G$31-C161)) -> 254.593321 | D166: =IF(Summary!$G$31-D161<0,0,SUM(Summary!$G$31-D161)) -> 250.92194 | E166: =IF(Summary!$G$31-E161<0,0,SUM(Summary!$G$31-E161)) -> 246.0267653 | F166: =IF(Summary!$G$31-F161<0,0,SUM(Summary!$G$31-F161)) -> 230.4394985 | G166: =IF(Summary!$G$31-G161<0,0,SUM(Summary!$G$31-G161)) -> 246.606457 | I166: Operating & Fixed Costs | J166: =IF(Summary!$G$31-J161<0,0,SUM(Summary!$G$31-J161)) -> 195.1917007 | K166: =IF(Summary!$G$31-K161<0,0,SUM(Summary!$G$31-K161)) -> 206.9669727 | L166: =IF(Summary!$G$31-L161<0,0,SUM(Summary!$G$31-L161)) -> 200.8652408 | M166: =IF(Summary!$G$31-M161<0,0,SUM(Summary!$G$31-M161)) -> 192.7295984 | N166: =IF(Summary!$G$31-N161<0,0,SUM(Summary!$G$31-N161)) -> 166.8240002 | O166: =IF(Summary!$G$31-O161<0,0,SUM(Summary!$G$31-O161)) -> 193.6930298
A167: Total Costs | B167: =IF(Summary!$G$35-B161<0,0,SUM(Summary!$G$35-B161)) -> 279.9081997 | C167: =IF(Summary!$G$35-C161<0,0,SUM(Summary!$G$35-C161)) -> 286.993321 | D167: =IF(Summary!$G$35-D161<0,0,SUM(Summary!$G$35-D161)) -> 283.32194 | E167: =IF(Summary!$G$35-E161<0,0,SUM(Summary!$G$35-E161)) -> 278.4267653 | F167: =IF(Summary!$G$35-F161<0,0,SUM(Summary!$G$35-F161)) -> 262.8394985 | G167: =IF(Summary!$G$35-G161<0,0,SUM(Summary!$G$35-G161)) -> 279.006457 | I167: Total Costs | J167: =IF(Summary!$G$35-J161<0,0,SUM(Summary!$G$35-J161)) -> 227.5917007 | K167: =IF(Summary!$G$35-K161<0,0,SUM(Summary!$G$35-K161)) -> 239.3669727 | L167: =IF(Summary!$G$35-L161<0,0,SUM(Summary!$G$35-L161)) -> 233.2652408 | M167: =IF(Summary!$G$35-M161<0,0,SUM(Summary!$G$35-M161)) -> 225.1295984 | N167: =IF(Summary!$G$35-N161<0,0,SUM(Summary!$G$35-N161)) -> 199.2240002 | O167: =IF(Summary!$G$35-O161<0,0,SUM(Summary!$G$35-O161)) -> 226.0930298
A168: AgriInsurance Risk Ratio | I168: AgriInsurance Risk Ratio
A169: Operating Costs | B169: =B161/Summary!$G$24 -> 0.4145056539 | C169: =C161/Summary!$G$24 -> 0.3773454078 | D169: =D161/Summary!$G$24 -> 0.3966011717 | E169: =E161/Summary!$G$24 -> 0.4222755235 | F169: =F161/Summary!$G$24 -> 0.5040280649 | G169: =G161/Summary!$G$24 -> 0.4192351398 | I169: Operating Costs | J169: =J161/Summary!$G$24 -> 0.6888967206 | K169: =K161/Summary!$G$24 -> 0.6271374384 | L169: =L161/Summary!$G$24 -> 0.6591399755 | M169: =M161/Summary!$G$24 -> 0.701810025 | N169: =N161/Summary!$G$24 -> 0.8376804459 | O169: =O161/Summary!$G$24 -> 0.6967569928
A170: Total Costs | B170: =B161/Summary!$G$35 -> 0.2201800178 | C170: =C161/Summary!$G$35 -> 0.2004409779 | D170: =D161/Summary!$G$35 -> 0.2106693895 | E170: =E161/Summary!$G$35 -> 0.2243072716 | F170: =F161/Summary!$G$35 -> 0.2677331594 | G170: =G161/Summary!$G$35 -> 0.2226922593 | I170: Total Costs | J170: =J161/Summary!$G$35 -> 0.3659329874 | K170: =K161/Summary!$G$35 -> 0.3331272591 | L170: =L161/Summary!$G$35 -> 0.350126591 | M170: =M161/Summary!$G$35 -> 0.3727923669 | N170: =N161/Summary!$G$35 -> 0.4449649692 | O170: =O161/Summary!$G$35 -> 0.3701082619
A172: Greenfeed
A173: 0.8 | B173: Risk Area
B174: Risk Area 1 | C174: Risk Area 2 | D174: Risk Area 3 | E174: Risk Area 4 | F174: Risk Area 5 | G174: Risk Area 6 | H174: Risk Area 7 | I174: Risk Area 8 | J174: Risk Area 9 | K174: Risk Area 10 | L174: Risk Area 11 | M174: Risk Area 12 | N174: Risk Area 14 | O174: Risk Area 15 | P174: Risk Area 16
A175: Probable Yield x IPI (tons/acre) | B175: =ROUND((S$22*$B$15),3) -> 1.996 | C175: =ROUND((S$23*$B$15),3) -> 1.996 | D175: =ROUND((S$24*$B$15),3) -> 1.996 | E175: =ROUND((S$25*$B$15),3) -> 1.996 | F175: =ROUND((S$26*$B$15),3) -> 1.996 | G175: =ROUND((S$27*$B$15),3) -> 1.996 | H175: =ROUND((S$28*$B$15),3) -> 1.996 | I175: =ROUND((S$29*$B$15),3) -> 1.996 | J175: =ROUND((S$30*$B$15),3) -> 1.996 | K175: =ROUND((S$31*$B$15),3) -> 1.996 | L175: =ROUND((#REF!*$B$15),3) ->  | M175: =ROUND((S$32*$B$15),3) -> 1.996 | N175: =ROUND((S$34*$B$15),3) -> 1.996 | O175: =ROUND((S$35*$B$15),3) -> 1.996 | P175: =ROUND((S$36*$B$15),3) -> 1.996
A176: Coverage per acre (tons) | B176: =ROUND(B175*0.8,3) -> 1.597 | C176: =ROUND(C175*0.8,3) -> 1.597 | D176: 1.597 | E176: 1.597 | F176: 1.597 | G176: 1.597 | H176: 1.597 | I176: 1.597 | J176: =ROUND(J175*0.8,3) -> 1.597 | K176: 1.597 | M176: 1.597 | N176: 1.597 | O176: 1.597 | P176: 1.597
A177: Dollar Coverage per acre | B177: =B176*$C$4 -> 221.983 | C177: 221.983 | D177: 221.983 | E177: 221.983 | F177: 221.983 | G177: 221.983 | H177: 221.983 | I177: 221.983 | J177: =J176*$C$4 -> 221.983 | K177: 221.983 | M177: 221.983 | N177: 221.983 | O177: 221.983 | P177: 221.983
A178: Premium ($/Acre) | B178: =T$22 -> 18.5 | C178: =T$23 -> 20.7 | D178: =T$24 -> 20.22 | E178: =T$25 -> 21.92 | F178: =T$26 -> 20.21 | G178: =T$27 -> 20.13 | H178: =T$28 -> 19.8 | I178: =T$29 -> 22.98 | J178: =T$30 -> 19.48 | K178: =T$31 -> 19.23 | L178: =T$32 -> 19.48 | M178: =T$33 -> 18.17 | N178: =T$34 -> 17.6 | O178: =T$35 -> 16.63 | P178: =T$36 -> 15.72
A179: Premium Cost (% of Insured) | B179: =SUM(B178/B177) -> 0.0833397152 | C179: =SUM(C178/C177) -> 0.09325038404 | D179: 0.09108805629 | E179: 0.09874630039 | F179: 0.0910430078 | G179: 0.09068261984 | H179: 0.08919601952 | I179: 0.1035214408 | J179: =SUM(J178/J177) -> 0.08775446768 | K179: 0.08662825532 | M179: 0.08185311488 | N179: 0.07928535068 | O179: 0.07491564669 | P179: 0.07081623368
A180: Costs Not Covered by AgriInsurance
A181: Operating Costs | B181: =IF(Summary!$K$24-B177<0,0,SUM(Summary!$K$24-B177)) -> 0 | C181: =IF(Summary!$K$24-C177<0,0,SUM(Summary!$K$24-C177)) -> 0 | D181: =IF(Summary!$K$24-D177<0,0,SUM(Summary!$K$24-D177)) -> 0 | E181: =IF(Summary!$K$24-E177<0,0,SUM(Summary!$K$24-E177)) -> 0 | F181: =IF(Summary!$K$24-F177<0,0,SUM(Summary!$K$24-F177)) -> 0 | G181: =IF(Summary!$K$24-G177<0,0,SUM(Summary!$K$24-G177)) -> 0 | H181: =IF(Summary!$K$24-H177<0,0,SUM(Summary!$K$24-H177)) -> 0 | I181: =IF(Summary!$K$24-I177<0,0,SUM(Summary!$K$24-I177)) -> 0 | J181: =IF(Summary!$K$24-J177<0,0,SUM(Summary!$K$24-J177)) -> 0 | K181: =IF(Summary!$K$24-K177<0,0,SUM(Summary!$K$24-K177)) -> 0 | L181: =IF(Summary!$K$24-L177<0,0,SUM(Summary!$K$24-L177)) ->  | M181: =IF(Summary!$K$24-M177<0,0,SUM(Summary!$K$24-M177)) -> 0 | N181: =IF(Summary!$K$24-N177<0,0,SUM(Summary!$K$24-N177)) -> 0 | O181: =IF(Summary!$K$24-O177<0,0,SUM(Summary!$K$24-O177)) -> 0 | P181: =IF(Summary!$K$24-P177<0,0,SUM(Summary!$K$24-P177)) -> 0
A182: Operating & Fixed Costs | B182: =IF(Summary!$K$31-B177<0,0,SUM(Summary!$K$31-B177)) -> 134.8633548 | C182: =IF(Summary!$K$31-C177<0,0,SUM(Summary!$K$31-C177)) -> 134.8633548 | D182: =IF(Summary!$K$31-D177<0,0,SUM(Summary!$K$31-D177)) -> 134.8633548 | E182: =IF(Summary!$K$31-E177<0,0,SUM(Summary!$K$31-E177)) -> 134.8633548 | F182: =IF(Summary!$K$31-F177<0,0,SUM(Summary!$K$31-F177)) -> 134.8633548 | G182: =IF(Summary!$K$31-G177<0,0,SUM(Summary!$K$31-G177)) -> 134.8633548 | H182: =IF(Summary!$K$31-H177<0,0,SUM(Summary!$K$31-H177)) -> 134.8633548 | I182: =IF(Summary!$K$31-I177<0,0,SUM(Summary!$K$31-I177)) -> 134.8633548 | J182: =IF(Summary!$K$31-J177<0,0,SUM(Summary!$K$31-J177)) -> 134.8633548 | K182: =IF(Summary!$K$31-K177<0,0,SUM(Summary!$K$31-K177)) -> 134.8633548 | L182: =IF(Summary!$K$31-L177<0,0,SUM(Summary!$K$31-L177)) ->  | M182: =IF(Summary!$K$31-M177<0,0,SUM(Summary!$K$31-M177)) -> 134.8633548 | N182: =IF(Summary!$K$31-N177<0,0,SUM(Summary!$K$31-N177)) -> 134.8633548 | O182: =IF(Summary!$K$31-O177<0,0,SUM(Summary!$K$31-O177)) -> 134.8633548 | P182: =IF(Summary!$K$31-P177<0,0,SUM(Summary!$K$31-P177)) -> 134.8633548
A183: Total Costs | B183: =IF(Summary!$K$35-B177<0,0,SUM(Summary!$K$35-B177)) -> 175.3633548 | C183: =IF(Summary!$K$35-C177<0,0,SUM(Summary!$K$35-C177)) -> 175.3633548 | D183: =IF(Summary!$K$35-D177<0,0,SUM(Summary!$K$35-D177)) -> 175.3633548 | E183: =IF(Summary!$K$35-E177<0,0,SUM(Summary!$K$35-E177)) -> 175.3633548 | F183: =IF(Summary!$K$35-F177<0,0,SUM(Summary!$K$35-F177)) -> 175.3633548 | G183: =IF(Summary!$K$35-G177<0,0,SUM(Summary!$K$35-G177)) -> 175.3633548 | H183: =IF(Summary!$K$35-H177<0,0,SUM(Summary!$K$35-H177)) -> 175.3633548 | I183: =IF(Summary!$K$35-I177<0,0,SUM(Summary!$K$35-I177)) -> 175.3633548 | J183: =IF(Summary!$K$35-J177<0,0,SUM(Summary!$K$35-J177)) -> 175.3633548 | K183: =IF(Summary!$K$35-K177<0,0,SUM(Summary!$K$35-K177)) -> 175.3633548 | L183: =IF(Summary!$K$35-L177<0,0,SUM(Summary!$K$35-L177)) ->  | M183: =IF(Summary!$K$35-M177<0,0,SUM(Summary!$K$35-M177)) -> 175.3633548 | N183: =IF(Summary!$K$35-N177<0,0,SUM(Summary!$K$35-N177)) -> 175.3633548 | O183: =IF(Summary!$K$35-O177<0,0,SUM(Summary!$K$35-O177)) -> 175.3633548 | P183: =IF(Summary!$K$35-P177<0,0,SUM(Summary!$K$35-P177)) -> 175.3633548
A184: AgriInsurance Risk Ratio
A185: Operating Costs | B185: =B177/Summary!$K$24 -> 1.004580466 | C185: =C177/Summary!$K$24 -> 1.004580466 | D185: =D177/Summary!$K$24 -> 1.004580466 | E185: =E177/Summary!$K$24 -> 1.004580466 | F185: =F177/Summary!$K$24 -> 1.004580466 | G185: =G177/Summary!$K$24 -> 1.004580466 | H185: =H177/Summary!$K$24 -> 1.004580466 | I185: =I177/Summary!$K$24 -> 1.004580466 | J185: =J177/Summary!$K$24 -> 1.004580466 | K185: =K177/Summary!$K$24 -> 1.004580466 | L185: =L177/Summary!$K$24 ->  | M185: =M177/Summary!$K$24 -> 1.004580466 | N185: =N177/Summary!$K$24 -> 1.004580466 | O185: =O177/Summary!$K$24 -> 1.004580466 | P185: =P177/Summary!$K$24 -> 1.004580466
A186: Total Costs | B186: =B177/Summary!$K$35 -> 0.5586637384 | C186: =C177/Summary!$K$35 -> 0.5586637384 | D186: =D177/Summary!$K$35 -> 0.5586637384 | E186: =E177/Summary!$K$35 -> 0.5586637384 | F186: =F177/Summary!$K$35 -> 0.5586637384 | G186: =G177/Summary!$K$35 -> 0.5586637384 | H186: =H177/Summary!$K$35 -> 0.5586637384 | I186: =I177/Summary!$K$35 -> 0.5586637384 | J186: =J177/Summary!$K$35 -> 0.5586637384 | K186: =K177/Summary!$K$35 -> 0.5586637384 | L186: =L177/Summary!$K$35 ->  | M186: =M177/Summary!$K$35 -> 0.5586637384 | N186: =N177/Summary!$K$35 -> 0.5586637384 | O186: =O177/Summary!$K$35 -> 0.5586637384 | P186: =P177/Summary!$K$35 -> 0.5586637384

Sheet Chart data (HIDE) (hidden)
A1: ="Alfalfa Hay ($"&ROUND(B22,0)&" per acre)" -> Alfalfa Hay ($418 per acre)
A2: ="Alfalfa-Grass Hay ($"&ROUND(C22,0)&" per acre)" -> Alfalfa-Grass Hay ($359 per acre)
A3: ="Greenfeed Hay ($"&ROUND(D22,0)&" per acre)" -> Greenfeed Hay ($397 per acre)
A4: ="Alfalfa Baled Silage ($"&ROUND(E22,0)&" per acre)" -> Alfalfa Baled Silage ($522 per acre)
A5: ="Alfalfa-Grass Baled Silage ($"&ROUND(F22,0)&" per acre)" -> Alfalfa-Grass Baled Silage ($434 per acre)
A6: ="Greenfeed Baled Silage ($"&ROUND(G22,0)&" per acre)" -> Greenfeed Baled Silage ($462 per acre)
B7: =Summary!C3 -> Alfalfa Hay | C7: =Summary!G3 -> Alfalfa-Grass Hay | D7: =Summary!K3 -> Greenfeed Hay | E7: =Summary!S3 -> Alfalfa Baled Silage | F7: =Summary!W3 -> Alfalfa-Grass Baled Silage | G7: =Summary!AA3 -> Greenfeed Baled Silage
A8: =Summary!B11 -> Establishment (amortized) | B8: =Summary!C11 -> 39.39791336 | C8: =Summary!G11 -> 36.31816735 | D8: =Summary!K11 -> - | E8: =Summary!S11 -> 70.29211629 | F8: =Summary!W11 -> 46.83366027 | G8: =Summary!AA11 -> -
A9: =Summary!B12 -> Fertilizer | B9: =Summary!C12 -> 106.2536491 | C9: =Summary!G12 -> 83.77733504 | D9: =Summary!K12 -> 88.05035048 | E9: =Summary!S12 -> 106.2536491 | F9: =Summary!W12 -> 83.77733504 | G9: =Summary!AA12 -> 88.05035048
A10: =Summary!B14 -> Fuel | B10: =Summary!C14 -> 14.14 | C10: =Summary!G14 -> 9.856 | D10: =Summary!K14 -> 16.688 | E10: =Summary!S14 -> 15.106 | F10: =Summary!W14 -> 11.858 | G10: =Summary!AA14 -> 18.69
A11: =Summary!B15 -> Machinery Operating | B11: =Summary!C15 -> 13.2825 | C11: =Summary!G15 -> 13.2825 | D11: =Summary!K15 -> 13.2825 | E11: =Summary!S15 -> 17.94916667 | F11: =Summary!W15 -> 17.94916667 | G11: =Summary!AA15 -> 17.94916667
A12: =Summary!B17 -> Rental and Custom | B12: =Summary!C17 -> 14 | C12: =Summary!G17 -> 11.16 | D12: =Summary!K17 -> 11.32 | E12: =Summary!S17 -> 20.67 | F12: =Summary!W17 -> 16.35 | G12: =Summary!AA17 -> 16.56
A13: =Summary!B18 -> Crop Insurance | B13: =Summary!C18 -> 32.17 | C13: =Summary!G18 -> 9.22 | D13: =Summary!K18 -> 17.15 | E13: =Summary!S18 -> 32.17 | F13: =Summary!W18 -> 9.22 | G13: =Summary!AA18 -> 17.15
A14: =Summary!B19 -> Twine/Net Wrap | B14: =Summary!C19 -> 5.64 | C14: =Summary!G19 -> 4.44 | D14: =Summary!K19 -> 4.56 | E14: =Summary!S19 -> 8.28 | F14: =Summary!W19 -> 6.6 | G14: =Summary!AA19 -> 6.6
A15: =Summary!B20 -> Plastic Silage Wrap | B15: =Summary!C20 -> - | C15: =Summary!G20 -> - | D15: =Summary!K20 -> - | E15: =Summary!S20 -> 29.15492958 | F15: =Summary!W20 -> 23.23943662 | G15: =Summary!AA20 -> 23.23943662
A16: =Summary!B21 -> Other Costs | B16: =Summary!C21 -> 2 | C16: =Summary!G21 -> 2 | D16: =Summary!K21 -> 2 | E16: =Summary!S21 -> 2 | F16: =Summary!W21 -> 2 | G16: =Summary!AA21 -> 2
A17: =Summary!B22 -> Land Taxes | B17: =Summary!C22 -> 10 | C17: =Summary!G22 -> 10 | D17: =Summary!K22 -> 10 | E17: =Summary!S22 -> 10 | F17: =Summary!W22 -> 10 | G17: =Summary!AA22 -> 10
A18: =Summary!B23 -> Interest on Operating | B18: =Summary!C23 -> 10.77 | C18: =Summary!G23 -> 8.21 | D18: =Summary!K23 -> 9.52 | E18: =Summary!S23 -> 14.14 | F18: =Summary!W23 -> 10.36 | G18: =Summary!AA23 -> 11.19
A19: =Summary!B27 -> Land Cost | B19: =Summary!C27 -> 80.40545057 | C19: =Summary!G27 -> 80.40545057 | D19: =Summary!K27 -> 80.40545057 | E19: =Summary!S27 -> 80.40545057 | F19: =Summary!W27 -> 80.40545057 | G19: =Summary!AA27 -> 80.40545057
A20: =Summary!B28 -> Machinery Costs | B20: =Summary!C28 -> 55.47005374 | C20: =Summary!G28 -> 55.47005374 | D20: =Summary!K28 -> 55.47005374 | E20: =Summary!S28 -> 75.40331813 | F20: =Summary!W28 -> 75.40331813 | G20: =Summary!AA28 -> 75.40331813
A21: Labour | B21: =Summary!C33 -> 32.4 | C21: =Summary!G33 -> 32.4 | D21: =Summary!K33 -> 40.5 | E21: =Summary!S33 -> 37.8 | F21: =Summary!W33 -> 37.8 | G21: =Summary!AA33 -> 45.9
A22: Total | B22: =Summary!C35 -> 418.3295668 | C22: =Summary!G35 -> 358.9395067 | D22: =Summary!K35 -> 397.3463548 | E22: =Summary!S35 -> 522.0246304 | F22: =Summary!W35 -> 434.1963673 | G22: =Summary!AA35 -> 461.5377225
A26: Without Storage Loss | E26: With Storage Loss
B27: TDN Cost ($/lb DM) | C27: CP Cost ($/lb DM) | F27: TDN Cost ($/lb) | G27: CP Cost ($/lb) | L27: DM Cost ($/lb) | P27: As Fed Cost ($/ton) | Q27: DM Cost ($/ton)
A28: =Summary!C3 -> Alfalfa Hay | B28: =Summary!C69 -> 0.1104238113 | C28: =Summary!E69 -> 0.3731354064 | E28: =A28 -> Alfalfa Hay | F28: =Summary!C70 -> 0.1380297642 | G28: =Summary!E70 -> 0.466419258 | K28: =A28 -> Alfalfa Hay | L28: =Summary!E36 -> 0.06791064396 | O28: =A28 -> Alfalfa Hay | P28: =Summary!D35 -> 119.5227334 | Q28: =Summary!E35 -> 135.8212879
A29: =Summary!G3 -> Alfalfa-Grass Hay | B29: =Summary!G69 -> 0.1225886293 | C29: =Summary!I69 -> 0.52537984 | E29: Alfalfa-Grass Hay | F29: =Summary!G70 -> 0.1532357867 | G29: =Summary!I70 -> 0.6567248 | K29: =A29 -> Alfalfa-Grass Hay | L29: =Summary!I36 -> 0.0735531776 | O29: =A29 -> Alfalfa-Grass Hay | P29: =Summary!H35 -> 128.6521529 | Q29: =Summary!I35 -> 147.1063552
A30: =Summary!K3 -> Greenfeed Hay | B30: =Summary!K69 -> 0.1399974473 | C30: =Summary!M69 -> 0.8258435275 | E30: Greenfeed Hay | F30: =Summary!K70 -> 0.1749968091 | G30: =Summary!M70 -> 1.032304409 | K30: Greenfeed Hay | L30: =Summary!M36 -> 0.08175850922 | O30: Greenfeed Hay | P30: =Summary!L35 -> 140.4050724 | Q30: =Summary!M35 -> 163.5170184
A31: =Summary!S3 -> Alfalfa Baled Silage | B31: =Summary!S69 -> 0.1210491896 | C31: =Summary!U69 -> 0.4156908985 | E31: =A31 -> Alfalfa Baled Silage | F31: =Summary!S70 -> 0.1274201996 | G31: =Summary!U70 -> 0.4375693669 | K31: =A31 -> Alfalfa Baled Silage | L31: =Summary!Y36 -> 0.07952314419 | O31: =A31 -> Alfalfa Baled Silage | P31: =Summary!T35 -> 75.76554867 | Q31: =Summary!U35 -> 151.3114871
A32: =Summary!W3 -> Alfalfa-Grass Baled Silage | B32: =Summary!W69 -> 0.1316608348 | C32: =Summary!Y69 -> 0.5446790698 | E32: Alfalfa-Grass Baled Silage | F32: =Summary!W70 -> 0.1385903524 | G32: =Summary!Y70 -> 0.5733463893 | K32: Alfalfa-Grass Baled Silage | L32: =Summary!U36 -> 0.07565574353 | O32: Alfalfa-Grass Baled Silage | P32: =Summary!X35 -> 79.66905822 | Q32: =Summary!Y35 -> 159.0462884
A33: =Summary!AA3 -> Greenfeed Baled Silage | B33: =Summary!AA69 -> 0.1383615857 | C33: =Summary!AC69 -> 0.7887915683 | E33: Greenfeed Baled Silage | F33: =Summary!AA70 -> 0.1408200526 | G33: =Summary!AC70 -> 0.8119017797 | K33: Greenfeed Baled Silage | L33: =Summary!AC36 -> 0.08361190624 | O33: Greenfeed Baled Silage | P33: =Summary!AB35 -> 83.61190624 | Q33: =Summary!AC35 -> 167.2238125
A34: =Production!D44 -> Barley Silage | B34: =Production!D54 -> 0.1199084972 | C34: =Production!D55 -> 0.6784012273 | E34: Barley Silage | F34: =Production!D56 -> 0.1262194707 | G34: =Production!D57 -> 0.7141065551 | K34: Barley Silage | L34: =Production!D49/2000 -> 0.07530253623 | O34: Barley Silage | P34: =Production!D50 -> 55.42266667 | Q34: =Production!D49 -> 150.6050725
A35: =Production!E44 -> Corn Silage (15 ton) | B35: =Production!E54 -> 0.08914492113 | C35: =Production!E55 -> 0.6619266557 | E35: Corn Silage (15 ton) | F35: =Production!E56 -> 0.09383675908 | G35: =Production!E57 -> 0.6967649008 | K35: Corn Silage (15 ton) | L35: =Production!E49/2000 -> 0.05758761905 | O35: Corn Silage (15 ton) | P35: =Production!E50 -> 40.31133333 | Q35: =Production!E49 -> 115.1752381
A36: =Production!F44 -> Corn Silage (20 ton) | B36: =Production!F54 -> 0.07344316674 | C36: =Production!F55 -> 0.5453366174 | E36: Corn Silage (20 ton) | F36: =Production!F56 -> 0.07730859657 | G36: =Production!F57 -> 0.5740385446 | K36: Corn Silage (20 ton) | L36: =Production!F49/2000 -> 0.04744428571 | O36: Corn Silage (20 ton) | P36: =Production!F50 -> 33.211 | Q36: =Production!F49 -> 94.88857143
A37: =Production!I44 -> 0 | B37: =Production!I54 -> 0 | C37: =Production!I55 -> 0 | E37: 0 | F37: =B37 -> 0 | G37: 0 | K37: 0 | L37: =Production!I49 -> 0
A38: =Production!K44 -> 0 | B38: =Production!K54 -> 0 | C38: =Production!K55 -> 0 | E38: 0 | F38: 0 | G38: 0 | K38: 0 | L38: =Production!K49 -> 0
A39: =Production!J44 -> 0 | B39: =Production!J54 -> 0 | C39: =Production!J55 -> 0 | E39: 0 | F39: 0 | G39: 0 | K39: =A39 -> 0 | L39: =Production!J49 -> 0
A44: ="Alfalfa Silage ("&TEXT(Production!H23*'Fixed Cost Input'!D5,"#,###")&" bales @ $"&ROUND(B51,2)&" per "&TEXT(Production!H66,"#,###")&" Bale)" -> Alfalfa Silage (2,070 bales @ $8.26 per Bale)
A45: ="Alfalfa-Grass Silage ("&TEXT(Production!I23*'Fixed Cost Input'!D5,"#,###")&" bales @ $"&ROUND(C51,2)&" per "&TEXT(Production!H66,"#,###")&" Bale)" -> Alfalfa-Grass Silage (1,650 bales @ $9.2 per Bale)
B46: =Summary!S3 -> Alfalfa Baled Silage | C46: =Summary!W3 -> Alfalfa-Grass Baled Silage
A47: ='Op. Cost Input'!I6 -> Plastic Silage Wrap Cost | B47: ='Risk Analysis'!E11 -> 4.225352113 | C47: ='Risk Analysis'!I11 -> 4.225352113
A48: ='Op. Cost Input'!I10 -> Silage Wrapper - Fuel Usage | B48: ='Op. Cost Input'!L10*'Op. Cost Input'!E8 -> 0.364 | C48: ='Op. Cost Input'!L10*'Op. Cost Input'!E8 -> 0.364
A49: =Summary!B28 -> Machinery Costs | B49: ='Fixed Cost Input'!J28/Production!H23 -> 2.888878896 | C49: ='Fixed Cost Input'!J28/Production!I23 -> 3.624229887
A50: Labour | B50: =(('Op. Cost Input'!K33-'Op. Cost Input'!E33)/Production!H23)*'Op. Cost Input'!E10 -> 0.7826086957 | C50: =(('Op. Cost Input'!L33-'Op. Cost Input'!F33)/Production!I23)*'Op. Cost Input'!E10 -> 0.9818181818
A51: Total | B51: =SUM(B47:B50) -> 8.260839704 | C51: =SUM(C47:C50) -> 9.195400182
A53: ="AgriInsurance Insured Value Analysis - "&Introduction!J12&" Manitoba - "&'Forage Insurance'!B4&"/"&'Forage Insurance'!B5 -> AgriInsurance Insured Value Analysis - 2024 Manitoba - Forage Region 6/Risk Area 15
A54: ="AgriInsurance Risk Analysis - "&Introduction!J12&" Manitoba - "&'Forage Insurance'!B4&"/"&'Forage Insurance'!B5 -> AgriInsurance Risk Analysis - 2024 Manitoba - Forage Region 6/Risk Area 15
C55: 80% Insured Value | D55: 80% Coverage of Operating Costs | E55: 80% Coverage of Total Costs (Risk) | F55: Premium Cost (% of Insured)
A56: ='Forage Insurance'!C4&" "&'Forage Insurance'!C6 -> Basic Hay Low - $67/tonne | C56: ='Forage Insurance'!C24 -> 79.93304969 | D56: ='Forage Insurance'!C56 -> 0.4192351398 | E56: ='Forage Insurance'!C57 -> 0.2226922593 | F56: ='Forage Insurance'!C16 -> 0.07105946817
A57: ='Forage Insurance'!C4&" "&'Forage Insurance'!D6 -> Basic Hay High - $111/tonne | C57: ='Forage Insurance'!D24 -> 132.8464769 | D57: ='Forage Insurance'!D56 -> 0.6967569928 | E57: ='Forage Insurance'!D57 -> 0.3701082619 | F57: ='Forage Insurance'!D16 -> 0.06940342124
A58: Alfalfa Grass Select Hay >4 years | C58: ='Forage Insurance'!F24 -> 194.9451606 | D58: ='Forage Insurance'!F56 -> 1.022453941 | E58: ='Forage Insurance'!F57 -> 0.543114249 | F58: ='Forage Insurance'!F16 -> 0.1012592461
A59: Alfalfa Select Hay <=4 years | C59: ='Forage Insurance'!L24 -> 416.6305304 | D59: ='Forage Insurance'!L56 -> 1.666161814 | E59: ='Forage Insurance'!L57 -> 0.9959385219 | F59: ='Forage Insurance'!L16 -> 0.0772146966
A60: Greenfeed | C60: ='Forage Insurance'!M24 -> 221.983 | D60: ='Forage Insurance'!M56 -> 1.004580466 | E60: ='Forage Insurance'!M57 -> 0.5586637384 | F60: ='Forage Insurance'!M16 -> 0.07491564669
B129: ="Impact of Forage Yield on Cost Per Bale" -> Impact of Forage Yield on Cost Per Bale
B131: Bale Yield | C131: ="Alfalfa (from "&Production!D23&" bales/ac)" -> Alfalfa (from 4.7 bales/ac) | D131: ="Alfalfa-Grass (from "&Production!E23&" bales/ac)" -> Alfalfa-Grass (from 3.7 bales/ac) | E131: ="Greenfeed (from "&Production!F23&" bales/ac)" -> Greenfeed (from 3.8 bales/ac)
B132: =SUM(B134*3) -> -2.25 | C132: =IF((((Summary!$C$35/(((((Production!$D$21*2000)/Production!$D$29)+B132)*Production!$D$29)/2000))-(Summary!$C$35/Production!$D$21))/2000*Production!$D$29)+Summary!$C$37<0,NA(),(((Summary!$C$35/(((((Production!$D$21*2000)/Production!$D$29)+B132)*Production!$D$29)/2000))-(Summary!$C$35/Production!$D$21))/2000*Production!$D$29)+Summary!$C$37) -> 172.4661305 | D132: =IF((((Summary!$G$35/(((((Production!$E$21*2000)/Production!$D$29)+B132)*Production!$D$29)/2000))-(Summary!$G$35/Production!$E$21))/2000*Production!$D$29)+Summary!$G$37<0,NA(),(((Summary!$G$35/(((((Production!$E$21*2000)/Production!$D$29)+B132)*Production!$D$29)/2000))-(Summary!$G$35/Production!$E$21))/2000*Production!$D$29)+Summary!$G$37) -> 244.698098 | E132: =IF((((Summary!$K$35/(((((Production!$F$21*2000)/Production!$D$29)+B132)*Production!$D$29)/2000))-(Summary!$K$35/Production!$F$21))/2000*Production!$D$29)+Summary!$K$37<0,NA(),(((Summary!$K$35/(((((Production!$F$21*2000)/Production!$D$29)+B132)*Production!$D$29)/2000))-(Summary!$K$35/Production!$F$21))/2000*Production!$D$29)+Summary!$K$37) -> 260.1010838
B133: =SUM(B134*2) -> -1.5 | C133: =IF((((Summary!$C$35/(((((Production!$D$21*2000)/Production!$D$29)+B133)*Production!$D$29)/2000))-(Summary!$C$35/Production!$D$21))/2000*Production!$D$29)+Summary!$C$37<0,NA(),(((Summary!$C$35/(((((Production!$D$21*2000)/Production!$D$29)+B133)*Production!$D$29)/2000))-(Summary!$C$35/Production!$D$21))/2000*Production!$D$29)+Summary!$C$37) -> 131.4683145 | D133: =IF((((Summary!$G$35/(((((Production!$E$21*2000)/Production!$D$29)+B133)*Production!$D$29)/2000))-(Summary!$G$35/Production!$E$21))/2000*Production!$D$29)+Summary!$G$37<0,NA(),(((Summary!$G$35/(((((Production!$E$21*2000)/Production!$D$29)+B133)*Production!$D$29)/2000))-(Summary!$G$35/Production!$E$21))/2000*Production!$D$29)+Summary!$G$37) -> 162.2060253 | E133: =IF((((Summary!$K$35/(((((Production!$F$21*2000)/Production!$D$29)+B133)*Production!$D$29)/2000))-(Summary!$K$35/Production!$F$21))/2000*Production!$D$29)+Summary!$K$37<0,NA(),(((Summary!$K$35/(((((Production!$F$21*2000)/Production!$D$29)+B133)*Production!$D$29)/2000))-(Summary!$K$35/Production!$F$21))/2000*Production!$D$29)+Summary!$K$37) -> 174.0468125
B134: =-ABS('Risk Analysis'!$E$25) -> -0.75 | C134: =IF((((Summary!$C$35/(((((Production!$D$21*2000)/Production!$D$29)+B134)*Production!$D$29)/2000))-(Summary!$C$35/Production!$D$21))/2000*Production!$D$29)+Summary!$C$37<0,NA(),(((Summary!$C$35/(((((Production!$D$21*2000)/Production!$D$29)+B134)*Production!$D$29)/2000))-(Summary!$C$35/Production!$D$21))/2000*Production!$D$29)+Summary!$C$37) -> 106.1717898 | D134: =IF((((Summary!$G$35/(((((Production!$E$21*2000)/Production!$D$29)+B134)*Production!$D$29)/2000))-(Summary!$G$35/Production!$E$21))/2000*Production!$D$29)+Summary!$G$37<0,NA(),(((Summary!$G$35/(((((Production!$E$21*2000)/Production!$D$29)+B134)*Production!$D$29)/2000))-(Summary!$G$35/Production!$E$21))/2000*Production!$D$29)+Summary!$G$37) -> 121.3766155 | E134: =IF((((Summary!$K$35/(((((Production!$F$21*2000)/Production!$D$29)+B134)*Production!$D$29)/2000))-(Summary!$K$35/Production!$F$21))/2000*Production!$D$29)+Summary!$K$37<0,NA(),(((Summary!$K$35/(((((Production!$F$21*2000)/Production!$D$29)+B134)*Production!$D$29)/2000))-(Summary!$K$35/Production!$F$21))/2000*Production!$D$29)+Summary!$K$37) -> 130.6876041
B135: 0 | C135: =Summary!$C$37 -> 89.00629081 | D135: =Summary!$G$37 -> 97.01067749 | E135: =Summary!$K$37 -> 104.5648302
B136: =ABS('Risk Analysis'!$E$25) -> 0.75 | C136: =IF((((Summary!$C$35/(((((Production!$D$21*2000)/Production!$D$29)+B136)*Production!$D$29)/2000))-(Summary!$C$35/Production!$D$21))/2000*Production!$D$29)+Summary!$C$37<0,NA(),(((Summary!$C$35/(((((Production!$D$21*2000)/Production!$D$29)+B136)*Production!$D$29)/2000))-(Summary!$C$35/Production!$D$21))/2000*Production!$D$29)+Summary!$C$37) -> 76.59431465 | D136: =IF((((Summary!$G$35/(((((Production!$E$21*2000)/Production!$D$29)+B136)*Production!$D$29)/2000))-(Summary!$G$35/Production!$E$21))/2000*Production!$D$29)+Summary!$G$37<0,NA(),(((Summary!$G$35/(((((Production!$E$21*2000)/Production!$D$29)+B136)*Production!$D$29)/2000))-(Summary!$G$35/Production!$E$21))/2000*Production!$D$29)+Summary!$G$37) -> 80.82122871 | E136: =IF((((Summary!$K$35/(((((Production!$F$21*2000)/Production!$D$29)+B136)*Production!$D$29)/2000))-(Summary!$K$35/Production!$F$21))/2000*Production!$D$29)+Summary!$K$37<0,NA(),(((Summary!$K$35/(((((Production!$F$21*2000)/Production!$D$29)+B136)*Production!$D$29)/2000))-(Summary!$K$35/Production!$F$21))/2000*Production!$D$29)+Summary!$K$37) -> 87.10473002
B137: =SUM(B136*2) -> 1.5 | C137: =IF((((Summary!$C$35/(((((Production!$D$21*2000)/Production!$D$29)+B137)*Production!$D$29)/2000))-(Summary!$C$35/Production!$D$21))/2000*Production!$D$29)+Summary!$C$37<0,NA(),(((Summary!$C$35/(((((Production!$D$21*2000)/Production!$D$29)+B137)*Production!$D$29)/2000))-(Summary!$C$35/Production!$D$21))/2000*Production!$D$29)+Summary!$C$37) -> 67.20146783 | D137: =IF((((Summary!$G$35/(((((Production!$E$21*2000)/Production!$D$29)+B137)*Production!$D$29)/2000))-(Summary!$G$35/Production!$E$21))/2000*Production!$D$29)+Summary!$G$37<0,NA(),(((Summary!$G$35/(((((Production!$E$21*2000)/Production!$D$29)+B137)*Production!$D$29)/2000))-(Summary!$G$35/Production!$E$21))/2000*Production!$D$29)+Summary!$G$37) -> 69.28392039 | E137: =IF((((Summary!$K$35/(((((Production!$F$21*2000)/Production!$D$29)+B137)*Production!$D$29)/2000))-(Summary!$K$35/Production!$F$21))/2000*Production!$D$29)+Summary!$K$37<0,NA(),(((Summary!$K$35/(((((Production!$F$21*2000)/Production!$D$29)+B137)*Production!$D$29)/2000))-(Summary!$K$35/Production!$F$21))/2000*Production!$D$29)+Summary!$K$37) -> 74.61115643
B138: =SUM(B136*3) -> 2.25 | C138: =IF((((Summary!$C$35/(((((Production!$D$21*2000)/Production!$D$29)+B138)*Production!$D$29)/2000))-(Summary!$C$35/Production!$D$21))/2000*Production!$D$29)+Summary!$C$37<0,NA(),(((Summary!$C$35/(((((Production!$D$21*2000)/Production!$D$29)+B138)*Production!$D$29)/2000))-(Summary!$C$35/Production!$D$21))/2000*Production!$D$29)+Summary!$C$37) -> 59.84562393 | D138: =IF((((Summary!$G$35/(((((Production!$E$21*2000)/Production!$D$29)+B138)*Production!$D$29)/2000))-(Summary!$G$35/Production!$E$21))/2000*Production!$D$29)+Summary!$G$37<0,NA(),(((Summary!$G$35/(((((Production!$E$21*2000)/Production!$D$29)+B138)*Production!$D$29)/2000))-(Summary!$G$35/Production!$E$21))/2000*Production!$D$29)+Summary!$G$37) -> 60.64543325 | E138: =IF((((Summary!$K$35/(((((Production!$F$21*2000)/Production!$D$29)+B138)*Production!$D$29)/2000))-(Summary!$K$35/Production!$F$21))/2000*Production!$D$29)+Summary!$K$37<0,NA(),(((Summary!$K$35/(((((Production!$F$21*2000)/Production!$D$29)+B138)*Production!$D$29)/2000))-(Summary!$K$35/Production!$F$21))/2000*Production!$D$29)+Summary!$K$37) -> 65.22887676
B140: ="Impact of Fertilizer Cost on Cost Per Bale" -> Impact of Fertilizer Cost on Cost Per Bale
B142: Fertilizer Cost | C142: Alfalfa | D142: Alfalfa Grass | E142: Greenfeed
B143: =SUM(B145*3) -> -450 | C143: =-(((-Summary!$C$11-(('Establishment Summary'!$C$47+'Establishment Summary'!$C$11-'Seed, Fertilizer & Chemical'!$O$115)/Production!$D$24))+('Seed, Fertilizer & Chemical'!$O$115-'Seed, Fertilizer & Chemical'!$O$28))/Production!$D$21)/2000*Production!$D$29+Summary!$C$37 -> 72.90180511 | D143: =-(((-Summary!$G$11-(('Establishment Summary'!$E$47+'Establishment Summary'!$E$11-'Seed, Fertilizer & Chemical'!$O$118)/Production!$E$24))+('Seed, Fertilizer & Chemical'!$O$117-'Seed, Fertilizer & Chemical'!$O$30))/Production!$E$21)/2000*Production!$D$29+Summary!$G$37 -> 81.98836848 | E143: =-(('Seed, Fertilizer & Chemical'!$O$120-'Seed, Fertilizer & Chemical'!$O$33)/Production!$F$21)/2000*Production!$D$29+Summary!$K$37 -> 92.78242142
B144: =SUM(B145*2) -> -300 | C144: =-(((-Summary!$C$11-(('Establishment Summary'!$C$47+'Establishment Summary'!$C$11-'Seed, Fertilizer & Chemical'!$O$93)/Production!$D$24))+('Seed, Fertilizer & Chemical'!$O$93-'Seed, Fertilizer & Chemical'!$O$28))/Production!$D$21)/2000*Production!$D$29+Summary!$C$37 -> 78.26996701 | D144: =-(((-Summary!$G$11-(('Establishment Summary'!$E$47+'Establishment Summary'!$E$11-'Seed, Fertilizer & Chemical'!$O$96)/Production!$E$24))+('Seed, Fertilizer & Chemical'!$O$95-'Seed, Fertilizer & Chemical'!$O$30))/Production!$E$21)/2000*Production!$D$29+Summary!$G$37 -> 86.99580481 | E144: =-(('Seed, Fertilizer & Chemical'!$O$98-'Seed, Fertilizer & Chemical'!$O$33)/Production!$F$21)/2000*Production!$D$29+Summary!$K$37 -> 96.70989102
B145: =-ABS('Risk Analysis'!$E$30) -> -150 | C145: =-(((-Summary!$C$11-(('Establishment Summary'!$C$47+'Establishment Summary'!$C$11-'Seed, Fertilizer & Chemical'!$O$71)/Production!$D$24))+('Seed, Fertilizer & Chemical'!$O$71-'Seed, Fertilizer & Chemical'!$O$28))/Production!$D$21)/2000*Production!$D$29+Summary!$C$37 -> 83.63812891 | D145: =-(((-Summary!$G$11-(('Establishment Summary'!$E$47+'Establishment Summary'!$E$11-'Seed, Fertilizer & Chemical'!$O$74)/Production!$E$24))+('Seed, Fertilizer & Chemical'!$O$73-'Seed, Fertilizer & Chemical'!$O$30))/Production!$E$21)/2000*Production!$D$29+Summary!$G$37 -> 92.00324115 | E145: =-(('Seed, Fertilizer & Chemical'!$O$76-'Seed, Fertilizer & Chemical'!$O$33)/Production!$F$21)/2000*Production!$D$29+Summary!$K$37 -> 100.6373606
B146: 0 | C146: =Summary!$C$37 -> 89.00629081 | D146: =Summary!$G$37 -> 97.01067749 | E146: =Summary!$K$37 -> 104.5648302
B147: =ABS('Risk Analysis'!$E$30) -> 150 | C147: =(((-Summary!$C$11-(('Establishment Summary'!$C$47+'Establishment Summary'!$C$11-'Seed, Fertilizer & Chemical'!$O$71)/Production!$D$24))+('Seed, Fertilizer & Chemical'!$O$71-'Seed, Fertilizer & Chemical'!$O$28))/Production!$D$21)/2000*Production!$D$29+Summary!$C$37 -> 94.37445271 | D147: =(((-Summary!$G$11-(('Establishment Summary'!$E$47+'Establishment Summary'!$E$11-'Seed, Fertilizer & Chemical'!$O$74)/Production!$E$24))+('Seed, Fertilizer & Chemical'!$O$73-'Seed, Fertilizer & Chemical'!$O$30))/Production!$E$21)/2000*Production!$D$29+Summary!$G$37 -> 102.0181138 | E147: =(('Seed, Fertilizer & Chemical'!$O$76-'Seed, Fertilizer & Chemical'!$O$33)/Production!$F$21)/2000*Production!$D$29+Summary!$K$37 -> 108.4922998
B148: =SUM(B147*2) -> 300 | C148: =(((-Summary!$C$11-(('Establishment Summary'!$C$47+'Establishment Summary'!$C$11-'Seed, Fertilizer & Chemical'!$O$93)/Production!$D$24))+('Seed, Fertilizer & Chemical'!$O$93-'Seed, Fertilizer & Chemical'!$O$28))/Production!$D$21)/2000*Production!$D$29+Summary!$C$37 -> 99.74261461 | D148: =(((-Summary!$G$11-(('Establishment Summary'!$E$47+'Establishment Summary'!$E$11-'Seed, Fertilizer & Chemical'!$O$96)/Production!$E$24))+('Seed, Fertilizer & Chemical'!$O$95-'Seed, Fertilizer & Chemical'!$O$30))/Production!$E$21)/2000*Production!$D$29+Summary!$G$37 -> 107.0255502 | E148: =(('Seed, Fertilizer & Chemical'!$O$98-'Seed, Fertilizer & Chemical'!$O$33)/Production!$F$21)/2000*Production!$D$29+Summary!$K$37 -> 112.4197694
B149: =SUM(B147*3) -> 450 | C149: =(((-Summary!$C$11-(('Establishment Summary'!$C$47+'Establishment Summary'!$C$11-'Seed, Fertilizer & Chemical'!$O$115)/Production!$D$24))+('Seed, Fertilizer & Chemical'!$O$115-'Seed, Fertilizer & Chemical'!$O$28))/Production!$D$21)/2000*Production!$D$29+Summary!$C$37 -> 105.1107765 | D149: =(((-Summary!$G$11-(('Establishment Summary'!$E$47+'Establishment Summary'!$E$11-'Seed, Fertilizer & Chemical'!$O$118)/Production!$E$24))+('Seed, Fertilizer & Chemical'!$O$117-'Seed, Fertilizer & Chemical'!$O$30))/Production!$E$21)/2000*Production!$D$29+Summary!$G$37 -> 112.0329865 | E149: =(('Seed, Fertilizer & Chemical'!$O$120-'Seed, Fertilizer & Chemical'!$O$33)/Production!$F$21)/2000*Production!$D$29+Summary!$K$37 -> 116.347239
B151: ="Impact of Land Value on Cost Per Bale (from $"&TEXT('Fixed Cost Input'!D3,"#,###")&"/acre, "&'Fixed Cost Input'!D6*100&"% equity @ "&'Fixed Cost Input'!C10*100&"% for "&'Fixed Cost Input'!D10&" yrs) " -> Impact of Land Value on Cost Per Bale (from $3,000/acre, 85% equity @ 8% for 25 yrs)
B153: Land Value | C153: Alfalfa | D153: Alfalfa Grass | E153: Greenfeed
B154: =SUM(B156*3) -> -1500 | C154: =IF('Fixed Cost Input'!$D$3+'Chart data (HIDE)'!B154<0,NA(),(-(Summary!$C$27-ROUND((-PMT('Fixed Cost Input'!$C$10,'Fixed Cost Input'!$D$10,('Fixed Cost Input'!$D$3+B154)*'Fixed Cost Input'!$D$7,0)+(('Fixed Cost Input'!$D$3+B154)*'Fixed Cost Input'!$D$6*'Fixed Cost Input'!$D$8)),2))/Production!$D$21)/2000*Production!$D$29+Summary!$C$37) -> 80.39083712 | D154: =IF('Fixed Cost Input'!$D$3+'Chart data (HIDE)'!B154<0,NA(),(-(Summary!$G$27-ROUND((-PMT('Fixed Cost Input'!$C$10,'Fixed Cost Input'!$D$10,('Fixed Cost Input'!$D$3+B154)*'Fixed Cost Input'!$D$7,0)+(('Fixed Cost Input'!$D$3+B154)*'Fixed Cost Input'!$D$6*'Fixed Cost Input'!$D$8)),2))/Production!$E$21)/2000*Production!$D$29+Summary!$G$37) -> 86.20276067 | E154: =IF('Fixed Cost Input'!$D$3+'Chart data (HIDE)'!B154<0,NA(),(-(Summary!$K$27-ROUND((-PMT('Fixed Cost Input'!$C$10,'Fixed Cost Input'!$D$10,('Fixed Cost Input'!$D$3+B154)*'Fixed Cost Input'!$D$7,0)+(('Fixed Cost Input'!$D$3+B154)*'Fixed Cost Input'!$D$6*'Fixed Cost Input'!$D$8)),2))/Production!$F$21)/2000*Production!$D$29+Summary!$K$37) -> 93.90967547
B155: =SUM(B156*2) -> -1000 | C155: =IF('Fixed Cost Input'!$D$3+'Chart data (HIDE)'!B155<0,NA(),(-(Summary!$C$27-ROUND((-PMT('Fixed Cost Input'!$C$10,'Fixed Cost Input'!$D$10,('Fixed Cost Input'!$D$3+B155)*'Fixed Cost Input'!$D$7,0)+(('Fixed Cost Input'!$D$3+B155)*'Fixed Cost Input'!$D$6*'Fixed Cost Input'!$D$8)),2))/Production!$D$21)/2000*Production!$D$29+Summary!$C$37) -> 83.26226569 | D155: =IF('Fixed Cost Input'!$D$3+'Chart data (HIDE)'!B155<0,NA(),(-(Summary!$G$27-ROUND((-PMT('Fixed Cost Input'!$C$10,'Fixed Cost Input'!$D$10,('Fixed Cost Input'!$D$3+B155)*'Fixed Cost Input'!$D$7,0)+(('Fixed Cost Input'!$D$3+B155)*'Fixed Cost Input'!$D$6*'Fixed Cost Input'!$D$8)),2))/Production!$E$21)/2000*Production!$D$29+Summary!$G$37) -> 89.8049112 | E155: =IF('Fixed Cost Input'!$D$3+'Chart data (HIDE)'!B155<0,NA(),(-(Summary!$K$27-ROUND((-PMT('Fixed Cost Input'!$C$10,'Fixed Cost Input'!$D$10,('Fixed Cost Input'!$D$3+B155)*'Fixed Cost Input'!$D$7,0)+(('Fixed Cost Input'!$D$3+B155)*'Fixed Cost Input'!$D$6*'Fixed Cost Input'!$D$8)),2))/Production!$F$21)/2000*Production!$D$29+Summary!$K$37) -> 97.46091221
B156: =-ABS('Risk Analysis'!$E$26) -> -500 | C156: =IF('Fixed Cost Input'!$D$3+'Chart data (HIDE)'!B156<0,NA(),(-(Summary!$C$27-ROUND((-PMT('Fixed Cost Input'!$C$10,'Fixed Cost Input'!$D$10,('Fixed Cost Input'!$D$3+B156)*'Fixed Cost Input'!$D$7,0)+(('Fixed Cost Input'!$D$3+B156)*'Fixed Cost Input'!$D$6*'Fixed Cost Input'!$D$8)),2))/Production!$D$21)/2000*Production!$D$29+Summary!$C$37) -> 86.13369426 | D156: =IF('Fixed Cost Input'!$D$3+'Chart data (HIDE)'!B156<0,NA(),(-(Summary!$G$27-ROUND((-PMT('Fixed Cost Input'!$C$10,'Fixed Cost Input'!$D$10,('Fixed Cost Input'!$D$3+B156)*'Fixed Cost Input'!$D$7,0)+(('Fixed Cost Input'!$D$3+B156)*'Fixed Cost Input'!$D$6*'Fixed Cost Input'!$D$8)),2))/Production!$E$21)/2000*Production!$D$29+Summary!$G$37) -> 93.40706174 | E156: =IF('Fixed Cost Input'!$D$3+'Chart data (HIDE)'!B156<0,NA(),(-(Summary!$K$27-ROUND((-PMT('Fixed Cost Input'!$C$10,'Fixed Cost Input'!$D$10,('Fixed Cost Input'!$D$3+B156)*'Fixed Cost Input'!$D$7,0)+(('Fixed Cost Input'!$D$3+B156)*'Fixed Cost Input'!$D$6*'Fixed Cost Input'!$D$8)),2))/Production!$F$21)/2000*Production!$D$29+Summary!$K$37) -> 101.012149
B157: 0 | C157: =Summary!$C$37 -> 89.00629081 | D157: =Summary!$G$37 -> 97.01067749 | E157: =Summary!$K$37 -> 104.5648302
B158: =ABS('Risk Analysis'!$E$26) -> 500 | C158: =IF('Fixed Cost Input'!$D$3+'Chart data (HIDE)'!B158<0,NA(),(-(Summary!$C$27-ROUND((-PMT('Fixed Cost Input'!$C$10,'Fixed Cost Input'!$D$10,('Fixed Cost Input'!$D$3+B158)*'Fixed Cost Input'!$D$7,0)+(('Fixed Cost Input'!$D$3+B158)*'Fixed Cost Input'!$D$6*'Fixed Cost Input'!$D$8)),2))/Production!$D$21)/2000*Production!$D$29+Summary!$C$37) -> 91.87869426 | D158: =IF('Fixed Cost Input'!$D$3+'Chart data (HIDE)'!B158<0,NA(),(-(Summary!$G$27-ROUND((-PMT('Fixed Cost Input'!$C$10,'Fixed Cost Input'!$D$10,('Fixed Cost Input'!$D$3+B158)*'Fixed Cost Input'!$D$7,0)+(('Fixed Cost Input'!$D$3+B158)*'Fixed Cost Input'!$D$6*'Fixed Cost Input'!$D$8)),2))/Production!$E$21)/2000*Production!$D$29+Summary!$G$37) -> 100.614051 | E158: =IF('Fixed Cost Input'!$D$3+'Chart data (HIDE)'!B158<0,NA(),(-(Summary!$K$27-ROUND((-PMT('Fixed Cost Input'!$C$10,'Fixed Cost Input'!$D$10,('Fixed Cost Input'!$D$3+B158)*'Fixed Cost Input'!$D$7,0)+(('Fixed Cost Input'!$D$3+B158)*'Fixed Cost Input'!$D$6*'Fixed Cost Input'!$D$8)),2))/Production!$F$21)/2000*Production!$D$29+Summary!$K$37) -> 108.1172726
B159: =SUM(B158*2) -> 1000 | C159: =IF('Fixed Cost Input'!$D$3+'Chart data (HIDE)'!B159<0,NA(),(-(Summary!$C$27-ROUND((-PMT('Fixed Cost Input'!$C$10,'Fixed Cost Input'!$D$10,('Fixed Cost Input'!$D$3+B159)*'Fixed Cost Input'!$D$7,0)+(('Fixed Cost Input'!$D$3+B159)*'Fixed Cost Input'!$D$6*'Fixed Cost Input'!$D$8)),2))/Production!$D$21)/2000*Production!$D$29+Summary!$C$37) -> 94.75012283 | D159: =IF('Fixed Cost Input'!$D$3+'Chart data (HIDE)'!B159<0,NA(),(-(Summary!$G$27-ROUND((-PMT('Fixed Cost Input'!$C$10,'Fixed Cost Input'!$D$10,('Fixed Cost Input'!$D$3+B159)*'Fixed Cost Input'!$D$7,0)+(('Fixed Cost Input'!$D$3+B159)*'Fixed Cost Input'!$D$6*'Fixed Cost Input'!$D$8)),2))/Production!$E$21)/2000*Production!$D$29+Summary!$G$37) -> 104.2162015 | E159: =IF('Fixed Cost Input'!$D$3+'Chart data (HIDE)'!B159<0,NA(),(-(Summary!$K$27-ROUND((-PMT('Fixed Cost Input'!$C$10,'Fixed Cost Input'!$D$10,('Fixed Cost Input'!$D$3+B159)*'Fixed Cost Input'!$D$7,0)+(('Fixed Cost Input'!$D$3+B159)*'Fixed Cost Input'!$D$6*'Fixed Cost Input'!$D$8)),2))/Production!$F$21)/2000*Production!$D$29+Summary!$K$37) -> 111.6685094
B160: =SUM(B158*3) -> 1500 | C160: =IF('Fixed Cost Input'!$D$3+'Chart data (HIDE)'!B160<0,NA(),(-(Summary!$C$27-ROUND((-PMT('Fixed Cost Input'!$C$10,'Fixed Cost Input'!$D$10,('Fixed Cost Input'!$D$3+B160)*'Fixed Cost Input'!$D$7,0)+(('Fixed Cost Input'!$D$3+B160)*'Fixed Cost Input'!$D$6*'Fixed Cost Input'!$D$8)),2))/Production!$D$21)/2000*Production!$D$29+Summary!$C$37) -> 97.6215514 | D160: =IF('Fixed Cost Input'!$D$3+'Chart data (HIDE)'!B160<0,NA(),(-(Summary!$G$27-ROUND((-PMT('Fixed Cost Input'!$C$10,'Fixed Cost Input'!$D$10,('Fixed Cost Input'!$D$3+B160)*'Fixed Cost Input'!$D$7,0)+(('Fixed Cost Input'!$D$3+B160)*'Fixed Cost Input'!$D$6*'Fixed Cost Input'!$D$8)),2))/Production!$E$21)/2000*Production!$D$29+Summary!$G$37) -> 107.8183521 | E160: =IF('Fixed Cost Input'!$D$3+'Chart data (HIDE)'!B160<0,NA(),(-(Summary!$K$27-ROUND((-PMT('Fixed Cost Input'!$C$10,'Fixed Cost Input'!$D$10,('Fixed Cost Input'!$D$3+B160)*'Fixed Cost Input'!$D$7,0)+(('Fixed Cost Input'!$D$3+B160)*'Fixed Cost Input'!$D$6*'Fixed Cost Input'!$D$8)),2))/Production!$F$21)/2000*Production!$D$29+Summary!$K$37) -> 115.2197461
B162: ="Impact of Owned Land Equity on Cost Per Bale (from "&'Fixed Cost Input'!D6*100&"% equity, $"&TEXT('Fixed Cost Input'!D3,"#,###")&"/acre @ "&'Fixed Cost Input'!C10*100&"% for "&'Fixed Cost Input'!D10&" yrs) " -> Impact of Owned Land Equity on Cost Per Bale (from 85% equity, $3,000/acre @ 8% for 25 yrs)
B164: Owned Equity | C164: Alfalfa | D164: Alfalfa Grass | E164: Greenfeed
B165: =SUM(B167*3) -> -0.15 | C165: =IF('Fixed Cost Input'!$D$6+'Chart data (HIDE)'!B165>100%,NA(),(-(Summary!$C$27-ROUND((-PMT('Fixed Cost Input'!$C$10,'Fixed Cost Input'!$D$10,('Fixed Cost Input'!$D$3)*('Fixed Cost Input'!$D$7-B165),0)+(('Fixed Cost Input'!$D$3)*('Fixed Cost Input'!$D$6+B165)*'Fixed Cost Input'!$D$8)),2))/Production!$D$21)/2000*Production!$D$29+Summary!$C$37) -> 96.59297997 | D165: =IF('Fixed Cost Input'!$D$6+'Chart data (HIDE)'!B165>100%,NA(),(-(Summary!$G$27-ROUND((-PMT('Fixed Cost Input'!$C$10,'Fixed Cost Input'!$D$10,('Fixed Cost Input'!$D$3)*('Fixed Cost Input'!$D$7-B165),0)+(('Fixed Cost Input'!$D$3)*('Fixed Cost Input'!$D$6+B165)*'Fixed Cost Input'!$D$8)),2))/Production!$E$21)/2000*Production!$D$29+Summary!$G$37) -> 106.5280295 | E165: =IF('Fixed Cost Input'!$D$6+'Chart data (HIDE)'!B165>100%,NA(),(-(Summary!$K$27-ROUND((-PMT('Fixed Cost Input'!$C$10,'Fixed Cost Input'!$D$10,('Fixed Cost Input'!$D$3)*('Fixed Cost Input'!$D$7-B165),0)+(('Fixed Cost Input'!$D$3)*('Fixed Cost Input'!$D$6+B165)*'Fixed Cost Input'!$D$8)),2))/Production!$F$21)/2000*Production!$D$29+Summary!$K$37) -> 113.9476613
B166: =SUM(B167*2) -> -0.1 | C166: =IF('Fixed Cost Input'!$D$6+'Chart data (HIDE)'!B166>100%,NA(),(-(Summary!$C$27-ROUND((-PMT('Fixed Cost Input'!$C$10,'Fixed Cost Input'!$D$10,('Fixed Cost Input'!$D$3)*('Fixed Cost Input'!$D$7-B166),0)+(('Fixed Cost Input'!$D$3)*('Fixed Cost Input'!$D$6+B166)*'Fixed Cost Input'!$D$8)),2))/Production!$D$21)/2000*Production!$D$29+Summary!$C$37) -> 94.06440854 | D166: =IF('Fixed Cost Input'!$D$6+'Chart data (HIDE)'!B166>100%,NA(),(-(Summary!$G$27-ROUND((-PMT('Fixed Cost Input'!$C$10,'Fixed Cost Input'!$D$10,('Fixed Cost Input'!$D$3)*('Fixed Cost Input'!$D$7-B166),0)+(('Fixed Cost Input'!$D$3)*('Fixed Cost Input'!$D$6+B166)*'Fixed Cost Input'!$D$8)),2))/Production!$E$21)/2000*Production!$D$29+Summary!$G$37) -> 103.3559865 | E166: =IF('Fixed Cost Input'!$D$6+'Chart data (HIDE)'!B166>100%,NA(),(-(Summary!$K$27-ROUND((-PMT('Fixed Cost Input'!$C$10,'Fixed Cost Input'!$D$10,('Fixed Cost Input'!$D$3)*('Fixed Cost Input'!$D$7-B166),0)+(('Fixed Cost Input'!$D$3)*('Fixed Cost Input'!$D$6+B166)*'Fixed Cost Input'!$D$8)),2))/Production!$F$21)/2000*Production!$D$29+Summary!$K$37) -> 110.8204529
B167: =-ABS('Risk Analysis'!E27) -> -0.05 | C167: =IF('Fixed Cost Input'!$D$6+'Chart data (HIDE)'!B167>100%,NA(),(-(Summary!$C$27-ROUND((-PMT('Fixed Cost Input'!$C$10,'Fixed Cost Input'!$D$10,('Fixed Cost Input'!$D$3)*('Fixed Cost Input'!$D$7-B167),0)+(('Fixed Cost Input'!$D$3)*('Fixed Cost Input'!$D$6+B167)*'Fixed Cost Input'!$D$8)),2))/Production!$D$21)/2000*Production!$D$29+Summary!$C$37) -> 91.53583712 | D167: =IF('Fixed Cost Input'!$D$6+'Chart data (HIDE)'!B167>100%,NA(),(-(Summary!$G$27-ROUND((-PMT('Fixed Cost Input'!$C$10,'Fixed Cost Input'!$D$10,('Fixed Cost Input'!$D$3)*('Fixed Cost Input'!$D$7-B167),0)+(('Fixed Cost Input'!$D$3)*('Fixed Cost Input'!$D$6+B167)*'Fixed Cost Input'!$D$8)),2))/Production!$E$21)/2000*Production!$D$29+Summary!$G$37) -> 100.1839435 | E167: =IF('Fixed Cost Input'!$D$6+'Chart data (HIDE)'!B167>100%,NA(),(-(Summary!$K$27-ROUND((-PMT('Fixed Cost Input'!$C$10,'Fixed Cost Input'!$D$10,('Fixed Cost Input'!$D$3)*('Fixed Cost Input'!$D$7-B167),0)+(('Fixed Cost Input'!$D$3)*('Fixed Cost Input'!$D$6+B167)*'Fixed Cost Input'!$D$8)),2))/Production!$F$21)/2000*Production!$D$29+Summary!$K$37) -> 107.6932444
B168: 0 | C168: =Summary!$C$37 -> 89.00629081 | D168: =Summary!$G$37 -> 97.01067749 | E168: =Summary!$K$37 -> 104.5648302
B169: =ABS('Risk Analysis'!E27) -> 0.05 | C169: =IF('Fixed Cost Input'!$D$6+'Chart data (HIDE)'!B169>100%,NA(),(-(Summary!$C$27-ROUND((-PMT('Fixed Cost Input'!$C$10,'Fixed Cost Input'!$D$10,('Fixed Cost Input'!$D$3)*('Fixed Cost Input'!$D$7-B169),0)+(('Fixed Cost Input'!$D$3)*('Fixed Cost Input'!$D$6+B169)*'Fixed Cost Input'!$D$8)),2))/Production!$D$21)/2000*Production!$D$29+Summary!$C$37) -> 86.4765514 | D169: =IF('Fixed Cost Input'!$D$6+'Chart data (HIDE)'!B169>100%,NA(),(-(Summary!$G$27-ROUND((-PMT('Fixed Cost Input'!$C$10,'Fixed Cost Input'!$D$10,('Fixed Cost Input'!$D$3)*('Fixed Cost Input'!$D$7-B169),0)+(('Fixed Cost Input'!$D$3)*('Fixed Cost Input'!$D$6+B169)*'Fixed Cost Input'!$D$8)),2))/Production!$E$21)/2000*Production!$D$29+Summary!$G$37) -> 93.83716927 | E169: =IF('Fixed Cost Input'!$D$6+'Chart data (HIDE)'!B169>100%,NA(),(-(Summary!$K$27-ROUND((-PMT('Fixed Cost Input'!$C$10,'Fixed Cost Input'!$D$10,('Fixed Cost Input'!$D$3)*('Fixed Cost Input'!$D$7-B169),0)+(('Fixed Cost Input'!$D$3)*('Fixed Cost Input'!$D$6+B169)*'Fixed Cost Input'!$D$8)),2))/Production!$F$21)/2000*Production!$D$29+Summary!$K$37) -> 101.4361772
B170: =SUM(B169*2) -> 0.1 | C170: =IF('Fixed Cost Input'!$D$6+'Chart data (HIDE)'!B170>100%,NA(),(-(Summary!$C$27-ROUND((-PMT('Fixed Cost Input'!$C$10,'Fixed Cost Input'!$D$10,('Fixed Cost Input'!$D$3)*('Fixed Cost Input'!$D$7-B170),0)+(('Fixed Cost Input'!$D$3)*('Fixed Cost Input'!$D$6+B170)*'Fixed Cost Input'!$D$8)),2))/Production!$D$21)/2000*Production!$D$29+Summary!$C$37) -> 83.94797997 | D170: =IF('Fixed Cost Input'!$D$6+'Chart data (HIDE)'!B170>100%,NA(),(-(Summary!$G$27-ROUND((-PMT('Fixed Cost Input'!$C$10,'Fixed Cost Input'!$D$10,('Fixed Cost Input'!$D$3)*('Fixed Cost Input'!$D$7-B170),0)+(('Fixed Cost Input'!$D$3)*('Fixed Cost Input'!$D$6+B170)*'Fixed Cost Input'!$D$8)),2))/Production!$E$21)/2000*Production!$D$29+Summary!$G$37) -> 90.66512626 | E170: =IF('Fixed Cost Input'!$D$6+'Chart data (HIDE)'!B170>100%,NA(),(-(Summary!$K$27-ROUND((-PMT('Fixed Cost Input'!$C$10,'Fixed Cost Input'!$D$10,('Fixed Cost Input'!$D$3)*('Fixed Cost Input'!$D$7-B170),0)+(('Fixed Cost Input'!$D$3)*('Fixed Cost Input'!$D$6+B170)*'Fixed Cost Input'!$D$8)),2))/Production!$F$21)/2000*Production!$D$29+Summary!$K$37) -> 98.30896875
B171: =SUM(B169*3) -> 0.15 | C171: =IF('Fixed Cost Input'!$D$6+'Chart data (HIDE)'!B171>100%,NA(),(-(Summary!$C$27-ROUND((-PMT('Fixed Cost Input'!$C$10,'Fixed Cost Input'!$D$10,('Fixed Cost Input'!$D$3)*('Fixed Cost Input'!$D$7-B171),0)+(('Fixed Cost Input'!$D$3)*('Fixed Cost Input'!$D$6+B171)*'Fixed Cost Input'!$D$8)),2))/Production!$D$21)/2000*Production!$D$29+Summary!$C$37) -> 81.41940854 | D171: =IF('Fixed Cost Input'!$D$6+'Chart data (HIDE)'!B171>100%,NA(),(-(Summary!$G$27-ROUND((-PMT('Fixed Cost Input'!$C$10,'Fixed Cost Input'!$D$10,('Fixed Cost Input'!$D$3)*('Fixed Cost Input'!$D$7-B171),0)+(('Fixed Cost Input'!$D$3)*('Fixed Cost Input'!$D$6+B171)*'Fixed Cost Input'!$D$8)),2))/Production!$E$21)/2000*Production!$D$29+Summary!$G$37) -> 87.49308325 | E171: =IF('Fixed Cost Input'!$D$6+'Chart data (HIDE)'!B171>100%,NA(),(-(Summary!$K$27-ROUND((-PMT('Fixed Cost Input'!$C$10,'Fixed Cost Input'!$D$10,('Fixed Cost Input'!$D$3)*('Fixed Cost Input'!$D$7-B171),0)+(('Fixed Cost Input'!$D$3)*('Fixed Cost Input'!$D$6+B171)*'Fixed Cost Input'!$D$8)),2))/Production!$F$21)/2000*Production!$D$29+Summary!$K$37) -> 95.18176027
B173: ="Impact of Land Interest Rates on Cost Per Bale (from "&'Fixed Cost Input'!C10*100&"% @ $"&TEXT('Fixed Cost Input'!D3,"#,###")&"/acre, "&'Fixed Cost Input'!D6*100&"% equity, for "&'Fixed Cost Input'!D10&" yrs) " -> Impact of Land Interest Rates on Cost Per Bale (from 8% @ $3,000/acre, 85% equity, for 25 yrs)
B175: Interest Rate | C175: Alfalfa | D175: Alfalfa Grass | E175: Greenfeed
B176: =SUM(B178*3) -> -0.045 | C176: =IF('Fixed Cost Input'!$C$10+B176<0%,NA(),(-(Summary!$C$27-ROUND((-PMT('Fixed Cost Input'!$C$10+B176,'Fixed Cost Input'!$D$10,('Fixed Cost Input'!$D$3)*('Fixed Cost Input'!$D$7),0)+(('Fixed Cost Input'!$D$3)*('Fixed Cost Input'!$D$6)*'Fixed Cost Input'!$D$8)),2))/Production!$D$21)/2000*Production!$D$29+Summary!$C$37) -> 85.82297997 | D176: =IF('Fixed Cost Input'!$C$10+B176<0%,NA(),(-(Summary!$G$27-ROUND((-PMT('Fixed Cost Input'!$C$10+B176,'Fixed Cost Input'!$D$10,('Fixed Cost Input'!$D$3)*('Fixed Cost Input'!$D$7),0)+(('Fixed Cost Input'!$D$3)*('Fixed Cost Input'!$D$6)*'Fixed Cost Input'!$D$8)),2))/Production!$E$21)/2000*Production!$D$29+Summary!$G$37) -> 93.0172768 | E176: =IF('Fixed Cost Input'!$C$10+B176<0%,NA(),(-(Summary!$K$27-ROUND((-PMT('Fixed Cost Input'!$C$10+B176,'Fixed Cost Input'!$D$10,('Fixed Cost Input'!$D$3)*('Fixed Cost Input'!$D$7),0)+(('Fixed Cost Input'!$D$3)*('Fixed Cost Input'!$D$6)*'Fixed Cost Input'!$D$8)),2))/Production!$F$21)/2000*Production!$D$29+Summary!$K$37) -> 100.6278733
B177: =SUM(B178*2) -> -0.03 | C177: =IF('Fixed Cost Input'!$C$10+B177<0%,NA(),(-(Summary!$C$27-ROUND((-PMT('Fixed Cost Input'!$C$10+B177,'Fixed Cost Input'!$D$10,('Fixed Cost Input'!$D$3)*('Fixed Cost Input'!$D$7),0)+(('Fixed Cost Input'!$D$3)*('Fixed Cost Input'!$D$6)*'Fixed Cost Input'!$D$8)),2))/Production!$D$21)/2000*Production!$D$29+Summary!$C$37) -> 86.81512283 | D177: =IF('Fixed Cost Input'!$C$10+B177<0%,NA(),(-(Summary!$G$27-ROUND((-PMT('Fixed Cost Input'!$C$10+B177,'Fixed Cost Input'!$D$10,('Fixed Cost Input'!$D$3)*('Fixed Cost Input'!$D$7),0)+(('Fixed Cost Input'!$D$3)*('Fixed Cost Input'!$D$6)*'Fixed Cost Input'!$D$8)),2))/Production!$E$21)/2000*Production!$D$29+Summary!$G$37) -> 94.26190045 | E177: =IF('Fixed Cost Input'!$C$10+B177<0%,NA(),(-(Summary!$K$27-ROUND((-PMT('Fixed Cost Input'!$C$10+B177,'Fixed Cost Input'!$D$10,('Fixed Cost Input'!$D$3)*('Fixed Cost Input'!$D$7),0)+(('Fixed Cost Input'!$D$3)*('Fixed Cost Input'!$D$6)*'Fixed Cost Input'!$D$8)),2))/Production!$F$21)/2000*Production!$D$29+Summary!$K$37) -> 101.8549051
B178: =-ABS('Risk Analysis'!E28) -> -0.015 | C178: =IF('Fixed Cost Input'!$C$10+B178<0%,NA(),(-(Summary!$C$27-ROUND((-PMT('Fixed Cost Input'!$C$10+B178,'Fixed Cost Input'!$D$10,('Fixed Cost Input'!$D$3)*('Fixed Cost Input'!$D$7),0)+(('Fixed Cost Input'!$D$3)*('Fixed Cost Input'!$D$6)*'Fixed Cost Input'!$D$8)),2))/Production!$D$21)/2000*Production!$D$29+Summary!$C$37) -> 87.87797997 | D178: =IF('Fixed Cost Input'!$C$10+B178<0%,NA(),(-(Summary!$G$27-ROUND((-PMT('Fixed Cost Input'!$C$10+B178,'Fixed Cost Input'!$D$10,('Fixed Cost Input'!$D$3)*('Fixed Cost Input'!$D$7),0)+(('Fixed Cost Input'!$D$3)*('Fixed Cost Input'!$D$6)*'Fixed Cost Input'!$D$8)),2))/Production!$E$21)/2000*Production!$D$29+Summary!$G$37) -> 95.59523378 | E178: =IF('Fixed Cost Input'!$C$10+B178<0%,NA(),(-(Summary!$K$27-ROUND((-PMT('Fixed Cost Input'!$C$10+B178,'Fixed Cost Input'!$D$10,('Fixed Cost Input'!$D$3)*('Fixed Cost Input'!$D$7),0)+(('Fixed Cost Input'!$D$3)*('Fixed Cost Input'!$D$6)*'Fixed Cost Input'!$D$8)),2))/Production!$F$21)/2000*Production!$D$29+Summary!$K$37) -> 103.1693928
B179: 0 | C179: =Summary!$C$37 -> 89.00629081 | D179: =Summary!$G$37 -> 97.01067749 | E179: =Summary!$K$37 -> 104.5648302
B180: =ABS('Risk Analysis'!E28) -> 0.015 | C180: =IF('Fixed Cost Input'!$C$10+B180<0%,NA(),(-(Summary!$C$27-ROUND((-PMT('Fixed Cost Input'!$C$10+B180,'Fixed Cost Input'!$D$10,('Fixed Cost Input'!$D$3)*('Fixed Cost Input'!$D$7),0)+(('Fixed Cost Input'!$D$3)*('Fixed Cost Input'!$D$6)*'Fixed Cost Input'!$D$8)),2))/Production!$D$21)/2000*Production!$D$29+Summary!$C$37) -> 90.19012283 | D180: =IF('Fixed Cost Input'!$C$10+B180<0%,NA(),(-(Summary!$G$27-ROUND((-PMT('Fixed Cost Input'!$C$10+B180,'Fixed Cost Input'!$D$10,('Fixed Cost Input'!$D$3)*('Fixed Cost Input'!$D$7),0)+(('Fixed Cost Input'!$D$3)*('Fixed Cost Input'!$D$6)*'Fixed Cost Input'!$D$8)),2))/Production!$E$21)/2000*Production!$D$29+Summary!$G$37) -> 98.49577142 | E180: =IF('Fixed Cost Input'!$C$10+B180<0%,NA(),(-(Summary!$K$27-ROUND((-PMT('Fixed Cost Input'!$C$10+B180,'Fixed Cost Input'!$D$10,('Fixed Cost Input'!$D$3)*('Fixed Cost Input'!$D$7),0)+(('Fixed Cost Input'!$D$3)*('Fixed Cost Input'!$D$6)*'Fixed Cost Input'!$D$8)),2))/Production!$F$21)/2000*Production!$D$29+Summary!$K$37) -> 106.0289334
B181: =SUM(B180*2) -> 0.03 | C181: =IF('Fixed Cost Input'!$C$10+B181<0%,NA(),(-(Summary!$C$27-ROUND((-PMT('Fixed Cost Input'!$C$10+B181,'Fixed Cost Input'!$D$10,('Fixed Cost Input'!$D$3)*('Fixed Cost Input'!$D$7),0)+(('Fixed Cost Input'!$D$3)*('Fixed Cost Input'!$D$6)*'Fixed Cost Input'!$D$8)),2))/Production!$D$21)/2000*Production!$D$29+Summary!$C$37) -> 91.42226569 | D181: =IF('Fixed Cost Input'!$C$10+B181<0%,NA(),(-(Summary!$G$27-ROUND((-PMT('Fixed Cost Input'!$C$10+B181,'Fixed Cost Input'!$D$10,('Fixed Cost Input'!$D$3)*('Fixed Cost Input'!$D$7),0)+(('Fixed Cost Input'!$D$3)*('Fixed Cost Input'!$D$6)*'Fixed Cost Input'!$D$8)),2))/Production!$E$21)/2000*Production!$D$29+Summary!$G$37) -> 100.0414703 | E181: =IF('Fixed Cost Input'!$C$10+B181<0%,NA(),(-(Summary!$K$27-ROUND((-PMT('Fixed Cost Input'!$C$10+B181,'Fixed Cost Input'!$D$10,('Fixed Cost Input'!$D$3)*('Fixed Cost Input'!$D$7),0)+(('Fixed Cost Input'!$D$3)*('Fixed Cost Input'!$D$6)*'Fixed Cost Input'!$D$8)),2))/Production!$F$21)/2000*Production!$D$29+Summary!$K$37) -> 107.552785
B182: =SUM(B180*3) -> 0.045 | C182: =IF('Fixed Cost Input'!$C$10+B182<0%,NA(),(-(Summary!$C$27-ROUND((-PMT('Fixed Cost Input'!$C$10+B182,'Fixed Cost Input'!$D$10,('Fixed Cost Input'!$D$3)*('Fixed Cost Input'!$D$7),0)+(('Fixed Cost Input'!$D$3)*('Fixed Cost Input'!$D$6)*'Fixed Cost Input'!$D$8)),2))/Production!$D$21)/2000*Production!$D$29+Summary!$C$37) -> 92.69512283 | D182: =IF('Fixed Cost Input'!$C$10+B182<0%,NA(),(-(Summary!$G$27-ROUND((-PMT('Fixed Cost Input'!$C$10+B182,'Fixed Cost Input'!$D$10,('Fixed Cost Input'!$D$3)*('Fixed Cost Input'!$D$7),0)+(('Fixed Cost Input'!$D$3)*('Fixed Cost Input'!$D$6)*'Fixed Cost Input'!$D$8)),2))/Production!$E$21)/2000*Production!$D$29+Summary!$G$37) -> 101.6382445 | E182: =IF('Fixed Cost Input'!$C$10+B182<0%,NA(),(-(Summary!$K$27-ROUND((-PMT('Fixed Cost Input'!$C$10+B182,'Fixed Cost Input'!$D$10,('Fixed Cost Input'!$D$3)*('Fixed Cost Input'!$D$7),0)+(('Fixed Cost Input'!$D$3)*('Fixed Cost Input'!$D$6)*'Fixed Cost Input'!$D$8)),2))/Production!$F$21)/2000*Production!$D$29+Summary!$K$37) -> 109.12699
G228: ="(HDB = Hay Disaster Benefit = $"&'DATA (HIDE)'!B11&"/tonne, if more than 20% of the producers insured by AgriInsurance have less than 50% of their long-term probable yield)" -> (HDB = Hay Disaster Benefit = $44/tonne, if more than 20% of the producers insured by AgriInsurance have less than 50% of their long-term probable yield)
G229: ='Forage Insurance'!B4&" AgriInsurance Indemnity + HDB ($ per acre) @ "&'Forage Insurance'!C28&" Bales per Acre Yield" -> Forage Region 6 AgriInsurance Indemnity + HDB ($ per acre) @ 1 Bales per Acre Yield
G230: ='Forage Insurance'!B4&" AgriInsurance Indemnity ($ per acre) @ "&'Forage Insurance'!C28&" Bales per Acre Yield" -> Forage Region 6 AgriInsurance Indemnity ($ per acre) @ 1 Bales per Acre Yield
C231: Indem + HDB | D231: ="Indemnity ($/ac) @ "&'Forage Insurance'!C28&" bale/ac yield" -> Indemnity ($/ac) @ 1 bale/ac yield | E231: ='Forage Insurance'!B12 -> Probable Yield (1,500 lb. bales/ac) | F231: ="AgriInsurance "&'Forage Insurance'!B21 -> AgriInsurance Coverage (1,500 lb. bales/acre) | G231: ="Est. Actual Yield ("&'Forage Insurance'!C28&" bale/ac)" -> Est. Actual Yield (1 bale/ac)
B232: ="Basic Hay Low ($"&'Forage Insurance'!C14&"/acre, $"&'DATA (HIDE)'!B9&"/tonne)" -> Basic Hay Low ($5.68/acre, $71/tonne) | C232: ='Forage Insurance'!C$43 -> 51.22424726 | D232: ='Forage Insurance'!C$34 -> 31.62540483 | E232: ='Forage Insurance'!C$12 -> 2.07 | F232: ='Forage Insurance'!C$21 -> 1.654666667 | G232: ='Forage Insurance'!$C$28 -> 1
B233: ="Basic Hay High ($"&'Forage Insurance'!D14&"/acre, $"&'DATA (HIDE)'!B10&"/tonne)" -> Basic Hay High ($9.22/acre, $118/tonne) | C233: ='Forage Insurance'!D$43 -> 72.1593744 | D233: ='Forage Insurance'!D$34 -> 52.56053197 | E233: ='Forage Insurance'!D$12 -> 2.07 | F233: ='Forage Insurance'!D$21 -> 1.654666667 | G233: ='Forage Insurance'!$C$28 -> 1
B234: ="Alfalfa Grass >4 years 70% ($"&'Forage Insurance'!E14&"/acre, $"&'DATA (HIDE)'!B3&"/tonne)" -> Alfalfa Grass >4 years 70% ($13.56/acre, $195/tonne) | C234: ='Forage Insurance'!E$43 -> 46.6157433 | D234: ='Forage Insurance'!E$34 -> 38.03376546 | E234: ='Forage Insurance'!E$12 -> 1.84 | F234: ='Forage Insurance'!E$21 -> 1.286666667 | G234: ='Forage Insurance'!$C$28 -> 1
B235: ="Alfalfa Grass >4 years 80% ($"&'Forage Insurance'!F14&"/acre, $"&'DATA (HIDE)'!B3&"/tonne)" -> Alfalfa Grass >4 years 80% ($19.74/acre, $195/tonne) | C235: ='Forage Insurance'!F$43 -> 76.31972857 | D235: ='Forage Insurance'!F$34 -> 62.26923461 | E235: ='Forage Insurance'!F$12 -> 1.84 | F235: ='Forage Insurance'!F$21 -> 1.469333333 | G235: ='Forage Insurance'!$C$28 -> 1
B236: ="Alfalfa Grass <=4 years 70% ($"&'Forage Insurance'!G14&"/acre, $"&'DATA (HIDE)'!B3&"/tonne)" -> Alfalfa Grass <=4 years 70% ($13.56/acre, $195/tonne) | C236: ='Forage Insurance'!G$43 -> 163.4803277 | D236: ='Forage Insurance'!G$34 -> 133.3835309 | E236: ='Forage Insurance'!G$12 -> 2.86 | F236: ='Forage Insurance'!G$21 -> 2.005333333 | G236: ='Forage Insurance'!$C$28 -> 1
B237: ="Alfalfa Grass <=4 years 80% ($"&'Forage Insurance'!H14&"/acre, $"&'DATA (HIDE)'!B3&"/tonne)" -> Alfalfa Grass <=4 years 80% ($19.74/acre, $195/tonne) | C237: ='Forage Insurance'!H$43 -> 209.8792536 | D237: ='Forage Insurance'!H$34 -> 171.2403952 | E237: ='Forage Insurance'!H$12 -> 2.86 | F237: ='Forage Insurance'!H$21 -> 2.290666667 | G237: ='Forage Insurance'!$C$28 -> 1
B238: ="Alfalfa >4 years 70% ($"&'Forage Insurance'!I14&"/acre, $"&'DATA (HIDE)'!B2&"/tonne)" -> Alfalfa >4 years 70% ($22.23/acre, $236/tonne) | C238: ='Forage Insurance'!I$43 -> 129.2921229 | D238: ='Forage Insurance'!I$34 -> 108.9747893 | E238: ='Forage Insurance'!I$12 -> 2.4 | F238: ='Forage Insurance'!I$21 -> 1.678666667 | G238: ='Forage Insurance'!$C$28 -> 1
B239: ="Alfalfa >4 years 80% ($"&'Forage Insurance'!J14&"/acre, $"&'DATA (HIDE)'!B2&"/tonne)" -> Alfalfa >4 years 80% ($32.17/acre, $236/tonne) | C239: ='Forage Insurance'!J$43 -> 174.7602761 | D239: ='Forage Insurance'!J$34 -> 147.297947 | E239: ='Forage Insurance'!J$12 -> 2.4 | F239: ='Forage Insurance'!J$21 -> 1.917333333 | G239: ='Forage Insurance'!$C$28 -> 1
B240: ="Alfalfa <=4 years 70% ($"&'Forage Insurance'!K14&"/acre, $"&'DATA (HIDE)'!B2&"/tonne)" -> Alfalfa <=4 years 70% ($22.23/acre, $236/tonne) | C240: ='Forage Insurance'!K$43 -> 241.8194519 | D240: ='Forage Insurance'!K$34 -> 203.8192523 | E240: ='Forage Insurance'!K$12 -> 3.24 | F240: ='Forage Insurance'!K$21 -> 2.269333333 | G240: ='Forage Insurance'!$C$28 -> 1
B241: ="Alfalfa <=4 years 80% ($"&'Forage Insurance'!L14&"/acre, $"&'DATA (HIDE)'!B2&"/tonne)" -> Alfalfa <=4 years 80% ($32.17/acre, $236/tonne) | C241: ='Forage Insurance'!L$43 -> 303.798387 | D241: ='Forage Insurance'!L$34 -> 256.0586405 | E241: ='Forage Insurance'!L$12 -> 3.24 | F241: ='Forage Insurance'!L$21 -> 2.594666667 | G241: ='Forage Insurance'!$C$28 -> 1
B242: ="Greenfeed 80% ($"&'Forage Insurance'!M14&"/acre, $"&ROUND('DATA (HIDE)'!C4/0.907185,0)&"/tonne)" -> Greenfeed 80% ($16.63/acre, $153/tonne) | C242: =D242 -> 117.733 | D242: ='Forage Insurance'!M$34 -> 117.733 | E242: ='Forage Insurance'!M$12 -> 2.66 | F242: ='Forage Insurance'!M$21 -> 2.129333333 | G242: ='Forage Insurance'!$C$28 -> 1
B244: =TEXT(Production!D29,"#,###")&" lb. Bales per Acre" -> 1,500 lb. Bales per Acre | C244: ="Basic Hay Low ($"&'Forage Insurance'!C14&"/acre)" -> Basic Hay Low ($5.68/acre) | D244: ="Basic Hay High ($"&'Forage Insurance'!D14&"/acre)" -> Basic Hay High ($9.22/acre) | E244: ="Alfalfa Grass >4 years 70% ($"&'Forage Insurance'!E14&"/acre)" -> Alfalfa Grass >4 years 70% ($13.56/acre) | F244: ="Alfalfa Grass >4 years 80% ($"&'Forage Insurance'!F14&"/acre)" -> Alfalfa Grass >4 years 80% ($19.74/acre) | G244: ="Alfalfa Grass <4 years 70% ($"&'Forage Insurance'!G14&"/acre)" -> Alfalfa Grass <4 years 70% ($13.56/acre) | H244: ="Alfalfa Grass <4 years 80% ($"&'Forage Insurance'!H14&"/acre)" -> Alfalfa Grass <4 years 80% ($19.74/acre) | I244: ="Alfalfa >4 years 70% ($"&'Forage Insurance'!I14&"/acre)" -> Alfalfa >4 years 70% ($22.23/acre) | J244: ="Alfalfa >4 years 80% ($"&'Forage Insurance'!J14&"/acre)" -> Alfalfa >4 years 80% ($32.17/acre) | K244: ="Alfalfa <4 years 70% ($"&'Forage Insurance'!K14&"/acre)" -> Alfalfa <4 years 70% ($22.23/acre) | L244: ="Alfalfa <4 years 80% ($"&'Forage Insurance'!L14&"/acre)" -> Alfalfa <4 years 80% ($32.17/acre) | M244: ="Greenfeed 80% ($"&'Forage Insurance'!M14&"/acre)" -> Greenfeed 80% ($16.63/acre)
B245: =ROUND(MAX('Forage Insurance'!C12:M12),0)+0.25 -> 3.25 | C245: =IF(('Forage Insurance'!$C$19-((B245*Production!$D$29)/2000))<0,"",('Forage Insurance'!$C$19-((B245*Production!$D$29)/2000))*'Forage Insurance'!$C$20) ->  | D245: =IF(('Forage Insurance'!$D$19-((B245*Production!$D$29)/2000))<0,"",('Forage Insurance'!$D$19-((B245*Production!$D$29)/2000))*'Forage Insurance'!$D$20) ->  | E245: =IF(('Forage Insurance'!$E$19-((B245*Production!$D$29)/2000))<0,"",('Forage Insurance'!$E$19-((B245*Production!$D$29)/2000))*'Forage Insurance'!$E$20) ->  | F245: =IF(('Forage Insurance'!$F$19-((B245*Production!$D$29)/2000))<0,"",('Forage Insurance'!$F$19-((B245*Production!$D$29)/2000))*'Forage Insurance'!$F$20) ->  | G245: =IF(('Forage Insurance'!$G$19-((B245*Production!$D$29)/2000))<0,"",('Forage Insurance'!$G$19-((B245*Production!$D$29)/2000))*'Forage Insurance'!$G$20) ->  | H245: =IF(('Forage Insurance'!$H$19-((B245*Production!$D$29)/2000))<0,"",('Forage Insurance'!$H$19-((B245*Production!$D$29)/2000))*'Forage Insurance'!$H$20) ->  | I245: =IF(('Forage Insurance'!$I$19-((B245*Production!$D$29)/2000))<0,"",('Forage Insurance'!$I$19-((B245*Production!$D$29)/2000))*'Forage Insurance'!$I$20) ->  | J245: =IF(('Forage Insurance'!$J$19-((B245*Production!$D$29)/2000))<0,"",('Forage Insurance'!$J$19-((B245*Production!$D$29)/2000))*'Forage Insurance'!$J$20) ->  | K245: =IF(('Forage Insurance'!$K$19-((B245*Production!$D$29)/2000))<0,"",('Forage Insurance'!$K$19-((B245*Production!$D$29)/2000))*'Forage Insurance'!$K$20) ->  | L245: =IF(('Forage Insurance'!$L$19-((B245*Production!$D$29)/2000))<0,"",('Forage Insurance'!$L$19-((B245*Production!$D$29)/2000))*'Forage Insurance'!$L$20) ->  | M245: =IF(('Forage Insurance'!$M$19-((B245*Production!$D$29)/2000))<0,"",('Forage Insurance'!$M$19-((B245*Production!$D$29)/2000))*'Forage Insurance'!$M$20) -> 
B246: =IF(B245-0.25<0,0,B245-0.25) -> 3 | C246: =IF(('Forage Insurance'!$C$19-((B246*Production!$D$29)/2000))<0,"",('Forage Insurance'!$C$19-((B246*Production!$D$29)/2000))*'Forage Insurance'!$C$20) ->  | D246: =IF(('Forage Insurance'!$D$19-((B246*Production!$D$29)/2000))<0,"",('Forage Insurance'!$D$19-((B246*Production!$D$29)/2000))*'Forage Insurance'!$D$20) ->  | E246: =IF(('Forage Insurance'!$E$19-((B246*Production!$D$29)/2000))<0,"",('Forage Insurance'!$E$19-((B246*Production!$D$29)/2000))*'Forage Insurance'!$E$20) ->  | F246: =IF(('Forage Insurance'!$F$19-((B246*Production!$D$29)/2000))<0,"",('Forage Insurance'!$F$19-((B246*Production!$D$29)/2000))*'Forage Insurance'!$F$20) ->  | G246: =IF(('Forage Insurance'!$G$19-((B246*Production!$D$29)/2000))<0,"",('Forage Insurance'!$G$19-((B246*Production!$D$29)/2000))*'Forage Insurance'!$G$20) ->  | H246: =IF(('Forage Insurance'!$H$19-((B246*Production!$D$29)/2000))<0,"",('Forage Insurance'!$H$19-((B246*Production!$D$29)/2000))*'Forage Insurance'!$H$20) ->  | I246: =IF(('Forage Insurance'!$I$19-((B246*Production!$D$29)/2000))<0,"",('Forage Insurance'!$I$19-((B246*Production!$D$29)/2000))*'Forage Insurance'!$I$20) ->  | J246: =IF(('Forage Insurance'!$J$19-((B246*Production!$D$29)/2000))<0,"",('Forage Insurance'!$J$19-((B246*Production!$D$29)/2000))*'Forage Insurance'!$J$20) ->  | K246: =IF(('Forage Insurance'!$K$19-((B246*Production!$D$29)/2000))<0,"",('Forage Insurance'!$K$19-((B246*Production!$D$29)/2000))*'Forage Insurance'!$K$20) ->  | L246: =IF(('Forage Insurance'!$L$19-((B246*Production!$D$29)/2000))<0,"",('Forage Insurance'!$L$19-((B246*Production!$D$29)/2000))*'Forage Insurance'!$L$20) ->  | M246: =IF(('Forage Insurance'!$M$19-((B246*Production!$D$29)/2000))<0,"",('Forage Insurance'!$M$19-((B246*Production!$D$29)/2000))*'Forage Insurance'!$M$20) -> 
B247: 2.75 | C247: =IF(('Forage Insurance'!$C$19-((B247*Production!$D$29)/2000))<0,"",('Forage Insurance'!$C$19-((B247*Production!$D$29)/2000))*'Forage Insurance'!$C$20) ->  | D247: =IF(('Forage Insurance'!$D$19-((B247*Production!$D$29)/2000))<0,"",('Forage Insurance'!$D$19-((B247*Production!$D$29)/2000))*'Forage Insurance'!$D$20) ->  | E247: =IF(('Forage Insurance'!$E$19-((B247*Production!$D$29)/2000))<0,"",('Forage Insurance'!$E$19-((B247*Production!$D$29)/2000))*'Forage Insurance'!$E$20) ->  | F247: =IF(('Forage Insurance'!$F$19-((B247*Production!$D$29)/2000))<0,"",('Forage Insurance'!$F$19-((B247*Production!$D$29)/2000))*'Forage Insurance'!$F$20) ->  | G247: =IF(('Forage Insurance'!$G$19-((B247*Production!$D$29)/2000))<0,"",('Forage Insurance'!$G$19-((B247*Production!$D$29)/2000))*'Forage Insurance'!$G$20) ->  | H247: =IF(('Forage Insurance'!$H$19-((B247*Production!$D$29)/2000))<0,"",('Forage Insurance'!$H$19-((B247*Production!$D$29)/2000))*'Forage Insurance'!$H$20) ->  | I247: =IF(('Forage Insurance'!$I$19-((B247*Production!$D$29)/2000))<0,"",('Forage Insurance'!$I$19-((B247*Production!$D$29)/2000))*'Forage Insurance'!$I$20) ->  | J247: =IF(('Forage Insurance'!$J$19-((B247*Production!$D$29)/2000))<0,"",('Forage Insurance'!$J$19-((B247*Production!$D$29)/2000))*'Forage Insurance'!$J$20) ->  | K247: =IF(('Forage Insurance'!$K$19-((B247*Production!$D$29)/2000))<0,"",('Forage Insurance'!$K$19-((B247*Production!$D$29)/2000))*'Forage Insurance'!$K$20) ->  | L247: =IF(('Forage Insurance'!$L$19-((B247*Production!$D$29)/2000))<0,"",('Forage Insurance'!$L$19-((B247*Production!$D$29)/2000))*'Forage Insurance'!$L$20) ->  | M247: =IF(('Forage Insurance'!$M$19-((B247*Production!$D$29)/2000))<0,"",('Forage Insurance'!$M$19-((B247*Production!$D$29)/2000))*'Forage Insurance'!$M$20) -> 
B248: 2.5 | C248: =IF(('Forage Insurance'!$C$19-((B248*Production!$D$29)/2000))<0,"",('Forage Insurance'!$C$19-((B248*Production!$D$29)/2000))*'Forage Insurance'!$C$20) ->  | D248: =IF(('Forage Insurance'!$D$19-((B248*Production!$D$29)/2000))<0,"",('Forage Insurance'!$D$19-((B248*Production!$D$29)/2000))*'Forage Insurance'!$D$20) ->  | E248: =IF(('Forage Insurance'!$E$19-((B248*Production!$D$29)/2000))<0,"",('Forage Insurance'!$E$19-((B248*Production!$D$29)/2000))*'Forage Insurance'!$E$20) ->  | F248: =IF(('Forage Insurance'!$F$19-((B248*Production!$D$29)/2000))<0,"",('Forage Insurance'!$F$19-((B248*Production!$D$29)/2000))*'Forage Insurance'!$F$20) ->  | G248: =IF(('Forage Insurance'!$G$19-((B248*Production!$D$29)/2000))<0,"",('Forage Insurance'!$G$19-((B248*Production!$D$29)/2000))*'Forage Insurance'!$G$20) ->  | H248: =IF(('Forage Insurance'!$H$19-((B248*Production!$D$29)/2000))<0,"",('Forage Insurance'!$H$19-((B248*Production!$D$29)/2000))*'Forage Insurance'!$H$20) ->  | I248: =IF(('Forage Insurance'!$I$19-((B248*Production!$D$29)/2000))<0,"",('Forage Insurance'!$I$19-((B248*Production!$D$29)/2000))*'Forage Insurance'!$I$20) ->  | J248: =IF(('Forage Insurance'!$J$19-((B248*Production!$D$29)/2000))<0,"",('Forage Insurance'!$J$19-((B248*Production!$D$29)/2000))*'Forage Insurance'!$J$20) ->  | K248: =IF(('Forage Insurance'!$K$19-((B248*Production!$D$29)/2000))<0,"",('Forage Insurance'!$K$19-((B248*Production!$D$29)/2000))*'Forage Insurance'!$K$20) ->  | L248: =IF(('Forage Insurance'!$L$19-((B248*Production!$D$29)/2000))<0,"",('Forage Insurance'!$L$19-((B248*Production!$D$29)/2000))*'Forage Insurance'!$L$20) -> 15.20080558 | M248: =IF(('Forage Insurance'!$M$19-((B248*Production!$D$29)/2000))<0,"",('Forage Insurance'!$M$19-((B248*Production!$D$29)/2000))*'Forage Insurance'!$M$20) -> 
B249: 2.25 | C249: =IF(('Forage Insurance'!$C$19-((B249*Production!$D$29)/2000))<0,"",('Forage Insurance'!$C$19-((B249*Production!$D$29)/2000))*'Forage Insurance'!$C$20) ->  | D249: =IF(('Forage Insurance'!$D$19-((B249*Production!$D$29)/2000))<0,"",('Forage Insurance'!$D$19-((B249*Production!$D$29)/2000))*'Forage Insurance'!$D$20) ->  | E249: =IF(('Forage Insurance'!$E$19-((B249*Production!$D$29)/2000))<0,"",('Forage Insurance'!$E$19-((B249*Production!$D$29)/2000))*'Forage Insurance'!$E$20) ->  | F249: =IF(('Forage Insurance'!$F$19-((B249*Production!$D$29)/2000))<0,"",('Forage Insurance'!$F$19-((B249*Production!$D$29)/2000))*'Forage Insurance'!$F$20) ->  | G249: =IF(('Forage Insurance'!$G$19-((B249*Production!$D$29)/2000))<0,"",('Forage Insurance'!$G$19-((B249*Production!$D$29)/2000))*'Forage Insurance'!$G$20) ->  | H249: =IF(('Forage Insurance'!$H$19-((B249*Production!$D$29)/2000))<0,"",('Forage Insurance'!$H$19-((B249*Production!$D$29)/2000))*'Forage Insurance'!$H$20) -> 5.395487658 | I249: =IF(('Forage Insurance'!$I$19-((B249*Production!$D$29)/2000))<0,"",('Forage Insurance'!$I$19-((B249*Production!$D$29)/2000))*'Forage Insurance'!$I$20) ->  | J249: =IF(('Forage Insurance'!$J$19-((B249*Production!$D$29)/2000))<0,"",('Forage Insurance'!$J$19-((B249*Production!$D$29)/2000))*'Forage Insurance'!$J$20) ->  | K249: =IF(('Forage Insurance'!$K$19-((B249*Production!$D$29)/2000))<0,"",('Forage Insurance'!$K$19-((B249*Production!$D$29)/2000))*'Forage Insurance'!$K$20) -> 3.104389872 | L249: =IF(('Forage Insurance'!$L$19-((B249*Production!$D$29)/2000))<0,"",('Forage Insurance'!$L$19-((B249*Production!$D$29)/2000))*'Forage Insurance'!$L$20) -> 55.34377807 | M249: =IF(('Forage Insurance'!$M$19-((B249*Production!$D$29)/2000))<0,"",('Forage Insurance'!$M$19-((B249*Production!$D$29)/2000))*'Forage Insurance'!$M$20) -> 
B250: 2 | C250: =IF(('Forage Insurance'!$C$19-((B250*Production!$D$29)/2000))<0,"",('Forage Insurance'!$C$19-((B250*Production!$D$29)/2000))*'Forage Insurance'!$C$20) ->  | D250: =IF(('Forage Insurance'!$D$19-((B250*Production!$D$29)/2000))<0,"",('Forage Insurance'!$D$19-((B250*Production!$D$29)/2000))*'Forage Insurance'!$D$20) ->  | E250: =IF(('Forage Insurance'!$E$19-((B250*Production!$D$29)/2000))<0,"",('Forage Insurance'!$E$19-((B250*Production!$D$29)/2000))*'Forage Insurance'!$E$20) ->  | F250: =IF(('Forage Insurance'!$F$19-((B250*Production!$D$29)/2000))<0,"",('Forage Insurance'!$F$19-((B250*Production!$D$29)/2000))*'Forage Insurance'!$F$20) ->  | G250: =IF(('Forage Insurance'!$G$19-((B250*Production!$D$29)/2000))<0,"",('Forage Insurance'!$G$19-((B250*Production!$D$29)/2000))*'Forage Insurance'!$G$20) -> 0.7076049387 | H250: =IF(('Forage Insurance'!$H$19-((B250*Production!$D$29)/2000))<0,"",('Forage Insurance'!$H$19-((B250*Production!$D$29)/2000))*'Forage Insurance'!$H$20) -> 38.56446916 | I250: =IF(('Forage Insurance'!$I$19-((B250*Production!$D$29)/2000))<0,"",('Forage Insurance'!$I$19-((B250*Production!$D$29)/2000))*'Forage Insurance'!$I$20) ->  | J250: =IF(('Forage Insurance'!$J$19-((B250*Production!$D$29)/2000))<0,"",('Forage Insurance'!$J$19-((B250*Production!$D$29)/2000))*'Forage Insurance'!$J$20) ->  | K250: =IF(('Forage Insurance'!$K$19-((B250*Production!$D$29)/2000))<0,"",('Forage Insurance'!$K$19-((B250*Production!$D$29)/2000))*'Forage Insurance'!$K$20) -> 43.24736236 | L250: =IF(('Forage Insurance'!$L$19-((B250*Production!$D$29)/2000))<0,"",('Forage Insurance'!$L$19-((B250*Production!$D$29)/2000))*'Forage Insurance'!$L$20) -> 95.48675055 | M250: =IF(('Forage Insurance'!$M$19-((B250*Production!$D$29)/2000))<0,"",('Forage Insurance'!$M$19-((B250*Production!$D$29)/2000))*'Forage Insurance'!$M$20) -> 13.483 | O250: make just a basic hay, alf grass >4 yr and < 4 years
B251: 1.75 | C251: =IF(('Forage Insurance'!$C$19-((B251*Production!$D$29)/2000))<0,"",('Forage Insurance'!$C$19-((B251*Production!$D$29)/2000))*'Forage Insurance'!$C$20) ->  | D251: =IF(('Forage Insurance'!$D$19-((B251*Production!$D$29)/2000))<0,"",('Forage Insurance'!$D$19-((B251*Production!$D$29)/2000))*'Forage Insurance'!$D$20) ->  | E251: =IF(('Forage Insurance'!$E$19-((B251*Production!$D$29)/2000))<0,"",('Forage Insurance'!$E$19-((B251*Production!$D$29)/2000))*'Forage Insurance'!$E$20) ->  | F251: =IF(('Forage Insurance'!$F$19-((B251*Production!$D$29)/2000))<0,"",('Forage Insurance'!$F$19-((B251*Production!$D$29)/2000))*'Forage Insurance'!$F$20) ->  | G251: =IF(('Forage Insurance'!$G$19-((B251*Production!$D$29)/2000))<0,"",('Forage Insurance'!$G$19-((B251*Production!$D$29)/2000))*'Forage Insurance'!$G$20) -> 33.87658644 | H251: =IF(('Forage Insurance'!$H$19-((B251*Production!$D$29)/2000))<0,"",('Forage Insurance'!$H$19-((B251*Production!$D$29)/2000))*'Forage Insurance'!$H$20) -> 71.73345066 | I251: =IF(('Forage Insurance'!$I$19-((B251*Production!$D$29)/2000))<0,"",('Forage Insurance'!$I$19-((B251*Production!$D$29)/2000))*'Forage Insurance'!$I$20) ->  | J251: =IF(('Forage Insurance'!$J$19-((B251*Production!$D$29)/2000))<0,"",('Forage Insurance'!$J$19-((B251*Production!$D$29)/2000))*'Forage Insurance'!$J$20) -> 26.86902958 | K251: =IF(('Forage Insurance'!$K$19-((B251*Production!$D$29)/2000))<0,"",('Forage Insurance'!$K$19-((B251*Production!$D$29)/2000))*'Forage Insurance'!$K$20) -> 83.39033484 | L251: =IF(('Forage Insurance'!$L$19-((B251*Production!$D$29)/2000))<0,"",('Forage Insurance'!$L$19-((B251*Production!$D$29)/2000))*'Forage Insurance'!$L$20) -> 135.629723 | M251: =IF(('Forage Insurance'!$M$19-((B251*Production!$D$29)/2000))<0,"",('Forage Insurance'!$M$19-((B251*Production!$D$29)/2000))*'Forage Insurance'!$M$20) -> 39.5455
B252: 1.5 | C252: =IF(('Forage Insurance'!$C$19-((B252*Production!$D$29)/2000))<0,"",('Forage Insurance'!$C$19-((B252*Production!$D$29)/2000))*'Forage Insurance'!$C$20) -> 7.471582404 | D252: =IF(('Forage Insurance'!$D$19-((B252*Production!$D$29)/2000))<0,"",('Forage Insurance'!$D$19-((B252*Production!$D$29)/2000))*'Forage Insurance'!$D$20) -> 12.41755949 | E252: =IF(('Forage Insurance'!$E$19-((B252*Production!$D$29)/2000))<0,"",('Forage Insurance'!$E$19-((B252*Production!$D$29)/2000))*'Forage Insurance'!$E$20) ->  | F252: =IF(('Forage Insurance'!$F$19-((B252*Production!$D$29)/2000))<0,"",('Forage Insurance'!$F$19-((B252*Production!$D$29)/2000))*'Forage Insurance'!$F$20) ->  | G252: =IF(('Forage Insurance'!$G$19-((B252*Production!$D$29)/2000))<0,"",('Forage Insurance'!$G$19-((B252*Production!$D$29)/2000))*'Forage Insurance'!$G$20) -> 67.04556794 | H252: =IF(('Forage Insurance'!$H$19-((B252*Production!$D$29)/2000))<0,"",('Forage Insurance'!$H$19-((B252*Production!$D$29)/2000))*'Forage Insurance'!$H$20) -> 104.9024322 | I252: =IF(('Forage Insurance'!$I$19-((B252*Production!$D$29)/2000))<0,"",('Forage Insurance'!$I$19-((B252*Production!$D$29)/2000))*'Forage Insurance'!$I$20) -> 28.68884434 | J252: =IF(('Forage Insurance'!$J$19-((B252*Production!$D$29)/2000))<0,"",('Forage Insurance'!$J$19-((B252*Production!$D$29)/2000))*'Forage Insurance'!$J$20) -> 67.01200207 | K252: =IF(('Forage Insurance'!$K$19-((B252*Production!$D$29)/2000))<0,"",('Forage Insurance'!$K$19-((B252*Production!$D$29)/2000))*'Forage Insurance'!$K$20) -> 123.5333073 | L252: =IF(('Forage Insurance'!$L$19-((B252*Production!$D$29)/2000))<0,"",('Forage Insurance'!$L$19-((B252*Production!$D$29)/2000))*'Forage Insurance'!$L$20) -> 175.7726955 | M252: =IF(('Forage Insurance'!$M$19-((B252*Production!$D$29)/2000))<0,"",('Forage Insurance'!$M$19-((B252*Production!$D$29)/2000))*'Forage Insurance'!$M$20) -> 65.608
B253: 1.25 | C253: =IF(('Forage Insurance'!$C$19-((B253*Production!$D$29)/2000))<0,"",('Forage Insurance'!$C$19-((B253*Production!$D$29)/2000))*'Forage Insurance'!$C$20) -> 19.54849362 | D253: =IF(('Forage Insurance'!$D$19-((B253*Production!$D$29)/2000))<0,"",('Forage Insurance'!$D$19-((B253*Production!$D$29)/2000))*'Forage Insurance'!$D$20) -> 32.48904573 | E253: =IF(('Forage Insurance'!$E$19-((B253*Production!$D$29)/2000))<0,"",('Forage Insurance'!$E$19-((B253*Production!$D$29)/2000))*'Forage Insurance'!$E$20) -> 4.864783954 | F253: =IF(('Forage Insurance'!$F$19-((B253*Production!$D$29)/2000))<0,"",('Forage Insurance'!$F$19-((B253*Production!$D$29)/2000))*'Forage Insurance'!$F$20) -> 29.1002531 | G253: =IF(('Forage Insurance'!$G$19-((B253*Production!$D$29)/2000))<0,"",('Forage Insurance'!$G$19-((B253*Production!$D$29)/2000))*'Forage Insurance'!$G$20) -> 100.2145494 | H253: =IF(('Forage Insurance'!$H$19-((B253*Production!$D$29)/2000))<0,"",('Forage Insurance'!$H$19-((B253*Production!$D$29)/2000))*'Forage Insurance'!$H$20) -> 138.0714137 | I253: =IF(('Forage Insurance'!$I$19-((B253*Production!$D$29)/2000))<0,"",('Forage Insurance'!$I$19-((B253*Production!$D$29)/2000))*'Forage Insurance'!$I$20) -> 68.83181682 | J253: =IF(('Forage Insurance'!$J$19-((B253*Production!$D$29)/2000))<0,"",('Forage Insurance'!$J$19-((B253*Production!$D$29)/2000))*'Forage Insurance'!$J$20) -> 107.1549746 | K253: =IF(('Forage Insurance'!$K$19-((B253*Production!$D$29)/2000))<0,"",('Forage Insurance'!$K$19-((B253*Production!$D$29)/2000))*'Forage Insurance'!$K$20) -> 163.6762798 | L253: =IF(('Forage Insurance'!$L$19-((B253*Production!$D$29)/2000))<0,"",('Forage Insurance'!$L$19-((B253*Production!$D$29)/2000))*'Forage Insurance'!$L$20) -> 215.915668 | M253: =IF(('Forage Insurance'!$M$19-((B253*Production!$D$29)/2000))<0,"",('Forage Insurance'!$M$19-((B253*Production!$D$29)/2000))*'Forage Insurance'!$M$20) -> 91.6705
B254: 1 | C254: =IF(('Forage Insurance'!$C$19-((B254*Production!$D$29)/2000))<0,"",('Forage Insurance'!$C$19-((B254*Production!$D$29)/2000))*'Forage Insurance'!$C$20) -> 31.62540483 | D254: =IF(('Forage Insurance'!$D$19-((B254*Production!$D$29)/2000))<0,"",('Forage Insurance'!$D$19-((B254*Production!$D$29)/2000))*'Forage Insurance'!$D$20) -> 52.56053197 | E254: =IF(('Forage Insurance'!$E$19-((B254*Production!$D$29)/2000))<0,"",('Forage Insurance'!$E$19-((B254*Production!$D$29)/2000))*'Forage Insurance'!$E$20) -> 38.03376546 | F254: =IF(('Forage Insurance'!$F$19-((B254*Production!$D$29)/2000))<0,"",('Forage Insurance'!$F$19-((B254*Production!$D$29)/2000))*'Forage Insurance'!$F$20) -> 62.26923461 | G254: =IF(('Forage Insurance'!$G$19-((B254*Production!$D$29)/2000))<0,"",('Forage Insurance'!$G$19-((B254*Production!$D$29)/2000))*'Forage Insurance'!$G$20) -> 133.3835309 | H254: =IF(('Forage Insurance'!$H$19-((B254*Production!$D$29)/2000))<0,"",('Forage Insurance'!$H$19-((B254*Production!$D$29)/2000))*'Forage Insurance'!$H$20) -> 171.2403952 | I254: =IF(('Forage Insurance'!$I$19-((B254*Production!$D$29)/2000))<0,"",('Forage Insurance'!$I$19-((B254*Production!$D$29)/2000))*'Forage Insurance'!$I$20) -> 108.9747893 | J254: =IF(('Forage Insurance'!$J$19-((B254*Production!$D$29)/2000))<0,"",('Forage Insurance'!$J$19-((B254*Production!$D$29)/2000))*'Forage Insurance'!$J$20) -> 147.297947 | K254: =IF(('Forage Insurance'!$K$19-((B254*Production!$D$29)/2000))<0,"",('Forage Insurance'!$K$19-((B254*Production!$D$29)/2000))*'Forage Insurance'!$K$20) -> 203.8192523 | L254: =IF(('Forage Insurance'!$L$19-((B254*Production!$D$29)/2000))<0,"",('Forage Insurance'!$L$19-((B254*Production!$D$29)/2000))*'Forage Insurance'!$L$20) -> 256.0586405 | M254: =IF(('Forage Insurance'!$M$19-((B254*Production!$D$29)/2000))<0,"",('Forage Insurance'!$M$19-((B254*Production!$D$29)/2000))*'Forage Insurance'!$M$20) -> 117.733
B255: 0.75 | C255: =IF(('Forage Insurance'!$C$19-((B255*Production!$D$29)/2000))<0,"",('Forage Insurance'!$C$19-((B255*Production!$D$29)/2000))*'Forage Insurance'!$C$20) -> 43.70231605 | D255: =IF(('Forage Insurance'!$D$19-((B255*Production!$D$29)/2000))<0,"",('Forage Insurance'!$D$19-((B255*Production!$D$29)/2000))*'Forage Insurance'!$D$20) -> 72.63201822 | E255: =IF(('Forage Insurance'!$E$19-((B255*Production!$D$29)/2000))<0,"",('Forage Insurance'!$E$19-((B255*Production!$D$29)/2000))*'Forage Insurance'!$E$20) -> 71.20274696 | F255: =IF(('Forage Insurance'!$F$19-((B255*Production!$D$29)/2000))<0,"",('Forage Insurance'!$F$19-((B255*Production!$D$29)/2000))*'Forage Insurance'!$F$20) -> 95.43821611 | G255: =IF(('Forage Insurance'!$G$19-((B255*Production!$D$29)/2000))<0,"",('Forage Insurance'!$G$19-((B255*Production!$D$29)/2000))*'Forage Insurance'!$G$20) -> 166.5525125 | H255: =IF(('Forage Insurance'!$H$19-((B255*Production!$D$29)/2000))<0,"",('Forage Insurance'!$H$19-((B255*Production!$D$29)/2000))*'Forage Insurance'!$H$20) -> 204.4093767 | I255: =IF(('Forage Insurance'!$I$19-((B255*Production!$D$29)/2000))<0,"",('Forage Insurance'!$I$19-((B255*Production!$D$29)/2000))*'Forage Insurance'!$I$20) -> 149.1177618 | J255: =IF(('Forage Insurance'!$J$19-((B255*Production!$D$29)/2000))<0,"",('Forage Insurance'!$J$19-((B255*Production!$D$29)/2000))*'Forage Insurance'!$J$20) -> 187.4409195 | K255: =IF(('Forage Insurance'!$K$19-((B255*Production!$D$29)/2000))<0,"",('Forage Insurance'!$K$19-((B255*Production!$D$29)/2000))*'Forage Insurance'!$K$20) -> 243.9622248 | L255: =IF(('Forage Insurance'!$L$19-((B255*Production!$D$29)/2000))<0,"",('Forage Insurance'!$L$19-((B255*Production!$D$29)/2000))*'Forage Insurance'!$L$20) -> 296.201613 | M255: =IF(('Forage Insurance'!$M$19-((B255*Production!$D$29)/2000))<0,"",('Forage Insurance'!$M$19-((B255*Production!$D$29)/2000))*'Forage Insurance'!$M$20) -> 143.7955
B256: 0.5 | C256: =IF(('Forage Insurance'!$C$19-((B256*Production!$D$29)/2000))<0,"",('Forage Insurance'!$C$19-((B256*Production!$D$29)/2000))*'Forage Insurance'!$C$20) -> 55.77922726 | D256: =IF(('Forage Insurance'!$D$19-((B256*Production!$D$29)/2000))<0,"",('Forage Insurance'!$D$19-((B256*Production!$D$29)/2000))*'Forage Insurance'!$D$20) -> 92.70350446 | E256: =IF(('Forage Insurance'!$E$19-((B256*Production!$D$29)/2000))<0,"",('Forage Insurance'!$E$19-((B256*Production!$D$29)/2000))*'Forage Insurance'!$E$20) -> 104.3717285 | F256: =IF(('Forage Insurance'!$F$19-((B256*Production!$D$29)/2000))<0,"",('Forage Insurance'!$F$19-((B256*Production!$D$29)/2000))*'Forage Insurance'!$F$20) -> 128.6071976 | G256: =IF(('Forage Insurance'!$G$19-((B256*Production!$D$29)/2000))<0,"",('Forage Insurance'!$G$19-((B256*Production!$D$29)/2000))*'Forage Insurance'!$G$20) -> 199.721494 | H256: =IF(('Forage Insurance'!$H$19-((B256*Production!$D$29)/2000))<0,"",('Forage Insurance'!$H$19-((B256*Production!$D$29)/2000))*'Forage Insurance'!$H$20) -> 237.5783582 | I256: =IF(('Forage Insurance'!$I$19-((B256*Production!$D$29)/2000))<0,"",('Forage Insurance'!$I$19-((B256*Production!$D$29)/2000))*'Forage Insurance'!$I$20) -> 189.2607343 | J256: =IF(('Forage Insurance'!$J$19-((B256*Production!$D$29)/2000))<0,"",('Forage Insurance'!$J$19-((B256*Production!$D$29)/2000))*'Forage Insurance'!$J$20) -> 227.583892 | K256: =IF(('Forage Insurance'!$K$19-((B256*Production!$D$29)/2000))<0,"",('Forage Insurance'!$K$19-((B256*Production!$D$29)/2000))*'Forage Insurance'!$K$20) -> 284.1051973 | L256: =IF(('Forage Insurance'!$L$19-((B256*Production!$D$29)/2000))<0,"",('Forage Insurance'!$L$19-((B256*Production!$D$29)/2000))*'Forage Insurance'!$L$20) -> 336.3445855 | M256: =IF(('Forage Insurance'!$M$19-((B256*Production!$D$29)/2000))<0,"",('Forage Insurance'!$M$19-((B256*Production!$D$29)/2000))*'Forage Insurance'!$M$20) -> 169.858
B257: 0.25 | C257: =IF(('Forage Insurance'!$C$19-((B257*Production!$D$29)/2000))<0,"",('Forage Insurance'!$C$19-((B257*Production!$D$29)/2000))*'Forage Insurance'!$C$20) -> 67.85613847 | D257: =IF(('Forage Insurance'!$D$19-((B257*Production!$D$29)/2000))<0,"",('Forage Insurance'!$D$19-((B257*Production!$D$29)/2000))*'Forage Insurance'!$D$20) -> 112.7749907 | E257: =IF(('Forage Insurance'!$E$19-((B257*Production!$D$29)/2000))<0,"",('Forage Insurance'!$E$19-((B257*Production!$D$29)/2000))*'Forage Insurance'!$E$20) -> 137.54071 | F257: =IF(('Forage Insurance'!$F$19-((B257*Production!$D$29)/2000))<0,"",('Forage Insurance'!$F$19-((B257*Production!$D$29)/2000))*'Forage Insurance'!$F$20) -> 161.7761791 | G257: =IF(('Forage Insurance'!$G$19-((B257*Production!$D$29)/2000))<0,"",('Forage Insurance'!$G$19-((B257*Production!$D$29)/2000))*'Forage Insurance'!$G$20) -> 232.8904755 | H257: =IF(('Forage Insurance'!$H$19-((B257*Production!$D$29)/2000))<0,"",('Forage Insurance'!$H$19-((B257*Production!$D$29)/2000))*'Forage Insurance'!$H$20) -> 270.7473397 | I257: =IF(('Forage Insurance'!$I$19-((B257*Production!$D$29)/2000))<0,"",('Forage Insurance'!$I$19-((B257*Production!$D$29)/2000))*'Forage Insurance'!$I$20) -> 229.4037068 | J257: =IF(('Forage Insurance'!$J$19-((B257*Production!$D$29)/2000))<0,"",('Forage Insurance'!$J$19-((B257*Production!$D$29)/2000))*'Forage Insurance'!$J$20) -> 267.7268645 | K257: =IF(('Forage Insurance'!$K$19-((B257*Production!$D$29)/2000))<0,"",('Forage Insurance'!$K$19-((B257*Production!$D$29)/2000))*'Forage Insurance'!$K$20) -> 324.2481698 | L257: =IF(('Forage Insurance'!$L$19-((B257*Production!$D$29)/2000))<0,"",('Forage Insurance'!$L$19-((B257*Production!$D$29)/2000))*'Forage Insurance'!$L$20) -> 376.4875579 | M257: =IF(('Forage Insurance'!$M$19-((B257*Production!$D$29)/2000))<0,"",('Forage Insurance'!$M$19-((B257*Production!$D$29)/2000))*'Forage Insurance'!$M$20) -> 195.9205
B258: 0 | C258: =IF(('Forage Insurance'!$C$19-((B258*Production!$D$29)/2000))<0,"",('Forage Insurance'!$C$19-((B258*Production!$D$29)/2000))*'Forage Insurance'!$C$20) -> 79.93304969 | D258: =IF(('Forage Insurance'!$D$19-((B258*Production!$D$29)/2000))<0,"",('Forage Insurance'!$D$19-((B258*Production!$D$29)/2000))*'Forage Insurance'!$D$20) -> 132.8464769 | E258: =IF(('Forage Insurance'!$E$19-((B258*Production!$D$29)/2000))<0,"",('Forage Insurance'!$E$19-((B258*Production!$D$29)/2000))*'Forage Insurance'!$E$20) -> 170.7096915 | F258: =IF(('Forage Insurance'!$F$19-((B258*Production!$D$29)/2000))<0,"",('Forage Insurance'!$F$19-((B258*Production!$D$29)/2000))*'Forage Insurance'!$F$20) -> 194.9451606 | G258: =IF(('Forage Insurance'!$G$19-((B258*Production!$D$29)/2000))<0,"",('Forage Insurance'!$G$19-((B258*Production!$D$29)/2000))*'Forage Insurance'!$G$20) -> 266.059457 | H258: =IF(('Forage Insurance'!$H$19-((B258*Production!$D$29)/2000))<0,"",('Forage Insurance'!$H$19-((B258*Production!$D$29)/2000))*'Forage Insurance'!$H$20) -> 303.9163212 | I258: =IF(('Forage Insurance'!$I$19-((B258*Production!$D$29)/2000))<0,"",('Forage Insurance'!$I$19-((B258*Production!$D$29)/2000))*'Forage Insurance'!$I$20) -> 269.5466792 | J258: =IF(('Forage Insurance'!$J$19-((B258*Production!$D$29)/2000))<0,"",('Forage Insurance'!$J$19-((B258*Production!$D$29)/2000))*'Forage Insurance'!$J$20) -> 307.869837 | K258: =IF(('Forage Insurance'!$K$19-((B258*Production!$D$29)/2000))<0,"",('Forage Insurance'!$K$19-((B258*Production!$D$29)/2000))*'Forage Insurance'!$K$20) -> 364.3911422 | L258: =IF(('Forage Insurance'!$L$19-((B258*Production!$D$29)/2000))<0,"",('Forage Insurance'!$L$19-((B258*Production!$D$29)/2000))*'Forage Insurance'!$L$20) -> 416.6305304 | M258: =IF(('Forage Insurance'!$M$19-((B258*Production!$D$29)/2000))<0,"",('Forage Insurance'!$M$19-((B258*Production!$D$29)/2000))*'Forage Insurance'!$M$20) -> 221.983
B259: 0 | C259: =IF(('Forage Insurance'!$C$19-((B259*Production!$D$29)/2000))<0,"",('Forage Insurance'!$C$19-((B259*Production!$D$29)/2000))*'Forage Insurance'!$C$20) -> 79.93304969 | D259: =IF(('Forage Insurance'!$D$19-((B259*Production!$D$29)/2000))<0,"",('Forage Insurance'!$D$19-((B259*Production!$D$29)/2000))*'Forage Insurance'!$D$20) -> 132.8464769 | E259: =IF(('Forage Insurance'!$E$19-((B259*Production!$D$29)/2000))<0,"",('Forage Insurance'!$E$19-((B259*Production!$D$29)/2000))*'Forage Insurance'!$E$20) -> 170.7096915 | F259: =IF(('Forage Insurance'!$F$19-((B259*Production!$D$29)/2000))<0,"",('Forage Insurance'!$F$19-((B259*Production!$D$29)/2000))*'Forage Insurance'!$F$20) -> 194.9451606 | G259: =IF(('Forage Insurance'!$G$19-((B259*Production!$D$29)/2000))<0,"",('Forage Insurance'!$G$19-((B259*Production!$D$29)/2000))*'Forage Insurance'!$G$20) -> 266.059457 | H259: =IF(('Forage Insurance'!$H$19-((B259*Production!$D$29)/2000))<0,"",('Forage Insurance'!$H$19-((B259*Production!$D$29)/2000))*'Forage Insurance'!$H$20) -> 303.9163212 | I259: =IF(('Forage Insurance'!$I$19-((B259*Production!$D$29)/2000))<0,"",('Forage Insurance'!$I$19-((B259*Production!$D$29)/2000))*'Forage Insurance'!$I$20) -> 269.5466792 | J259: =IF(('Forage Insurance'!$J$19-((B259*Production!$D$29)/2000))<0,"",('Forage Insurance'!$J$19-((B259*Production!$D$29)/2000))*'Forage Insurance'!$J$20) -> 307.869837 | K259: =IF(('Forage Insurance'!$K$19-((B259*Production!$D$29)/2000))<0,"",('Forage Insurance'!$K$19-((B259*Production!$D$29)/2000))*'Forage Insurance'!$K$20) -> 364.3911422 | L259: =IF(('Forage Insurance'!$L$19-((B259*Production!$D$29)/2000))<0,"",('Forage Insurance'!$L$19-((B259*Production!$D$29)/2000))*'Forage Insurance'!$L$20) -> 416.6305304 | M259: =IF(('Forage Insurance'!$M$19-((B259*Production!$D$29)/2000))<0,"",('Forage Insurance'!$M$19-((B259*Production!$D$29)/2000))*'Forage Insurance'!$M$20) -> 221.983
B260: 0 | C260: =IF(('Forage Insurance'!$C$19-((B260*Production!$D$29)/2000))<0,"",('Forage Insurance'!$C$19-((B260*Production!$D$29)/2000))*'Forage Insurance'!$C$20) -> 79.93304969 | D260: =IF(('Forage Insurance'!$D$19-((B260*Production!$D$29)/2000))<0,"",('Forage Insurance'!$D$19-((B260*Production!$D$29)/2000))*'Forage Insurance'!$D$20) -> 132.8464769 | E260: =IF(('Forage Insurance'!$E$19-((B260*Production!$D$29)/2000))<0,"",('Forage Insurance'!$E$19-((B260*Production!$D$29)/2000))*'Forage Insurance'!$E$20) -> 170.7096915 | F260: =IF(('Forage Insurance'!$F$19-((B260*Production!$D$29)/2000))<0,"",('Forage Insurance'!$F$19-((B260*Production!$D$29)/2000))*'Forage Insurance'!$F$20) -> 194.9451606 | G260: =IF(('Forage Insurance'!$G$19-((B260*Production!$D$29)/2000))<0,"",('Forage Insurance'!$G$19-((B260*Production!$D$29)/2000))*'Forage Insurance'!$G$20) -> 266.059457 | H260: =IF(('Forage Insurance'!$H$19-((B260*Production!$D$29)/2000))<0,"",('Forage Insurance'!$H$19-((B260*Production!$D$29)/2000))*'Forage Insurance'!$H$20) -> 303.9163212 | I260: =IF(('Forage Insurance'!$I$19-((B260*Production!$D$29)/2000))<0,"",('Forage Insurance'!$I$19-((B260*Production!$D$29)/2000))*'Forage Insurance'!$I$20) -> 269.5466792 | J260: =IF(('Forage Insurance'!$J$19-((B260*Production!$D$29)/2000))<0,"",('Forage Insurance'!$J$19-((B260*Production!$D$29)/2000))*'Forage Insurance'!$J$20) -> 307.869837 | K260: =IF(('Forage Insurance'!$K$19-((B260*Production!$D$29)/2000))<0,"",('Forage Insurance'!$K$19-((B260*Production!$D$29)/2000))*'Forage Insurance'!$K$20) -> 364.3911422 | L260: =IF(('Forage Insurance'!$L$19-((B260*Production!$D$29)/2000))<0,"",('Forage Insurance'!$L$19-((B260*Production!$D$29)/2000))*'Forage Insurance'!$L$20) -> 416.6305304 | M260: =IF(('Forage Insurance'!$M$19-((B260*Production!$D$29)/2000))<0,"",('Forage Insurance'!$M$19-((B260*Production!$D$29)/2000))*'Forage Insurance'!$M$20) -> 221.983
B261: 0 | C261: =IF(('Forage Insurance'!$C$19-((B261*Production!$D$29)/2000))<0,"",('Forage Insurance'!$C$19-((B261*Production!$D$29)/2000))*'Forage Insurance'!$C$20) -> 79.93304969 | D261: =IF(('Forage Insurance'!$D$19-((B261*Production!$D$29)/2000))<0,"",('Forage Insurance'!$D$19-((B261*Production!$D$29)/2000))*'Forage Insurance'!$D$20) -> 132.8464769 | E261: =IF(('Forage Insurance'!$E$19-((B261*Production!$D$29)/2000))<0,"",('Forage Insurance'!$E$19-((B261*Production!$D$29)/2000))*'Forage Insurance'!$E$20) -> 170.7096915 | F261: =IF(('Forage Insurance'!$F$19-((B261*Production!$D$29)/2000))<0,"",('Forage Insurance'!$F$19-((B261*Production!$D$29)/2000))*'Forage Insurance'!$F$20) -> 194.9451606 | G261: =IF(('Forage Insurance'!$G$19-((B261*Production!$D$29)/2000))<0,"",('Forage Insurance'!$G$19-((B261*Production!$D$29)/2000))*'Forage Insurance'!$G$20) -> 266.059457 | H261: =IF(('Forage Insurance'!$H$19-((B261*Production!$D$29)/2000))<0,"",('Forage Insurance'!$H$19-((B261*Production!$D$29)/2000))*'Forage Insurance'!$H$20) -> 303.9163212 | I261: =IF(('Forage Insurance'!$I$19-((B261*Production!$D$29)/2000))<0,"",('Forage Insurance'!$I$19-((B261*Production!$D$29)/2000))*'Forage Insurance'!$I$20) -> 269.5466792 | J261: =IF(('Forage Insurance'!$J$19-((B261*Production!$D$29)/2000))<0,"",('Forage Insurance'!$J$19-((B261*Production!$D$29)/2000))*'Forage Insurance'!$J$20) -> 307.869837 | K261: =IF(('Forage Insurance'!$K$19-((B261*Production!$D$29)/2000))<0,"",('Forage Insurance'!$K$19-((B261*Production!$D$29)/2000))*'Forage Insurance'!$K$20) -> 364.3911422 | L261: =IF(('Forage Insurance'!$L$19-((B261*Production!$D$29)/2000))<0,"",('Forage Insurance'!$L$19-((B261*Production!$D$29)/2000))*'Forage Insurance'!$L$20) -> 416.6305304 | M261: =IF(('Forage Insurance'!$M$19-((B261*Production!$D$29)/2000))<0,"",('Forage Insurance'!$M$19-((B261*Production!$D$29)/2000))*'Forage Insurance'!$M$20) -> 221.983
B262: 0 | C262: =IF(('Forage Insurance'!$C$19-((B262*Production!$D$29)/2000))<0,"",('Forage Insurance'!$C$19-((B262*Production!$D$29)/2000))*'Forage Insurance'!$C$20) -> 79.93304969 | D262: =IF(('Forage Insurance'!$D$19-((B262*Production!$D$29)/2000))<0,"",('Forage Insurance'!$D$19-((B262*Production!$D$29)/2000))*'Forage Insurance'!$D$20) -> 132.8464769 | E262: =IF(('Forage Insurance'!$E$19-((B262*Production!$D$29)/2000))<0,"",('Forage Insurance'!$E$19-((B262*Production!$D$29)/2000))*'Forage Insurance'!$E$20) -> 170.7096915 | F262: =IF(('Forage Insurance'!$F$19-((B262*Production!$D$29)/2000))<0,"",('Forage Insurance'!$F$19-((B262*Production!$D$29)/2000))*'Forage Insurance'!$F$20) -> 194.9451606 | G262: =IF(('Forage Insurance'!$G$19-((B262*Production!$D$29)/2000))<0,"",('Forage Insurance'!$G$19-((B262*Production!$D$29)/2000))*'Forage Insurance'!$G$20) -> 266.059457 | H262: =IF(('Forage Insurance'!$H$19-((B262*Production!$D$29)/2000))<0,"",('Forage Insurance'!$H$19-((B262*Production!$D$29)/2000))*'Forage Insurance'!$H$20) -> 303.9163212 | I262: =IF(('Forage Insurance'!$I$19-((B262*Production!$D$29)/2000))<0,"",('Forage Insurance'!$I$19-((B262*Production!$D$29)/2000))*'Forage Insurance'!$I$20) -> 269.5466792 | J262: =IF(('Forage Insurance'!$J$19-((B262*Production!$D$29)/2000))<0,"",('Forage Insurance'!$J$19-((B262*Production!$D$29)/2000))*'Forage Insurance'!$J$20) -> 307.869837 | K262: =IF(('Forage Insurance'!$K$19-((B262*Production!$D$29)/2000))<0,"",('Forage Insurance'!$K$19-((B262*Production!$D$29)/2000))*'Forage Insurance'!$K$20) -> 364.3911422 | L262: =IF(('Forage Insurance'!$L$19-((B262*Production!$D$29)/2000))<0,"",('Forage Insurance'!$L$19-((B262*Production!$D$29)/2000))*'Forage Insurance'!$L$20) -> 416.6305304 | M262: =IF(('Forage Insurance'!$M$19-((B262*Production!$D$29)/2000))<0,"",('Forage Insurance'!$M$19-((B262*Production!$D$29)/2000))*'Forage Insurance'!$M$20) -> 221.983
B263: 0 | C263: =IF(('Forage Insurance'!$C$19-((B263*Production!$D$29)/2000))<0,"",('Forage Insurance'!$C$19-((B263*Production!$D$29)/2000))*'Forage Insurance'!$C$20) -> 79.93304969 | D263: =IF(('Forage Insurance'!$D$19-((B263*Production!$D$29)/2000))<0,"",('Forage Insurance'!$D$19-((B263*Production!$D$29)/2000))*'Forage Insurance'!$D$20) -> 132.8464769 | E263: =IF(('Forage Insurance'!$E$19-((B263*Production!$D$29)/2000))<0,"",('Forage Insurance'!$E$19-((B263*Production!$D$29)/2000))*'Forage Insurance'!$E$20) -> 170.7096915 | F263: =IF(('Forage Insurance'!$F$19-((B263*Production!$D$29)/2000))<0,"",('Forage Insurance'!$F$19-((B263*Production!$D$29)/2000))*'Forage Insurance'!$F$20) -> 194.9451606 | G263: =IF(('Forage Insurance'!$G$19-((B263*Production!$D$29)/2000))<0,"",('Forage Insurance'!$G$19-((B263*Production!$D$29)/2000))*'Forage Insurance'!$G$20) -> 266.059457 | H263: =IF(('Forage Insurance'!$H$19-((B263*Production!$D$29)/2000))<0,"",('Forage Insurance'!$H$19-((B263*Production!$D$29)/2000))*'Forage Insurance'!$H$20) -> 303.9163212 | I263: =IF(('Forage Insurance'!$I$19-((B263*Production!$D$29)/2000))<0,"",('Forage Insurance'!$I$19-((B263*Production!$D$29)/2000))*'Forage Insurance'!$I$20) -> 269.5466792 | J263: =IF(('Forage Insurance'!$J$19-((B263*Production!$D$29)/2000))<0,"",('Forage Insurance'!$J$19-((B263*Production!$D$29)/2000))*'Forage Insurance'!$J$20) -> 307.869837 | K263: =IF(('Forage Insurance'!$K$19-((B263*Production!$D$29)/2000))<0,"",('Forage Insurance'!$K$19-((B263*Production!$D$29)/2000))*'Forage Insurance'!$K$20) -> 364.3911422 | L263: =IF(('Forage Insurance'!$L$19-((B263*Production!$D$29)/2000))<0,"",('Forage Insurance'!$L$19-((B263*Production!$D$29)/2000))*'Forage Insurance'!$L$20) -> 416.6305304 | M263: =IF(('Forage Insurance'!$M$19-((B263*Production!$D$29)/2000))<0,"",('Forage Insurance'!$M$19-((B263*Production!$D$29)/2000))*'Forage Insurance'!$M$20) -> 221.983
B264: 0 | C264: =IF(('Forage Insurance'!$C$19-((B264*Production!$D$29)/2000))<0,"",('Forage Insurance'!$C$19-((B264*Production!$D$29)/2000))*'Forage Insurance'!$C$20) -> 79.93304969 | D264: =IF(('Forage Insurance'!$D$19-((B264*Production!$D$29)/2000))<0,"",('Forage Insurance'!$D$19-((B264*Production!$D$29)/2000))*'Forage Insurance'!$D$20) -> 132.8464769 | E264: =IF(('Forage Insurance'!$E$19-((B264*Production!$D$29)/2000))<0,"",('Forage Insurance'!$E$19-((B264*Production!$D$29)/2000))*'Forage Insurance'!$E$20) -> 170.7096915 | F264: =IF(('Forage Insurance'!$F$19-((B264*Production!$D$29)/2000))<0,"",('Forage Insurance'!$F$19-((B264*Production!$D$29)/2000))*'Forage Insurance'!$F$20) -> 194.9451606 | G264: =IF(('Forage Insurance'!$G$19-((B264*Production!$D$29)/2000))<0,"",('Forage Insurance'!$G$19-((B264*Production!$D$29)/2000))*'Forage Insurance'!$G$20) -> 266.059457 | H264: =IF(('Forage Insurance'!$H$19-((B264*Production!$D$29)/2000))<0,"",('Forage Insurance'!$H$19-((B264*Production!$D$29)/2000))*'Forage Insurance'!$H$20) -> 303.9163212 | I264: =IF(('Forage Insurance'!$I$19-((B264*Production!$D$29)/2000))<0,"",('Forage Insurance'!$I$19-((B264*Production!$D$29)/2000))*'Forage Insurance'!$I$20) -> 269.5466792 | J264: =IF(('Forage Insurance'!$J$19-((B264*Production!$D$29)/2000))<0,"",('Forage Insurance'!$J$19-((B264*Production!$D$29)/2000))*'Forage Insurance'!$J$20) -> 307.869837 | K264: =IF(('Forage Insurance'!$K$19-((B264*Production!$D$29)/2000))<0,"",('Forage Insurance'!$K$19-((B264*Production!$D$29)/2000))*'Forage Insurance'!$K$20) -> 364.3911422 | L264: =IF(('Forage Insurance'!$L$19-((B264*Production!$D$29)/2000))<0,"",('Forage Insurance'!$L$19-((B264*Production!$D$29)/2000))*'Forage Insurance'!$L$20) -> 416.6305304 | M264: =IF(('Forage Insurance'!$M$19-((B264*Production!$D$29)/2000))<0,"",('Forage Insurance'!$M$19-((B264*Production!$D$29)/2000))*'Forage Insurance'!$M$20) -> 221.983
B265: 0 | C265: =IF(('Forage Insurance'!$C$19-((B265*Production!$D$29)/2000))<0,"",('Forage Insurance'!$C$19-((B265*Production!$D$29)/2000))*'Forage Insurance'!$C$20) -> 79.93304969 | D265: =IF(('Forage Insurance'!$D$19-((B265*Production!$D$29)/2000))<0,"",('Forage Insurance'!$D$19-((B265*Production!$D$29)/2000))*'Forage Insurance'!$D$20) -> 132.8464769 | E265: =IF(('Forage Insurance'!$E$19-((B265*Production!$D$29)/2000))<0,"",('Forage Insurance'!$E$19-((B265*Production!$D$29)/2000))*'Forage Insurance'!$E$20) -> 170.7096915 | F265: =IF(('Forage Insurance'!$F$19-((B265*Production!$D$29)/2000))<0,"",('Forage Insurance'!$F$19-((B265*Production!$D$29)/2000))*'Forage Insurance'!$F$20) -> 194.9451606 | G265: =IF(('Forage Insurance'!$G$19-((B265*Production!$D$29)/2000))<0,"",('Forage Insurance'!$G$19-((B265*Production!$D$29)/2000))*'Forage Insurance'!$G$20) -> 266.059457 | H265: =IF(('Forage Insurance'!$H$19-((B265*Production!$D$29)/2000))<0,"",('Forage Insurance'!$H$19-((B265*Production!$D$29)/2000))*'Forage Insurance'!$H$20) -> 303.9163212 | I265: =IF(('Forage Insurance'!$I$19-((B265*Production!$D$29)/2000))<0,"",('Forage Insurance'!$I$19-((B265*Production!$D$29)/2000))*'Forage Insurance'!$I$20) -> 269.5466792 | J265: =IF(('Forage Insurance'!$J$19-((B265*Production!$D$29)/2000))<0,"",('Forage Insurance'!$J$19-((B265*Production!$D$29)/2000))*'Forage Insurance'!$J$20) -> 307.869837 | K265: =IF(('Forage Insurance'!$K$19-((B265*Production!$D$29)/2000))<0,"",('Forage Insurance'!$K$19-((B265*Production!$D$29)/2000))*'Forage Insurance'!$K$20) -> 364.3911422 | L265: =IF(('Forage Insurance'!$L$19-((B265*Production!$D$29)/2000))<0,"",('Forage Insurance'!$L$19-((B265*Production!$D$29)/2000))*'Forage Insurance'!$L$20) -> 416.6305304 | M265: =IF(('Forage Insurance'!$M$19-((B265*Production!$D$29)/2000))<0,"",('Forage Insurance'!$M$19-((B265*Production!$D$29)/2000))*'Forage Insurance'!$M$20) -> 221.983
B267: ='Forage Insurance'!B4&" AgriInsurance Indemnity ($ per acre) Based on "&TEXT(Production!D29,"#,###")&" lb. Bales Per Acre Yield" -> Forage Region 6 AgriInsurance Indemnity ($ per acre) Based on 1,500 lb. Bales Per Acre Yield

Sheet Charts
N22: Forage Insurance Indemnity

Sheet Production
M2: ****HIDE Columns**** | R2: =1-(H38/100) -> 0.5 | S2: =1-(I38/100) -> 0.5
B3: Estimated Yield of Forage - Tons per Acre 1 | N3: =1-(D38/100) -> 0.879 | O3: =1-(E38/100) -> 0.874 | R3: wet quivalent | U3: wet quivalent
N4: DRY MATTER | R4: 100% - DM | U4: 0.12 | V4: =" +100%" -> +100%
D5: Dry Hay | H5: Wrapped Bale Silage | N5: Dry Hay | R5: Wrapped Bale Silage | U5: Wrapped Bale Silage
D6: Alfalfa | E6: Alfalfa-Grass | F6: Greenfeed | H6: Alfalfa | I6: Alfalfa-Grass | J6: Greenfeed | N6: Alfalfa | O6: Alfalfa-Grass | R6: Alfalfa | S6: Alfalfa-Grass | U6: Alfalfa | V6: Alfalfa-Grass
C7: Years | D7: tons/acre | E7: tons/acre | F7: tons/acre | H7: tons/acre | I7: tons/acre | J7: tons/acre | N7: tons/acre | O7: tons/acre | R7: tons/acre | S7: tons/acre | U7: tons/acre | V7: tons/acre
B8: (establishment year) | C8: 1 | D8: 2 | E8: 1.8 | F8: 2.83 | H8: 3.94 | I8: 3.52 | J8: 5.52 | M8: 1 | N8: =IF(D8>0,SUM(1-($D$38/100))*D8,"") -> 1.758 | O8: =IF(E8>0,SUM(1-($E$38/100))*E8,"") -> 1.5732 | R8: =IF(N8="","",N8/(1-($H$38/100))) -> 3.516 | S8: =IF(O8="","",O8/(1-($I$38/100))) -> 3.1464 | U8: =IF(N8="","",(N8*(1+$U$4))/(1-($H$38/100))) -> 3.93792 | V8: =IF(O8="","",(O8*(1+$U$4))/(1-($H$38/100))) -> 3.523968
C9: 2 | D9: 3.6 | E9: 3.2 | H9: 7.09 | I9: 6.27 | M9: 2 | N9: =IF(D9>0,SUM(1-($D$38/100))*D9,"") -> 3.1644 | O9: =IF(E9>0,SUM(1-($E$38/100))*E9,"") -> 2.7968 | R9: =IF(N9="","",N9/(1-($H$38/100))) -> 6.3288 | S9: =IF(O9="","",O9/(1-($I$38/100))) -> 5.5936 | U9: 7.088256 | V9: 6.264832
C10: 3 | D10: 3.6 | E10: 3.2 | H10: 7.09 | I10: 6.27 | M10: 3 | N10: 3.1644 | O10: 2.7968 | R10: 6.3288 | S10: 5.5936 | U10: 7.088256 | V10: 6.264832
C11: 4 | D11: 3.6 | E11: 3 | H11: 7.09 | I11: 5.87 | M11: 4 | N11: 3.1644 | O11: 2.622 | R11: 6.3288 | S11: 5.244 | U11: 7.088256 | V11: 5.87328
C12: 5 | D12: 3.2 | E12: 2.8 | H12: 6.3 | I12: 5.48 | M12: 5 | N12: 2.8128 | O12: 2.4472 | R12: 5.6256 | S12: 4.8944 | U12: 6.300672 | V12: 5.481728
C13: 6 | E13: 2.6 | I13: 5.09 | M13: 6 | O13: 2.2724 | S13: 4.5448 | V13: 5.090176
C14: 7 | E14: 2.4 | I14: 4.7 | M14: 7 | O14: 2.0976 | S14: 4.1952 | V14: 4.698624
C15: 8 | E15: 2.3 | I15: 4.5 | M15: 8 | O15: 2.0102 | S15: 4.0204 | V15: 4.502848
C16: 9 | M16: 9
C17: 10 | M17: 10
C18: 11 | M18: 11
B20: Total Yield (tons) | D20: =SUM(D9:D18) -> 14 | E20: =SUM(E9:E18) -> 19.5 | F20: =F8 -> 2.83 | H20: =SUM(H9:H18) -> 27.57 | I20: =SUM(I9:I18) -> 38.18 | J20: =J8 -> 5.52 | N20: =SUM(N9:N18) -> 12.306 | O20: =SUM(O9:O18) -> 17.043 | R20: =SUM(R9:R18) -> 24.612 | S20: =SUM(S9:S18) -> 34.086 | U20: =SUM(U9:U18) -> 27.56544 | V20: =SUM(V9:V18) -> 38.17632
B21: Average Yield (tons/acre) | D21: =ROUND(D20/COUNT(D9:D18),2) -> 3.5 | E21: =ROUND(E20/COUNT(E9:E18),2) -> 2.79 | F21: =F8 -> 2.83 | H21: =ROUND(H20/COUNT(H9:H18),2) -> 6.89 | I21: =ROUND(I20/COUNT(I9:I18),2) -> 5.45 | J21: =J8 -> 5.52 | N21: =ROUND(N20/COUNT(N9:N18),2) -> 3.08 | O21: =ROUND(O20/COUNT(O9:O18),2) -> 2.43 | R21: =ROUND(R20/COUNT(R9:R18),2) -> 6.15 | S21: =ROUND(S20/COUNT(S9:S18),2) -> 4.87 | U21: =ROUND(U20/COUNT(U9:U18),2) -> 6.89 | V21: =ROUND(V20/COUNT(V9:V18),2) -> 5.45
B22: Avg. Dry Matter Yield (tons/acre) | D22: =ROUND(D21*(1-(D38/100)),2) -> 3.08 | E22: =ROUND(E21*(1-(E38/100)),2) -> 2.44 | F22: =ROUND(F21*(1-(F38/100)),2) -> 2.43 | H22: =ROUND(H21*(1-(H38/100)),2) -> 3.45 | I22: =ROUND(I21*(1-(I38/100)),2) -> 2.73 | J22: =ROUND(J21*(1-(J38/100)),2) -> 2.76
B23: Bales (per acre) | D23: =ROUND((D21*2000)/$D$29,1) -> 4.7 | E23: =ROUND((E21*2000)/$D$29,1) -> 3.7 | F23: =ROUND((F21*2000)/$D$29,1) -> 3.8 | H23: =ROUND((H21*2000)/$H$29,1) -> 6.9 | I23: =ROUND((I21*2000)/$H$29,1) -> 5.5 | J23: =ROUND((J21*2000)/$H$29,1) -> 5.5
B24: Years production | D24: =COUNT(D9:D18) -> 4 | E24: =COUNT(E9:E18) -> 7 | F24: =COUNT(F8) -> 1 | H24: =COUNT(H9:H18) -> 4 | I24: =COUNT(I9:I18) -> 7 | J24: =COUNT(J8) -> 1 | N24: =COUNT(N9:N18) -> 4 | O24: =COUNT(O9:O18) -> 7 | R24: =COUNT(R9:R18) -> 4 | S24: =COUNT(S9:S18) -> 7 | U24: =COUNT(U9:U18) -> 4 | V24: =COUNT(V9:V18) -> 7
B25: Years rotation | D25: =COUNT(D8:D18) -> 5 | E25: =COUNT(E8:E18) -> 8 | F25: =COUNT(F8:F18) -> 1 | H25: =COUNT(H8:H18) -> 5 | I25: =COUNT(I8:I18) -> 8 | J25: =COUNT(J8:J18) -> 1 | N25: =COUNT(N8:N18) -> 5 | O25: =COUNT(O8:O18) -> 8 | R25: =COUNT(R8:R18) -> 5 | S25: =COUNT(S8:S18) -> 8 | U25: =COUNT(U8:U18) -> 5 | V25: =COUNT(V8:V18) -> 8
B26: AgriInsurance - Individual Coverage | D26: 1 | E26: 1 | F26: 1 | H26: =D26 -> 1 | I26: =E26 -> 1 | J26: =F26 -> 1
D28: Dry Hay | H28: Wrapped Silage
B29: Bale Weight (lbs.) | D29: 1500 | H29: 2000
B30: Estimated Storage Loss | D30: 0.2 | H30: 0.05
B32: Forage Analysis
D34: Dry Hay | H34: Wrapped Bale Silage
D35: Alfalfa | E35: Alfalfa-Grass | F35: Greenfeed | H35: Alfalfa | I35: Alfalfa-Grass | J35: Greenfeed
B36: Crude protein DM (CP)% | D36: 18.2 | E36: 14 | F36: 9.9 | H36: 18.2 | I36: 14.6 | J36: 10.6
B37: Energy DM (TDN) % | D37: 61.5 | E37: 60 | F37: 58.4 | H37: 62.5 | I37: 60.4 | J37: 60.43
B38: As fed moisture % | D38: 12.1 | E38: 12.6 | F38: 14.2 | H38: 50 | I38: 50 | J38: 50
A40: 1. Users are reminded to adjust fertilizer rates when making changes to forage yields.
B41: ="Forage yields are based on Forage Region #6 average yields with an IC of 1.25. Baled Silage DM yields are increased "&U4*100&"%." -> Forage yields are based on Forage Region #6 average yields with an IC of 1.25. Baled Silage DM yields are increased 12%.
B43: Comparable Forage Analysis
D44: Barley Silage | E44: ="Corn Silage ("&E46&" ton)" -> Corn Silage (15 ton) | F44: ="Corn Silage ("&F46&" ton)" -> Corn Silage (20 ton)
B45: Total Production Cost ($/acre) | D45: 415.67 | E45: 604.67 | F45: =604.22+60 -> 664.22
B46: Average Yield (tons/acre) | D46: 7.5 | E46: 15 | F46: 20
B47: As fed moisture % | D47: 63.2 | E47: 65 | F47: 65
B48: Avg. Dry Matter Yield (tons/acre) | D48: =ROUND(D46*(1-(D47/100)),2) -> 2.76 | E48: =ROUND(E46*(1-(E47/100)),2) -> 5.25 | F48: =ROUND(F46*(1-(F47/100)),2) -> 7
B49: DM Cost ($/ton) | D49: =D45/D48 -> 150.6050725 | E49: =E45/E48 -> 115.1752381 | F49: =F45/F48 -> 94.88857143
B50: As Fed Cost ($/ton) | D50: =D45/D46 -> 55.42266667 | E50: =E45/E46 -> 40.31133333 | F50: =F45/F46 -> 33.211
B51: Crude protein DM (CP)% | D51: 11.1 | E51: 8.7 | F51: 8.7
B52: Energy DM (TDN) % | D52: 62.8 | E52: 64.6 | F52: 64.6
B53: Estimated Storage Loss | D53: 0.05 | E53: 0.05 | F53: 0.05
B54: TDN Cost ($/lb. DM) | D54: =D49/(2000*(D52/100)) -> 0.1199084972 | E54: =E49/(2000*(E52/100)) -> 0.08914492113 | F54: =F49/(2000*(F52/100)) -> 0.07344316674
B55: CP Cost ($/lb. DM) | D55: =D49/(2000*(D51/100)) -> 0.6784012273 | E55: =E49/(2000*(E51/100)) -> 0.6619266557 | F55: =F49/(2000*(F51/100)) -> 0.5453366174
B56: TDN Cost ($/lb. DM) w/storage loss | D56: =D49/(2000*(1-D53)*(D52/100)) -> 0.1262194707 | E56: =E49/(2000*(1-E53)*(E52/100)) -> 0.09383675908 | F56: =F49/(2000*(1-F53)*(F52/100)) -> 0.07730859657
B57: CP Cost ($/lb. DM) w/storage loss | D57: =D49/(2000*(1-D53)*(D51/100)) -> 0.7141065551 | E57: =E49/(2000*(1-E53)*(E51/100)) -> 0.6967649008 | F57: =F49/(2000*(1-F53)*(F51/100)) -> 0.5740385446

Sheet Seed, Fertilizer & Chemical
A1: Seed & Treatment
D2: Seeding Rate | G2: Price | J2: Cost
A3: Crop | D3: per Acre | G3: per Unit | J3: per Acre
A4: Alfalfa Hay
B5: Alfalfa hay | D5: 10 | E5: lb. | G5: 4.25 | H5: /lb. | J5: =ROUND(D5*G5,2) -> 42.5
A6: Alfalfa-Grass Hay
B7: Alfalfa-grass hay | D7: 10 | E7: lb. | G7: 3.6 | H7: /lb. | J7: =ROUND(D7*G7,2) -> 36
B8: Oat greenfeed (nurse crop) | D8: 1.25 | E8: bu | G8: 12 | H8: /bu | J8: =ROUND(D8*G8,2) -> 15
A9: Greenfeed Hay
B10: Oats | D10: 2.5 | E10: bu | G10: 12 | H10: /bu | J10: =ROUND(D10*G10,2) -> 30
A13: Fertilizer 1
D14: Bulk Price | G14: Actual Nutrient | J14: Nitrogen | M14: Sulphur
B15: Fertilizer Type | D15: $/tonne | G15: $/lb. | J15: Usage | M15: Usage
B16: Nitrogen: (urea) 46-0-0 | D16: 825 | G16: =SUM(D16/(2204.5855*0.46)) -> 0.8135217531 | J16: 1 | M16: -
B17: Nitrogen: (NH3) 82-0-0 | D17: 1300 | G17: =SUM(D17/(2204.5855*0.82)) -> 0.7191219636 | J17: 0 | M17: -
B18: Nitrogen: (liquid) 28-0-0 | D18: 500 | G18: =SUM(D18/(2204.5855*0.28)) -> 0.8100000139 | J18: 0 | M18: -
B19: Phosphorus: 11-52-0 | D19: 1075 | G19: =SUM((D19-(G16*(0.11*2204.5855)))/(2204.5855*0.52)) -> 0.7656396453 | J19: - | M19: -
B20: Potash: 0-0-60 | D20: 625 | G20: =SUM(D20/(2204.5855*0.6)) -> 0.4725000081 | J20: - | M20: -
B21: Sulphur: 20.5-0-0-24 | D21: 600 | G21: =SUM((D21-(G16*(0.205*2204.5855)))/(2204.5855*0.24)) -> 0.4391168554 | J21: - | M21: 1
B22: MES S15: 13-33-0-15 | D22: 1000 | G22: =SUM((D22-(G16*(0.13*2204.5855))-(G19*(0.33*2204.5855)))/(2204.5855*0.15)) -> 0.6345406464 | H22: 0 | J22: - | M22: 0
S23: ***HIDE***
C24: Amount of Actual Pounds of Elements Applied Per Acre | T24: 82-0-0 | X24: 28-0-0 | AD24: 46-0-0 | AH24: 11-52-0 | AK24: 0-0-60 | AN24: 20.5-0-0-24 | AQ24: 13-33-0-15
C25: Nitrogen | F25: Phosphorus | I25: Potash | L25: Sulphur | O25: Total | S25: preseed | T25: preseed | U25: preseed | V25: preseed | W25: suppl | X25: suppl | Y25: suppl | Z25: suppl | AA25: blend | AB25: blend | AC25: blend | AD25: blend | AE25: blend | AF25: blend | AG25: blend | AH25: blend | AI25: blend | AJ25: blend | AK25: blend | AL25: blend | AM25: blend | AN25: blend | AO25: blend | AP25: blend | AQ25: blend | AR25: blend | AS25: blend | AT25: N phos
A26: Crop | C26: lbs. | D26: $/acre | F26: lbs. | G26: $/acre | I26: lbs. | J26: $/acre | L26: lbs. | M26: $/acre | O26: $/acre | S26: N actual | T26: N lbs | U26: N MT | V26: N cost | W26: N actual | X26: N lbs | Y26: N MT | Z26: N cost | AA26: N phos | AB26: N sul1 | AC26: N sul2 | AD26: N urea | AE26: N lbs | AF26: N MT | AG26: N cost | AH26: phos lbs | AI26: phos MT | AJ26: phos cost | AK26: potash | AL26: pot MT | AM26: pot cost | AN26: sul 1 lbs | AO26: sul 1 MT | AP26: sul 1 cost | AQ26: sul 2 lbs | AR26: sul 2 MT | AS26: sul 2 cost | AT26: lbs
A27: Alfalfa Hay | R27: OLD | S27: =SUM(C27*$J$17) -> 0 | T27: =MAXA(0,(S27)/(0.82)) -> 0 | U27: =(T27)/2204.6 -> 0 | V27: =SUM(U27*$D$17) -> 0 | W27: =SUM(C27*$J$18) -> 0 | X27: =MAXA(0,(W27)/(0.28)) -> 0 | Y27: =(X27)/2204.6 -> 0 | Z27: =SUM(Y27*$D$18) -> 0 | AA27: =SUM(AH27*0.11) -> 0 | AB27: =SUM(AN27*0.205) -> 0 | AC27: =SUM(AQ27*0.13) -> 0 | AD27: =SUM(C27-(AA27+AB27+AC27+W27+S27)) -> 0 | AE27: =MAXA(0,(AD27)/(0.46)) -> 0 | AF27: =(AE27)/2204.6 -> 0 | AG27: =SUM(AF27*$D$16) -> 0 | AH27: =MAXA(0,(F27-(AQ27*0.33))/0.52) -> 0 | AI27: =(AH27)/2204.6 -> 0 | AJ27: =SUM(AI27*$D$19) -> 0 | AK27: =SUM(I27/0.6) -> 0 | AL27: =(AK27)/2204.6 -> 0 | AM27: =SUM(AL27*$D$20) -> 0 | AN27: =MAXA(0,SUM(L27*$M$21)/0.24) -> 0 | AO27: =(AN27)/2204.6 -> 0 | AP27: =SUM(AO27*$D$21) -> 0 | AQ27: =MAXA(0,SUM(L27*$M$22)/0.15) -> 0 | AR27: =(AQ27)/2204.6 -> 0 | AS27: =SUM(AR27*$D$22) -> 0
B28: Alfalfa hay | C28: 0 | D28: =IF(SUM($J$16:$J$18)<>100%,"ERROR",SUM(V28+Z28+AG28)) -> 0 | F28: 60 | G28: =AJ28 -> 56.26347707 | I28: 65 | J28: =AM28 -> 30.71229853 | L28: 17 | M28: =IF(SUM($M$21:$M$22)<>100%,"ERROR",AP28+AS28) -> 19.27787354 | O28: =D28+G28+J28+M28 -> 106.2536491 | R28: 55.84388311 | S28: =SUM(C28*$J$17) -> 0 | T28: =MAXA(0,(S28)/(0.82)) -> 0 | U28: =(T28)/2204.6 -> 0 | V28: =SUM(U28*$D$17) -> 0 | W28: =SUM(C28*$J$18) -> 0 | X28: =MAXA(0,(W28)/(0.28)) -> 0 | Y28: =(X28)/2204.6 -> 0 | Z28: =SUM(Y28*$D$18) -> 0 | AA28: =SUM(AH28*0.11) -> 12.69230769 | AB28: =SUM(AN28*0.205) -> 14.52083333 | AC28: =SUM(AQ28*0.13) -> 0 | AD28: =SUM(C28-(AA28+AB28+AC28+W28+S28)) -> -27.21314103 | AE28: =MAXA(0,(AD28)/(0.46)) -> 0 | AF28: =(AE28)/2204.6 -> 0 | AG28: =SUM(AF28*$D$16) -> 0 | AH28: =MAXA(0,(F28-(AQ28*0.33))/0.52) -> 115.3846154 | AI28: =(AH28)/2204.6 -> 0.0523381182 | AJ28: =SUM(AI28*$D$19) -> 56.26347707 | AK28: =SUM(I28/0.6) -> 108.3333333 | AL28: =(AK28)/2204.6 -> 0.04913967764 | AM28: =SUM(AL28*$D$20) -> 30.71229853 | AN28: =MAXA(0,SUM(L28*$M$21)/0.24) -> 70.83333333 | AO28: =(AN28)/2204.6 -> 0.03212978923 | AP28: =SUM(AO28*$D$21) -> 19.27787354 | AQ28: =MAXA(0,SUM(L28*$M$22)/0.15) -> 0 | AR28: =(AQ28)/2204.6 -> 0 | AS28: =SUM(AR28*$D$22) -> 0
A29: Alfalfa-Grass Hay | S29: 0 | T29: 0 | U29: 0 | V29: 0 | W29: 0 | X29: 0 | Y29: 0 | Z29: 0 | AA29: 0 | AB29: 0 | AC29: 0 | AD29: 0 | AE29: 0 | AF29: 0 | AG29: 0 | AH29: 0 | AI29: 0 | AJ29: 0 | AK29: 0 | AL29: 0 | AM29: 0 | AN29: 0 | AO29: 0 | AP29: 0 | AQ29: 0 | AR29: 0 | AS29: 0
B30: Alfalfa-grass hay | C30: 0 | D30: =IF(SUM($J$16:$J$18)<>100%,"ERROR",SUM(V30+Z30+AG30)) -> 0 | F30: 45 | G30: =AJ30 -> 42.1976078 | I30: 52 | J30: =AM30 -> 24.56983882 | L30: 15 | M30: =IF(SUM($M$21:$M$22)<>100%,"ERROR",AP30+AS30) -> 17.00988842 | O30: =D30+G30+J30+M30 -> 83.77733504 | R30: 43.83520533 | S30: 0 | T30: 0 | U30: 0 | V30: 0 | W30: 0 | X30: 0 | Y30: 0 | Z30: 0 | AA30: 9.519230769 | AB30: 12.8125 | AC30: 0 | AD30: -22.33173077 | AE30: 0 | AF30: 0 | AG30: 0 | AH30: 86.53846154 | AI30: 0.03925358865 | AJ30: 42.1976078 | AK30: 86.66666667 | AL30: 0.03931174211 | AM30: 24.56983882 | AN30: 62.5 | AO30: 0.02834981403 | AP30: 17.00988842 | AQ30: 0 | AR30: 0 | AS30: 0
B31: Oat greenfeed (nurse crop) | C31: 50 | D31: 21.64814081 | F31: 50 | G31: 46.88623089 | I31: 30 | J31: 14.17490701 | L31: 15 | M31: 17.00988842 | O31: =D31+G31+J31+M31 -> 99.71916712 | R31: 61.85640621 | S31: 0 | T31: 0 | U31: 0 | V31: 0 | W31: 0 | X31: 0 | Y31: 0 | Z31: 0 | AA31: 10.57692308 | AB31: 12.8125 | AC31: 0 | AD31: 26.61057692 | AE31: 57.84908027 | AF31: 0.02624017067 | AG31: 21.64814081 | AH31: 96.15384615 | AI31: 0.0436150985 | AJ31: 46.88623089 | AK31: 50 | AL31: 0.02267985122 | AM31: 14.17490701 | AN31: 62.5 | AO31: 0.02834981403 | AP31: 17.00988842 | AQ31: 0 | AR31: 0 | AS31: 0
A32: Greenfeed Hay | S32: 0 | T32: 0 | U32: 0 | V32: 0 | W32: 0 | X32: 0 | Y32: 0 | Z32: 0 | AA32: 0 | AB32: 0 | AC32: 0 | AD32: 0 | AE32: 0 | AF32: 0 | AG32: 0 | AH32: 0 | AI32: 0 | AJ32: 0 | AK32: 0 | AL32: 0 | AM32: 0 | AN32: 0 | AO32: 0 | AP32: 0 | AQ32: 0 | AR32: 0 | AS32: 0
B33: =B10 -> Oats | C33: 80 | D33: =IF(SUM($J$16:$J$18)<>100%,"ERROR",SUM(V33+Z33+AG33)) -> 59.91861195 | F33: 30 | G33: =AJ33 -> 28.13173853 | I33: 0 | J33: =AM33 -> 0 | L33: 0 | M33: 0 | O33: =D33+G33+J33+M33 -> 88.05035048 | R33: 50.98543733 | S33: 0 | T33: 0 | U33: 0 | V33: 0 | W33: 0 | X33: 0 | Y33: 0 | Z33: 0 | AA33: 6.346153846 | AB33: 0 | AC33: 0 | AD33: 73.65384615 | AE33: 160.1170569 | AF33: 0.07262862055 | AG33: 59.91861195 | AH33: 57.69230769 | AI33: 0.0261690591 | AJ33: 28.13173853 | AK33: 0 | AL33: 0 | AM33: 0 | AN33: 0 | AO33: 0 | AP33: 0 | AQ33: 0 | AR33: 0 | AS33: 0
A35: The fertilizer recommendation will vary depending on the soil type, climate and crop rotation. Manitoba Agriculture recommends that soil test sampling and analysis be conducted each year to produce a better baseline for fertility. On many Manitoba soil types, potash application can be reduced based on soil test results. Custom soil sampling and analysis typically costs $1.00 to $2.00/acre.
A39: 1. Users are reminded to adjust silage yields when making changes to fertilizer rates.
A41: Chemicals
D42: Weed | F42: Insect | G42: Forage | J42: Total
D43: Control | F43: Control | G43: Removal | J43: Cost
A44: Crop | D44: $/acre | F44: $/acre | G44: $/acre | J44: $/acre
A45: Alfalfa Hay
B46: Alfalfa hay | D46: 0 | F46: 0 | J46: =D46+F46 -> 0
B47: Alfalfa establishment | D47: 20 | F47: 0 | G47: 15 | J47: =D47+F47+G47 -> 35
A48: Alfalfa-Grass Hay
B49: Alfalfa-grass hay | D49: 0 | F49: 0 | J49: =D49+F49 -> 0
B50: Oat greenfeed (nurse crop) | D50: 20 | F50: 0 | G50: 15 | J50: =D50+F50+G50 -> 35
A51: Greenfeed Hay
B52: =B10 -> Oats | D52: 16 | F52: 0 | J52: =D52+F52 -> 16
A56: Fertilizer 1
D57: Bulk Price | G57: Actual Nutrient | J57: Nitrogen | M57: Sulphur
B58: Fertilizer Type | D58: $/tonne | G58: $/lb. | J58: Usage | M58: Usage
B59: Nitrogen: (urea) 46-0-0 | D59: =$D$16+ABS('Risk Analysis'!$E$30) -> 975 | G59: =SUM(D59/(2204.5855*0.46)) -> 0.9614347991 | J59: =J16 -> 1 | M59: - | O59: =ABS('Risk Analysis'!$E$30) -> 150 | P59: 1X
B60: Nitrogen: (NH3) 82-0-0 | D60: =$D$17+ABS('Risk Analysis'!$E$30) -> 1450 | G60: =SUM(D60/(2204.5855*0.82)) -> 0.8020975748 | J60: =J17 -> 0 | M60: -
B61: Nitrogen: (liquid) 28-0-0 | D61: =$D$18+ABS('Risk Analysis'!$E$30) -> 650 | G61: =SUM(D61/(2204.5855*0.28)) -> 1.053000018 | J61: 0 | M61: -
B62: Phosphorus: 11-52-0 | D62: =$D$19+ABS('Risk Analysis'!$E$30) -> 1225 | G62: =SUM((D62-(G59*(0.11*2204.5855)))/(2204.5855*0.52)) -> 0.8651965032 | J62: - | M62: -
B63: Potash: 0-0-60 | D63: =$D$20+ABS('Risk Analysis'!$E$30) -> 775 | G63: =SUM(D63/(2204.5855*0.6)) -> 0.5859000101 | J63: - | M63: -
B64: Sulphur: 20.5-0-0-24 | D64: =$D$21+ABS('Risk Analysis'!$E$30) -> 750 | G64: =SUM((D64-(G59*(0.205*2204.5855)))/(2204.5855*0.24)) -> 0.5962744668 | J64: - | M64: =M21 -> 1
B65: MES S15: 13-33-0-15 | D65: =$D$22+ABS('Risk Analysis'!$E$30) -> 1150 | G65: =SUM((D65-(G59*(0.13*2204.5855))-(G62*(0.33*2204.5855)))/(2204.5855*0.15)) -> 0.7409242602 | H65: 0 | J65: - | M65: =M22 -> 0
S66: ***HIDE***
C67: Amount of Actual Pounds of Elements Applied Per Acre | T67: 82-0-0 | X67: 28-0-0 | AD67: 46-0-0 | AH67: 11-52-0 | AK67: 0-0-60 | AN67: 20.5-0-0-24 | AQ67: 13-33-0-15
C68: Nitrogen | F68: Phosphorus | I68: Potash | L68: Sulphur | O68: Total | S68: preseed | T68: preseed | U68: preseed | V68: preseed | W68: suppl | X68: suppl | Y68: suppl | Z68: suppl | AA68: blend | AB68: blend | AC68: blend | AD68: blend | AE68: blend | AF68: blend | AG68: blend | AH68: blend | AI68: blend | AJ68: blend | AK68: blend | AL68: blend | AM68: blend | AN68: blend | AO68: blend | AP68: blend | AQ68: blend | AR68: blend | AS68: blend | AT68: N phos
A69: Crop | C69: lbs. | D69: $/acre | F69: lbs. | G69: $/acre | I69: lbs. | J69: $/acre | L69: lbs. | M69: $/acre | O69: $/acre | S69: N actual | T69: N lbs | U69: N MT | V69: N cost | W69: N actual | X69: N lbs | Y69: N MT | Z69: N cost | AA69: N phos | AB69: N sul1 | AC69: N sul2 | AD69: N urea | AE69: N lbs | AF69: N MT | AG69: N cost | AH69: phos lbs | AI69: phos MT | AJ69: phos cost | AK69: potash | AL69: pot MT | AM69: pot cost | AN69: sul 1 lbs | AO69: sul 1 MT | AP69: sul 1 cost | AQ69: sul 2 lbs | AR69: sul 2 MT | AS69: sul 2 cost | AT69: lbs
A70: Alfalfa Hay | R70: OLD
B71: Alfalfa hay | C71: =$C$28 -> 0 | D71: =IF(SUM($J$16:$J$18)<>100%,"ERROR",SUM(V71+Z71+AG71)) -> 0 | F71: =$F$28 -> 60 | G71: =AJ71 -> 64.1141948 | I71: =$I$28 -> 65 | J71: =AM71 -> 38.08325017 | L71: =$L$28 -> 17 | M71: =IF(SUM($M$21:$M$22)<>100%,"ERROR",AP71+AS71) -> 24.09734192 | O71: =D71+G71+J71+M71 -> 126.2947869 | R71: 55.84388311 | S71: =SUM(C71*$J$17) -> 0 | T71: =MAXA(0,(S71)/(0.82)) -> 0 | U71: =(T71)/2204.6 -> 0 | V71: =SUM(U71*$D$60) -> 0 | W71: =SUM(C71*$J$18) -> 0 | X71: =MAXA(0,(W71)/(0.28)) -> 0 | Y71: =(X71)/2204.6 -> 0 | Z71: =SUM(Y71*$D$61) -> 0 | AA71: =SUM(AH71*0.11) -> 12.69230769 | AB71: =SUM(AN71*0.205) -> 14.52083333 | AC71: =SUM(AQ71*0.13) -> 0 | AD71: =SUM(C71-(AA71+AB71+AC71+W71+S71)) -> -27.21314103 | AE71: =MAXA(0,(AD71)/(0.46)) -> 0 | AF71: =(AE71)/2204.6 -> 0 | AG71: =SUM(AF71*$D$59) -> 0 | AH71: =MAXA(0,(F71-(AQ71*0.33))/0.52) -> 115.3846154 | AI71: =(AH71)/2204.6 -> 0.0523381182 | AJ71: =SUM(AI71*$D$62) -> 64.1141948 | AK71: =SUM(I71/0.6) -> 108.3333333 | AL71: =(AK71)/2204.6 -> 0.04913967764 | AM71: =SUM(AL71*$D$63) -> 38.08325017 | AN71: =MAXA(0,SUM(L71*$M$21)/0.24) -> 70.83333333 | AO71: =(AN71)/2204.6 -> 0.03212978923 | AP71: =SUM(AO71*$D$64) -> 24.09734192 | AQ71: =MAXA(0,SUM(L71*$M$22)/0.15) -> 0 | AR71: =(AQ71)/2204.6 -> 0 | AS71: =SUM(AR71*$D$65) -> 0
A72: Alfalfa-Grass Hay
B73: Alfalfa-grass hay | C73: =$C$30 -> 0 | D73: =IF(SUM($J$16:$J$18)<>100%,"ERROR",SUM(V73+Z73+AG73)) -> 0 | F73: =$F$30 -> 45 | G73: =AJ73 -> 48.0856461 | I73: =$I$30 -> 52 | J73: =AM73 -> 30.46660014 | L73: =$L$30 -> 15 | M73: =IF(SUM($M$21:$M$22)<>100%,"ERROR",AP73+AS73) -> 21.26236052 | O73: =D73+G73+J73+M73 -> 99.81460675 | R73: 43.83520533 | S73: 0 | T73: 0 | U73: 0 | V73: =SUM(U73*$D$60) -> 0 | W73: 0 | X73: 0 | Y73: 0 | Z73: =SUM(Y73*$D$61) -> 0 | AA73: 9.519230769 | AB73: 12.8125 | AC73: 0 | AD73: -22.33173077 | AE73: 0 | AF73: 0 | AG73: =SUM(AF73*$D$59) -> 0 | AH73: 86.53846154 | AI73: 0.03925358865 | AJ73: =SUM(AI73*$D$62) -> 48.0856461 | AK73: 86.66666667 | AL73: 0.03931174211 | AM73: =SUM(AL73*$D$63) -> 30.46660014 | AN73: 62.5 | AO73: 0.02834981403 | AP73: =SUM(AO73*$D$64) -> 21.26236052 | AQ73: 0 | AR73: 0 | AS73: =SUM(AR73*$D$65) -> 0
B74: Oat greenfeed (nurse crop) | C74: =$C$31 -> 50 | D74: 25.58416641 | F74: =$F$31 -> 50 | G74: 53.42849566 | I74: =$I$31 -> 30 | J74: 17.5768847 | L74: =$L$31 -> 15 | M74: 21.26236052 | O74: =D74+G74+J74+M74 -> 117.8519073 | R74: 61.85640621 | S74: 0 | T74: 0 | U74: 0 | V74: =SUM(U74*$D$60) -> 0 | W74: 0 | X74: 0 | Y74: 0 | Z74: =SUM(Y74*$D$61) -> 0 | AA74: 10.57692308 | AB74: 12.8125 | AC74: 0 | AD74: 26.61057692 | AE74: 57.84908027 | AF74: 0.02624017067 | AG74: =SUM(AF74*$D$59) -> 25.58416641 | AH74: 96.15384615 | AI74: 0.0436150985 | AJ74: =SUM(AI74*$D$62) -> 53.42849566 | AK74: 50 | AL74: 0.02267985122 | AM74: =SUM(AL74*$D$63) -> 17.5768847 | AN74: 62.5 | AO74: 0.02834981403 | AP74: =SUM(AO74*$D$64) -> 21.26236052 | AQ74: 0 | AR74: 0 | AS74: =SUM(AR74*$D$65) -> 0
A75: Greenfeed Hay
B76: =$B$10 -> Oats | C76: =$C$33 -> 80 | D76: =IF(SUM($J$16:$J$18)<>100%,"ERROR",SUM(V76+Z76+AG76)) -> 70.81290503 | F76: =$F$33 -> 30 | G76: =AJ76 -> 32.0570974 | I76: =$I$33 -> 0 | J76: =AM76 -> 0 | L76: =$L$33 -> 0 | M76: =IF(SUM($M$21:$M$22)<>100%,"ERROR",AP76+AS76) -> 0 | O76: =D76+G76+J76+M76 -> 102.8700024 | R76: 50.98543733 | S76: 0 | T76: 0 | U76: 0 | V76: =SUM(U76*$D$60) -> 0 | W76: 0 | X76: 0 | Y76: 0 | Z76: =SUM(Y76*$D$61) -> 0 | AA76: 6.346153846 | AB76: 0 | AC76: 0 | AD76: 73.65384615 | AE76: 160.1170569 | AF76: 0.07262862055 | AG76: =SUM(AF76*$D$59) -> 70.81290503 | AH76: 57.69230769 | AI76: 0.0261690591 | AJ76: =SUM(AI76*$D$62) -> 32.0570974 | AK76: 0 | AL76: 0 | AM76: =SUM(AL76*$D$63) -> 0 | AN76: 0 | AO76: 0 | AP76: =SUM(AO76*$D$64) -> 0 | AQ76: 0 | AR76: 0 | AS76: =SUM(AR76*$D$65) -> 0
A78: Fertilizer 1
D79: Bulk Price | G79: Actual Nutrient | J79: Nitrogen | M79: Sulphur
B80: Fertilizer Type | D80: $/tonne | G80: $/lb. | J80: Usage | M80: Usage
B81: Nitrogen: (urea) 46-0-0 | D81: =$D$16+ABS('Risk Analysis'!$E$30)*2 -> 1125 | G81: =SUM(D81/(2204.5855*0.46)) -> 1.109347845 | J81: =J38 -> 0 | M81: - | O81: =ABS('Risk Analysis'!$E$30*2) -> 300 | P81: 2X
B82: Nitrogen: (NH3) 82-0-0 | D82: =$D$17+ABS('Risk Analysis'!$E$30*2) -> 1600 | G82: =SUM(D82/(2204.5855*0.82)) -> 0.885073186 | J82: =J39 -> 0 | M82: -
B83: Nitrogen: (liquid) 28-0-0 | D83: =$D$18+ABS('Risk Analysis'!$E$30*2) -> 800 | G83: =SUM(D83/(2204.5855*0.28)) -> 1.296000022 | J83: 0 | M83: -
B84: Phosphorus: 11-52-0 | D84: =$D$19+ABS('Risk Analysis'!$E$30*2) -> 1375 | G84: =SUM((D84-(G81*(0.11*2204.5855)))/(2204.5855*0.52)) -> 0.9647533611 | J84: - | M84: -
B85: Potash: 0-0-60 | D85: =$D$20+ABS('Risk Analysis'!$E$30*2) -> 925 | G85: =SUM(D85/(2204.5855*0.6)) -> 0.699300012 | J85: - | M85: -
B86: Sulphur: 20.5-0-0-24 | D86: =$D$21+ABS('Risk Analysis'!$E$30*2) -> 900 | G86: =SUM((D86-(G81*(0.205*2204.5855)))/(2204.5855*0.24)) -> 0.7534320782 | J86: - | M86: =M43 -> 0
B87: MES S15: 13-33-0-15 | D87: =$D$22+ABS('Risk Analysis'!$E$30*2) -> 1300 | G87: =SUM((D87-(G81*(0.13*2204.5855))-(G84*(0.33*2204.5855)))/(2204.5855*0.15)) -> 0.8473078741 | H87: 0 | J87: - | M87: =M44 -> 0
S88: ***HIDE***
C89: Amount of Actual Pounds of Elements Applied Per Acre | T89: 82-0-0 | X89: 28-0-0 | AD89: 46-0-0 | AH89: 11-52-0 | AK89: 0-0-60 | AN89: 20.5-0-0-24 | AQ89: 13-33-0-15
C90: Nitrogen | F90: Phosphorus | I90: Potash | L90: Sulphur | O90: Total | S90: preseed | T90: preseed | U90: preseed | V90: preseed | W90: suppl | X90: suppl | Y90: suppl | Z90: suppl | AA90: blend | AB90: blend | AC90: blend | AD90: blend | AE90: blend | AF90: blend | AG90: blend | AH90: blend | AI90: blend | AJ90: blend | AK90: blend | AL90: blend | AM90: blend | AN90: blend | AO90: blend | AP90: blend | AQ90: blend | AR90: blend | AS90: blend | AT90: N phos
A91: Crop | C91: lbs. | D91: $/acre | F91: lbs. | G91: $/acre | I91: lbs. | J91: $/acre | L91: lbs. | M91: $/acre | O91: $/acre | S91: N actual | T91: N lbs | U91: N MT | V91: N cost | W91: N actual | X91: N lbs | Y91: N MT | Z91: N cost | AA91: N phos | AB91: N sul1 | AC91: N sul2 | AD91: N urea | AE91: N lbs | AF91: N MT | AG91: N cost | AH91: phos lbs | AI91: phos MT | AJ91: phos cost | AK91: potash | AL91: pot MT | AM91: pot cost | AN91: sul 1 lbs | AO91: sul 1 MT | AP91: sul 1 cost | AQ91: sul 2 lbs | AR91: sul 2 MT | AS91: sul 2 cost | AT91: lbs
A92: Alfalfa Hay | R92: OLD
B93: Alfalfa hay | C93: =$C$28 -> 0 | D93: =IF(SUM($J$16:$J$18)<>100%,"ERROR",SUM(V93+Z93+AG93)) -> 0 | F93: =$F$28 -> 60 | G93: =AJ93 -> 71.96491253 | I93: =$I$28 -> 65 | J93: =AM93 -> 45.45420182 | L93: =$L$28 -> 17 | M93: =IF(SUM($M$21:$M$22)<>100%,"ERROR",AP93+AS93) -> 28.91681031 | O93: =D93+G93+J93+M93 -> 146.3359247 | R93: 55.84388311 | S93: =SUM(C93*$J$17) -> 0 | T93: =MAXA(0,(S93)/(0.82)) -> 0 | U93: =(T93)/2204.6 -> 0 | V93: =SUM(U93*$D$82) -> 0 | W93: =SUM(C93*$J$18) -> 0 | X93: =MAXA(0,(W93)/(0.28)) -> 0 | Y93: =(X93)/2204.6 -> 0 | Z93: =SUM(Y93*$D$83) -> 0 | AA93: =SUM(AH93*0.11) -> 12.69230769 | AB93: =SUM(AN93*0.205) -> 14.52083333 | AC93: =SUM(AQ93*0.13) -> 0 | AD93: =SUM(C93-(AA93+AB93+AC93+W93+S93)) -> -27.21314103 | AE93: =MAXA(0,(AD93)/(0.46)) -> 0 | AF93: =(AE93)/2204.6 -> 0 | AG93: =SUM(AF93*$D$81) -> 0 | AH93: =MAXA(0,(F93-(AQ93*0.33))/0.52) -> 115.3846154 | AI93: =(AH93)/2204.6 -> 0.0523381182 | AJ93: =SUM(AI93*$D$84) -> 71.96491253 | AK93: =SUM(I93/0.6) -> 108.3333333 | AL93: =(AK93)/2204.6 -> 0.04913967764 | AM93: =SUM(AL93*$D$85) -> 45.45420182 | AN93: =MAXA(0,SUM(L93*$M$21)/0.24) -> 70.83333333 | AO93: =(AN93)/2204.6 -> 0.03212978923 | AP93: =SUM(AO93*$D$86) -> 28.91681031 | AQ93: =MAXA(0,SUM(L93*$M$22)/0.15) -> 0 | AR93: =(AQ93)/2204.6 -> 0 | AS93: =SUM(AR93*$D$87) -> 0
A94: Alfalfa-Grass Hay
B95: Alfalfa-grass hay | C95: =$C$30 -> 0 | D95: =IF(SUM($J$16:$J$18)<>100%,"ERROR",SUM(V95+Z95+AG95)) -> 0 | F95: =$F$30 -> 45 | G95: =AJ95 -> 53.97368439 | I95: =$I$30 -> 52 | J95: =AM95 -> 36.36336146 | L95: =$L$30 -> 15 | M95: =IF(SUM($M$21:$M$22)<>100%,"ERROR",AP95+AS95) -> 25.51483262 | O95: =D95+G95+J95+M95 -> 115.8518785 | R95: 43.83520533 | S95: =SUM(C95*$J$17) -> 0 | T95: =MAXA(0,(S95)/(0.82)) -> 0 | U95: =(T95)/2204.6 -> 0 | V95: =SUM(U95*$D$82) -> 0 | W95: =SUM(C95*$J$18) -> 0 | X95: =MAXA(0,(W95)/(0.28)) -> 0 | Y95: =(X95)/2204.6 -> 0 | Z95: =SUM(Y95*$D$83) -> 0 | AA95: =SUM(AH95*0.11) -> 9.519230769 | AB95: =SUM(AN95*0.205) -> 12.8125 | AC95: =SUM(AQ95*0.13) -> 0 | AD95: =SUM(C95-(AA95+AB95+AC95+W95+S95)) -> -22.33173077 | AE95: =MAXA(0,(AD95)/(0.46)) -> 0 | AF95: =(AE95)/2204.6 -> 0 | AG95: =SUM(AF95*$D$81) -> 0 | AH95: =MAXA(0,(F95-(AQ95*0.33))/0.52) -> 86.53846154 | AI95: =(AH95)/2204.6 -> 0.03925358865 | AJ95: =SUM(AI95*$D$84) -> 53.97368439 | AK95: =SUM(I95/0.6) -> 86.66666667 | AL95: =(AK95)/2204.6 -> 0.03931174211 | AM95: =SUM(AL95*$D$85) -> 36.36336146 | AN95: =MAXA(0,SUM(L95*$M$21)/0.24) -> 62.5 | AO95: =(AN95)/2204.6 -> 0.02834981403 | AP95: =SUM(AO95*$D$86) -> 25.51483262 | AQ95: =MAXA(0,SUM(L95*$M$22)/0.15) -> 0 | AR95: =(AQ95)/2204.6 -> 0 | AS95: =SUM(AR95*$D$87) -> 0
B96: Oat greenfeed (nurse crop) | C96: =$C$31 -> 50 | D96: 29.52019201 | F96: =$F$31 -> 50 | G96: 59.97076044 | I96: =$I$31 -> 30 | J96: 20.97886238 | L96: =$L$31 -> 15 | M96: 25.51483262 | O96: =D96+G96+J96+M96 -> 135.9846474 | R96: 61.85640621 | S96: 0 | T96: 0 | U96: 0 | V96: =SUM(U96*$D$82) -> 0 | W96: 0 | X96: 0 | Y96: 0 | Z96: =SUM(Y96*$D$83) -> 0 | AA96: 10.57692308 | AB96: 12.8125 | AC96: 0 | AD96: 26.61057692 | AE96: 57.84908027 | AF96: 0.02624017067 | AG96: =SUM(AF96*$D$81) -> 29.52019201 | AH96: 96.15384615 | AI96: 0.0436150985 | AJ96: =SUM(AI96*$D$84) -> 59.97076044 | AK96: 50 | AL96: 0.02267985122 | AM96: =SUM(AL96*$D$85) -> 20.97886238 | AN96: 62.5 | AO96: 0.02834981403 | AP96: =SUM(AO96*$D$86) -> 25.51483262 | AQ96: 0 | AR96: 0 | AS96: =SUM(AR96*$D$87) -> 0
A97: Greenfeed Hay
B98: =$B$10 -> Oats | C98: =$C$33 -> 80 | D98: =IF(SUM($J$16:$J$18)<>100%,"ERROR",SUM(V98+Z98+AG98)) -> 81.70719811 | F98: =$F$33 -> 30 | G98: =AJ98 -> 35.98245626 | I98: =$I$33 -> 0 | J98: =AM98 -> 0 | L98: =$L$33 -> 0 | M98: =IF(SUM($M$21:$M$22)<>100%,"ERROR",AP98+AS98) -> 0 | O98: =D98+G98+J98+M98 -> 117.6896544 | R98: 50.98543733 | S98: =SUM(C98*$J$17) -> 0 | T98: =MAXA(0,(S98)/(0.82)) -> 0 | U98: =(T98)/2204.6 -> 0 | V98: =SUM(U98*$D$82) -> 0 | W98: =SUM(C98*$J$18) -> 0 | X98: =MAXA(0,(W98)/(0.28)) -> 0 | Y98: =(X98)/2204.6 -> 0 | Z98: =SUM(Y98*$D$83) -> 0 | AA98: =SUM(AH98*0.11) -> 6.346153846 | AB98: =SUM(AN98*0.205) -> 0 | AC98: =SUM(AQ98*0.13) -> 0 | AD98: =SUM(C98-(AA98+AB98+AC98+W98+S98)) -> 73.65384615 | AE98: =MAXA(0,(AD98)/(0.46)) -> 160.1170569 | AF98: =(AE98)/2204.6 -> 0.07262862055 | AG98: =SUM(AF98*$D$81) -> 81.70719811 | AH98: =MAXA(0,(F98-(AQ98*0.33))/0.52) -> 57.69230769 | AI98: =(AH98)/2204.6 -> 0.0261690591 | AJ98: =SUM(AI98*$D$84) -> 35.98245626 | AK98: =SUM(I98/0.6) -> 0 | AL98: =(AK98)/2204.6 -> 0 | AM98: =SUM(AL98*$D$85) -> 0 | AN98: =MAXA(0,SUM(L98*$M$21)/0.24) -> 0 | AO98: =(AN98)/2204.6 -> 0 | AP98: =SUM(AO98*$D$86) -> 0 | AQ98: =MAXA(0,SUM(L98*$M$22)/0.15) -> 0 | AR98: =(AQ98)/2204.6 -> 0 | AS98: =SUM(AR98*$D$87) -> 0
A100: Fertilizer 1
D101: Bulk Price | G101: Actual Nutrient | J101: Nitrogen | M101: Sulphur
B102: Fertilizer Type | D102: $/tonne | G102: $/lb. | J102: Usage | M102: Usage
B103: Nitrogen: (urea) 46-0-0 | D103: =$D$16+ABS('Risk Analysis'!$E$30*3) -> 1275 | G103: =SUM(D103/(2204.5855*0.46)) -> 1.257260891 | J103: =J60 -> 0 | M103: - | O103: =ABS('Risk Analysis'!$E$30*3) -> 450 | P103: 2X
B104: Nitrogen: (NH3) 82-0-0 | D104: =$D$17+ABS('Risk Analysis'!$E$30*3) -> 1750 | G104: =SUM(D104/(2204.5855*0.82)) -> 0.9680487971 | J104: =J61 -> 0 | M104: -
B105: Nitrogen: (liquid) 28-0-0 | D105: =$D$18+ABS('Risk Analysis'!$E$30*3) -> 950 | G105: =SUM(D105/(2204.5855*0.28)) -> 1.539000026 | J105: - | M105: -
B106: Phosphorus: 11-52-0 | D106: =$D$19+ABS('Risk Analysis'!$E$30*3) -> 1525 | G106: =SUM((D106-(G103*(0.11*2204.5855)))/(2204.5855*0.52)) -> 1.064310219 | J106: - | M106: -
B107: Potash: 0-0-60 | D107: =$D$20+ABS('Risk Analysis'!$E$30*3) -> 1075 | G107: =SUM(D107/(2204.5855*0.6)) -> 0.812700014 | J107: - | M107: -
B108: Sulphur: 20.5-0-0-24 | D108: =$D$21+ABS('Risk Analysis'!$E$30*3) -> 1050 | G108: =SUM((D108-(G103*(0.205*2204.5855)))/(2204.5855*0.24)) -> 0.9105896896 | J108: - | M108: =M65 -> 0
B109: MES S15: 13-33-0-15 | D109: =$D$22+ABS('Risk Analysis'!$E$30*3) -> 1450 | G109: =SUM((D109-(G103*(0.13*2204.5855))-(G106*(0.33*2204.5855)))/(2204.5855*0.15)) -> 0.953691488 | H109: 0 | J109: - | M109: =M66 -> 0
S110: ***HIDE***
C111: Amount of Actual Pounds of Elements Applied Per Acre | T111: 82-0-0 | X111: 28-0-0 | AD111: 46-0-0 | AH111: 11-52-0 | AK111: 0-0-60 | AN111: 20.5-0-0-24 | AQ111: 13-33-0-15
C112: Nitrogen | F112: Phosphorus | I112: Potash | L112: Sulphur | O112: Total | S112: preseed | T112: preseed | U112: preseed | V112: preseed | W112: suppl | X112: suppl | Y112: suppl | Z112: suppl | AA112: blend | AB112: blend | AC112: blend | AD112: blend | AE112: blend | AF112: blend | AG112: blend | AH112: blend | AI112: blend | AJ112: blend | AK112: blend | AL112: blend | AM112: blend | AN112: blend | AO112: blend | AP112: blend | AQ112: blend | AR112: blend | AS112: blend | AT112: N phos
A113: Crop | C113: lbs. | D113: $/acre | F113: lbs. | G113: $/acre | I113: lbs. | J113: $/acre | L113: lbs. | M113: $/acre | O113: $/acre | S113: N actual | T113: N lbs | U113: N MT | V113: N cost | W113: N actual | X113: N lbs | Y113: N MT | Z113: N cost | AA113: N phos | AB113: N sul1 | AC113: N sul2 | AD113: N urea | AE113: N lbs | AF113: N MT | AG113: N cost | AH113: phos lbs | AI113: phos MT | AJ113: phos cost | AK113: potash | AL113: pot MT | AM113: pot cost | AN113: sul 1 lbs | AO113: sul 1 MT | AP113: sul 1 cost | AQ113: sul 2 lbs | AR113: sul 2 MT | AS113: sul 2 cost | AT113: lbs
A114: Alfalfa Hay | R114: OLD
B115: Alfalfa hay | C115: =$C$28 -> 0 | D115: =IF(SUM($J$16:$J$18)<>100%,"ERROR",SUM(V115+Z115+AG115)) -> 0 | F115: =$F$28 -> 60 | G115: =AJ115 -> 79.81563026 | I115: =$I$28 -> 65 | J115: =AM115 -> 52.82515347 | L115: =$L$28 -> 17 | M115: =IF(SUM($M$21:$M$22)<>100%,"ERROR",AP115+AS115) -> 33.73627869 | O115: =D115+G115+J115+M115 -> 166.3770624 | R115: 55.84388311 | S115: =SUM(C115*$J$17) -> 0 | T115: =MAXA(0,(S115)/(0.82)) -> 0 | U115: =(T115)/2204.6 -> 0 | V115: =SUM(U115*$D$104) -> 0 | W115: =SUM(C115*$J$18) -> 0 | X115: =MAXA(0,(W115)/(0.28)) -> 0 | Y115: =(X115)/2204.6 -> 0 | Z115: =SUM(Y115*$D$105) -> 0 | AA115: =SUM(AH115*0.11) -> 12.69230769 | AB115: =SUM(AN115*0.205) -> 14.52083333 | AC115: =SUM(AQ115*0.13) -> 0 | AD115: =SUM(C115-(AA115+AB115+AC115+W115+S115)) -> -27.21314103 | AE115: =MAXA(0,(AD115)/(0.46)) -> 0 | AF115: =(AE115)/2204.6 -> 0 | AG115: =SUM(AF115*$D$103) -> 0 | AH115: =MAXA(0,(F115-(AQ115*0.33))/0.52) -> 115.3846154 | AI115: =(AH115)/2204.6 -> 0.0523381182 | AJ115: =SUM(AI115*$D$106) -> 79.81563026 | AK115: =SUM(I115/0.6) -> 108.3333333 | AL115: =(AK115)/2204.6 -> 0.04913967764 | AM115: =SUM(AL115*$D$107) -> 52.82515347 | AN115: =MAXA(0,SUM(L115*$M$21)/0.24) -> 70.83333333 | AO115: =(AN115)/2204.6 -> 0.03212978923 | AP115: =SUM(AO115*$D$108) -> 33.73627869 | AQ115: =MAXA(0,SUM(L115*$M$22)/0.15) -> 0 | AR115: =(AQ115)/2204.6 -> 0 | AS115: =SUM(AR115*$D$109) -> 0
A116: Alfalfa-Grass Hay
B117: Alfalfa-grass hay | C117: =$C$30 -> 0 | D117: =IF(SUM($J$16:$J$18)<>100%,"ERROR",SUM(V117+Z117+AG117)) -> 0 | F117: =$F$30 -> 45 | G117: =AJ117 -> 59.86172269 | I117: =$I$30 -> 52 | J117: =AM117 -> 42.26012277 | L117: =$L$30 -> 15 | M117: =IF(SUM($M$21:$M$22)<>100%,"ERROR",AP117+AS117) -> 29.76730473 | O117: =D117+G117+J117+M117 -> 131.8891502 | R117: 43.83520533 | S117: =SUM(C117*$J$17) -> 0 | T117: =MAXA(0,(S117)/(0.82)) -> 0 | U117: =(T117)/2204.6 -> 0 | V117: =SUM(U117*$D$104) -> 0 | W117: =SUM(C117*$J$18) -> 0 | X117: =MAXA(0,(W117)/(0.28)) -> 0 | Y117: =(X117)/2204.6 -> 0 | Z117: =SUM(Y117*$D$105) -> 0 | AA117: =SUM(AH117*0.11) -> 9.519230769 | AB117: =SUM(AN117*0.205) -> 12.8125 | AC117: =SUM(AQ117*0.13) -> 0 | AD117: =SUM(C117-(AA117+AB117+AC117+W117+S117)) -> -22.33173077 | AE117: =MAXA(0,(AD117)/(0.46)) -> 0 | AF117: =(AE117)/2204.6 -> 0 | AG117: =SUM(AF117*$D$103) -> 0 | AH117: =MAXA(0,(F117-(AQ117*0.33))/0.52) -> 86.53846154 | AI117: =(AH117)/2204.6 -> 0.03925358865 | AJ117: =SUM(AI117*$D$106) -> 59.86172269 | AK117: =SUM(I117/0.6) -> 86.66666667 | AL117: =(AK117)/2204.6 -> 0.03931174211 | AM117: =SUM(AL117*$D$107) -> 42.26012277 | AN117: =MAXA(0,SUM(L117*$M$21)/0.24) -> 62.5 | AO117: =(AN117)/2204.6 -> 0.02834981403 | AP117: =SUM(AO117*$D$108) -> 29.76730473 | AQ117: =MAXA(0,SUM(L117*$M$22)/0.15) -> 0 | AR117: =(AQ117)/2204.6 -> 0 | AS117: =SUM(AR117*$D$109) -> 0
B118: Oat greenfeed (nurse crop) | C118: =$C$31 -> 50 | D118: 33.45621761 | F118: =$F$31 -> 50 | G118: 66.51302521 | I118: =$I$31 -> 30 | J118: 24.38084006 | L118: =$L$31 -> 15 | M118: 29.76730473 | O118: =D118+G118+J118+M118 -> 154.1173876 | R118: 61.85640621 | S118: 0 | T118: 0 | U118: 0 | V118: =SUM(U118*$D$104) -> 0 | W118: 0 | X118: 0 | Y118: 0 | Z118: =SUM(Y118*$D$105) -> 0 | AA118: 10.57692308 | AB118: 12.8125 | AC118: 0 | AD118: 26.61057692 | AE118: 57.84908027 | AF118: 0.02624017067 | AG118: =SUM(AF118*$D$103) -> 33.45621761 | AH118: 96.15384615 | AI118: 0.0436150985 | AJ118: =SUM(AI118*$D$106) -> 66.51302521 | AK118: 50 | AL118: 0.02267985122 | AM118: =SUM(AL118*$D$107) -> 24.38084006 | AN118: 62.5 | AO118: 0.02834981403 | AP118: =SUM(AO118*$D$108) -> 29.76730473 | AQ118: 0 | AR118: 0 | AS118: =SUM(AR118*$D$109) -> 0
A119: Greenfeed Hay
B120: =$B$10 -> Oats | C120: =$C$33 -> 80 | D120: =IF(SUM($J$16:$J$18)<>100%,"ERROR",SUM(V120+Z120+AG120)) -> 92.6014912 | F120: =$F$33 -> 30 | G120: =AJ120 -> 39.90781513 | I120: =$I$33 -> 0 | J120: =AM120 -> 0 | L120: =$L$33 -> 0 | M120: =IF(SUM($M$21:$M$22)<>100%,"ERROR",AP120+AS120) -> 0 | O120: =D120+G120+J120+M120 -> 132.5093063 | R120: 50.98543733 | S120: =SUM(C120*$J$17) -> 0 | T120: =MAXA(0,(S120)/(0.82)) -> 0 | U120: =(T120)/2204.6 -> 0 | V120: =SUM(U120*$D$104) -> 0 | W120: =SUM(C120*$J$18) -> 0 | X120: =MAXA(0,(W120)/(0.28)) -> 0 | Y120: =(X120)/2204.6 -> 0 | Z120: =SUM(Y120*$D$105) -> 0 | AA120: =SUM(AH120*0.11) -> 6.346153846 | AB120: =SUM(AN120*0.205) -> 0 | AC120: =SUM(AQ120*0.13) -> 0 | AD120: =SUM(C120-(AA120+AB120+AC120+W120+S120)) -> 73.65384615 | AE120: =MAXA(0,(AD120)/(0.46)) -> 160.1170569 | AF120: =(AE120)/2204.6 -> 0.07262862055 | AG120: =SUM(AF120*$D$103) -> 92.6014912 | AH120: =MAXA(0,(F120-(AQ120*0.33))/0.52) -> 57.69230769 | AI120: =(AH120)/2204.6 -> 0.0261690591 | AJ120: =SUM(AI120*$D$106) -> 39.90781513 | AK120: =SUM(I120/0.6) -> 0 | AL120: =(AK120)/2204.6 -> 0 | AM120: =SUM(AL120*$D$107) -> 0 | AN120: =MAXA(0,SUM(L120*$M$21)/0.24) -> 0 | AO120: =(AN120)/2204.6 -> 0 | AP120: =SUM(AO120*$D$108) -> 0 | AQ120: =MAXA(0,SUM(L120*$M$22)/0.15) -> 0 | AR120: =(AQ120)/2204.6 -> 0 | AS120: =SUM(AR120*$D$109) -> 0

Sheet Op. Cost Input
A1: Operating Costs
B3: Interest Rate on Operating | E3: 0.09 | I3: Twine/net wrap cost per unit | L3: 60
B4: Hay machinery repair | E4: 0.035 | F4: (% of total investment) | I4: Bales per unit | L4: 50 | M4: ="($"&TEXT(L3/L4,"0.00")&"/bale)" -> ($1.20/bale)
B6: Land Taxes ($/acre) | E6: 10 | I6: Plastic Silage Wrap Cost | L6: 150 | M6: (per roll)
B8: Fuel Cost ($/litre) | E8: 1.4 | I8: Bales per Roll Silage Wrap | L8: 35.5 | M8: ="(bales/roll)" -> (bales/roll)
B10: Labour Cost per Hour | E10: 27 | I10: Silage Wrapper - Fuel Usage | L10: 0.26 | M10: (Litres / bale)
D12: Dry Hay | J12: Wrapped Bale Silage
D13: Alfalfa Hay | F13: Alfalfa Grass Hay | H13: Greenfeed Hay | J13: Alfalfa Hay | L13: Alfalfa Grass Hay | N13: Greenfeed Hay
D14: Establishment | E14: Production | F14: Establishment | G14: Production | H14: Production | J14: Establishment | K14: Production | L14: Establishment | M14: Production | N14: Production
A15: Field Fuel Cost ($/acre) | D15: =SUM($E$8*$D$48) -> 22.33 | E15: =SUM($E$8*$D$47) -> 14.14 | F15: =SUM($E$8*$D$51) -> 18.27 | G15: =SUM($E$8*$D$50) -> 9.856 | H15: =SUM($E$8*$D$53) -> 16.688 | J15: =SUM($E$8*$D$48)+(L10*((Production!H8*2000)/Production!H29)*E8) -> 23.76416 | K15: =SUM($E$8*$D$47)+(L10*Production!H23*E8) -> 16.6516 | L15: =SUM($E$8*$D$51)+(L10*((Production!I8*2000)/Production!H29)*E8) -> 19.55128 | M15: =SUM($E$8*$D$50)+(L10*Production!I23*E8) -> 11.858 | N15: =SUM($E$8*$D$53)+(L10*Production!J23*E8) -> 18.69
A17: Crop Insurance 1 ($/acre) | E17: Select_Hay | G17: Basic_Hay | H17: 80% Coverage | J17: =E17 -> Select_Hay | L17: =G17 -> Basic_Hay | M17: =H17 -> 80% Coverage
E18: 80% Coverage | G18: High - $97/tonne | J18: =E18 -> 80% Coverage | L18: =G18 -> High - $97/tonne
D19: 5 | E19: =IF(E17="None",0,IF(E17="Basic_Hay",IF(E18=$C$57,'Forage Insurance'!$C$14,'Forage Insurance'!$D$14),IF(E18=$D$57,'Forage Insurance'!$K$14,'Forage Insurance'!$L$14))) -> 32.17 | F19: 5 | G19: =IF(G17="None",0,IF(G17="Basic_Hay",IF(G18=$C$57,'Forage Insurance'!$C$14,'Forage Insurance'!$D$14),IF(G18=$D$57,'Forage Insurance'!$G$14,'Forage Insurance'!$H$14))) -> 9.22 | H19: =IF(H17="None",0,'Forage Insurance'!M14+0.52) -> 17.15 | J19: =D19 -> 5 | K19: =E19 -> 32.17 | L19: =F19 -> 5 | M19: =G19 -> 9.22 | N19: =H19 -> 17.15
A21: Other Costs ($/acre) | D21: 2 | E21: 2 | F21: 2 | G21: 2 | H21: 2 | J21: =D21 -> 2 | K21: =E21 -> 2 | L21: =F21 -> 2 | M21: =G21 -> 2 | N21: =H21 -> 2
A23: Rental and Custom Work
B24: Seeding ($/ace) | D24: 0 | E24: - | F24: 0 | G24: - | H24: 0 | J24: 0 | K24: - | L24: 0 | M24: - | N24: 0
B25: Application ($/acre) | D25: 0 | E25: 0 | F25: 0 | G25: 0 | H25: 0 | J25: 0 | K25: 0 | L25: 0 | M25: 0 | N25: 0
B26: Mower/Conditioner ($/acre) | D26: 0 | E26: 0 | F26: 0 | G26: 0 | H26: 0 | J26: 0 | K26: 0 | L26: 0 | M26: 0 | N26: 0
B27: Baling ($/bale) | D27: 0 | E27: 0 | F27: 0 | G27: 0 | H27: 0 | J27: 0 | K27: 0 | L27: 0 | M27: 0 | N27: 0
B28: Bale Moving ($/bale) | D28: 3 | E28: 3 | F28: 3 | G28: 3 | H28: 3 | J28: 3 | K28: 3 | L28: 3 | M28: 3 | N28: 3
B29: General ($/acre) | D29: 0 | E29: 0 | F29: 0 | G29: 0 | H29: 0 | J29: 0 | K29: 0 | L29: 0 | M29: 0 | N29: 0
C30: Total ($/acre) | D30: =SUM(D24+D25+D29+(D26*$K$48)+((Production!D8*2000)/Production!D29*D28)+((Production!D8*2000)/Production!D29*D27)) -> 8 | E30: =SUM(E25+E29+(E26*$K$47)+((Production!D21*2000)/Production!D29*E28)+((Production!D21*2000)/Production!D29*E27)) -> 14 | F30: =SUM(F24+F25+F29+(F26*$K$51)+((Production!E8*2000)/Production!D29*F28)+((Production!E8*2000)/Production!D29*F27)) -> 7.2 | G30: =SUM(G25+G29+(G26*$K$50)+((Production!E21*2000)/Production!D29*G28)+((Production!E21*2000)/Production!D29*G27)) -> 11.16 | H30: =SUM(H24+H25+H29+(H26*$K$53)+((Production!F21*2000)/Production!D29*H28)+((Production!F21*2000)/Production!D29*H27)) -> 11.32 | J30: =SUM(J24+J25+J29+(J26*$K$48)+((Production!H8*2000)/Production!H29*J28)+((Production!H8*2000)/Production!H29*J27)) -> 11.82 | K30: =SUM(K25+K29+(K26*$K$47)+((Production!H21*2000)/Production!H29*K28)+((Production!H21*2000)/Production!H29*K27)) -> 20.67 | L30: =SUM(L24+L25+L29+(L26*$K$51)+((Production!I8*2000)/Production!H29*L28)+((Production!I8*2000)/Production!H29*L27)) -> 10.56 | M30: =SUM(M25+M29+(M26*$K$50)+((Production!I21*2000)/Production!H29*M28)+((Production!I21*2000)/Production!H29*M27)) -> 16.35 | N30: =SUM(N24+N25+N29+(N26*$K$53)+((Production!J21*2000)/Production!H29*N28)+((Production!J21*2000)/Production!H29*N27)) -> 16.56
A32: Labour Hours per Acre | P32: # Hired | Q32: # of | R32: Acres | S32: Hours
B33: Hours per acre | D33: 1.5 | E33: 1.2 | F33: 1.5 | G33: 1.2 | H33: 1.5 | J33: 1.7 | K33: 1.4 | L33: 1.7 | M33: 1.4 | N33: 1.7 | P33: Staff | Q33: Months | R33: Farmed | S33: Per Acre
C34: Total ($/acre) | D34: =SUM(D33*$E$10) -> 40.5 | E34: =SUM(E33*$E$10) -> 32.4 | F34: =SUM(F33*$E$10) -> 40.5 | G34: =SUM(G33*$E$10) -> 32.4 | H34: =SUM(H33*$E$10) -> 40.5 | J34: =SUM(J33*$E$10) -> 45.9 | K34: =SUM(K33*$E$10) -> 37.8 | L34: =SUM(L33*$E$10) -> 45.9 | M34: =SUM(M33*$E$10) -> 37.8 | N34: =SUM(N33*$E$10) -> 45.9 | P34: 2 | Q34: 2 | R34: 420 | S34: =SUM(P34*Q34*4*40)/R34 -> 1.523809524
P35: 0 | Q35: 0 | R35: =R34 -> 420 | S35: =SUM(P35*Q35*4*40)/R35 -> 0
B36: ="1. Crop insurance: (2022 rates) Forage Establishment Insurance for $80/ac coverage. Annual Insurance for Alfalfa "&'Op. Cost Input'!E17&" coverage in MASC ("&'Forage Insurance'!B4&") with LTAY "&IF(E17="Basic Hay","",'Forage Insurance'!L5)&" yield="&IF(E17="Basic Hay",'Forage Insurance'!D11,'Forage Insurance'!L11)&" tons/acre and for Alfalfa Grass "&'Op. Cost Input'!G17&" coverage with LTAY "&IF(G17="Basic Hay","",'Forage Insurance'!G5)&" yield="&IF(E17="Basic Hay",'Forage Insurance'!#REF!,'Forage Insurance'!H11)&" tons/acre. Annual Insurance for Greenfeed "&'Op. Cost Input'!H17&" coverage in MASC ("&'Forage Insurance'!B5&") with LTAY yield="&'Forage Insurance'!M11& " tons/acre including $0.52/acre EMI coverage." -> 1. Crop insurance: (2022 rates) Forage Establishment Insurance for $80/ac coverage. Annual Insurance for Alfalfa Select_Hay coverage in MASC (Forage Region 6) with LTAY yield=2.432 tons/acre and for Alfalfa Grass Basic_Hay coverage with LTAY 4 Years or Less Stand yield=2.148 tons/acre. Annual Insurance for Greenfeed 80% Coverage coverage in MASC (Risk Area 15) with LTAY yield=1.996 tons/acre including $0.52/acre EMI coverage. | P36: 0 | Q36: 0 | R36: =R34 -> 420 | S36: =SUM(P36*Q36*4*40)/R36 -> 0
P37: 0 | Q37: 0 | R37: =R34 -> 420 | S37: =SUM(P37*Q37*4*40)/R37 -> 0
R38: Total | S38: =SUM(S34:S37) -> 1.523809524
A40: Field Fuel Usage
E42: Number of Field Operations | N42: Trucks
E43: cultivate | F43: tandem disk | G43: harrow | H43: air drill | I43: SP sprayer | J43: hay rake | K43: hay bine | L43: round baler | M43: spin spreader | N43: 3/4 ton pickup
A45: Crop | D45: L/acre | E45: 1.29 | F45: 1.85 | G45: 0.75 | H45: 2.42 | I45: 0.42 | J45: 0.26 | K45: 1.48 | L45: 1.32 | M45: 0.42 | N45: 0.5
A46: Alfalfa Hay
B47: Alfalfa hay | D47: =SUM(E47*$E$45)+(F47*$F$45)+(G47*$G$45)+(H47*$H$45)+(I47*$I$45)+(J47*$J$45)+(K47*$K$45)+(L47*$L$45)+(M47*$M$45)+N47 -> 10.1 | E47: 0 | F47: 0 | G47: 0 | H47: 0 | I47: 0 | J47: 3 | K47: 3 | L47: 3 | M47: 1 | N47: =$N$45 -> 0.5
B48: Alfalfa establishment | D48: =SUM(E48*$E$45)+(F48*$F$45)+(G48*$G$45)+(H48*$H$45)+(I48*$I$45)+(J48*$J$45)+(K48*$K$45)+(L48*$L$45)+(M48*$M$45)+N48 -> 15.95 | E48: 1 | F48: 2 | G48: 2 | H48: 1 | I48: 1 | J48: 2 | K48: 2 | L48: 2 | M48: 0 | N48: =$N$45 -> 0.5
A49: Alfalfa-Grass Hay
B50: Alfalfa-grass hay | D50: =SUM(E50*$E$45)+(F50*$F$45)+(G50*$G$45)+(H50*$H$45)+(I50*$I$45)+(J50*$J$45)+(K50*$K$45)+(L50*$L$45)+(M50*$M$45)+N50 -> 7.04 | E50: 0 | F50: 0 | G50: 0 | H50: 0 | I50: 0 | J50: 2 | K50: 2 | L50: 2 | M50: 1 | N50: =$N$45 -> 0.5
B51: Oat greenfeed (nurse crop) | D51: =SUM(E51*$E$45)+(F51*$F$45)+(G51*$G$45)+(H51*$H$45)+(I51*$I$45)+(J51*$J$45)+(K51*$K$45)+(L51*$L$45)+(M51*$M$45)+N51 -> 13.05 | E51: 1 | F51: 2 | G51: 2 | H51: 1 | I51: 1 | J51: 0 | K51: 1 | L51: 1 | M51: 1 | N51: =$N$45 -> 0.5
A52: Greenfeed Hay
B53: ='Seed, Fertilizer & Chemical'!B10 -> Oats | D53: =SUM(E53*$E$45)+(F53*$F$45)+(G53*$G$45)+(H53*$H$45)+(I53*$I$45)+(J53*$J$45)+(K53*$K$45)+(L53*$L$45)+(M53*$M$45)+N53 -> 11.92 | E53: 1 | F53: 0 | G53: 1 | H53: 1 | I53: 2 | J53: 2 | K53: 2 | L53: 2 | M53: 0 | N53: =$N$45 -> 0.5
C55: Basic_Hay | D55: Select_Hay | G55: Percent_70 | H55: Percent_80
B56: None | C56: None | D56: None | E56: None | G56: <=4 Years Stand | H56: <=4 Years Stand
B57: Basic_Hay | C57: ='Forage Insurance'!B80 -> Low - $71/tonne | D57: 70% Coverage | E57: 80% Coverage | G57: >4 Year Stand | H57: >4 Year Stand
B58: Select_Hay | C58: ='Forage Insurance'!B81 -> High - $118/tonne | D58: 80% Coverage

Sheet Fixed Cost Input
A1: Fixed Costs
B2: Land | G2: Machinery - Hay
B3: Average Land value ($/acre) | D3: 3000 | G3: Total Investment ($/acre) | J3: =(C55)/(D4+D5) -> 379.5
B4: Dry Hay Crop acres | D4: 300 | G4: Residual Value (End of Useful Life) | J4: 0.25
B5: Baled Silage Crop acres | D5: 300 | G5: Useful Life (years) | J5: 15
B6: Owned Land Equity | D6: 0.85 | G6: Owned Equipment Equity | J6: 0.55
B7: =" Land Financed ("&TEXT(D3*D7,"$#,###")&" per acre)" -> Land Financed ($450 per acre) | D7: =SUM(1-D6) -> 0.15 | G7: =" Equipment Financed ("&TEXT((J3)*J7,"$#,###")&" per acre)" -> Equipment Financed ($171 per acre) | J7: =SUM(1-J6) -> 0.45
B8: Land Opportunity Cost (Investment Rate) | D8: 0.015 | G8: Machinery Opportunity Cost (Investment Rate) | J8: 0.015
B9: Land cost ($/acre) | G9: Machinery Cost - Hay ($/acre)
B10: Finance Rate & Term | C10: 0.08 | D10: 25 | E10: Years | G10: Finance Rate & Term | H10: 0.085 | I10: 7 | J10: Years
B11: Principle & Interest Cost | D11: =-PMT(C10,D10,D3*D7,0) -> 42.15545057 | G11: Principle & Interest Cost | J11: =-PMT(H10,I10,J3*J7,0) -> 33.36417874
B12: Owned Land Opportunity Cost | D12: =SUM(D3*D6)*(D8) -> 38.25 | G12: Machinery Depreciation Cost | J12: =(J3-(J3*J4))/J5 -> 18.975
B13: Total Cost | D13: =SUM(D11:D12) -> 80.40545057 | G13: Owned Machinery Opportunity Cost | J13: =SUM(J3*J6)*(J8) -> 3.130875
G14: Total Cost | J14: =SUM(J11:J13) -> 55.47005374
B16: Machinery Lease cost ($/acre) | D16: =D78 -> 2.4 | G16: Machinery - Baled Silage
G17: Total Investment ($/acre) | J17: =(C65)/(D5) -> 133.3333333
G18: Residual Value (End of Useful Life) | J18: 0.2
B19: Total Land & Machinery Debt ($/acre) | D19: =(D3*D7)+((J3)*J7)+(J17*J21) -> 680.775 | G19: Useful Life (years) | J19: 15
G20: Owned Equipment Equity | J20: 0.55
G21: =" Equipment Financed ("&TEXT(J17*J21,"$#,###")&" per acre)" -> Equipment Financed ($60 per acre) | J21: =SUM(1-J20) -> 0.45
G22: Silage Storage Opp. Cost (Investment Rate) | J22: 0.015
G23: Machinery Cost - Baled Silage ($/acre)
G24: Finance Rate & Term | H24: 0.085 | I24: 7 | J24: Years
G25: Principle & Interest Cost | J25: =-PMT(H24,I24,J17*J21,0) -> 11.72215327
G26: Machinery Depreciation Cost | J26: =(J17-(J17*J18))/J19 -> 7.111111111
G27: Owned Machinery Opportunity Cost | J27: =SUM(J17*J20)*(J22) -> 1.1
G28: Total Cost | J28: =SUM(J25:J27) -> 19.93326438
A30: Hay Equipment Inventory and Current Values
C31: Market | D31: Forage | E31: Forage | H31: Market | I31: Forage | J31: Forage
A32: Power & Misc Equipment | C32: Value | D32: Usage % | E32: Allocation | G32: Harvest Equipment | H32: Value | I32: Usage % | J32: Allocation
B33: MFD Tractor 100HP | C33: 140000 | D33: 0.5 | E33: =SUM(C33*D33) -> 70000 | G33: Mower/Conditioner | H33: 44000 | I33: 1 | J33: =SUM(H33*I33) -> 44000
B34: 2WD Tractor 60HP | C34: 44000 | D34: 0.5 | E34: =SUM(C34*D34) -> 22000 | G34: Hay Rake | H34: 16500 | I34: 1 | J34: =SUM(H34*I34) -> 16500
C35: 0 | D35: 0 | E35: 0 | G35: Baler | H35: 60000 | I35: 1 | J35: 60000
C36: 0 | D36: 0 | E36: 0 | H36: 0 | I36: 0 | J36: 0
C37: 0 | D37: 0 | E37: 0 | H37: 0 | I37: 0 | J37: 0
C38: 0 | D38: 0 | E38: 0 | H38: 0 | I38: 0 | J38: 0
C39: 0 | D39: 0 | E39: 0 | H39: 0 | I39: 0 | J39: 0
C40: 0 | D40: 0 | E40: 0 | H40: 0 | I40: 0 | J40: 0
B41: Total | E41: =SUM(E33:E40) -> 92000 | G41: Total | J41: =SUM(J33:J40) -> 120500
C43: Market | D43: Forage | E43: Forage | H43: Market | I43: Forage | J43: Forage
A44: Seeding, Tillage, Spraying | C44: Value | D44: Usage % | E44: Allocation | G44: Trucks & Trailers | H44: Value | I44: Usage % | J44: Allocation
B45: Cultivator | C45: 11000 | D45: 0.2 | E45: =SUM(C45*D45) -> 2200 | G45: enter equipment here | H45: 0 | I45: 0 | J45: =SUM(H45*I45) -> 0
B46: Harrow 50ft | C46: 11000 | D46: 0.2 | E46: =SUM(C46*D46) -> 2200 | H46: 0 | I46: 0 | J46: =SUM(H46*I46) -> 0
B47: Air tank | C47: 11000 | D47: 0.2 | E47: 2200 | H47: 0 | I47: 0 | J47: 0
B48: Air drill 40ft | C48: 33000 | D48: 0.2 | E48: 6600 | H48: 0 | I48: 0 | J48: 0
B49: PT sprayer | C49: 10000 | D49: 0.2 | E49: 2000 | H49: 0 | I49: 0 | J49: 0
C50: 0 | D50: 0 | E50: 0 | H50: 0 | I50: 0 | J50: 0
C51: 0 | D51: 0 | E51: 0 | H51: 0 | I51: 0 | J51: 0
C52: 0 | D52: 0 | E52: 0 | H52: 0 | I52: 0 | J52: 0
B53: Total | C53: =SUM(C45:C52) -> 76000 | E53: =SUM(E45:E52) -> 15200 | G53: Total | J53: =SUM(J45:J52) -> 0
B55: Owned Equipment TOTAL | C55: =SUM(E41+J41+E53+J53) -> 227700
A57: Baled Silage Equipment Inventory and Current Values
C58: Market | D58: Forage | E58: Forage | H58: Market | I58: Forage | J58: Forage
A59: Miscellaneous Equipment | C59: Value | D59: Usage % | E59: Allocation | G59: Harvest Equipment | H59: Value | I59: Usage % | J59: Allocation
B60: enter equipment here | C60: 0 | D60: 0 | E60: =SUM(C60*D60) -> 0 | G60: Silage Bale Wrapper | H60: 40000 | I60: 1 | J60: =SUM(H60*I60) -> 40000
C61: 0 | D61: 0 | E61: =SUM(C61*D61) -> 0 | H61: 0 | I61: 0 | J61: =SUM(H61*I61) -> 0
C62: 0 | D62: 0 | E62: =SUM(C62*D62) -> 0 | H62: 0 | I62: 0 | J62: =SUM(H62*I62) -> 0
C63: 0 | D63: 0 | E63: =SUM(C63*D63) -> 0 | H63: 0 | I63: 0 | J63: =SUM(H63*I63) -> 0
B64: Total | E64: =SUM(E60:E63) -> 0 | G64: Total | J64: =SUM(J60:J63) -> 40000
B65: Silage Equipment TOTAL | C65: =SUM(E64+J64) -> 40000
A67: Leased Equipment Inventory
C68: Annual | D68: Forage | E68: Forage | H68: Annual | I68: Forage | J68: Forage
A69: Seeding, Tillage, Spraying | C69: Lease | D69: Usage % | E69: Allocation | G69: Trucks & Trailers | H69: Lease | I69: Usage % | J69: Allocation
B70: enter equipment here | C70: 0 | D70: 0 | E70: =SUM(C70*D70) -> 0 | G70: 3/4 ton pickup | H70: 9600 | I70: 0.15 | J70: =SUM(H70*I70) -> 1440
C71: 0 | D71: 0 | E71: 0 | H71: 0 | I71: 0 | J71: 0
C72: 0 | D72: 0 | E72: 0 | H72: 0 | I72: 0 | J72: 0
C73: 0 | D73: 0 | E73: 0 | H73: 0 | I73: 0 | J73: 0
C74: 0 | D74: 0 | E74: 0 | H74: 0 | I74: 0 | J74: 0
C75: 0 | D75: 0 | E75: 0 | H75: 0 | I75: 0 | J75: 0
B76: Total | C76: =SUM(C70:C75) -> 0 | E76: =SUM(E70:E75) -> 0 | G76: Total | J76: =SUM(J70:J75) -> 1440
B78: Leased Equipment TOTAL | C78: =SUM(E76+J76) -> 1440 | D78: =SUM(C78/(D4+D5)) -> 2.4 | E78: per acre
B79: * Leased equipment costs are listed under Operating Costs on the Summary Page.

Sheet Assumptions
B1: Other Assumptions
B3: Fuel Costs:
B4: Includes fuel used for field work, and trucking in inputs.
B6: Machinery Operating Costs:
B7: Includes costs for maintenance, repairs, licenses and insurance.
B9: Crop Insurance: (2023 rates)
B10: ='Forage Insurance'!B4&" - Establishment Insurance at $80/ac coverage and annual "&'Op. Cost Input'!E17&" insurance at 80% coverage. "&'Forage Insurance'!B5&" - Greenfeed Insurance at 80% coverage." -> Forage Region 6 - Establishment Insurance at $80/ac coverage and annual Select_Hay insurance at 80% coverage. Risk Area 15 - Greenfeed Insurance at 80% coverage.
B13: Other Costs:
B14: Includes overhead expenses: hydro, telephone, accounting, buildings, supplies and insurance, etc.
B16: Bale Moisture:
B17: ="Bale moisture based on: "&Production!D38&"% alfalfa hay; "&Production!E38&"% alfalfa-grass hay; "&Production!F38&"% greenfeed hay; "&Production!H38&"% alfalfa baled silage; "&Production!I38&"% alfalfa-grass baled silage and "&Production!J38&"% greenfeed baled silage. " -> Bale moisture based on: 12.1% alfalfa hay; 12.6% alfalfa-grass hay; 14.2% greenfeed hay; 50% alfalfa baled silage; 50% alfalfa-grass baled silage and 50% greenfeed baled silage.
B20: Land Taxes:
B21: ="The average for the province was based on land tax assessment and mill rates of a sample of municipalities growing crops less provincial tax rebate. " -> The average for the province was based on land tax assessment and mill rates of a sample of municipalities growing crops less provincial tax rebate.
B24: Interest On Operating:
B25: ="Interest charges on operating costs are calculated at "&'Op. Cost Input'!E3*100&"% for six months." -> Interest charges on operating costs are calculated at 9% for six months.
B27: Land Cost:
B28: ="Based on approximate average land values. Budget assumed "&'Fixed Cost Input'!D7*100&"% financed at "&'Fixed Cost Input'!C10*100&"% for "&'Fixed Cost Input'!D10&" years, plus "&'Fixed Cost Input'!D8*100&"% land equity opportunity cost. Budget can be used to estimate cashflow by removing investment cost." -> Based on approximate average land values. Budget assumed 15% financed at 8% for 25 years, plus 1.5% land equity opportunity cost. Budget can be used to estimate cashflow by removing investment cost.
B31: ="P&I Cost (based on "&TEXT('Fixed Cost Input'!D3*('Fixed Cost Input'!D4+'Fixed Cost Input'!D5)*'Fixed Cost Input'!D7,"$#,###")&" Mortgage) = $"&TEXT('Fixed Cost Input'!D11*('Fixed Cost Input'!D4+'Fixed Cost Input'!D5),"#,###")&" payments per year) / "&'Fixed Cost Input'!D4+'Fixed Cost Input'!D5&" acres = $"&TEXT('Fixed Cost Input'!D11,"0.00")&"/acre)" -> P&I Cost (based on $270,000 Mortgage) = $25,293 payments per year) / 600 acres = $42.16/acre)
B32: ="Investment = (Total Investment x Owned Equity %) x Investment Rate % (eg. (($"&TEXT('Fixed Cost Input'!D3,"#,###")&" x "&'Fixed Cost Input'!D6*100&"%) x "&'Fixed Cost Input'!D8*100&"%) = $"&TEXT('Fixed Cost Input'!D12,"0.00")&"/acre)" -> Investment = (Total Investment x Owned Equity %) x Investment Rate % (eg. (($3,000 x 85%) x 1.5%) = $38.25/acre)
B34: Machinery Cost:
B35: ="Based on approximate average machinery values. Budget assumed "&'Fixed Cost Input'!J7*100&"% financed at "&'Fixed Cost Input'!H10*100&"% for "&'Fixed Cost Input'!I10&" years, depreciation costs over "&'Fixed Cost Input'!J5&" years with a "&'Fixed Cost Input'!J4*100&"% residual value, plus "&'Fixed Cost Input'!J8*100&"% machinery equity opportunity cost. Budget can be used to estimate cashflow by removing depreciation and investment cost. " -> Based on approximate average machinery values. Budget assumed 45% financed at 8.5% for 7 years, depreciation costs over 15 years with a 25% residual value, plus 1.5% machinery equity opportunity cost. Budget can be used to estimate cashflow by removing depreciation and investment cost.
B38: ="P&I Cost (based on "&TEXT((('Fixed Cost Input'!J3*'Fixed Cost Input'!J7)*('Fixed Cost Input'!D4+'Fixed Cost Input'!D5)),"$#,###")&" + "&TEXT((('Fixed Cost Input'!J17*'Fixed Cost Input'!J21)*('Fixed Cost Input'!D5)),"$#,###")&" Loan) = $"&TEXT(('Fixed Cost Input'!J11*('Fixed Cost Input'!D4+'Fixed Cost Input'!D5)),"#,###")&" + "&TEXT(('Fixed Cost Input'!J25*('Fixed Cost Input'!D5)),"$#,###")&" payment per year) / "&'Fixed Cost Input'!D4+'Fixed Cost Input'!D5&" + "&'Fixed Cost Input'!D5&" acres = $"&TEXT('Fixed Cost Input'!J11,"0.00")&" + "&TEXT('Fixed Cost Input'!J25,"$0.00")&"/acre)" -> P&I Cost (based on $102,465 + $18,000 Loan) = $20,019 + $3,517 payment per year) / 600 + 300 acres = $33.36 + $11.72/acre)
B40: ="Depreciation (Useage Cost) = (Total Investment - Residual Value) / Years Useful Life (eg. ($"&TEXT('Fixed Cost Input'!J3,"0.00")&" - ($"&TEXT('Fixed Cost Input'!J3,"0.00")&" x "&'Fixed Cost Input'!J4*100&"%)) / "&'Fixed Cost Input'!J5&" = $"&TEXT('Fixed Cost Input'!J12,"0.00")&"/acre)" -> Depreciation (Useage Cost) = (Total Investment - Residual Value) / Years Useful Life (eg. ($379.50 - ($379.50 x 25%)) / 15 = $18.98/acre)
B42: ="Investment = (Total Investment x Owned Equity %) x Investment Rate % (eg. ($"&TEXT('Fixed Cost Input'!J3,"0.00")&" x "&'Fixed Cost Input'!J6*100&"%) x "&'Fixed Cost Input'!J8*100&"%) = $"&TEXT('Fixed Cost Input'!J13,"0.00")&"/acre)" -> Investment = (Total Investment x Owned Equity %) x Investment Rate % (eg. ($379.50 x 55%) x 1.5%) = $3.13/acre)
B44: Estimated Farmgate Values:
B45: Forage prices are based on estimated prices for fall/winter 2023/24.
B47: Storage Cost:
B48: ="Dry hay storage costs are estimated at $"&TEXT('Fixed Cost Input'!D15,"0.00")&" per acre. " -> Dry hay storage costs are estimated at $0.00 per acre.
B50: Profitability & Breakeven Analysis:
B51: ="Gross Revenue = Price per unit x Yield per acre (eg. alfalfa: $"&TEXT(Summary!D42,"0.00")&"/ton x "&Summary!D43&" ton/ac = $"&TEXT(Summary!D45, "0.00")&"/ac)" -> Gross Revenue = Price per unit x Yield per acre (eg. alfalfa: $160.00/ton x 3.5 ton/ac = $560.00/ac)
B53: Net Profit = Gross Revenue - Total Cost
B54: =" (eg. alfalfa: $"&TEXT(Summary!D45,"0.00")&" gross revenue - $"&TEXT(Summary!C35,"0.00")&" total cost = $"&TEXT(Summary!C50,"0.00")&" per acre)" -> (eg. alfalfa: $560.00 gross revenue - $418.33 total cost = $141.67 per acre)
B56: Operating Expense Ratio = (Operating Cost / Gross Revenue) x 100
B57: =" (eg. alfalfa: $"&TEXT(Summary!C24,"0.00")&" operating expense / $"&TEXT(Summary!D45,"0.00")&" gross revenue = "&TEXT(Summary!C51*100,"0.0")&"%)" -> (eg. alfalfa: $250.05 operating expense / $560.00 gross revenue = 44.7%)
B59: ="Breakeven Price = Cost / Target Yield (eg. alfalfa cost $"&TEXT(Summary!C35,"0.00")&" / "&Summary!D43&" ton = $"&TEXT(Summary!D55,"0.00")&" per ton)" -> Breakeven Price = Cost / Target Yield (eg. alfalfa cost $418.33 / 3.5 ton = $119.52 per ton)
B61: ="Breakeven Yield = Cost / Price per Unit (eg. alfalfa cost $"&TEXT(Summary!C35,"0.00")&" / $"&TEXT(Summary!D42,"0.00")&" ton = "&TEXT(Summary!D59,"0.00")&" ton)" -> Breakeven Yield = Cost / Price per Unit (eg. alfalfa cost $418.33 / $160.00 ton = 2.61 ton)
I63: ="January, "&Introduction!J12 -> January, 2024

Sheet Calculator (HIDE) (hidden)
A1: Economics of Baled Hay vs Round Bale or Pit Silage
A2: Inputs and Production | C2: Hay | D2: Round Bale Silage | E2: Pit Silage
A3: Field Size | B3: acres | C3: 250 | D3: 250 | E3: 250 | H3: ? Add in cost for standing hay per pound?
A4: Forage dry matter (DM) yield | B4: tons per acre | C4: 3 | D4: 3 | E4: 3 | H4: ?? Change to yield as fed
A6: Forage Moisture Content | B6: % | C6: 0.1 | D6: 0.53 | E6: 0.35
A7: Forage dry matter (DM) | B7: % | C7: =SUM(1-C6) -> 0.9 | D7: =SUM(1-D6) -> 0.47 | E7: =SUM(1-E6) -> 0.65 | H7: hay 12.6%
A8: # of cuttings | C8: 2 | D8: 2 | E8: 2
A9: # of rakings | C9: 2 | D9: 0 | E9: 0
A10: Average bale weight | B10: lbs | C10: 1250 | D10: 2000 | E10: 0
A11: # of bales (tons for pit silage) produced | C11: =ROUND((((C4*2000)/C7)/C10)*C3,0) -> 1333 | D11: =ROUND((((D4*2000)/D7)/D10)*D3,0) -> 1596 | E11: =ROUND((E4/E7)*E3,0) -> 1154 | F11: tons
A12: Forage total digestible nutrients (TDN) | B12: % | C12: 0.54 | D12: 0.57 | E12: 0.57
A13: Forage crude protein (CP) | B13: % | C13: 0.1 | D13: 0.13 | E13: 0.13
A14: Estimated Storage Loss | B14: % | C14: 0.25 | D14: 0.05 | E14: 0.15
A15: Total as-fed production | B15: lbs | C15: =C11*C10 -> 1666250 | D15: =D11*D10 -> 3192000 | E15: =E11*2000 -> 2308000 | G15: *hide* | I15: =E4*E3*2000 -> 1500000
A16: Total DM production | B16: lbs | C16: =C15*C7 -> 1499625 | D16: =D15*D7 -> 1500240 | E16: =E15*E7 -> 1500200
A17: DM TDN produced | B17: lbs | C17: =C16*C12 -> 809797.5 | D17: =D16*D12 -> 855136.8 | E17: =E16*E12 -> 855114
A18: DM CP produced | B18: lbs | C18: =C16*C13 -> 149962.5 | D18: =D16*D13 -> 195031.2 | E18: =E16*E13 -> 195026
A19: Total as-fed available | B19: lbs | C19: =C15-(C15*C14) -> 1249687.5 | D19: =D15-(D15*D14) -> 3032400 | E19: =E15-(E15*E14) -> 1961800
A20: Total DM available | B20: lbs | C20: =C19*C7 -> 1124718.75 | D20: =D19*D7 -> 1425228 | E20: =E19*E7 -> 1275170
A21: TDN available | B21: lbs | C21: =C20*C12 -> 607348.125 | D21: =D20*D12 -> 812379.96 | E21: =E20*E12 -> 726846.9
A22: CP available | B22: lbs | C22: =C20*C13 -> 112471.875 | D22: =D20*D13 -> 185279.64 | E22: =E20*E13 -> 165772.1
A24: Production Economics | C24: Hay | D24: Round Bale Silage | E24: Pit Silage
A25: Cutting Cost per acre | C25: 16 | D25: 16 | E25: 16
A26: Chopping Cost per ton | C26: - | D26: - | E26: 8
A27: Raking Cost per acre | C27: 3 | D27: 0 | E27: 0
A28: Baling Cost per Bale | C28: 9 | D28: 9 | E28: -
A29: Moving Cost per Bale | C29: 3 | D29: 3 | E29: 1 | I29: ?forage cost per hour
A30: Wrapper Cost per Bale (packing cost for pit silage) | C30: - | D30: 3 | E30: 3 | F30: packing | I30: ? Wrapper cost per roll, wraps per blae
A31: Plastic Wrap Cost per Bale | C31: - | D31: 4 | E31: 0.75
A32: Total cost | B32: $ | C32: =(C25*C3)+(C27*C9*C3)+(C28*C11)+(C29*C11) -> 21496 | D32: =(D25*D3)+(D27*D9*D3)+(D28*D11)+(D29*D11)+(D30*D11)+(D31*D11) -> 34324 | E32: =(E25*E3)+(E26*E11)+(E27*E9*E3)+(E29*E11)+(E30*E11)+(E31*E11) -> 18713.5
A34: as-fed cost per acre | B34: $/acre | C34: =C32/C3 -> 85.984 | D34: =D32/D3 -> 137.296 | E34: =E32/E3 -> 74.854 | G34: *hide*
A35: DM cost per acre | B35: $/acre | C35: =C34/C7 -> 95.53777778 | D35: =D34/D7 -> 292.1191489 | E35: =E34/E7 -> 115.16
A36: As-fed forage harvest cost | B36: $/ton | C36: =C32/(C15/2000) -> 25.80165041 | D36: =D32/(D15/2000) -> 21.50626566 | E36: =E32/(E15/2000) -> 16.21620451
A37: Dry matter forage cost | B37: $/ton | C37: =C32/(C16/2000) -> 28.66850046 | D37: =D32/(D16/2000) -> 45.75801205 | E37: =E32/(E16/2000) -> 24.94800693
A38: As-fed bale cost | B38: $/bale | C38: =C32/C11 -> 16.12603151 | D38: =D32/D11 -> 21.50626566 | E38: =E32/E11 -> 16.21620451
A39: Dry matter bale cost | B39: $/bale | C39: =C38/C7 -> 17.91781279 | D39: =D38/D7 -> 45.75801205 | E39: =E38/E7 -> 24.94800693
A40: Cost of DM | B40: $/lb | C40: =C32/C16 -> 0.01433425023 | D40: =D32/D16 -> 0.02287900603 | E40: =E32/E16 -> 0.01247400347
A41: Cost of TDN | B41: $/lb | C41: =C32/C17 -> 0.02654490783 | D41: =D32/D17 -> 0.04013860706 | E41: =E32/E17 -> 0.02188421661
A42: Cost of CP | B42: $/lb | C42: =C32/C18 -> 0.1433425023 | D42: =D32/D18 -> 0.175992354 | E42: =E32/E18 -> 0.09595387282
A44: Final Forage Economics (includes spoilage loss and hauled to the yard ) | C44: Hay | D44: Round Bale Silage | E44: Pit Silage
A45: As fed forage cost | B45: $/ton | C45: =C32/(C19/2000) -> 34.40220055 | D45: =D32/(D19/2000) -> 22.63817438 | E45: =E32/(E19/2000) -> 19.07788765
A46: Dry matter forage cost | B46: $/ton | C46: =C32/(C20/2000) -> 38.22466728 | D46: =D32/(D20/2000) -> 48.16632848 | E46: =E32/(E20/2000) -> 29.35059639
A47: As fed Bale (ton for pit silage) cost | C47: =C32/C11 -> 16.12603151 | D47: =D32/D11 -> 21.50626566 | E47: =E32/E11 -> 16.21620451
A48: Dry Matter bale (ton for pit silage) Cost | C48: =C46/2000*C10 -> 23.89041705 | D48: =D46/2000*D10 -> 48.16632848 | E48: =E46 -> 29.35059639 | I48: ?bale moving cost
A49: Cost of DM | B49: $/lb | C49: =C32/C20 -> 0.01911233364 | D49: =D32/D20 -> 0.02408316424 | E49: =E32/E20 -> 0.0146752982
A50: Cost of TDN | B50: $/lb | C50: =C32/C21 -> 0.03539321044 | D50: =D32/D21 -> 0.04225116533 | E50: =E32/E21 -> 0.02574613719
A51: Cost of CP | B51: $/lb | C51: =C32/C22 -> 0.1911233364 | D51: =D32/D22 -> 0.1852551095 | E51: =E32/E22 -> 0.1128869092
